Workbook

Sheet LISTAGEM PESSOAL (hidden)
A1: Nº | B1: Posto | C1: Nim | D1: Nome
A2: 1
A3: 2
A4: 3
A5: 4
A6: 5
A7: 6
A8: 7
A9: 8
A10: 9
A11: 10
A12: 11
A13: 12
A14: 13
A15: 14
A16: 15
A17: 16
A18: 17
A19: 18
A20: 19
A21: 20
A22: 21
A23: 22
A24: 23
A25: 24
A26: 25
A27: 26
A28: 27
A29: 28
A30: 29
A31: 30
A32: 31
A33: 32
A34: 33
A35: 34
A36: 35
A37: 36
A38: 37
A39: 38
A40: 39
A41: 40
A42: 41
A43: 42
A44: 43
A45: 44
A46: 45
A47: 46
A48: 47
A49: 48
A50: 49
A51: 50
A52: 51
A53: 52
A54: 53
A55: 54
A56: 55
A57: 56
A58: 57

Sheet Folha2 (hidden)
A1: sol1 | B1: 1 | C1: Paul Dawes | D1: Comp1
A2: sol2 | B2: 2 | C2: Odell Segarra | D2: Comp2
A3: sol3 | B3: 3 | C3: Lindsay Sanderlin | D3: Comp3
A4: sol4 | B4: 4 | C4: Rodger Burney | D4: Comp4
A5: sol5 | B5: 5 | C5: Donny Belote | D5: Comp5
A6: sol6 | B6: 6 | C6: Wm Payton | D6: Comp6
A7: sol7 | B7: 7 | C7: Eugene Molloy | D7: Comp7
A8: sol8 | B8: 8 | C8: Phillip Nottage | D8: Comp8
A9: sol9 | B9: 9 | C9: Lavern Tank | D9: Comp9
A10: sol10 | B10: 10 | C10: Elvis Feeney | D10: Comp10
A11: sol11 | B11: 11 | C11: Nigel Knell | D11: Comp11
A12: sol12 | B12: 12 | C12: Stanton Mccord | D12: Comp12
A13: sol13 | B13: 13 | C13: Tracey Null | D13: Comp13
A14: sol14 | B14: 14 | C14: Winfred Olivieri | D14: Comp14
A15: sol15 | B15: 15 | C15: Roderick Lehto | D15: Comp15
A16: sol16 | B16: 16 | C16: Leo Mero | D16: Comp16
A17: sol17 | B17: 17 | C17: Chad Egbert | D17: Comp17
A18: sol18 | B18: 18 | C18: Zackary Hawn | D18: Comp18
A19: sol1 | B19: 1 | C19: Paul Dawes | D19: Comp1
A20: sol2 | B20: 2 | C20: Odell Segarra | D20: Comp2
A21: sol3 | B21: 3 | C21: Lindsay Sanderlin | D21: Comp3
A22: sol4 | B22: 4 | C22: Rodger Burney | D22: Comp4
A23: sol5 | B23: 5 | C23: Donny Belote | D23: Comp5
A24: sol6 | B24: 6 | C24: Wm Payton | D24: Comp6
A25: sol7 | B25: 7 | C25: Eugene Molloy | D25: Comp7
A26: sol8 | B26: 8 | C26: Phillip Nottage | D26: Comp8
A27: sol9 | B27: 9 | C27: Lavern Tank | D27: Comp9
A28: sol10 | B28: 10 | C28: Elvis Feeney | D28: Comp10
A29: sol11 | B29: 11 | C29: Nigel Knell | D29: Comp11
A30: sol12 | B30: 12 | C30: Stanton Mccord | D30: Comp12
A31: sol19 | B31: 19 | C31: Adam Hage | D31: Comp19
A32: sol20 | B32: 20 | C32: Brock Martina | D32: Comp20
A33: sol21 | B33: 21 | C33: Lyndon Canter | D33: Comp21
A34: sol22 | B34: 22 | C34: Norbert Casali | D34: Comp22
A35: sol23 | B35: 23 | C35: Dillon Lovern | D35: Comp23
A36: sol24 | B36: 24 | C36: Glenn Harvey | D36: Comp24
A37: sol25 | B37: 25 | C37: Marion Amico | D37: Comp25
A38: sol26 | B38: 26 | C38: Damien Gaydos | D38: Comp26
A39: sol27 | B39: 27 | C39: Brendan Padro | D39: Comp27
A40: sol28 | B40: 28 | C40: Damion Erick | D40: Comp28
A41: sol29 | B41: 29 | C41: Francesco Sainz | D41: Comp29
A42: sol30 | B42: 30 | C42: Andy Daluz | D42: Comp30
A43: sol31 | B43: 31 | C43: Timothy Goetz | D43: Comp31
A44: sol32 | B44: 32 | C44: Wendell Horman | D44: Comp32
A45: sol33 | B45: 33 | C45: Shane Straka | D45: Comp33
A46: sol34 | B46: 34 | C46: Frederic Chenail | D46: Comp34
A47: sol35 | B47: 35 | C47: Darwin Sons | D47: Comp35
A48: sol36 | B48: 36 | C48: Chase Branning | D48: Comp36
A49: sol37 | B49: 37 | C49: Clair Blundell | D49: Comp37
A50: sol38 | B50: 38 | C50: Bertram Carvalho | D50: Comp38
A51: sol39 | B51: 39 | C51: Mohammad Penland | D51: Comp39
A52: sol40 | B52: 40 | C52: Raymundo Hauk | D52: Comp40
A53: sol41 | B53: 41 | C53: Tad Konkel | D53: Comp41
A54: sol42 | B54: 42 | C54: Mickey Krauss | D54: Comp42
A55: sol43 | B55: 43 | C55: Tyree Oba | D55: Comp43
A56: sol44 | B56: 44 | C56: Dean Sherrick | D56: Comp44
A57: sol45 | B57: 45 | C57: Rhett Ros | D57: Comp45
A58: sol46 | B58: 46 | C58: Warren Gamber | D58: Comp46
A59: sol47 | B59: 47 | C59: Colton Raulerson | D59: Comp47
A60: sol48 | B60: 48 | C60: Adan Mccubbin | D60: Comp48
A61: sol13 | B61: 13 | C61: Tracey Null | D61: Comp13
A62: sol14 | B62: 14 | C62: Winfred Olivieri | D62: Comp14
A63: sol15 | B63: 15 | C63: Roderick Lehto | D63: Comp15
A64: sol16 | B64: 16 | C64: Leo Mero | D64: Comp16
A65: sol17 | B65: 17 | C65: Chad Egbert | D65: Comp17
A66: sol18 | B66: 18 | C66: Zackary Hawn | D66: Comp18
A67: sol19 | B67: 19 | C67: Adam Hage | D67: Comp19
A68: sol20 | B68: 20 | C68: Brock Martina | D68: Comp20
A69: sol21 | B69: 21 | C69: Lyndon Canter | D69: Comp21
A70: sol22 | B70: 22 | C70: Norbert Casali | D70: Comp22
A71: sol23 | B71: 23 | C71: Dillon Lovern | D71: Comp23
A72: sol24 | B72: 24 | C72: Glenn Harvey | D72: Comp24
A73: sol19 | B73: 19 | C73: Adam Hage | D73: Comp19
A74: sol20 | B74: 20 | C74: Brock Martina | D74: Comp20
A75: sol21 | B75: 21 | C75: Lyndon Canter | D75: Comp21
A76: sol22 | B76: 22 | C76: Norbert Casali | D76: Comp22
A77: sol23 | B77: 23 | C77: Dillon Lovern | D77: Comp23
A78: sol24 | B78: 24 | C78: Glenn Harvey | D78: Comp24
A79: sol25 | B79: 25 | C79: Marion Amico | D79: Comp25
A80: sol26 | B80: 26 | C80: Damien Gaydos | D80: Comp26
A81: sol27 | B81: 27 | C81: Brendan Padro | D81: Comp27
A82: sol28 | B82: 28 | C82: Damion Erick | D82: Comp28
A83: sol29 | B83: 29 | C83: Francesco Sainz | D83: Comp29
A84: sol30 | B84: 30 | C84: Andy Daluz | D84: Comp30
A85: sol25 | B85: 25 | C85: Marion Amico | D85: Comp25
A86: sol26 | B86: 26 | C86: Damien Gaydos | D86: Comp26
A87: sol27 | B87: 27 | C87: Brendan Padro | D87: Comp27
A88: sol28 | B88: 28 | C88: Damion Erick | D88: Comp28
A89: sol29 | B89: 29 | C89: Francesco Sainz | D89: Comp29
A90: sol25 | B90: 25 | C90: Marion Amico | D90: Comp25
A91: sol26 | B91: 26 | C91: Damien Gaydos | D91: Comp26
A92: sol27 | B92: 27 | C92: Brendan Padro | D92: Comp27
A93: sol28 | B93: 28 | C93: Damion Erick | D93: Comp28
A94: sol25 | B94: 25 | C94: Marion Amico | D94: Comp25
A95: sol26 | B95: 26 | C95: Damien Gaydos | D95: Comp26
A96: sol27 | B96: 27 | C96: Brendan Padro | D96: Comp27
A97: sol28 | B97: 28 | C97: Damion Erick | D97: Comp28
A98: sol29 | B98: 29 | C98: Francesco Sainz | D98: Comp29
A99: sol30 | B99: 30 | C99: Andy Daluz | D99: Comp30
A100: sol31 | B100: 31 | C100: Timothy Goetz | D100: Comp31
A101: sol32 | B101: 32 | C101: Wendell Horman | D101: Comp32
A102: sol33 | B102: 33 | C102: Shane Straka | D102: Comp33
A103: sol34 | B103: 34 | C103: Frederic Chenail | D103: Comp34
A104: sol35 | B104: 35 | C104: Darwin Sons | D104: Comp35
A105: sol27 | B105: 27 | C105: Brendan Padro | D105: Comp27
A106: sol28 | B106: 28 | C106: Damion Erick | D106: Comp28
A107: sol29 | B107: 29 | C107: Francesco Sainz | D107: Comp29
A108: sol30 | B108: 30 | C108: Andy Daluz | D108: Comp30
A109: sol31 | B109: 31 | C109: Timothy Goetz | D109: Comp31
A110: sol32 | B110: 32 | C110: Wendell Horman | D110: Comp32
A111: sol33 | B111: 33 | C111: Shane Straka | D111: Comp33
A112: sol34 | B112: 34 | C112: Frederic Chenail | D112: Comp34
A113: sol35 | B113: 35 | C113: Darwin Sons | D113: Comp35
A114: sol36 | B114: 36 | C114: Chase Branning | D114: Comp36
A115: sol19 | B115: 19 | C115: Adam Hage | D115: Comp19
A116: sol20 | B116: 20 | C116: Brock Martina | D116: Comp20
A117: sol21 | B117: 21 | C117: Lyndon Canter | D117: Comp21
A118: sol22 | B118: 22 | C118: Norbert Casali | D118: Comp22
A119: sol23 | B119: 23 | C119: Dillon Lovern | D119: Comp23
A120: sol24 | B120: 24 | C120: Glenn Harvey | D120: Comp24
A121: sol25 | B121: 25 | C121: Marion Amico | D121: Comp25
A122: sol26 | B122: 26 | C122: Damien Gaydos | D122: Comp26
A123: sol27 | B123: 27 | C123: Brendan Padro | D123: Comp27
A124: sol28 | B124: 28 | C124: Damion Erick | D124: Comp28
A125: sol29 | B125: 29 | C125: Francesco Sainz | D125: Comp29
A126: sol30 | B126: 30 | C126: Andy Daluz | D126: Comp30
A127: sol31 | B127: 31 | C127: Timothy Goetz | D127: Comp31
A128: sol32 | B128: 32 | C128: Wendell Horman | D128: Comp32
A129: sol33 | B129: 33 | C129: Shane Straka | D129: Comp33
A130: sol34 | B130: 34 | C130: Frederic Chenail | D130: Comp34
A131: sol35 | B131: 35 | C131: Darwin Sons | D131: Comp35
A132: sol27 | B132: 27 | C132: Brendan Padro | D132: Comp27
A133: sol31 | B133: 31 | C133: Timothy Goetz | D133: Comp31
A134: sol32 | B134: 32 | C134: Wendell Horman | D134: Comp32
A135: sol33 | B135: 33 | C135: Shane Straka | D135: Comp33
A136: sol34 | B136: 34 | C136: Frederic Chenail | D136: Comp34
A137: sol35 | B137: 35 | C137: Darwin Sons | D137: Comp35
A138: sol27 | B138: 27 | C138: Brendan Padro | D138: Comp27
A139: sol28 | B139: 28 | C139: Damion Erick | D139: Comp28
A140: sol29 | B140: 29 | C140: Francesco Sainz | D140: Comp29
A141: sol30 | B141: 30 | C141: Andy Daluz | D141: Comp30
A142: sol31 | B142: 31 | C142: Timothy Goetz | D142: Comp31
A143: sol32 | B143: 32 | C143: Wendell Horman | D143: Comp32
A144: sol33 | B144: 33 | C144: Shane Straka | D144: Comp33
A145: sol34 | B145: 34 | C145: Frederic Chenail | D145: Comp34
A146: sol35 | B146: 35 | C146: Darwin Sons | D146: Comp35
A147: sol36 | B147: 36 | C147: Chase Branning | D147: Comp36
A148: sol40 | B148: 40 | C148: Raymundo Hauk
A149: sol41 | B149: 41 | C149: Tad Konkel
A150: sol42 | B150: 42 | C150: Mickey Krauss
A151: sol43 | B151: 43 | C151: Tyree Oba
A152: sol44 | B152: 44 | C152: Dean Sherrick
A153: sol45 | B153: 45 | C153: Rhett Ros
A154: sol46 | B154: 46 | C154: Warren Gamber
A155: sol47 | B155: 47 | C155: Colton Raulerson
A156: sol48 | B156: 48 | C156: Adan Mccubbin
A157: sol19 | B157: 19 | C157: Adam Hage | D157: Comp19
A158: sol20 | B158: 20 | C158: Brock Martina | D158: Comp20
A159: sol21 | B159: 21 | C159: Lyndon Canter | D159: Comp21
A160: sol22 | B160: 22 | C160: Norbert Casali | D160: Comp22
A161: sol23 | B161: 23 | C161: Dillon Lovern | D161: Comp23
A162: sol24 | B162: 24 | C162: Glenn Harvey | D162: Comp24
A163: sol25 | B163: 25 | C163: Marion Amico | D163: Comp25
A164: sol26 | B164: 26 | C164: Damien Gaydos | D164: Comp26
A165: sol27 | B165: 27 | C165: Brendan Padro | D165: Comp27
A166: sol28 | B166: 28 | C166: Damion Erick | D166: Comp28
A167: sol29 | B167: 29 | C167: Francesco Sainz | D167: Comp29
A168: sol30 | B168: 30 | C168: Andy Daluz | D168: Comp30
A169: sol31 | B169: 31 | C169: Timothy Goetz | D169: Comp31
A170: sol32 | B170: 32 | C170: Wendell Horman | D170: Comp32
A171: sol33 | B171: 33 | C171: Shane Straka | D171: Comp33
A172: sol34 | B172: 34 | C172: Frederic Chenail | D172: Comp34
A173: sol35 | B173: 35 | C173: Darwin Sons | D173: Comp35
A174: sol27 | B174: 27 | C174: Brendan Padro | D174: Comp27
A175: sol28 | B175: 28 | C175: Damion Erick | D175: Comp28
A176: sol29 | B176: 29 | C176: Francesco Sainz | D176: Comp29
A177: sol30 | B177: 30 | C177: Andy Daluz | D177: Comp30
A178: sol31 | B178: 31 | C178: Timothy Goetz | D178: Comp31
A179: sol32 | B179: 32 | C179: Wendell Horman | D179: Comp32
A180: sol31 | B180: 31 | C180: Timothy Goetz | D180: Comp31
A181: sol32 | B181: 32 | C181: Wendell Horman | D181: Comp32
A182: sol31 | B182: 31 | C182: Timothy Goetz | D182: Comp31
A183: sol32 | B183: 32 | C183: Wendell Horman | D183: Comp32
A184: sol33 | B184: 33 | C184: Shane Straka | D184: Comp33
A185: sol34 | B185: 34 | C185: Frederic Chenail | D185: Comp34
A186: sol35 | B186: 35 | C186: Darwin Sons | D186: Comp35
A187: sol27 | B187: 27 | C187: Brendan Padro | D187: Comp27
A188: sol28 | B188: 28 | C188: Damion Erick | D188: Comp28
A189: sol29 | B189: 29 | C189: Francesco Sainz | D189: Comp29
A190: sol30 | B190: 30 | C190: Andy Daluz | D190: Comp30
A191: sol31 | B191: 31 | C191: Timothy Goetz | D191: Comp31
A192: sol32 | B192: 32 | C192: Wendell Horman | D192: Comp32
A193: sol33 | B193: 33 | C193: Shane Straka | D193: Comp33
A194: sol34 | B194: 34 | C194: Frederic Chenail | D194: Comp34
A195: sol35 | B195: 35 | C195: Darwin Sons | D195: Comp35
A196: sol36 | B196: 36 | C196: Chase Branning | D196: Comp36
A197: sol33 | B197: 33 | C197: Shane Straka | D197: Comp33
A198: sol34 | B198: 34 | C198: Frederic Chenail | D198: Comp34
A199: sol19 | B199: 19 | C199: Adam Hage | D199: Comp19
A200: sol20 | B200: 20 | C200: Brock Martina | D200: Comp20
... 136 more rows

Sheet Home
A1: =H13 -> 2017-07-24 | B1: =INDEX(A:A,INT((ROW()-1)/$L$11)+1) -> 2017-07-24 | L1: 1
A2: =A1+1 -> 2017-07-25 | B2: 2017-07-25 | C2: Nome da U/E/O: | E2: Regimento de Paraquedistas | L2: 2
A3: =A2+1 -> 2017-07-26 | B3: 2017-07-26 | L3: 3
A4: =A3+1 -> 2017-07-27 | B4: 2017-07-27 | C4: Nome da escala: | E4: Escala de Comandante da Guarda | L4: 4
A5: 2017-07-28 | B5: 2017-07-28 | L5: 5
A6: 2017-07-29 | B6: 2017-07-29 | C6: Número de militares a escalar diariamente: | L6: 6
A7: 2017-07-30 | B7: 2017-07-30 | L7: 7
A8: 2017-07-31 | B8: 2017-07-31 | L8: 8
A9: 2017-08-01 | B9: 2017-08-01 | L9: 9
A10: 2017-08-02 | B10: 2017-08-02 | L10: 10
A11: 2017-08-03 | B11: 2017-08-03 | L11: 1
A12: 2017-08-04 | B12: 2017-08-04
A13: 2017-08-05 | B13: 2017-08-05 | F13: Início da escala: | H13: 2017-07-24
A14: 2017-08-06 | B14: 2017-08-06
A15: 2017-08-07 | B15: 2017-08-07 | H15: © Sargento-ajudante pára-quedista Filipe Morais | Agosto 2017
A16: 2017-08-08 | B16: 2017-08-08
A17: 2017-08-09 | B17: 2017-08-09
A18: 2017-08-10 | B18: 2017-08-10
A19: 2017-08-11 | B19: 2017-08-11
A20: 2017-08-12 | B20: 2017-08-12
A21: 2017-08-13 | B21: 2017-08-13
A22: 2017-08-14 | B22: 2017-08-14
A23: 2017-08-15 | B23: 2017-08-15
A24: 2017-08-16 | B24: 2017-08-16
A25: 2017-08-17 | B25: 2017-08-17
A26: 2017-08-18 | B26: 2017-08-18
A27: 2017-08-19 | B27: 2017-08-19
A28: 2017-08-20 | B28: 2017-08-20
A29: 2017-08-21 | B29: 2017-08-21
A30: 2017-08-22 | B30: 2017-08-22
A31: 2017-08-23 | B31: 2017-08-23
A32: 2017-08-24 | B32: 2017-08-24
A33: 2017-08-25 | B33: 2017-08-25
A34: 2017-08-26 | B34: 2017-08-26
A35: 2017-08-27 | B35: 2017-08-27
A36: 2017-08-28 | B36: 2017-08-28
A37: 2017-08-29 | B37: 2017-08-29
A38: 2017-08-30 | B38: 2017-08-30
A39: 2017-08-31 | B39: 2017-08-31
A40: 2017-09-01 | B40: 2017-09-01
A41: 2017-09-02 | B41: 2017-09-02
A42: 2017-09-03 | B42: 2017-09-03
A43: 2017-09-04 | B43: 2017-09-04
A44: 2017-09-05 | B44: 2017-09-05
A45: 2017-09-06 | B45: 2017-09-06
A46: 2017-09-07 | B46: 2017-09-07
A47: 2017-09-08 | B47: 2017-09-08
A48: 2017-09-09 | B48: 2017-09-09
A49: 2017-09-10 | B49: 2017-09-10
A50: 2017-09-11 | B50: 2017-09-11
A51: 2017-09-12 | B51: 2017-09-12
A52: 2017-09-13 | B52: 2017-09-13
A53: 2017-09-14 | B53: 2017-09-14
A54: 2017-09-15 | B54: 2017-09-15
A55: 2017-09-16 | B55: 2017-09-16
A56: 2017-09-17 | B56: 2017-09-17
A57: 2017-09-18 | B57: 2017-09-18
A58: 2017-09-19 | B58: 2017-09-19
A59: 2017-09-20 | B59: 2017-09-20
A60: 2017-09-21 | B60: 2017-09-21
A61: 2017-09-22 | B61: 2017-09-22
A62: 2017-09-23 | B62: 2017-09-23
A63: 2017-09-24 | B63: 2017-09-24
A64: 2017-09-25 | B64: 2017-09-25
A65: 2017-09-26 | B65: =INDEX(A:A,INT((ROW()-1)/$L$11)+1) -> 2017-09-26
A66: 2017-09-27 | B66: 2017-09-27
A67: 2017-09-28 | B67: 2017-09-28
A68: =A67+1 -> 2017-09-29 | B68: 2017-09-29
A69: 2017-09-30 | B69: 2017-09-30
A70: 2017-10-01 | B70: 2017-10-01
A71: 2017-10-02 | B71: 2017-10-02
A72: 2017-10-03 | B72: 2017-10-03
A73: 2017-10-04 | B73: 2017-10-04
A74: 2017-10-05 | B74: 2017-10-05
A75: 2017-10-06 | B75: 2017-10-06
A76: 2017-10-07 | B76: 2017-10-07
A77: 2017-10-08 | B77: 2017-10-08
A78: 2017-10-09 | B78: 2017-10-09
A79: 2017-10-10 | B79: 2017-10-10
A80: 2017-10-11 | B80: 2017-10-11
A81: 2017-10-12 | B81: 2017-10-12
A82: 2017-10-13 | B82: 2017-10-13
A83: 2017-10-14 | B83: 2017-10-14
A84: 2017-10-15 | B84: 2017-10-15
A85: 2017-10-16 | B85: 2017-10-16
A86: 2017-10-17 | B86: 2017-10-17
A87: 2017-10-18 | B87: 2017-10-18
A88: 2017-10-19 | B88: 2017-10-19
A89: 2017-10-20 | B89: 2017-10-20
A90: 2017-10-21 | B90: 2017-10-21
A91: 2017-10-22 | B91: 2017-10-22
A92: 2017-10-23 | B92: 2017-10-23
A93: 2017-10-24 | B93: 2017-10-24
A94: 2017-10-25 | B94: 2017-10-25
A95: 2017-10-26 | B95: 2017-10-26
A96: 2017-10-27 | B96: 2017-10-27
A97: 2017-10-28 | B97: 2017-10-28
A98: 2017-10-29 | B98: 2017-10-29
A99: 2017-10-30 | B99: 2017-10-30
A100: 2017-10-31 | B100: 2017-10-31
A101: 2017-11-01 | B101: 2017-11-01
A102: 2017-11-02 | B102: 2017-11-02
A103: 2017-11-03 | B103: 2017-11-03
A104: 2017-11-04 | B104: 2017-11-04
A105: 2017-11-05 | B105: 2017-11-05
A106: 2017-11-06 | B106: 2017-11-06
A107: 2017-11-07 | B107: 2017-11-07
A108: 2017-11-08 | B108: 2017-11-08
A109: 2017-11-09 | B109: 2017-11-09
A110: 2017-11-10 | B110: 2017-11-10
A111: 2017-11-11 | B111: 2017-11-11
A112: 2017-11-12 | B112: 2017-11-12
A113: 2017-11-13 | B113: 2017-11-13
A114: 2017-11-14 | B114: 2017-11-14
A115: 2017-11-15 | B115: 2017-11-15
A116: 2017-11-16 | B116: 2017-11-16
A117: 2017-11-17 | B117: 2017-11-17
A118: 2017-11-18 | B118: 2017-11-18
A119: 2017-11-19 | B119: 2017-11-19
A120: 2017-11-20 | B120: 2017-11-20
A121: 2017-11-21 | B121: 2017-11-21
A122: 2017-11-22 | B122: 2017-11-22
A123: 2017-11-23 | B123: 2017-11-23
A124: 2017-11-24 | B124: 2017-11-24
A125: 2017-11-25 | B125: 2017-11-25
A126: 2017-11-26 | B126: 2017-11-26
A127: 2017-11-27 | B127: 2017-11-27
A128: 2017-11-28 | B128: 2017-11-28
A129: 2017-11-29 | B129: =INDEX(A:A,INT((ROW()-1)/$L$11)+1) -> 2017-11-29
A130: 2017-11-30 | B130: 2017-11-30
A131: 2017-12-01 | B131: 2017-12-01
A132: =A131+1 -> 2017-12-02 | B132: 2017-12-02
A133: 2017-12-03 | B133: 2017-12-03
A134: 2017-12-04 | B134: 2017-12-04
A135: 2017-12-05 | B135: 2017-12-05
A136: 2017-12-06 | B136: 2017-12-06
A137: 2017-12-07 | B137: 2017-12-07
A138: 2017-12-08 | B138: 2017-12-08
A139: 2017-12-09 | B139: 2017-12-09
A140: 2017-12-10 | B140: 2017-12-10
A141: 2017-12-11 | B141: 2017-12-11
A142: 2017-12-12 | B142: 2017-12-12
A143: 2017-12-13 | B143: 2017-12-13
A144: 2017-12-14 | B144: 2017-12-14
A145: 2017-12-15 | B145: 2017-12-15
A146: 2017-12-16 | B146: 2017-12-16
A147: 2017-12-17 | B147: 2017-12-17
A148: 2017-12-18 | B148: 2017-12-18
A149: 2017-12-19 | B149: 2017-12-19
A150: 2017-12-20 | B150: 2017-12-20
A151: 2017-12-21 | B151: 2017-12-21
A152: 2017-12-22 | B152: 2017-12-22
A153: 2017-12-23 | B153: 2017-12-23
A154: 2017-12-24 | B154: 2017-12-24
A155: 2017-12-25 | B155: 2017-12-25
A156: 2017-12-26 | B156: 2017-12-26
A157: 2017-12-27 | B157: 2017-12-27
A158: 2017-12-28 | B158: 2017-12-28
A159: 2017-12-29 | B159: 2017-12-29
A160: 2017-12-30 | B160: 2017-12-30
A161: 2017-12-31 | B161: 2017-12-31
A162: 2018-01-01 | B162: 2018-01-01
A163: 2018-01-02 | B163: 2018-01-02
A164: 2018-01-03 | B164: 2018-01-03
A165: 2018-01-04 | B165: 2018-01-04
A166: 2018-01-05 | B166: 2018-01-05
A167: 2018-01-06 | B167: 2018-01-06
A168: 2018-01-07 | B168: 2018-01-07
A169: 2018-01-08 | B169: 2018-01-08
A170: 2018-01-09 | B170: 2018-01-09
A171: 2018-01-10 | B171: 2018-01-10
A172: 2018-01-11 | B172: 2018-01-11
A173: 2018-01-12 | B173: 2018-01-12
A174: 2018-01-13 | B174: 2018-01-13
A175: 2018-01-14 | B175: 2018-01-14
A176: 2018-01-15 | B176: 2018-01-15
A177: 2018-01-16 | B177: 2018-01-16
A178: 2018-01-17 | B178: 2018-01-17
A179: 2018-01-18 | B179: 2018-01-18
A180: 2018-01-19 | B180: 2018-01-19
A181: 2018-01-20 | B181: 2018-01-20
A182: 2018-01-21 | B182: 2018-01-21
A183: 2018-01-22 | B183: 2018-01-22
A184: 2018-01-23 | B184: 2018-01-23
A185: 2018-01-24 | B185: 2018-01-24
A186: 2018-01-25 | B186: 2018-01-25
A187: 2018-01-26 | B187: 2018-01-26
A188: 2018-01-27 | B188: 2018-01-27
A189: 2018-01-28 | B189: 2018-01-28
A190: 2018-01-29 | B190: 2018-01-29
A191: 2018-01-30 | B191: 2018-01-30
A192: 2018-01-31 | B192: 2018-01-31
A193: 2018-02-01 | B193: =INDEX(A:A,INT((ROW()-1)/$L$11)+1) -> 2018-02-01
A194: 2018-02-02 | B194: 2018-02-02
A195: 2018-02-03 | B195: 2018-02-03
A196: =A195+1 -> 2018-02-04 | B196: 2018-02-04
A197: 2018-02-05 | B197: 2018-02-05
A198: 2018-02-06 | B198: 2018-02-06
A199: 2018-02-07 | B199: 2018-02-07
A200: 2018-02-08 | B200: 2018-02-08
... 1300 more rows

Sheet Feriados
A1: Data | B1: Descrição
A2: 2017-10-05 | B2: Implementação da Repúbliva
A3: 2017-11-01 | B3: Todos os Santos
A4: 2017-08-15 | B4: Assunção de Nossa Senhora
A5: 2017-12-01 | B5: Restauração da Independência
A6: 2017-12-08 | B6: Imaculada Conceição
A7: 2017-12-25 | B7: Natal
A8: 2018-01-01 | B8: Ano Novo

Sheet Grelha
B1: ESCALA | C1: Data | D1: Data1 | E1: Escala1 | F1: Posto | G1: Nim | H1: Nome | I1: Compª | J1: PT ou PD | K1: POSTO | L1: Nim | M1: Nome | N1: Razão da dispensa | O1: Licença ou dispensado até: | P1: Feito? | Q1: Fez o último serviço em: | T1: OK | Y1: SERV FEITO E COM DATA? | Z1: está dispensado?
R2: Info feriados | S2: Alterar escala? | T2: serv feito | U2: é a seguir? | X2: dispensa válida? | Z2: está dispensado? | AA2: há erro na data?
A3: =B3 -> A | B3: =IF(S3="B","B",IF(S3="A","A",IF(AND(WEEKDAY(C3,2)>=1,WEEKDAY(C3,2)<=5)=TRUE,"A","B"))) -> A | C3: =Home!B1 -> 2017-07-24 | D3: =C3 -> 2017-07-24 | E3: =A3 -> A | F3: 1Sar | G3: 1 | H3: Paul Dawes | I3: Comp1 | P3: OK | Q3: 2017-08-14 | R3: =IF(IF(ISNUMBER(MATCH(C3,Feriados!$A$2:$A$20,0)),1,0)=1,"Escala B!","") ->  | T3: =IF(P3="OK",TRUE,FALSE) -> TRUE | U3: =IF(AND(IF(AND(AND(IF(ISBLANK(O3)=TRUE,FALSE,TRUE)=TRUE,IF(TODAY()>O3,FALSE,TRUE)=TRUE)=TRUE,ISBLANK(N3)=TRUE=TRUE)=TRUE,FALSE,IF(AND(AND(IF(ISBLANK(O3)=TRUE,FALSE,TRUE)=TRUE,IF(TODAY()>O3,FALSE,TRUE)=FALSE)=TRUE,ISBLANK(N3)=TRUE=TRUE)=TRUE,TRUE,IF(AND(ISBLANK(N3)=TRUE=TRUE,IF(ISBLANK(O3)=TRUE,FALSE,TRUE)=FALSE,IF(TODAY()>O3,FALSE,TRUE)=FALSE)=TRUE,TRUE)))=TRUE,T3=FALSE)=TRUE,TRUE,FALSE) -> FALSE | V3: =IF(U3=TRUE,1,0) -> 0 | W3: =IF(X3=TRUE,1,0) -> 0 | X3: =IF(AND(T3=FALSE,U3=FALSE)=TRUE,TRUE,FALSE) -> FALSE | Y3: =IF(AND(IF(P3="OK",TRUE,FALSE)=TRUE,IF(LEN(Q3)=0,FALSE,TRUE)=TRUE)=TRUE,TRUE,FALSE) -> TRUE | Z3: =OR(IF(N3="",FALSE,TRUE)=TRUE,IF(AND(IF(O3="",FALSE,TRUE)=TRUE,IF(O3<=TODAY(),FALSE,TRUE)=TRUE)=TRUE,TRUE,FALSE)=TRUE) -> FALSE | AA3: =IF(ISERROR(IF(ISBLANK(Q3)=TRUE,FALSE,IF(AND(ISBLANK(Q3)=FALSE,isadate(Q3)=TRUE)=TRUE,FALSE,IF(AND(ISBLANK(Q3)=FALSE,isadate(Q3)=FALSE)=TRUE,TRUE))))=TRUE,TRUE,IF(ISBLANK(Q3)=TRUE,FALSE,IF(AND(ISBLANK(Q3)=FALSE,isadate(Q3)=TRUE)=TRUE,FALSE,IF(AND(ISBLANK(Q3)=FALSE,isadate(Q3)=FALSE)=TRUE,TRUE)))) -> FALSE
A4: =B4 -> A | B4: =IF(S4="B","B",IF(S4="A","A",IF(AND(WEEKDAY(C4,2)>=1,WEEKDAY(C4,2)<=5)=TRUE,"A","B"))) -> A | C4: =Home!B2 -> 2017-07-25 | D4: =C4 -> 2017-07-25 | E4: A | F4: 1Sar | G4: 2 | H4: Odell Segarra | I4: Comp2 | P4: OK | Q4: 2017-08-16 | R4: =IF(IF(ISNUMBER(MATCH(C4,Feriados!$A$2:$A$20,0)),1,0)=1,"Escala B!","") ->  | T4: TRUE | U4: FALSE | V4: =IF(U4=TRUE,V3+1,V3) -> 0 | W4: =IF(X4=TRUE,W3+1,W3) -> 0 | X4: FALSE | Y4: TRUE | Z4: FALSE | AA4: =IF(ISERROR(IF(ISBLANK(Q4)=TRUE,FALSE,IF(AND(ISBLANK(Q4)=FALSE,isadate(Q4)=TRUE)=TRUE,FALSE,IF(AND(ISBLANK(Q4)=FALSE,isadate(Q4)=FALSE)=TRUE,TRUE))))=TRUE,TRUE,IF(ISBLANK(Q4)=TRUE,FALSE,IF(AND(ISBLANK(Q4)=FALSE,isadate(Q4)=TRUE)=TRUE,FALSE,IF(AND(ISBLANK(Q4)=FALSE,isadate(Q4)=FALSE)=TRUE,TRUE)))) -> FALSE
A5: =B5 -> A | B5: A | C5: =Home!B3 -> 2017-07-26 | D5: =C5 -> 2017-07-26 | E5: A | F5: 1Sar | G5: 3 | H5: Lindsay Sanderlin | I5: Comp3 | N5: dispensado por… | R5: =IF(IF(ISNUMBER(MATCH(C5,Feriados!$A$2:$A$20,0)),1,0)=1,"Escala B!","") ->  | T5: FALSE | U5: FALSE | V5: 0 | W5: 1 | X5: TRUE | Y5: FALSE | Z5: TRUE | AA5: =IF(ISERROR(IF(ISBLANK(Q5)=TRUE,FALSE,IF(AND(ISBLANK(Q5)=FALSE,isadate(Q5)=TRUE)=TRUE,FALSE,IF(AND(ISBLANK(Q5)=FALSE,isadate(Q5)=FALSE)=TRUE,TRUE))))=TRUE,TRUE,IF(ISBLANK(Q5)=TRUE,FALSE,IF(AND(ISBLANK(Q5)=FALSE,isadate(Q5)=TRUE)=TRUE,FALSE,IF(AND(ISBLANK(Q5)=FALSE,isadate(Q5)=FALSE)=TRUE,TRUE)))) -> FALSE
A6: A | B6: A | C6: =Home!B4 -> 2017-07-27 | D6: 2017-07-27 | E6: A | F6: 1Sar | G6: 4 | H6: Rodger Burney | I6: Comp4 | P6: OK | Q6: 2017-08-17 | R6: =IF(IF(ISNUMBER(MATCH(C6,Feriados!$A$2:$A$20,0)),1,0)=1,"Escala B!","") ->  | T6: TRUE | U6: FALSE | V6: 0 | W6: 1 | X6: FALSE | Y6: TRUE | Z6: FALSE | AA6: =IF(ISERROR(IF(ISBLANK(Q6)=TRUE,FALSE,IF(AND(ISBLANK(Q6)=FALSE,isadate(Q6)=TRUE)=TRUE,FALSE,IF(AND(ISBLANK(Q6)=FALSE,isadate(Q6)=FALSE)=TRUE,TRUE))))=TRUE,TRUE,IF(ISBLANK(Q6)=TRUE,FALSE,IF(AND(ISBLANK(Q6)=FALSE,isadate(Q6)=TRUE)=TRUE,FALSE,IF(AND(ISBLANK(Q6)=FALSE,isadate(Q6)=FALSE)=TRUE,TRUE)))) -> FALSE
A7: A | B7: A | C7: =Home!B5 -> 2017-07-28 | D7: 2017-07-28 | E7: A | F7: 1Sar | G7: 5 | H7: Donny Belote | I7: Comp5 | R7: =IF(IF(ISNUMBER(MATCH(C7,Feriados!$A$2:$A$20,0)),1,0)=1,"Escala B!","") ->  | T7: FALSE | U7: TRUE | V7: 1 | W7: 1 | X7: FALSE | Y7: FALSE | Z7: FALSE | AA7: =IF(ISERROR(IF(ISBLANK(Q7)=TRUE,FALSE,IF(AND(ISBLANK(Q7)=FALSE,isadate(Q7)=TRUE)=TRUE,FALSE,IF(AND(ISBLANK(Q7)=FALSE,isadate(Q7)=FALSE)=TRUE,TRUE))))=TRUE,TRUE,IF(ISBLANK(Q7)=TRUE,FALSE,IF(AND(ISBLANK(Q7)=FALSE,isadate(Q7)=TRUE)=TRUE,FALSE,IF(AND(ISBLANK(Q7)=FALSE,isadate(Q7)=FALSE)=TRUE,TRUE)))) -> FALSE
A8: B | B8: B | C8: =Home!B6 -> 2017-07-29 | D8: 2017-07-29 | E8: B | F8: 1Sar | G8: 1 | H8: Paul Dawes | I8: Comp1 | R8: =IF(IF(ISNUMBER(MATCH(C8,Feriados!$A$2:$A$20,0)),1,0)=1,"Escala B!","") ->  | T8: FALSE | U8: TRUE | V8: 2 | W8: 1 | X8: FALSE | Y8: FALSE | Z8: FALSE | AA8: =IF(ISERROR(IF(ISBLANK(Q8)=TRUE,FALSE,IF(AND(ISBLANK(Q8)=FALSE,isadate(Q8)=TRUE)=TRUE,FALSE,IF(AND(ISBLANK(Q8)=FALSE,isadate(Q8)=FALSE)=TRUE,TRUE))))=TRUE,TRUE,IF(ISBLANK(Q8)=TRUE,FALSE,IF(AND(ISBLANK(Q8)=FALSE,isadate(Q8)=TRUE)=TRUE,FALSE,IF(AND(ISBLANK(Q8)=FALSE,isadate(Q8)=FALSE)=TRUE,TRUE)))) -> FALSE
A9: B | B9: B | C9: =Home!B7 -> 2017-07-30 | D9: 2017-07-30 | E9: B | F9: 1Sar | G9: 2 | H9: Odell Segarra | I9: Comp2 | R9: =IF(IF(ISNUMBER(MATCH(C9,Feriados!$A$2:$A$20,0)),1,0)=1,"Escala B!","") ->  | T9: FALSE | U9: TRUE | V9: 3 | W9: 1 | X9: FALSE | Y9: FALSE | Z9: FALSE | AA9: =IF(ISERROR(IF(ISBLANK(Q9)=TRUE,FALSE,IF(AND(ISBLANK(Q9)=FALSE,isadate(Q9)=TRUE)=TRUE,FALSE,IF(AND(ISBLANK(Q9)=FALSE,isadate(Q9)=FALSE)=TRUE,TRUE))))=TRUE,TRUE,IF(ISBLANK(Q9)=TRUE,FALSE,IF(AND(ISBLANK(Q9)=FALSE,isadate(Q9)=TRUE)=TRUE,FALSE,IF(AND(ISBLANK(Q9)=FALSE,isadate(Q9)=FALSE)=TRUE,TRUE)))) -> FALSE
A10: A | B10: A | C10: =Home!B8 -> 2017-07-31 | D10: 2017-07-31 | E10: A | F10: 1Sar | G10: 6 | H10: Wm Payton | I10: Comp6 | R10: =IF(IF(ISNUMBER(MATCH(C10,Feriados!$A$2:$A$20,0)),1,0)=1,"Escala B!","") ->  | T10: FALSE | U10: TRUE | V10: 4 | W10: 1 | X10: FALSE | Y10: FALSE | Z10: FALSE | AA10: =IF(ISERROR(IF(ISBLANK(Q10)=TRUE,FALSE,IF(AND(ISBLANK(Q10)=FALSE,isadate(Q10)=TRUE)=TRUE,FALSE,IF(AND(ISBLANK(Q10)=FALSE,isadate(Q10)=FALSE)=TRUE,TRUE))))=TRUE,TRUE,IF(ISBLANK(Q10)=TRUE,FALSE,IF(AND(ISBLANK(Q10)=FALSE,isadate(Q10)=TRUE)=TRUE,FALSE,IF(AND(ISBLANK(Q10)=FALSE,isadate(Q10)=FALSE)=TRUE,TRUE)))) -> FALSE
A11: A | B11: A | C11: =Home!B9 -> 2017-08-01 | D11: 2017-08-01 | E11: A | F11: 1Sar | G11: 7 | H11: Eugene Molloy | I11: Comp7 | R11: =IF(IF(ISNUMBER(MATCH(C11,Feriados!$A$2:$A$20,0)),1,0)=1,"Escala B!","") ->  | T11: FALSE | U11: TRUE | V11: 5 | W11: 1 | X11: FALSE | Y11: FALSE | Z11: FALSE | AA11: =IF(ISERROR(IF(ISBLANK(Q11)=TRUE,FALSE,IF(AND(ISBLANK(Q11)=FALSE,isadate(Q11)=TRUE)=TRUE,FALSE,IF(AND(ISBLANK(Q11)=FALSE,isadate(Q11)=FALSE)=TRUE,TRUE))))=TRUE,TRUE,IF(ISBLANK(Q11)=TRUE,FALSE,IF(AND(ISBLANK(Q11)=FALSE,isadate(Q11)=TRUE)=TRUE,FALSE,IF(AND(ISBLANK(Q11)=FALSE,isadate(Q11)=FALSE)=TRUE,TRUE)))) -> FALSE
A12: A | B12: A | C12: =Home!B10 -> 2017-08-02 | D12: 2017-08-02 | E12: A | F12: 1Sar | G12: 8 | H12: Phillip Nottage | I12: Comp8 | R12: =IF(IF(ISNUMBER(MATCH(C12,Feriados!$A$2:$A$20,0)),1,0)=1,"Escala B!","") ->  | T12: FALSE | U12: TRUE | V12: 6 | W12: 1 | X12: FALSE | Y12: FALSE | Z12: FALSE | AA12: =IF(ISERROR(IF(ISBLANK(Q12)=TRUE,FALSE,IF(AND(ISBLANK(Q12)=FALSE,isadate(Q12)=TRUE)=TRUE,FALSE,IF(AND(ISBLANK(Q12)=FALSE,isadate(Q12)=FALSE)=TRUE,TRUE))))=TRUE,TRUE,IF(ISBLANK(Q12)=TRUE,FALSE,IF(AND(ISBLANK(Q12)=FALSE,isadate(Q12)=TRUE)=TRUE,FALSE,IF(AND(ISBLANK(Q12)=FALSE,isadate(Q12)=FALSE)=TRUE,TRUE)))) -> FALSE
A13: A | B13: A | C13: =Home!B11 -> 2017-08-03 | D13: 2017-08-03 | E13: A | F13: 1Sar | G13: 9 | H13: Lavern Tank | I13: Comp9 | R13: =IF(IF(ISNUMBER(MATCH(C13,Feriados!$A$2:$A$20,0)),1,0)=1,"Escala B!","") ->  | T13: FALSE | U13: TRUE | V13: 7 | W13: 1 | X13: FALSE | Y13: FALSE | Z13: FALSE | AA13: =IF(ISERROR(IF(ISBLANK(Q13)=TRUE,FALSE,IF(AND(ISBLANK(Q13)=FALSE,isadate(Q13)=TRUE)=TRUE,FALSE,IF(AND(ISBLANK(Q13)=FALSE,isadate(Q13)=FALSE)=TRUE,TRUE))))=TRUE,TRUE,IF(ISBLANK(Q13)=TRUE,FALSE,IF(AND(ISBLANK(Q13)=FALSE,isadate(Q13)=TRUE)=TRUE,FALSE,IF(AND(ISBLANK(Q13)=FALSE,isadate(Q13)=FALSE)=TRUE,TRUE)))) -> FALSE
A14: A | B14: A | C14: =Home!B12 -> 2017-08-04 | D14: 2017-08-04 | E14: A | F14: 1Sar | G14: 10 | H14: Elvis Feeney | I14: Comp10 | R14: =IF(IF(ISNUMBER(MATCH(C14,Feriados!$A$2:$A$20,0)),1,0)=1,"Escala B!","") ->  | T14: FALSE | U14: TRUE | V14: 8 | W14: 1 | X14: FALSE | Y14: FALSE | Z14: FALSE | AA14: =IF(ISERROR(IF(ISBLANK(Q14)=TRUE,FALSE,IF(AND(ISBLANK(Q14)=FALSE,isadate(Q14)=TRUE)=TRUE,FALSE,IF(AND(ISBLANK(Q14)=FALSE,isadate(Q14)=FALSE)=TRUE,TRUE))))=TRUE,TRUE,IF(ISBLANK(Q14)=TRUE,FALSE,IF(AND(ISBLANK(Q14)=FALSE,isadate(Q14)=TRUE)=TRUE,FALSE,IF(AND(ISBLANK(Q14)=FALSE,isadate(Q14)=FALSE)=TRUE,TRUE)))) -> FALSE
A15: B | B15: B | C15: =Home!B13 -> 2017-08-05 | D15: 2017-08-05 | E15: B | F15: 1Sar | G15: 3 | H15: Lindsay Sanderlin | I15: Comp3 | R15: =IF(IF(ISNUMBER(MATCH(C15,Feriados!$A$2:$A$20,0)),1,0)=1,"Escala B!","") ->  | T15: FALSE | U15: TRUE | V15: 9 | W15: 1 | X15: FALSE | Y15: FALSE | Z15: FALSE | AA15: =IF(ISERROR(IF(ISBLANK(Q15)=TRUE,FALSE,IF(AND(ISBLANK(Q15)=FALSE,isadate(Q15)=TRUE)=TRUE,FALSE,IF(AND(ISBLANK(Q15)=FALSE,isadate(Q15)=FALSE)=TRUE,TRUE))))=TRUE,TRUE,IF(ISBLANK(Q15)=TRUE,FALSE,IF(AND(ISBLANK(Q15)=FALSE,isadate(Q15)=TRUE)=TRUE,FALSE,IF(AND(ISBLANK(Q15)=FALSE,isadate(Q15)=FALSE)=TRUE,TRUE)))) -> FALSE
A16: B | B16: B | C16: =Home!B14 -> 2017-08-06 | D16: 2017-08-06 | E16: B | F16: 1Sar | G16: 4 | H16: Rodger Burney | I16: Comp4 | R16: =IF(IF(ISNUMBER(MATCH(C16,Feriados!$A$2:$A$20,0)),1,0)=1,"Escala B!","") ->  | T16: FALSE | U16: TRUE | V16: 10 | W16: 1 | X16: FALSE | Y16: FALSE | Z16: FALSE | AA16: =IF(ISERROR(IF(ISBLANK(Q16)=TRUE,FALSE,IF(AND(ISBLANK(Q16)=FALSE,isadate(Q16)=TRUE)=TRUE,FALSE,IF(AND(ISBLANK(Q16)=FALSE,isadate(Q16)=FALSE)=TRUE,TRUE))))=TRUE,TRUE,IF(ISBLANK(Q16)=TRUE,FALSE,IF(AND(ISBLANK(Q16)=FALSE,isadate(Q16)=TRUE)=TRUE,FALSE,IF(AND(ISBLANK(Q16)=FALSE,isadate(Q16)=FALSE)=TRUE,TRUE)))) -> FALSE
A17: A | B17: A | C17: =Home!B15 -> 2017-08-07 | D17: 2017-08-07 | E17: A | F17: 1Sar | G17: 11 | H17: Nigel Knell | I17: Comp11 | R17: =IF(IF(ISNUMBER(MATCH(C17,Feriados!$A$2:$A$20,0)),1,0)=1,"Escala B!","") ->  | T17: FALSE | U17: TRUE | V17: 11 | W17: 1 | X17: FALSE | Y17: FALSE | Z17: FALSE | AA17: =IF(ISERROR(IF(ISBLANK(Q17)=TRUE,FALSE,IF(AND(ISBLANK(Q17)=FALSE,isadate(Q17)=TRUE)=TRUE,FALSE,IF(AND(ISBLANK(Q17)=FALSE,isadate(Q17)=FALSE)=TRUE,TRUE))))=TRUE,TRUE,IF(ISBLANK(Q17)=TRUE,FALSE,IF(AND(ISBLANK(Q17)=FALSE,isadate(Q17)=TRUE)=TRUE,FALSE,IF(AND(ISBLANK(Q17)=FALSE,isadate(Q17)=FALSE)=TRUE,TRUE)))) -> FALSE
A18: A | B18: A | C18: =Home!B16 -> 2017-08-08 | D18: 2017-08-08 | E18: A | F18: 1Sar | G18: 12 | H18: Stanton Mccord | I18: Comp12 | R18: =IF(IF(ISNUMBER(MATCH(C18,Feriados!$A$2:$A$20,0)),1,0)=1,"Escala B!","") ->  | T18: FALSE | U18: TRUE | V18: 12 | W18: 1 | X18: FALSE | Y18: FALSE | Z18: FALSE | AA18: =IF(ISERROR(IF(ISBLANK(Q18)=TRUE,FALSE,IF(AND(ISBLANK(Q18)=FALSE,isadate(Q18)=TRUE)=TRUE,FALSE,IF(AND(ISBLANK(Q18)=FALSE,isadate(Q18)=FALSE)=TRUE,TRUE))))=TRUE,TRUE,IF(ISBLANK(Q18)=TRUE,FALSE,IF(AND(ISBLANK(Q18)=FALSE,isadate(Q18)=TRUE)=TRUE,FALSE,IF(AND(ISBLANK(Q18)=FALSE,isadate(Q18)=FALSE)=TRUE,TRUE)))) -> FALSE
A19: A | B19: A | C19: =Home!B17 -> 2017-08-09 | D19: 2017-08-09 | E19: A | F19: 1Sar | G19: 13 | H19: Tracey Null | I19: Comp13 | R19: =IF(IF(ISNUMBER(MATCH(C19,Feriados!$A$2:$A$20,0)),1,0)=1,"Escala B!","") ->  | T19: FALSE | U19: TRUE | V19: 13 | W19: 1 | X19: FALSE | Y19: FALSE | Z19: FALSE | AA19: =IF(ISERROR(IF(ISBLANK(Q19)=TRUE,FALSE,IF(AND(ISBLANK(Q19)=FALSE,isadate(Q19)=TRUE)=TRUE,FALSE,IF(AND(ISBLANK(Q19)=FALSE,isadate(Q19)=FALSE)=TRUE,TRUE))))=TRUE,TRUE,IF(ISBLANK(Q19)=TRUE,FALSE,IF(AND(ISBLANK(Q19)=FALSE,isadate(Q19)=TRUE)=TRUE,FALSE,IF(AND(ISBLANK(Q19)=FALSE,isadate(Q19)=FALSE)=TRUE,TRUE)))) -> FALSE
A20: A | B20: A | C20: =Home!B18 -> 2017-08-10 | D20: 2017-08-10 | E20: A | F20: 1Sar | G20: 14 | H20: Winfred Olivieri | I20: Comp14 | R20: =IF(IF(ISNUMBER(MATCH(C20,Feriados!$A$2:$A$20,0)),1,0)=1,"Escala B!","") ->  | T20: FALSE | U20: TRUE | V20: 14 | W20: 1 | X20: FALSE | Y20: FALSE | Z20: FALSE | AA20: =IF(ISERROR(IF(ISBLANK(Q20)=TRUE,FALSE,IF(AND(ISBLANK(Q20)=FALSE,isadate(Q20)=TRUE)=TRUE,FALSE,IF(AND(ISBLANK(Q20)=FALSE,isadate(Q20)=FALSE)=TRUE,TRUE))))=TRUE,TRUE,IF(ISBLANK(Q20)=TRUE,FALSE,IF(AND(ISBLANK(Q20)=FALSE,isadate(Q20)=TRUE)=TRUE,FALSE,IF(AND(ISBLANK(Q20)=FALSE,isadate(Q20)=FALSE)=TRUE,TRUE)))) -> FALSE
A21: A | B21: A | C21: =Home!B19 -> 2017-08-11 | D21: 2017-08-11 | E21: A | F21: 1Sar | G21: 15 | H21: Roderick Lehto | I21: Comp15 | R21: =IF(IF(ISNUMBER(MATCH(C21,Feriados!$A$2:$A$20,0)),1,0)=1,"Escala B!","") ->  | T21: FALSE | U21: TRUE | V21: 15 | W21: 1 | X21: FALSE | Y21: FALSE | Z21: FALSE | AA21: =IF(ISERROR(IF(ISBLANK(Q21)=TRUE,FALSE,IF(AND(ISBLANK(Q21)=FALSE,isadate(Q21)=TRUE)=TRUE,FALSE,IF(AND(ISBLANK(Q21)=FALSE,isadate(Q21)=FALSE)=TRUE,TRUE))))=TRUE,TRUE,IF(ISBLANK(Q21)=TRUE,FALSE,IF(AND(ISBLANK(Q21)=FALSE,isadate(Q21)=TRUE)=TRUE,FALSE,IF(AND(ISBLANK(Q21)=FALSE,isadate(Q21)=FALSE)=TRUE,TRUE)))) -> FALSE
A22: B | B22: B | C22: =Home!B20 -> 2017-08-12 | D22: 2017-08-12 | E22: B | F22: 1Sar | G22: 5 | H22: Donny Belote | I22: Comp5 | R22: =IF(IF(ISNUMBER(MATCH(C22,Feriados!$A$2:$A$20,0)),1,0)=1,"Escala B!","") ->  | T22: FALSE | U22: TRUE | V22: 16 | W22: 1 | X22: FALSE | Y22: FALSE | Z22: FALSE | AA22: =IF(ISERROR(IF(ISBLANK(Q22)=TRUE,FALSE,IF(AND(ISBLANK(Q22)=FALSE,isadate(Q22)=TRUE)=TRUE,FALSE,IF(AND(ISBLANK(Q22)=FALSE,isadate(Q22)=FALSE)=TRUE,TRUE))))=TRUE,TRUE,IF(ISBLANK(Q22)=TRUE,FALSE,IF(AND(ISBLANK(Q22)=FALSE,isadate(Q22)=TRUE)=TRUE,FALSE,IF(AND(ISBLANK(Q22)=FALSE,isadate(Q22)=FALSE)=TRUE,TRUE)))) -> FALSE
A23: B | B23: B | C23: =Home!B21 -> 2017-08-13 | D23: 2017-08-13 | E23: B | F23: 1Sar | G23: 6 | H23: Wm Payton | I23: Comp6 | R23: =IF(IF(ISNUMBER(MATCH(C23,Feriados!$A$2:$A$20,0)),1,0)=1,"Escala B!","") ->  | T23: FALSE | U23: TRUE | V23: 17 | W23: 1 | X23: FALSE | Y23: FALSE | Z23: FALSE | AA23: =IF(ISERROR(IF(ISBLANK(Q23)=TRUE,FALSE,IF(AND(ISBLANK(Q23)=FALSE,isadate(Q23)=TRUE)=TRUE,FALSE,IF(AND(ISBLANK(Q23)=FALSE,isadate(Q23)=FALSE)=TRUE,TRUE))))=TRUE,TRUE,IF(ISBLANK(Q23)=TRUE,FALSE,IF(AND(ISBLANK(Q23)=FALSE,isadate(Q23)=TRUE)=TRUE,FALSE,IF(AND(ISBLANK(Q23)=FALSE,isadate(Q23)=FALSE)=TRUE,TRUE)))) -> FALSE
A24: A | B24: A | C24: =Home!B22 -> 2017-08-14 | D24: 2017-08-14 | E24: A | F24: 1Sar | G24: 1 | H24: Paul Dawes | I24: Comp1 | R24: =IF(IF(ISNUMBER(MATCH(C24,Feriados!$A$2:$A$20,0)),1,0)=1,"Escala B!","") ->  | T24: FALSE | U24: TRUE | V24: 18 | W24: 1 | X24: FALSE | Y24: FALSE | Z24: FALSE | AA24: =IF(ISERROR(IF(ISBLANK(Q24)=TRUE,FALSE,IF(AND(ISBLANK(Q24)=FALSE,isadate(Q24)=TRUE)=TRUE,FALSE,IF(AND(ISBLANK(Q24)=FALSE,isadate(Q24)=FALSE)=TRUE,TRUE))))=TRUE,TRUE,IF(ISBLANK(Q24)=TRUE,FALSE,IF(AND(ISBLANK(Q24)=FALSE,isadate(Q24)=TRUE)=TRUE,FALSE,IF(AND(ISBLANK(Q24)=FALSE,isadate(Q24)=FALSE)=TRUE,TRUE)))) -> FALSE
A25: B | B25: B | C25: =Home!B23 -> 2017-08-15 | D25: 2017-08-15 | E25: B | F25: 1Sar | G25: 7 | H25: Eugene Molloy | I25: Comp7 | R25: =IF(IF(ISNUMBER(MATCH(C25,Feriados!$A$2:$A$20,0)),1,0)=1,"Escala B!","") -> Escala B! | S25: B | T25: FALSE | U25: TRUE | V25: 19 | W25: 1 | X25: FALSE | Y25: FALSE | Z25: FALSE | AA25: =IF(ISERROR(IF(ISBLANK(Q25)=TRUE,FALSE,IF(AND(ISBLANK(Q25)=FALSE,isadate(Q25)=TRUE)=TRUE,FALSE,IF(AND(ISBLANK(Q25)=FALSE,isadate(Q25)=FALSE)=TRUE,TRUE))))=TRUE,TRUE,IF(ISBLANK(Q25)=TRUE,FALSE,IF(AND(ISBLANK(Q25)=FALSE,isadate(Q25)=TRUE)=TRUE,FALSE,IF(AND(ISBLANK(Q25)=FALSE,isadate(Q25)=FALSE)=TRUE,TRUE)))) -> FALSE
A26: A | B26: A | C26: =Home!B24 -> 2017-08-16 | D26: 2017-08-16 | E26: A | F26: 1Sar | G26: 2 | H26: Odell Segarra | I26: Comp2 | R26: =IF(IF(ISNUMBER(MATCH(C26,Feriados!$A$2:$A$20,0)),1,0)=1,"Escala B!","") ->  | T26: FALSE | U26: TRUE | V26: 20 | W26: 1 | X26: FALSE | Y26: FALSE | Z26: FALSE | AA26: =IF(ISERROR(IF(ISBLANK(Q26)=TRUE,FALSE,IF(AND(ISBLANK(Q26)=FALSE,isadate(Q26)=TRUE)=TRUE,FALSE,IF(AND(ISBLANK(Q26)=FALSE,isadate(Q26)=FALSE)=TRUE,TRUE))))=TRUE,TRUE,IF(ISBLANK(Q26)=TRUE,FALSE,IF(AND(ISBLANK(Q26)=FALSE,isadate(Q26)=TRUE)=TRUE,FALSE,IF(AND(ISBLANK(Q26)=FALSE,isadate(Q26)=FALSE)=TRUE,TRUE)))) -> FALSE
A27: A | B27: A | C27: =Home!B25 -> 2017-08-17 | D27: 2017-08-17 | E27: A | F27: 1Sar | G27: 4 | H27: Rodger Burney | I27: Comp4 | R27: =IF(IF(ISNUMBER(MATCH(C27,Feriados!$A$2:$A$20,0)),1,0)=1,"Escala B!","") ->  | T27: FALSE | U27: TRUE | V27: 21 | W27: 1 | X27: FALSE | Y27: FALSE | Z27: FALSE | AA27: =IF(ISERROR(IF(ISBLANK(Q27)=TRUE,FALSE,IF(AND(ISBLANK(Q27)=FALSE,isadate(Q27)=TRUE)=TRUE,FALSE,IF(AND(ISBLANK(Q27)=FALSE,isadate(Q27)=FALSE)=TRUE,TRUE))))=TRUE,TRUE,IF(ISBLANK(Q27)=TRUE,FALSE,IF(AND(ISBLANK(Q27)=FALSE,isadate(Q27)=TRUE)=TRUE,FALSE,IF(AND(ISBLANK(Q27)=FALSE,isadate(Q27)=FALSE)=TRUE,TRUE)))) -> FALSE
A28: A | B28: A | C28: =Home!B26 -> 2017-08-18 | D28: 2017-08-18 | E28: A | R28: =IF(IF(ISNUMBER(MATCH(C28,Feriados!$A$2:$A$20,0)),1,0)=1,"Escala B!","") ->  | T28: FALSE | U28: TRUE | V28: 22 | W28: 1 | X28: FALSE | Y28: FALSE | Z28: FALSE | AA28: =IF(ISERROR(IF(ISBLANK(Q28)=TRUE,FALSE,IF(AND(ISBLANK(Q28)=FALSE,isadate(Q28)=TRUE)=TRUE,FALSE,IF(AND(ISBLANK(Q28)=FALSE,isadate(Q28)=FALSE)=TRUE,TRUE))))=TRUE,TRUE,IF(ISBLANK(Q28)=TRUE,FALSE,IF(AND(ISBLANK(Q28)=FALSE,isadate(Q28)=TRUE)=TRUE,FALSE,IF(AND(ISBLANK(Q28)=FALSE,isadate(Q28)=FALSE)=TRUE,TRUE)))) -> FALSE
A29: B | B29: B | C29: =Home!B27 -> 2017-08-19 | D29: 2017-08-19 | E29: B | F29: 1Sar | G29: 8 | H29: Phillip Nottage | I29: Comp8 | R29: =IF(IF(ISNUMBER(MATCH(C29,Feriados!$A$2:$A$20,0)),1,0)=1,"Escala B!","") ->  | T29: FALSE | U29: TRUE | V29: 23 | W29: 1 | X29: FALSE | Y29: FALSE | Z29: FALSE | AA29: =IF(ISERROR(IF(ISBLANK(Q29)=TRUE,FALSE,IF(AND(ISBLANK(Q29)=FALSE,isadate(Q29)=TRUE)=TRUE,FALSE,IF(AND(ISBLANK(Q29)=FALSE,isadate(Q29)=FALSE)=TRUE,TRUE))))=TRUE,TRUE,IF(ISBLANK(Q29)=TRUE,FALSE,IF(AND(ISBLANK(Q29)=FALSE,isadate(Q29)=TRUE)=TRUE,FALSE,IF(AND(ISBLANK(Q29)=FALSE,isadate(Q29)=FALSE)=TRUE,TRUE)))) -> FALSE
A30: B | B30: B | C30: =Home!B28 -> 2017-08-20 | D30: 2017-08-20 | E30: B | F30: 1Sar | G30: 9 | H30: Lavern Tank | I30: Comp9 | R30: =IF(IF(ISNUMBER(MATCH(C30,Feriados!$A$2:$A$20,0)),1,0)=1,"Escala B!","") ->  | T30: FALSE | U30: TRUE | V30: 24 | W30: 1 | X30: FALSE | Y30: FALSE | Z30: FALSE | AA30: =IF(ISERROR(IF(ISBLANK(Q30)=TRUE,FALSE,IF(AND(ISBLANK(Q30)=FALSE,isadate(Q30)=TRUE)=TRUE,FALSE,IF(AND(ISBLANK(Q30)=FALSE,isadate(Q30)=FALSE)=TRUE,TRUE))))=TRUE,TRUE,IF(ISBLANK(Q30)=TRUE,FALSE,IF(AND(ISBLANK(Q30)=FALSE,isadate(Q30)=TRUE)=TRUE,FALSE,IF(AND(ISBLANK(Q30)=FALSE,isadate(Q30)=FALSE)=TRUE,TRUE)))) -> FALSE
A31: A | B31: A | C31: =Home!B29 -> 2017-08-21 | D31: 2017-08-21 | E31: A | R31: =IF(IF(ISNUMBER(MATCH(C31,Feriados!$A$2:$A$20,0)),1,0)=1,"Escala B!","") ->  | T31: FALSE | U31: TRUE | V31: 25 | W31: 1 | X31: FALSE | Y31: FALSE | Z31: FALSE | AA31: =IF(ISERROR(IF(ISBLANK(Q31)=TRUE,FALSE,IF(AND(ISBLANK(Q31)=FALSE,isadate(Q31)=TRUE)=TRUE,FALSE,IF(AND(ISBLANK(Q31)=FALSE,isadate(Q31)=FALSE)=TRUE,TRUE))))=TRUE,TRUE,IF(ISBLANK(Q31)=TRUE,FALSE,IF(AND(ISBLANK(Q31)=FALSE,isadate(Q31)=TRUE)=TRUE,FALSE,IF(AND(ISBLANK(Q31)=FALSE,isadate(Q31)=FALSE)=TRUE,TRUE)))) -> FALSE
A32: A | B32: A | C32: =Home!B30 -> 2017-08-22 | D32: 2017-08-22 | E32: A | R32: =IF(IF(ISNUMBER(MATCH(C32,Feriados!$A$2:$A$20,0)),1,0)=1,"Escala B!","") ->  | T32: FALSE | U32: TRUE | V32: 26 | W32: 1 | X32: FALSE | Y32: FALSE | Z32: FALSE | AA32: =IF(ISERROR(IF(ISBLANK(Q32)=TRUE,FALSE,IF(AND(ISBLANK(Q32)=FALSE,isadate(Q32)=TRUE)=TRUE,FALSE,IF(AND(ISBLANK(Q32)=FALSE,isadate(Q32)=FALSE)=TRUE,TRUE))))=TRUE,TRUE,IF(ISBLANK(Q32)=TRUE,FALSE,IF(AND(ISBLANK(Q32)=FALSE,isadate(Q32)=TRUE)=TRUE,FALSE,IF(AND(ISBLANK(Q32)=FALSE,isadate(Q32)=FALSE)=TRUE,TRUE)))) -> FALSE
A33: A | B33: A | C33: =Home!B31 -> 2017-08-23 | D33: 2017-08-23 | E33: A | R33: =IF(IF(ISNUMBER(MATCH(C33,Feriados!$A$2:$A$20,0)),1,0)=1,"Escala B!","") ->  | T33: FALSE | U33: TRUE | V33: 27 | W33: 1 | X33: FALSE | Y33: FALSE | Z33: FALSE | AA33: =IF(ISERROR(IF(ISBLANK(Q33)=TRUE,FALSE,IF(AND(ISBLANK(Q33)=FALSE,isadate(Q33)=TRUE)=TRUE,FALSE,IF(AND(ISBLANK(Q33)=FALSE,isadate(Q33)=FALSE)=TRUE,TRUE))))=TRUE,TRUE,IF(ISBLANK(Q33)=TRUE,FALSE,IF(AND(ISBLANK(Q33)=FALSE,isadate(Q33)=TRUE)=TRUE,FALSE,IF(AND(ISBLANK(Q33)=FALSE,isadate(Q33)=FALSE)=TRUE,TRUE)))) -> FALSE
A34: A | B34: A | C34: =Home!B32 -> 2017-08-24 | D34: 2017-08-24 | E34: A | R34: =IF(IF(ISNUMBER(MATCH(C34,Feriados!$A$2:$A$20,0)),1,0)=1,"Escala B!","") ->  | T34: FALSE | U34: TRUE | V34: 28 | W34: 1 | X34: FALSE | Y34: FALSE | Z34: FALSE | AA34: =IF(ISERROR(IF(ISBLANK(Q34)=TRUE,FALSE,IF(AND(ISBLANK(Q34)=FALSE,isadate(Q34)=TRUE)=TRUE,FALSE,IF(AND(ISBLANK(Q34)=FALSE,isadate(Q34)=FALSE)=TRUE,TRUE))))=TRUE,TRUE,IF(ISBLANK(Q34)=TRUE,FALSE,IF(AND(ISBLANK(Q34)=FALSE,isadate(Q34)=TRUE)=TRUE,FALSE,IF(AND(ISBLANK(Q34)=FALSE,isadate(Q34)=FALSE)=TRUE,TRUE)))) -> FALSE
A35: A | B35: A | C35: =Home!B33 -> 2017-08-25 | D35: 2017-08-25 | E35: A | R35: =IF(IF(ISNUMBER(MATCH(C35,Feriados!$A$2:$A$20,0)),1,0)=1,"Escala B!","") ->  | T35: FALSE | U35: TRUE | V35: 29 | W35: 1 | X35: FALSE | Y35: FALSE | Z35: FALSE | AA35: =IF(ISERROR(IF(ISBLANK(Q35)=TRUE,FALSE,IF(AND(ISBLANK(Q35)=FALSE,isadate(Q35)=TRUE)=TRUE,FALSE,IF(AND(ISBLANK(Q35)=FALSE,isadate(Q35)=FALSE)=TRUE,TRUE))))=TRUE,TRUE,IF(ISBLANK(Q35)=TRUE,FALSE,IF(AND(ISBLANK(Q35)=FALSE,isadate(Q35)=TRUE)=TRUE,FALSE,IF(AND(ISBLANK(Q35)=FALSE,isadate(Q35)=FALSE)=TRUE,TRUE)))) -> FALSE
A36: B | B36: B | C36: =Home!B34 -> 2017-08-26 | D36: 2017-08-26 | E36: B | F36: 1Sar | G36: 10 | H36: Elvis Feeney | I36: Comp10 | R36: =IF(IF(ISNUMBER(MATCH(C36,Feriados!$A$2:$A$20,0)),1,0)=1,"Escala B!","") ->  | T36: FALSE | U36: TRUE | V36: 30 | W36: 1 | X36: FALSE | Y36: FALSE | Z36: FALSE | AA36: =IF(ISERROR(IF(ISBLANK(Q36)=TRUE,FALSE,IF(AND(ISBLANK(Q36)=FALSE,isadate(Q36)=TRUE)=TRUE,FALSE,IF(AND(ISBLANK(Q36)=FALSE,isadate(Q36)=FALSE)=TRUE,TRUE))))=TRUE,TRUE,IF(ISBLANK(Q36)=TRUE,FALSE,IF(AND(ISBLANK(Q36)=FALSE,isadate(Q36)=TRUE)=TRUE,FALSE,IF(AND(ISBLANK(Q36)=FALSE,isadate(Q36)=FALSE)=TRUE,TRUE)))) -> FALSE
A37: B | B37: B | C37: =Home!B35 -> 2017-08-27 | D37: 2017-08-27 | E37: B | F37: 1Sar | G37: 11 | H37: Nigel Knell | I37: Comp11 | R37: =IF(IF(ISNUMBER(MATCH(C37,Feriados!$A$2:$A$20,0)),1,0)=1,"Escala B!","") ->  | T37: FALSE | U37: TRUE | V37: 31 | W37: 1 | X37: FALSE | Y37: FALSE | Z37: FALSE | AA37: =IF(ISERROR(IF(ISBLANK(Q37)=TRUE,FALSE,IF(AND(ISBLANK(Q37)=FALSE,isadate(Q37)=TRUE)=TRUE,FALSE,IF(AND(ISBLANK(Q37)=FALSE,isadate(Q37)=FALSE)=TRUE,TRUE))))=TRUE,TRUE,IF(ISBLANK(Q37)=TRUE,FALSE,IF(AND(ISBLANK(Q37)=FALSE,isadate(Q37)=TRUE)=TRUE,FALSE,IF(AND(ISBLANK(Q37)=FALSE,isadate(Q37)=FALSE)=TRUE,TRUE)))) -> FALSE
A38: A | B38: A | C38: =Home!B36 -> 2017-08-28 | D38: 2017-08-28 | E38: A | R38: =IF(IF(ISNUMBER(MATCH(C38,Feriados!$A$2:$A$20,0)),1,0)=1,"Escala B!","") ->  | T38: FALSE | U38: TRUE | V38: 32 | W38: 1 | X38: FALSE | Y38: FALSE | Z38: FALSE | AA38: =IF(ISERROR(IF(ISBLANK(Q38)=TRUE,FALSE,IF(AND(ISBLANK(Q38)=FALSE,isadate(Q38)=TRUE)=TRUE,FALSE,IF(AND(ISBLANK(Q38)=FALSE,isadate(Q38)=FALSE)=TRUE,TRUE))))=TRUE,TRUE,IF(ISBLANK(Q38)=TRUE,FALSE,IF(AND(ISBLANK(Q38)=FALSE,isadate(Q38)=TRUE)=TRUE,FALSE,IF(AND(ISBLANK(Q38)=FALSE,isadate(Q38)=FALSE)=TRUE,TRUE)))) -> FALSE
A39: A | B39: A | C39: =Home!B37 -> 2017-08-29 | D39: 2017-08-29 | E39: A | R39: =IF(IF(ISNUMBER(MATCH(C39,Feriados!$A$2:$A$20,0)),1,0)=1,"Escala B!","") ->  | T39: FALSE | U39: TRUE | V39: 33 | W39: 1 | X39: FALSE | Y39: FALSE | Z39: FALSE | AA39: =IF(ISERROR(IF(ISBLANK(Q39)=TRUE,FALSE,IF(AND(ISBLANK(Q39)=FALSE,isadate(Q39)=TRUE)=TRUE,FALSE,IF(AND(ISBLANK(Q39)=FALSE,isadate(Q39)=FALSE)=TRUE,TRUE))))=TRUE,TRUE,IF(ISBLANK(Q39)=TRUE,FALSE,IF(AND(ISBLANK(Q39)=FALSE,isadate(Q39)=TRUE)=TRUE,FALSE,IF(AND(ISBLANK(Q39)=FALSE,isadate(Q39)=FALSE)=TRUE,TRUE)))) -> FALSE
A40: A | B40: A | C40: =Home!B38 -> 2017-08-30 | D40: 2017-08-30 | E40: A | R40: =IF(IF(ISNUMBER(MATCH(C40,Feriados!$A$2:$A$20,0)),1,0)=1,"Escala B!","") ->  | T40: FALSE | U40: TRUE | V40: 34 | W40: 1 | X40: FALSE | Y40: FALSE | Z40: FALSE | AA40: =IF(ISERROR(IF(ISBLANK(Q40)=TRUE,FALSE,IF(AND(ISBLANK(Q40)=FALSE,isadate(Q40)=TRUE)=TRUE,FALSE,IF(AND(ISBLANK(Q40)=FALSE,isadate(Q40)=FALSE)=TRUE,TRUE))))=TRUE,TRUE,IF(ISBLANK(Q40)=TRUE,FALSE,IF(AND(ISBLANK(Q40)=FALSE,isadate(Q40)=TRUE)=TRUE,FALSE,IF(AND(ISBLANK(Q40)=FALSE,isadate(Q40)=FALSE)=TRUE,TRUE)))) -> FALSE
A41: A | B41: A | C41: =Home!B39 -> 2017-08-31 | D41: 2017-08-31 | E41: A | R41: =IF(IF(ISNUMBER(MATCH(C41,Feriados!$A$2:$A$20,0)),1,0)=1,"Escala B!","") ->  | T41: FALSE | U41: TRUE | V41: 35 | W41: 1 | X41: FALSE | Y41: FALSE | Z41: FALSE | AA41: =IF(ISERROR(IF(ISBLANK(Q41)=TRUE,FALSE,IF(AND(ISBLANK(Q41)=FALSE,isadate(Q41)=TRUE)=TRUE,FALSE,IF(AND(ISBLANK(Q41)=FALSE,isadate(Q41)=FALSE)=TRUE,TRUE))))=TRUE,TRUE,IF(ISBLANK(Q41)=TRUE,FALSE,IF(AND(ISBLANK(Q41)=FALSE,isadate(Q41)=TRUE)=TRUE,FALSE,IF(AND(ISBLANK(Q41)=FALSE,isadate(Q41)=FALSE)=TRUE,TRUE)))) -> FALSE
A42: A | B42: A | C42: =Home!B40 -> 2017-09-01 | D42: 2017-09-01 | E42: A | R42: =IF(IF(ISNUMBER(MATCH(C42,Feriados!$A$2:$A$20,0)),1,0)=1,"Escala B!","") ->  | T42: FALSE | U42: TRUE | V42: 36 | W42: 1 | X42: FALSE | Y42: FALSE | Z42: FALSE | AA42: =IF(ISERROR(IF(ISBLANK(Q42)=TRUE,FALSE,IF(AND(ISBLANK(Q42)=FALSE,isadate(Q42)=TRUE)=TRUE,FALSE,IF(AND(ISBLANK(Q42)=FALSE,isadate(Q42)=FALSE)=TRUE,TRUE))))=TRUE,TRUE,IF(ISBLANK(Q42)=TRUE,FALSE,IF(AND(ISBLANK(Q42)=FALSE,isadate(Q42)=TRUE)=TRUE,FALSE,IF(AND(ISBLANK(Q42)=FALSE,isadate(Q42)=FALSE)=TRUE,TRUE)))) -> FALSE
A43: B | B43: B | C43: =Home!B41 -> 2017-09-02 | D43: 2017-09-02 | E43: B | F43: 1Sar | G43: 12 | H43: Stanton Mccord | I43: Comp12 | R43: =IF(IF(ISNUMBER(MATCH(C43,Feriados!$A$2:$A$20,0)),1,0)=1,"Escala B!","") ->  | T43: FALSE | U43: TRUE | V43: 37 | W43: 1 | X43: FALSE | Y43: FALSE | Z43: FALSE | AA43: =IF(ISERROR(IF(ISBLANK(Q43)=TRUE,FALSE,IF(AND(ISBLANK(Q43)=FALSE,isadate(Q43)=TRUE)=TRUE,FALSE,IF(AND(ISBLANK(Q43)=FALSE,isadate(Q43)=FALSE)=TRUE,TRUE))))=TRUE,TRUE,IF(ISBLANK(Q43)=TRUE,FALSE,IF(AND(ISBLANK(Q43)=FALSE,isadate(Q43)=TRUE)=TRUE,FALSE,IF(AND(ISBLANK(Q43)=FALSE,isadate(Q43)=FALSE)=TRUE,TRUE)))) -> FALSE
A44: B | B44: B | C44: =Home!B42 -> 2017-09-03 | D44: 2017-09-03 | E44: B | F44: 1Sar | G44: 13 | H44: Tracey Null | I44: Comp13 | R44: =IF(IF(ISNUMBER(MATCH(C44,Feriados!$A$2:$A$20,0)),1,0)=1,"Escala B!","") ->  | T44: FALSE | U44: TRUE | V44: 38 | W44: 1 | X44: FALSE | Y44: FALSE | Z44: FALSE | AA44: =IF(ISERROR(IF(ISBLANK(Q44)=TRUE,FALSE,IF(AND(ISBLANK(Q44)=FALSE,isadate(Q44)=TRUE)=TRUE,FALSE,IF(AND(ISBLANK(Q44)=FALSE,isadate(Q44)=FALSE)=TRUE,TRUE))))=TRUE,TRUE,IF(ISBLANK(Q44)=TRUE,FALSE,IF(AND(ISBLANK(Q44)=FALSE,isadate(Q44)=TRUE)=TRUE,FALSE,IF(AND(ISBLANK(Q44)=FALSE,isadate(Q44)=FALSE)=TRUE,TRUE)))) -> FALSE
A45: A | B45: A | C45: =Home!B43 -> 2017-09-04 | D45: 2017-09-04 | E45: A | R45: =IF(IF(ISNUMBER(MATCH(C45,Feriados!$A$2:$A$20,0)),1,0)=1,"Escala B!","") ->  | T45: FALSE | U45: TRUE | V45: 39 | W45: 1 | X45: FALSE | Y45: FALSE | Z45: FALSE | AA45: =IF(ISERROR(IF(ISBLANK(Q45)=TRUE,FALSE,IF(AND(ISBLANK(Q45)=FALSE,isadate(Q45)=TRUE)=TRUE,FALSE,IF(AND(ISBLANK(Q45)=FALSE,isadate(Q45)=FALSE)=TRUE,TRUE))))=TRUE,TRUE,IF(ISBLANK(Q45)=TRUE,FALSE,IF(AND(ISBLANK(Q45)=FALSE,isadate(Q45)=TRUE)=TRUE,FALSE,IF(AND(ISBLANK(Q45)=FALSE,isadate(Q45)=FALSE)=TRUE,TRUE)))) -> FALSE
A46: A | B46: A | C46: =Home!B44 -> 2017-09-05 | D46: 2017-09-05 | E46: A | R46: =IF(IF(ISNUMBER(MATCH(C46,Feriados!$A$2:$A$20,0)),1,0)=1,"Escala B!","") ->  | T46: FALSE | U46: TRUE | V46: 40 | W46: 1 | X46: FALSE | Y46: FALSE | Z46: FALSE | AA46: =IF(ISERROR(IF(ISBLANK(Q46)=TRUE,FALSE,IF(AND(ISBLANK(Q46)=FALSE,isadate(Q46)=TRUE)=TRUE,FALSE,IF(AND(ISBLANK(Q46)=FALSE,isadate(Q46)=FALSE)=TRUE,TRUE))))=TRUE,TRUE,IF(ISBLANK(Q46)=TRUE,FALSE,IF(AND(ISBLANK(Q46)=FALSE,isadate(Q46)=TRUE)=TRUE,FALSE,IF(AND(ISBLANK(Q46)=FALSE,isadate(Q46)=FALSE)=TRUE,TRUE)))) -> FALSE
A47: A | B47: A | C47: =Home!B45 -> 2017-09-06 | D47: 2017-09-06 | E47: A | R47: =IF(IF(ISNUMBER(MATCH(C47,Feriados!$A$2:$A$20,0)),1,0)=1,"Escala B!","") ->  | T47: FALSE | U47: TRUE | V47: 41 | W47: 1 | X47: FALSE | Y47: FALSE | Z47: FALSE | AA47: =IF(ISERROR(IF(ISBLANK(Q47)=TRUE,FALSE,IF(AND(ISBLANK(Q47)=FALSE,isadate(Q47)=TRUE)=TRUE,FALSE,IF(AND(ISBLANK(Q47)=FALSE,isadate(Q47)=FALSE)=TRUE,TRUE))))=TRUE,TRUE,IF(ISBLANK(Q47)=TRUE,FALSE,IF(AND(ISBLANK(Q47)=FALSE,isadate(Q47)=TRUE)=TRUE,FALSE,IF(AND(ISBLANK(Q47)=FALSE,isadate(Q47)=FALSE)=TRUE,TRUE)))) -> FALSE
A48: A | B48: A | C48: =Home!B46 -> 2017-09-07 | D48: 2017-09-07 | E48: A | R48: =IF(IF(ISNUMBER(MATCH(C48,Feriados!$A$2:$A$20,0)),1,0)=1,"Escala B!","") ->  | T48: FALSE | U48: TRUE | V48: 42 | W48: 1 | X48: FALSE | Y48: FALSE | Z48: FALSE | AA48: =IF(ISERROR(IF(ISBLANK(Q48)=TRUE,FALSE,IF(AND(ISBLANK(Q48)=FALSE,isadate(Q48)=TRUE)=TRUE,FALSE,IF(AND(ISBLANK(Q48)=FALSE,isadate(Q48)=FALSE)=TRUE,TRUE))))=TRUE,TRUE,IF(ISBLANK(Q48)=TRUE,FALSE,IF(AND(ISBLANK(Q48)=FALSE,isadate(Q48)=TRUE)=TRUE,FALSE,IF(AND(ISBLANK(Q48)=FALSE,isadate(Q48)=FALSE)=TRUE,TRUE)))) -> FALSE
A49: A | B49: A | C49: =Home!B47 -> 2017-09-08 | D49: 2017-09-08 | E49: A | R49: =IF(IF(ISNUMBER(MATCH(C49,Feriados!$A$2:$A$20,0)),1,0)=1,"Escala B!","") ->  | T49: FALSE | U49: TRUE | V49: 43 | W49: 1 | X49: FALSE | Y49: FALSE | Z49: FALSE | AA49: =IF(ISERROR(IF(ISBLANK(Q49)=TRUE,FALSE,IF(AND(ISBLANK(Q49)=FALSE,isadate(Q49)=TRUE)=TRUE,FALSE,IF(AND(ISBLANK(Q49)=FALSE,isadate(Q49)=FALSE)=TRUE,TRUE))))=TRUE,TRUE,IF(ISBLANK(Q49)=TRUE,FALSE,IF(AND(ISBLANK(Q49)=FALSE,isadate(Q49)=TRUE)=TRUE,FALSE,IF(AND(ISBLANK(Q49)=FALSE,isadate(Q49)=FALSE)=TRUE,TRUE)))) -> FALSE
A50: B | B50: B | C50: =Home!B48 -> 2017-09-09 | D50: 2017-09-09 | E50: B | F50: 1Sar | G50: 14 | H50: Winfred Olivieri | I50: Comp14 | R50: =IF(IF(ISNUMBER(MATCH(C50,Feriados!$A$2:$A$20,0)),1,0)=1,"Escala B!","") ->  | T50: FALSE | U50: TRUE | V50: 44 | W50: 1 | X50: FALSE | Y50: FALSE | Z50: FALSE | AA50: =IF(ISERROR(IF(ISBLANK(Q50)=TRUE,FALSE,IF(AND(ISBLANK(Q50)=FALSE,isadate(Q50)=TRUE)=TRUE,FALSE,IF(AND(ISBLANK(Q50)=FALSE,isadate(Q50)=FALSE)=TRUE,TRUE))))=TRUE,TRUE,IF(ISBLANK(Q50)=TRUE,FALSE,IF(AND(ISBLANK(Q50)=FALSE,isadate(Q50)=TRUE)=TRUE,FALSE,IF(AND(ISBLANK(Q50)=FALSE,isadate(Q50)=FALSE)=TRUE,TRUE)))) -> FALSE
A51: B | B51: B | C51: =Home!B49 -> 2017-09-10 | D51: 2017-09-10 | E51: B | F51: 1Sar | G51: 15 | H51: Roderick Lehto | I51: Comp15 | R51: =IF(IF(ISNUMBER(MATCH(C51,Feriados!$A$2:$A$20,0)),1,0)=1,"Escala B!","") ->  | T51: FALSE | U51: TRUE | V51: 45 | W51: 1 | X51: FALSE | Y51: FALSE | Z51: FALSE | AA51: =IF(ISERROR(IF(ISBLANK(Q51)=TRUE,FALSE,IF(AND(ISBLANK(Q51)=FALSE,isadate(Q51)=TRUE)=TRUE,FALSE,IF(AND(ISBLANK(Q51)=FALSE,isadate(Q51)=FALSE)=TRUE,TRUE))))=TRUE,TRUE,IF(ISBLANK(Q51)=TRUE,FALSE,IF(AND(ISBLANK(Q51)=FALSE,isadate(Q51)=TRUE)=TRUE,FALSE,IF(AND(ISBLANK(Q51)=FALSE,isadate(Q51)=FALSE)=TRUE,TRUE)))) -> FALSE
A52: A | B52: A | C52: =Home!B50 -> 2017-09-11 | D52: 2017-09-11 | E52: A | R52: =IF(IF(ISNUMBER(MATCH(C52,Feriados!$A$2:$A$20,0)),1,0)=1,"Escala B!","") ->  | T52: FALSE | U52: TRUE | V52: 46 | W52: 1 | X52: FALSE | Y52: FALSE | Z52: FALSE | AA52: =IF(ISERROR(IF(ISBLANK(Q52)=TRUE,FALSE,IF(AND(ISBLANK(Q52)=FALSE,isadate(Q52)=TRUE)=TRUE,FALSE,IF(AND(ISBLANK(Q52)=FALSE,isadate(Q52)=FALSE)=TRUE,TRUE))))=TRUE,TRUE,IF(ISBLANK(Q52)=TRUE,FALSE,IF(AND(ISBLANK(Q52)=FALSE,isadate(Q52)=TRUE)=TRUE,FALSE,IF(AND(ISBLANK(Q52)=FALSE,isadate(Q52)=FALSE)=TRUE,TRUE)))) -> FALSE
A53: A | B53: A | C53: =Home!B51 -> 2017-09-12 | D53: 2017-09-12 | E53: A | R53: =IF(IF(ISNUMBER(MATCH(C53,Feriados!$A$2:$A$20,0)),1,0)=1,"Escala B!","") ->  | T53: FALSE | U53: TRUE | V53: 47 | W53: 1 | X53: FALSE | Y53: FALSE | Z53: FALSE | AA53: =IF(ISERROR(IF(ISBLANK(Q53)=TRUE,FALSE,IF(AND(ISBLANK(Q53)=FALSE,isadate(Q53)=TRUE)=TRUE,FALSE,IF(AND(ISBLANK(Q53)=FALSE,isadate(Q53)=FALSE)=TRUE,TRUE))))=TRUE,TRUE,IF(ISBLANK(Q53)=TRUE,FALSE,IF(AND(ISBLANK(Q53)=FALSE,isadate(Q53)=TRUE)=TRUE,FALSE,IF(AND(ISBLANK(Q53)=FALSE,isadate(Q53)=FALSE)=TRUE,TRUE)))) -> FALSE
A54: A | B54: A | C54: =Home!B52 -> 2017-09-13 | D54: 2017-09-13 | E54: A | R54: =IF(IF(ISNUMBER(MATCH(C54,Feriados!$A$2:$A$20,0)),1,0)=1,"Escala B!","") ->  | T54: FALSE | U54: TRUE | V54: 48 | W54: 1 | X54: FALSE | Y54: FALSE | Z54: FALSE | AA54: =IF(ISERROR(IF(ISBLANK(Q54)=TRUE,FALSE,IF(AND(ISBLANK(Q54)=FALSE,isadate(Q54)=TRUE)=TRUE,FALSE,IF(AND(ISBLANK(Q54)=FALSE,isadate(Q54)=FALSE)=TRUE,TRUE))))=TRUE,TRUE,IF(ISBLANK(Q54)=TRUE,FALSE,IF(AND(ISBLANK(Q54)=FALSE,isadate(Q54)=TRUE)=TRUE,FALSE,IF(AND(ISBLANK(Q54)=FALSE,isadate(Q54)=FALSE)=TRUE,TRUE)))) -> FALSE
A55: A | B55: A | C55: =Home!B53 -> 2017-09-14 | D55: 2017-09-14 | E55: A | R55: =IF(IF(ISNUMBER(MATCH(C55,Feriados!$A$2:$A$20,0)),1,0)=1,"Escala B!","") ->  | T55: FALSE | U55: TRUE | V55: 49 | W55: 1 | X55: FALSE | Y55: FALSE | Z55: FALSE | AA55: =IF(ISERROR(IF(ISBLANK(Q55)=TRUE,FALSE,IF(AND(ISBLANK(Q55)=FALSE,isadate(Q55)=TRUE)=TRUE,FALSE,IF(AND(ISBLANK(Q55)=FALSE,isadate(Q55)=FALSE)=TRUE,TRUE))))=TRUE,TRUE,IF(ISBLANK(Q55)=TRUE,FALSE,IF(AND(ISBLANK(Q55)=FALSE,isadate(Q55)=TRUE)=TRUE,FALSE,IF(AND(ISBLANK(Q55)=FALSE,isadate(Q55)=FALSE)=TRUE,TRUE)))) -> FALSE
A56: A | B56: A | C56: =Home!B54 -> 2017-09-15 | D56: 2017-09-15 | E56: A | R56: =IF(IF(ISNUMBER(MATCH(C56,Feriados!$A$2:$A$20,0)),1,0)=1,"Escala B!","") ->  | T56: FALSE | U56: TRUE | V56: 50 | W56: 1 | X56: FALSE | Y56: FALSE | Z56: FALSE | AA56: =IF(ISERROR(IF(ISBLANK(Q56)=TRUE,FALSE,IF(AND(ISBLANK(Q56)=FALSE,isadate(Q56)=TRUE)=TRUE,FALSE,IF(AND(ISBLANK(Q56)=FALSE,isadate(Q56)=FALSE)=TRUE,TRUE))))=TRUE,TRUE,IF(ISBLANK(Q56)=TRUE,FALSE,IF(AND(ISBLANK(Q56)=FALSE,isadate(Q56)=TRUE)=TRUE,FALSE,IF(AND(ISBLANK(Q56)=FALSE,isadate(Q56)=FALSE)=TRUE,TRUE)))) -> FALSE
A57: B | B57: B | C57: =Home!B55 -> 2017-09-16 | D57: 2017-09-16 | E57: B | R57: =IF(IF(ISNUMBER(MATCH(C57,Feriados!$A$2:$A$20,0)),1,0)=1,"Escala B!","") ->  | T57: FALSE | U57: TRUE | V57: 51 | W57: 1 | X57: FALSE | Y57: FALSE | Z57: FALSE | AA57: =IF(ISERROR(IF(ISBLANK(Q57)=TRUE,FALSE,IF(AND(ISBLANK(Q57)=FALSE,isadate(Q57)=TRUE)=TRUE,FALSE,IF(AND(ISBLANK(Q57)=FALSE,isadate(Q57)=FALSE)=TRUE,TRUE))))=TRUE,TRUE,IF(ISBLANK(Q57)=TRUE,FALSE,IF(AND(ISBLANK(Q57)=FALSE,isadate(Q57)=TRUE)=TRUE,FALSE,IF(AND(ISBLANK(Q57)=FALSE,isadate(Q57)=FALSE)=TRUE,TRUE)))) -> FALSE
A58: B | B58: B | C58: =Home!B56 -> 2017-09-17 | D58: 2017-09-17 | E58: B | R58: =IF(IF(ISNUMBER(MATCH(C58,Feriados!$A$2:$A$20,0)),1,0)=1,"Escala B!","") ->  | T58: FALSE | U58: TRUE | V58: 52 | W58: 1 | X58: FALSE | Y58: FALSE | Z58: FALSE | AA58: =IF(ISERROR(IF(ISBLANK(Q58)=TRUE,FALSE,IF(AND(ISBLANK(Q58)=FALSE,isadate(Q58)=TRUE)=TRUE,FALSE,IF(AND(ISBLANK(Q58)=FALSE,isadate(Q58)=FALSE)=TRUE,TRUE))))=TRUE,TRUE,IF(ISBLANK(Q58)=TRUE,FALSE,IF(AND(ISBLANK(Q58)=FALSE,isadate(Q58)=TRUE)=TRUE,FALSE,IF(AND(ISBLANK(Q58)=FALSE,isadate(Q58)=FALSE)=TRUE,TRUE)))) -> FALSE
A59: A | B59: A | C59: =Home!B57 -> 2017-09-18 | D59: 2017-09-18 | E59: A | R59: =IF(IF(ISNUMBER(MATCH(C59,Feriados!$A$2:$A$20,0)),1,0)=1,"Escala B!","") ->  | T59: FALSE | U59: TRUE | V59: 53 | W59: 1 | X59: FALSE | Y59: FALSE | Z59: FALSE | AA59: =IF(ISERROR(IF(ISBLANK(Q59)=TRUE,FALSE,IF(AND(ISBLANK(Q59)=FALSE,isadate(Q59)=TRUE)=TRUE,FALSE,IF(AND(ISBLANK(Q59)=FALSE,isadate(Q59)=FALSE)=TRUE,TRUE))))=TRUE,TRUE,IF(ISBLANK(Q59)=TRUE,FALSE,IF(AND(ISBLANK(Q59)=FALSE,isadate(Q59)=TRUE)=TRUE,FALSE,IF(AND(ISBLANK(Q59)=FALSE,isadate(Q59)=FALSE)=TRUE,TRUE)))) -> FALSE
A60: A | B60: A | C60: =Home!B58 -> 2017-09-19 | D60: 2017-09-19 | E60: A | R60: =IF(IF(ISNUMBER(MATCH(C60,Feriados!$A$2:$A$20,0)),1,0)=1,"Escala B!","") ->  | T60: FALSE | U60: TRUE | V60: 54 | W60: 1 | X60: FALSE | Y60: FALSE | Z60: FALSE | AA60: =IF(ISERROR(IF(ISBLANK(Q60)=TRUE,FALSE,IF(AND(ISBLANK(Q60)=FALSE,isadate(Q60)=TRUE)=TRUE,FALSE,IF(AND(ISBLANK(Q60)=FALSE,isadate(Q60)=FALSE)=TRUE,TRUE))))=TRUE,TRUE,IF(ISBLANK(Q60)=TRUE,FALSE,IF(AND(ISBLANK(Q60)=FALSE,isadate(Q60)=TRUE)=TRUE,FALSE,IF(AND(ISBLANK(Q60)=FALSE,isadate(Q60)=FALSE)=TRUE,TRUE)))) -> FALSE
A61: A | B61: A | C61: =Home!B59 -> 2017-09-20 | D61: 2017-09-20 | E61: A | R61: =IF(IF(ISNUMBER(MATCH(C61,Feriados!$A$2:$A$20,0)),1,0)=1,"Escala B!","") ->  | T61: FALSE | U61: TRUE | V61: 55 | W61: 1 | X61: FALSE | Y61: FALSE | Z61: FALSE | AA61: =IF(ISERROR(IF(ISBLANK(Q61)=TRUE,FALSE,IF(AND(ISBLANK(Q61)=FALSE,isadate(Q61)=TRUE)=TRUE,FALSE,IF(AND(ISBLANK(Q61)=FALSE,isadate(Q61)=FALSE)=TRUE,TRUE))))=TRUE,TRUE,IF(ISBLANK(Q61)=TRUE,FALSE,IF(AND(ISBLANK(Q61)=FALSE,isadate(Q61)=TRUE)=TRUE,FALSE,IF(AND(ISBLANK(Q61)=FALSE,isadate(Q61)=FALSE)=TRUE,TRUE)))) -> FALSE
A62: A | B62: A | C62: =Home!B60 -> 2017-09-21 | D62: 2017-09-21 | E62: A | R62: =IF(IF(ISNUMBER(MATCH(C62,Feriados!$A$2:$A$20,0)),1,0)=1,"Escala B!","") ->  | T62: FALSE | U62: TRUE | V62: 56 | W62: 1 | X62: FALSE | Y62: FALSE | Z62: FALSE | AA62: =IF(ISERROR(IF(ISBLANK(Q62)=TRUE,FALSE,IF(AND(ISBLANK(Q62)=FALSE,isadate(Q62)=TRUE)=TRUE,FALSE,IF(AND(ISBLANK(Q62)=FALSE,isadate(Q62)=FALSE)=TRUE,TRUE))))=TRUE,TRUE,IF(ISBLANK(Q62)=TRUE,FALSE,IF(AND(ISBLANK(Q62)=FALSE,isadate(Q62)=TRUE)=TRUE,FALSE,IF(AND(ISBLANK(Q62)=FALSE,isadate(Q62)=FALSE)=TRUE,TRUE)))) -> FALSE
A63: A | B63: A | C63: =Home!B61 -> 2017-09-22 | D63: 2017-09-22 | E63: A | R63: =IF(IF(ISNUMBER(MATCH(C63,Feriados!$A$2:$A$20,0)),1,0)=1,"Escala B!","") ->  | T63: FALSE | U63: TRUE | V63: 57 | W63: 1 | X63: FALSE | Y63: FALSE | Z63: FALSE | AA63: =IF(ISERROR(IF(ISBLANK(Q63)=TRUE,FALSE,IF(AND(ISBLANK(Q63)=FALSE,isadate(Q63)=TRUE)=TRUE,FALSE,IF(AND(ISBLANK(Q63)=FALSE,isadate(Q63)=FALSE)=TRUE,TRUE))))=TRUE,TRUE,IF(ISBLANK(Q63)=TRUE,FALSE,IF(AND(ISBLANK(Q63)=FALSE,isadate(Q63)=TRUE)=TRUE,FALSE,IF(AND(ISBLANK(Q63)=FALSE,isadate(Q63)=FALSE)=TRUE,TRUE)))) -> FALSE
A64: B | B64: B | C64: =Home!B62 -> 2017-09-23 | D64: 2017-09-23 | E64: B | R64: =IF(IF(ISNUMBER(MATCH(C64,Feriados!$A$2:$A$20,0)),1,0)=1,"Escala B!","") ->  | T64: FALSE | U64: TRUE | V64: 58 | W64: 1 | X64: FALSE | Y64: FALSE | Z64: FALSE | AA64: =IF(ISERROR(IF(ISBLANK(Q64)=TRUE,FALSE,IF(AND(ISBLANK(Q64)=FALSE,isadate(Q64)=TRUE)=TRUE,FALSE,IF(AND(ISBLANK(Q64)=FALSE,isadate(Q64)=FALSE)=TRUE,TRUE))))=TRUE,TRUE,IF(ISBLANK(Q64)=TRUE,FALSE,IF(AND(ISBLANK(Q64)=FALSE,isadate(Q64)=TRUE)=TRUE,FALSE,IF(AND(ISBLANK(Q64)=FALSE,isadate(Q64)=FALSE)=TRUE,TRUE)))) -> FALSE
A65: B | B65: B | C65: =Home!B63 -> 2017-09-24 | D65: 2017-09-24 | E65: B | R65: =IF(IF(ISNUMBER(MATCH(C65,Feriados!$A$2:$A$20,0)),1,0)=1,"Escala B!","") ->  | T65: FALSE | U65: TRUE | V65: 59 | W65: 1 | X65: FALSE | Y65: FALSE | Z65: FALSE | AA65: =IF(ISERROR(IF(ISBLANK(Q65)=TRUE,FALSE,IF(AND(ISBLANK(Q65)=FALSE,isadate(Q65)=TRUE)=TRUE,FALSE,IF(AND(ISBLANK(Q65)=FALSE,isadate(Q65)=FALSE)=TRUE,TRUE))))=TRUE,TRUE,IF(ISBLANK(Q65)=TRUE,FALSE,IF(AND(ISBLANK(Q65)=FALSE,isadate(Q65)=TRUE)=TRUE,FALSE,IF(AND(ISBLANK(Q65)=FALSE,isadate(Q65)=FALSE)=TRUE,TRUE)))) -> FALSE
A66: A | B66: A | C66: =Home!B64 -> 2017-09-25 | D66: 2017-09-25 | E66: A | R66: =IF(IF(ISNUMBER(MATCH(C66,Feriados!$A$2:$A$20,0)),1,0)=1,"Escala B!","") ->  | T66: =IF(P66="OK",TRUE,FALSE) -> FALSE | U66: =IF(AND(IF(AND(AND(IF(ISBLANK(O66)=TRUE,FALSE,TRUE)=TRUE,IF(TODAY()>O66,FALSE,TRUE)=TRUE)=TRUE,ISBLANK(N66)=TRUE=TRUE)=TRUE,FALSE,IF(AND(AND(IF(ISBLANK(O66)=TRUE,FALSE,TRUE)=TRUE,IF(TODAY()>O66,FALSE,TRUE)=FALSE)=TRUE,ISBLANK(N66)=TRUE=TRUE)=TRUE,TRUE,IF(AND(ISBLANK(N66)=TRUE=TRUE,IF(ISBLANK(O66)=TRUE,FALSE,TRUE)=FALSE,IF(TODAY()>O66,FALSE,TRUE)=FALSE)=TRUE,TRUE)))=TRUE,T66=FALSE)=TRUE,TRUE,FALSE) -> TRUE | V66: =IF(U66=TRUE,V65+1,V65) -> 60 | W66: =IF(X66=TRUE,W65+1,W65) -> 1 | X66: =IF(AND(T66=FALSE,U66=FALSE)=TRUE,TRUE,FALSE) -> FALSE | Y66: =IF(AND(IF(P66="OK",TRUE,FALSE)=TRUE,IF(LEN(Q66)=0,FALSE,TRUE)=TRUE)=TRUE,TRUE,FALSE) -> FALSE | Z66: =OR(IF(N66="",FALSE,TRUE)=TRUE,IF(AND(IF(O66="",FALSE,TRUE)=TRUE,IF(O66<=TODAY(),FALSE,TRUE)=TRUE)=TRUE,TRUE,FALSE)=TRUE) -> FALSE | AA66: =IF(ISERROR(IF(ISBLANK(Q66)=TRUE,FALSE,IF(AND(ISBLANK(Q66)=FALSE,isadate(Q66)=TRUE)=TRUE,FALSE,IF(AND(ISBLANK(Q66)=FALSE,isadate(Q66)=FALSE)=TRUE,TRUE))))=TRUE,TRUE,IF(ISBLANK(Q66)=TRUE,FALSE,IF(AND(ISBLANK(Q66)=FALSE,isadate(Q66)=TRUE)=TRUE,FALSE,IF(AND(ISBLANK(Q66)=FALSE,isadate(Q66)=FALSE)=TRUE,TRUE)))) -> FALSE
A67: A | B67: A | C67: =Home!B65 -> 2017-09-26 | D67: 2017-09-26 | E67: =A67 -> A | R67: =IF(IF(ISNUMBER(MATCH(C67,Feriados!$A$2:$A$20,0)),1,0)=1,"Escala B!","") ->  | T67: FALSE | U67: TRUE | V67: 61 | W67: 1 | X67: FALSE | Y67: FALSE | Z67: FALSE | AA67: =IF(ISERROR(IF(ISBLANK(Q67)=TRUE,FALSE,IF(AND(ISBLANK(Q67)=FALSE,isadate(Q67)=TRUE)=TRUE,FALSE,IF(AND(ISBLANK(Q67)=FALSE,isadate(Q67)=FALSE)=TRUE,TRUE))))=TRUE,TRUE,IF(ISBLANK(Q67)=TRUE,FALSE,IF(AND(ISBLANK(Q67)=FALSE,isadate(Q67)=TRUE)=TRUE,FALSE,IF(AND(ISBLANK(Q67)=FALSE,isadate(Q67)=FALSE)=TRUE,TRUE)))) -> FALSE
A68: A | B68: =IF(S68="B","B",IF(S68="A","A",IF(AND(WEEKDAY(C68,2)>=1,WEEKDAY(C68,2)<=5)=TRUE,"A","B"))) -> A | C68: =Home!B66 -> 2017-09-27 | D68: 2017-09-27 | E68: A | R68: =IF(IF(ISNUMBER(MATCH(C68,Feriados!$A$2:$A$20,0)),1,0)=1,"Escala B!","") ->  | T68: FALSE | U68: TRUE | V68: 62 | W68: 1 | X68: FALSE | Y68: FALSE | Z68: FALSE | AA68: =IF(ISERROR(IF(ISBLANK(Q68)=TRUE,FALSE,IF(AND(ISBLANK(Q68)=FALSE,isadate(Q68)=TRUE)=TRUE,FALSE,IF(AND(ISBLANK(Q68)=FALSE,isadate(Q68)=FALSE)=TRUE,TRUE))))=TRUE,TRUE,IF(ISBLANK(Q68)=TRUE,FALSE,IF(AND(ISBLANK(Q68)=FALSE,isadate(Q68)=TRUE)=TRUE,FALSE,IF(AND(ISBLANK(Q68)=FALSE,isadate(Q68)=FALSE)=TRUE,TRUE)))) -> FALSE
A69: =B69 -> A | B69: A | C69: =Home!B67 -> 2017-09-28 | D69: =C69 -> 2017-09-28 | E69: A | R69: =IF(IF(ISNUMBER(MATCH(C69,Feriados!$A$2:$A$20,0)),1,0)=1,"Escala B!","") ->  | T69: FALSE | U69: TRUE | V69: 63 | W69: 1 | X69: FALSE | Y69: FALSE | Z69: FALSE | AA69: =IF(ISERROR(IF(ISBLANK(Q69)=TRUE,FALSE,IF(AND(ISBLANK(Q69)=FALSE,isadate(Q69)=TRUE)=TRUE,FALSE,IF(AND(ISBLANK(Q69)=FALSE,isadate(Q69)=FALSE)=TRUE,TRUE))))=TRUE,TRUE,IF(ISBLANK(Q69)=TRUE,FALSE,IF(AND(ISBLANK(Q69)=FALSE,isadate(Q69)=TRUE)=TRUE,FALSE,IF(AND(ISBLANK(Q69)=FALSE,isadate(Q69)=FALSE)=TRUE,TRUE)))) -> FALSE
A70: A | B70: A | C70: =Home!B68 -> 2017-09-29 | D70: 2017-09-29 | E70: A | R70: =IF(IF(ISNUMBER(MATCH(C70,Feriados!$A$2:$A$20,0)),1,0)=1,"Escala B!","") ->  | T70: FALSE | U70: TRUE | V70: 64 | W70: 1 | X70: FALSE | Y70: FALSE | Z70: FALSE | AA70: =IF(ISERROR(IF(ISBLANK(Q70)=TRUE,FALSE,IF(AND(ISBLANK(Q70)=FALSE,isadate(Q70)=TRUE)=TRUE,FALSE,IF(AND(ISBLANK(Q70)=FALSE,isadate(Q70)=FALSE)=TRUE,TRUE))))=TRUE,TRUE,IF(ISBLANK(Q70)=TRUE,FALSE,IF(AND(ISBLANK(Q70)=FALSE,isadate(Q70)=TRUE)=TRUE,FALSE,IF(AND(ISBLANK(Q70)=FALSE,isadate(Q70)=FALSE)=TRUE,TRUE)))) -> FALSE
A71: B | B71: B | C71: =Home!B69 -> 2017-09-30 | D71: 2017-09-30 | E71: B | R71: =IF(IF(ISNUMBER(MATCH(C71,Feriados!$A$2:$A$20,0)),1,0)=1,"Escala B!","") ->  | T71: FALSE | U71: TRUE | V71: 65 | W71: 1 | X71: FALSE | Y71: FALSE | Z71: FALSE | AA71: =IF(ISERROR(IF(ISBLANK(Q71)=TRUE,FALSE,IF(AND(ISBLANK(Q71)=FALSE,isadate(Q71)=TRUE)=TRUE,FALSE,IF(AND(ISBLANK(Q71)=FALSE,isadate(Q71)=FALSE)=TRUE,TRUE))))=TRUE,TRUE,IF(ISBLANK(Q71)=TRUE,FALSE,IF(AND(ISBLANK(Q71)=FALSE,isadate(Q71)=TRUE)=TRUE,FALSE,IF(AND(ISBLANK(Q71)=FALSE,isadate(Q71)=FALSE)=TRUE,TRUE)))) -> FALSE
A72: B | B72: B | C72: =Home!B70 -> 2017-10-01 | D72: 2017-10-01 | E72: B | R72: =IF(IF(ISNUMBER(MATCH(C72,Feriados!$A$2:$A$20,0)),1,0)=1,"Escala B!","") ->  | T72: FALSE | U72: TRUE | V72: 66 | W72: 1 | X72: FALSE | Y72: FALSE | Z72: FALSE | AA72: =IF(ISERROR(IF(ISBLANK(Q72)=TRUE,FALSE,IF(AND(ISBLANK(Q72)=FALSE,isadate(Q72)=TRUE)=TRUE,FALSE,IF(AND(ISBLANK(Q72)=FALSE,isadate(Q72)=FALSE)=TRUE,TRUE))))=TRUE,TRUE,IF(ISBLANK(Q72)=TRUE,FALSE,IF(AND(ISBLANK(Q72)=FALSE,isadate(Q72)=TRUE)=TRUE,FALSE,IF(AND(ISBLANK(Q72)=FALSE,isadate(Q72)=FALSE)=TRUE,TRUE)))) -> FALSE
A73: A | B73: A | C73: =Home!B71 -> 2017-10-02 | D73: 2017-10-02 | E73: A | R73: =IF(IF(ISNUMBER(MATCH(C73,Feriados!$A$2:$A$20,0)),1,0)=1,"Escala B!","") ->  | T73: FALSE | U73: TRUE | V73: 67 | W73: 1 | X73: FALSE | Y73: FALSE | Z73: FALSE | AA73: =IF(ISERROR(IF(ISBLANK(Q73)=TRUE,FALSE,IF(AND(ISBLANK(Q73)=FALSE,isadate(Q73)=TRUE)=TRUE,FALSE,IF(AND(ISBLANK(Q73)=FALSE,isadate(Q73)=FALSE)=TRUE,TRUE))))=TRUE,TRUE,IF(ISBLANK(Q73)=TRUE,FALSE,IF(AND(ISBLANK(Q73)=FALSE,isadate(Q73)=TRUE)=TRUE,FALSE,IF(AND(ISBLANK(Q73)=FALSE,isadate(Q73)=FALSE)=TRUE,TRUE)))) -> FALSE
A74: A | B74: A | C74: =Home!B72 -> 2017-10-03 | D74: 2017-10-03 | E74: A | R74: =IF(IF(ISNUMBER(MATCH(C74,Feriados!$A$2:$A$20,0)),1,0)=1,"Escala B!","") ->  | T74: FALSE | U74: TRUE | V74: 68 | W74: 1 | X74: FALSE | Y74: FALSE | Z74: FALSE | AA74: =IF(ISERROR(IF(ISBLANK(Q74)=TRUE,FALSE,IF(AND(ISBLANK(Q74)=FALSE,isadate(Q74)=TRUE)=TRUE,FALSE,IF(AND(ISBLANK(Q74)=FALSE,isadate(Q74)=FALSE)=TRUE,TRUE))))=TRUE,TRUE,IF(ISBLANK(Q74)=TRUE,FALSE,IF(AND(ISBLANK(Q74)=FALSE,isadate(Q74)=TRUE)=TRUE,FALSE,IF(AND(ISBLANK(Q74)=FALSE,isadate(Q74)=FALSE)=TRUE,TRUE)))) -> FALSE
A75: A | B75: A | C75: =Home!B73 -> 2017-10-04 | D75: 2017-10-04 | E75: A | R75: =IF(IF(ISNUMBER(MATCH(C75,Feriados!$A$2:$A$20,0)),1,0)=1,"Escala B!","") ->  | T75: FALSE | U75: TRUE | V75: 69 | W75: 1 | X75: FALSE | Y75: FALSE | Z75: FALSE | AA75: =IF(ISERROR(IF(ISBLANK(Q75)=TRUE,FALSE,IF(AND(ISBLANK(Q75)=FALSE,isadate(Q75)=TRUE)=TRUE,FALSE,IF(AND(ISBLANK(Q75)=FALSE,isadate(Q75)=FALSE)=TRUE,TRUE))))=TRUE,TRUE,IF(ISBLANK(Q75)=TRUE,FALSE,IF(AND(ISBLANK(Q75)=FALSE,isadate(Q75)=TRUE)=TRUE,FALSE,IF(AND(ISBLANK(Q75)=FALSE,isadate(Q75)=FALSE)=TRUE,TRUE)))) -> FALSE
A76: B | B76: B | C76: =Home!B74 -> 2017-10-05 | D76: 2017-10-05 | E76: B | R76: =IF(IF(ISNUMBER(MATCH(C76,Feriados!$A$2:$A$20,0)),1,0)=1,"Escala B!","") -> Escala B! | S76: B | T76: FALSE | U76: TRUE | V76: 70 | W76: 1 | X76: FALSE | Y76: FALSE | Z76: FALSE | AA76: =IF(ISERROR(IF(ISBLANK(Q76)=TRUE,FALSE,IF(AND(ISBLANK(Q76)=FALSE,isadate(Q76)=TRUE)=TRUE,FALSE,IF(AND(ISBLANK(Q76)=FALSE,isadate(Q76)=FALSE)=TRUE,TRUE))))=TRUE,TRUE,IF(ISBLANK(Q76)=TRUE,FALSE,IF(AND(ISBLANK(Q76)=FALSE,isadate(Q76)=TRUE)=TRUE,FALSE,IF(AND(ISBLANK(Q76)=FALSE,isadate(Q76)=FALSE)=TRUE,TRUE)))) -> FALSE
A77: A | B77: A | C77: =Home!B75 -> 2017-10-06 | D77: 2017-10-06 | E77: A | R77: =IF(IF(ISNUMBER(MATCH(C77,Feriados!$A$2:$A$20,0)),1,0)=1,"Escala B!","") ->  | T77: FALSE | U77: TRUE | V77: 71 | W77: 1 | X77: FALSE | Y77: FALSE | Z77: FALSE | AA77: =IF(ISERROR(IF(ISBLANK(Q77)=TRUE,FALSE,IF(AND(ISBLANK(Q77)=FALSE,isadate(Q77)=TRUE)=TRUE,FALSE,IF(AND(ISBLANK(Q77)=FALSE,isadate(Q77)=FALSE)=TRUE,TRUE))))=TRUE,TRUE,IF(ISBLANK(Q77)=TRUE,FALSE,IF(AND(ISBLANK(Q77)=FALSE,isadate(Q77)=TRUE)=TRUE,FALSE,IF(AND(ISBLANK(Q77)=FALSE,isadate(Q77)=FALSE)=TRUE,TRUE)))) -> FALSE
A78: B | B78: B | C78: =Home!B76 -> 2017-10-07 | D78: 2017-10-07 | E78: B | R78: =IF(IF(ISNUMBER(MATCH(C78,Feriados!$A$2:$A$20,0)),1,0)=1,"Escala B!","") ->  | T78: FALSE | U78: TRUE | V78: 72 | W78: 1 | X78: FALSE | Y78: FALSE | Z78: FALSE | AA78: =IF(ISERROR(IF(ISBLANK(Q78)=TRUE,FALSE,IF(AND(ISBLANK(Q78)=FALSE,isadate(Q78)=TRUE)=TRUE,FALSE,IF(AND(ISBLANK(Q78)=FALSE,isadate(Q78)=FALSE)=TRUE,TRUE))))=TRUE,TRUE,IF(ISBLANK(Q78)=TRUE,FALSE,IF(AND(ISBLANK(Q78)=FALSE,isadate(Q78)=TRUE)=TRUE,FALSE,IF(AND(ISBLANK(Q78)=FALSE,isadate(Q78)=FALSE)=TRUE,TRUE)))) -> FALSE
A79: B | B79: B | C79: =Home!B77 -> 2017-10-08 | D79: 2017-10-08 | E79: B | R79: =IF(IF(ISNUMBER(MATCH(C79,Feriados!$A$2:$A$20,0)),1,0)=1,"Escala B!","") ->  | T79: FALSE | U79: TRUE | V79: 73 | W79: 1 | X79: FALSE | Y79: FALSE | Z79: FALSE | AA79: =IF(ISERROR(IF(ISBLANK(Q79)=TRUE,FALSE,IF(AND(ISBLANK(Q79)=FALSE,isadate(Q79)=TRUE)=TRUE,FALSE,IF(AND(ISBLANK(Q79)=FALSE,isadate(Q79)=FALSE)=TRUE,TRUE))))=TRUE,TRUE,IF(ISBLANK(Q79)=TRUE,FALSE,IF(AND(ISBLANK(Q79)=FALSE,isadate(Q79)=TRUE)=TRUE,FALSE,IF(AND(ISBLANK(Q79)=FALSE,isadate(Q79)=FALSE)=TRUE,TRUE)))) -> FALSE
A80: A | B80: A | C80: =Home!B78 -> 2017-10-09 | D80: 2017-10-09 | E80: A | R80: =IF(IF(ISNUMBER(MATCH(C80,Feriados!$A$2:$A$20,0)),1,0)=1,"Escala B!","") ->  | T80: FALSE | U80: TRUE | V80: 74 | W80: 1 | X80: FALSE | Y80: FALSE | Z80: FALSE | AA80: =IF(ISERROR(IF(ISBLANK(Q80)=TRUE,FALSE,IF(AND(ISBLANK(Q80)=FALSE,isadate(Q80)=TRUE)=TRUE,FALSE,IF(AND(ISBLANK(Q80)=FALSE,isadate(Q80)=FALSE)=TRUE,TRUE))))=TRUE,TRUE,IF(ISBLANK(Q80)=TRUE,FALSE,IF(AND(ISBLANK(Q80)=FALSE,isadate(Q80)=TRUE)=TRUE,FALSE,IF(AND(ISBLANK(Q80)=FALSE,isadate(Q80)=FALSE)=TRUE,TRUE)))) -> FALSE
A81: A | B81: A | C81: =Home!B79 -> 2017-10-10 | D81: 2017-10-10 | E81: A | R81: =IF(IF(ISNUMBER(MATCH(C81,Feriados!$A$2:$A$20,0)),1,0)=1,"Escala B!","") ->  | T81: FALSE | U81: TRUE | V81: 75 | W81: 1 | X81: FALSE | Y81: FALSE | Z81: FALSE | AA81: =IF(ISERROR(IF(ISBLANK(Q81)=TRUE,FALSE,IF(AND(ISBLANK(Q81)=FALSE,isadate(Q81)=TRUE)=TRUE,FALSE,IF(AND(ISBLANK(Q81)=FALSE,isadate(Q81)=FALSE)=TRUE,TRUE))))=TRUE,TRUE,IF(ISBLANK(Q81)=TRUE,FALSE,IF(AND(ISBLANK(Q81)=FALSE,isadate(Q81)=TRUE)=TRUE,FALSE,IF(AND(ISBLANK(Q81)=FALSE,isadate(Q81)=FALSE)=TRUE,TRUE)))) -> FALSE
A82: A | B82: A | C82: =Home!B80 -> 2017-10-11 | D82: 2017-10-11 | E82: A | R82: =IF(IF(ISNUMBER(MATCH(C82,Feriados!$A$2:$A$20,0)),1,0)=1,"Escala B!","") ->  | T82: FALSE | U82: TRUE | V82: 76 | W82: 1 | X82: FALSE | Y82: FALSE | Z82: FALSE | AA82: =IF(ISERROR(IF(ISBLANK(Q82)=TRUE,FALSE,IF(AND(ISBLANK(Q82)=FALSE,isadate(Q82)=TRUE)=TRUE,FALSE,IF(AND(ISBLANK(Q82)=FALSE,isadate(Q82)=FALSE)=TRUE,TRUE))))=TRUE,TRUE,IF(ISBLANK(Q82)=TRUE,FALSE,IF(AND(ISBLANK(Q82)=FALSE,isadate(Q82)=TRUE)=TRUE,FALSE,IF(AND(ISBLANK(Q82)=FALSE,isadate(Q82)=FALSE)=TRUE,TRUE)))) -> FALSE
A83: A | B83: A | C83: =Home!B81 -> 2017-10-12 | D83: 2017-10-12 | E83: A | R83: =IF(IF(ISNUMBER(MATCH(C83,Feriados!$A$2:$A$20,0)),1,0)=1,"Escala B!","") ->  | T83: FALSE | U83: TRUE | V83: 77 | W83: 1 | X83: FALSE | Y83: FALSE | Z83: FALSE | AA83: =IF(ISERROR(IF(ISBLANK(Q83)=TRUE,FALSE,IF(AND(ISBLANK(Q83)=FALSE,isadate(Q83)=TRUE)=TRUE,FALSE,IF(AND(ISBLANK(Q83)=FALSE,isadate(Q83)=FALSE)=TRUE,TRUE))))=TRUE,TRUE,IF(ISBLANK(Q83)=TRUE,FALSE,IF(AND(ISBLANK(Q83)=FALSE,isadate(Q83)=TRUE)=TRUE,FALSE,IF(AND(ISBLANK(Q83)=FALSE,isadate(Q83)=FALSE)=TRUE,TRUE)))) -> FALSE
A84: A | B84: A | C84: =Home!B82 -> 2017-10-13 | D84: 2017-10-13 | E84: A | R84: =IF(IF(ISNUMBER(MATCH(C84,Feriados!$A$2:$A$20,0)),1,0)=1,"Escala B!","") ->  | T84: FALSE | U84: TRUE | V84: 78 | W84: 1 | X84: FALSE | Y84: FALSE | Z84: FALSE | AA84: =IF(ISERROR(IF(ISBLANK(Q84)=TRUE,FALSE,IF(AND(ISBLANK(Q84)=FALSE,isadate(Q84)=TRUE)=TRUE,FALSE,IF(AND(ISBLANK(Q84)=FALSE,isadate(Q84)=FALSE)=TRUE,TRUE))))=TRUE,TRUE,IF(ISBLANK(Q84)=TRUE,FALSE,IF(AND(ISBLANK(Q84)=FALSE,isadate(Q84)=TRUE)=TRUE,FALSE,IF(AND(ISBLANK(Q84)=FALSE,isadate(Q84)=FALSE)=TRUE,TRUE)))) -> FALSE
A85: B | B85: B | C85: =Home!B83 -> 2017-10-14 | D85: 2017-10-14 | E85: B | R85: =IF(IF(ISNUMBER(MATCH(C85,Feriados!$A$2:$A$20,0)),1,0)=1,"Escala B!","") ->  | T85: FALSE | U85: TRUE | V85: 79 | W85: 1 | X85: FALSE | Y85: FALSE | Z85: FALSE | AA85: =IF(ISERROR(IF(ISBLANK(Q85)=TRUE,FALSE,IF(AND(ISBLANK(Q85)=FALSE,isadate(Q85)=TRUE)=TRUE,FALSE,IF(AND(ISBLANK(Q85)=FALSE,isadate(Q85)=FALSE)=TRUE,TRUE))))=TRUE,TRUE,IF(ISBLANK(Q85)=TRUE,FALSE,IF(AND(ISBLANK(Q85)=FALSE,isadate(Q85)=TRUE)=TRUE,FALSE,IF(AND(ISBLANK(Q85)=FALSE,isadate(Q85)=FALSE)=TRUE,TRUE)))) -> FALSE
A86: B | B86: B | C86: =Home!B84 -> 2017-10-15 | D86: 2017-10-15 | E86: B | R86: =IF(IF(ISNUMBER(MATCH(C86,Feriados!$A$2:$A$20,0)),1,0)=1,"Escala B!","") ->  | T86: FALSE | U86: TRUE | V86: 80 | W86: 1 | X86: FALSE | Y86: FALSE | Z86: FALSE | AA86: =IF(ISERROR(IF(ISBLANK(Q86)=TRUE,FALSE,IF(AND(ISBLANK(Q86)=FALSE,isadate(Q86)=TRUE)=TRUE,FALSE,IF(AND(ISBLANK(Q86)=FALSE,isadate(Q86)=FALSE)=TRUE,TRUE))))=TRUE,TRUE,IF(ISBLANK(Q86)=TRUE,FALSE,IF(AND(ISBLANK(Q86)=FALSE,isadate(Q86)=TRUE)=TRUE,FALSE,IF(AND(ISBLANK(Q86)=FALSE,isadate(Q86)=FALSE)=TRUE,TRUE)))) -> FALSE
A87: A | B87: A | C87: =Home!B85 -> 2017-10-16 | D87: 2017-10-16 | E87: A | R87: =IF(IF(ISNUMBER(MATCH(C87,Feriados!$A$2:$A$20,0)),1,0)=1,"Escala B!","") ->  | T87: FALSE | U87: TRUE | V87: 81 | W87: 1 | X87: FALSE | Y87: FALSE | Z87: FALSE | AA87: =IF(ISERROR(IF(ISBLANK(Q87)=TRUE,FALSE,IF(AND(ISBLANK(Q87)=FALSE,isadate(Q87)=TRUE)=TRUE,FALSE,IF(AND(ISBLANK(Q87)=FALSE,isadate(Q87)=FALSE)=TRUE,TRUE))))=TRUE,TRUE,IF(ISBLANK(Q87)=TRUE,FALSE,IF(AND(ISBLANK(Q87)=FALSE,isadate(Q87)=TRUE)=TRUE,FALSE,IF(AND(ISBLANK(Q87)=FALSE,isadate(Q87)=FALSE)=TRUE,TRUE)))) -> FALSE
A88: A | B88: A | C88: =Home!B86 -> 2017-10-17 | D88: 2017-10-17 | E88: A | R88: =IF(IF(ISNUMBER(MATCH(C88,Feriados!$A$2:$A$20,0)),1,0)=1,"Escala B!","") ->  | T88: FALSE | U88: TRUE | V88: 82 | W88: 1 | X88: FALSE | Y88: FALSE | Z88: FALSE | AA88: =IF(ISERROR(IF(ISBLANK(Q88)=TRUE,FALSE,IF(AND(ISBLANK(Q88)=FALSE,isadate(Q88)=TRUE)=TRUE,FALSE,IF(AND(ISBLANK(Q88)=FALSE,isadate(Q88)=FALSE)=TRUE,TRUE))))=TRUE,TRUE,IF(ISBLANK(Q88)=TRUE,FALSE,IF(AND(ISBLANK(Q88)=FALSE,isadate(Q88)=TRUE)=TRUE,FALSE,IF(AND(ISBLANK(Q88)=FALSE,isadate(Q88)=FALSE)=TRUE,TRUE)))) -> FALSE
A89: A | B89: A | C89: =Home!B87 -> 2017-10-18 | D89: 2017-10-18 | E89: A | R89: =IF(IF(ISNUMBER(MATCH(C89,Feriados!$A$2:$A$20,0)),1,0)=1,"Escala B!","") ->  | T89: FALSE | U89: TRUE | V89: 83 | W89: 1 | X89: FALSE | Y89: FALSE | Z89: FALSE | AA89: =IF(ISERROR(IF(ISBLANK(Q89)=TRUE,FALSE,IF(AND(ISBLANK(Q89)=FALSE,isadate(Q89)=TRUE)=TRUE,FALSE,IF(AND(ISBLANK(Q89)=FALSE,isadate(Q89)=FALSE)=TRUE,TRUE))))=TRUE,TRUE,IF(ISBLANK(Q89)=TRUE,FALSE,IF(AND(ISBLANK(Q89)=FALSE,isadate(Q89)=TRUE)=TRUE,FALSE,IF(AND(ISBLANK(Q89)=FALSE,isadate(Q89)=FALSE)=TRUE,TRUE)))) -> FALSE
A90: A | B90: A | C90: =Home!B88 -> 2017-10-19 | D90: 2017-10-19 | E90: A | R90: =IF(IF(ISNUMBER(MATCH(C90,Feriados!$A$2:$A$20,0)),1,0)=1,"Escala B!","") ->  | T90: FALSE | U90: TRUE | V90: 84 | W90: 1 | X90: FALSE | Y90: FALSE | Z90: FALSE | AA90: =IF(ISERROR(IF(ISBLANK(Q90)=TRUE,FALSE,IF(AND(ISBLANK(Q90)=FALSE,isadate(Q90)=TRUE)=TRUE,FALSE,IF(AND(ISBLANK(Q90)=FALSE,isadate(Q90)=FALSE)=TRUE,TRUE))))=TRUE,TRUE,IF(ISBLANK(Q90)=TRUE,FALSE,IF(AND(ISBLANK(Q90)=FALSE,isadate(Q90)=TRUE)=TRUE,FALSE,IF(AND(ISBLANK(Q90)=FALSE,isadate(Q90)=FALSE)=TRUE,TRUE)))) -> FALSE
A91: A | B91: A | C91: =Home!B89 -> 2017-10-20 | D91: 2017-10-20 | E91: A | R91: =IF(IF(ISNUMBER(MATCH(C91,Feriados!$A$2:$A$20,0)),1,0)=1,"Escala B!","") ->  | T91: FALSE | U91: TRUE | V91: 85 | W91: 1 | X91: FALSE | Y91: FALSE | Z91: FALSE | AA91: =IF(ISERROR(IF(ISBLANK(Q91)=TRUE,FALSE,IF(AND(ISBLANK(Q91)=FALSE,isadate(Q91)=TRUE)=TRUE,FALSE,IF(AND(ISBLANK(Q91)=FALSE,isadate(Q91)=FALSE)=TRUE,TRUE))))=TRUE,TRUE,IF(ISBLANK(Q91)=TRUE,FALSE,IF(AND(ISBLANK(Q91)=FALSE,isadate(Q91)=TRUE)=TRUE,FALSE,IF(AND(ISBLANK(Q91)=FALSE,isadate(Q91)=FALSE)=TRUE,TRUE)))) -> FALSE
A92: B | B92: B | C92: =Home!B90 -> 2017-10-21 | D92: 2017-10-21 | E92: B | R92: =IF(IF(ISNUMBER(MATCH(C92,Feriados!$A$2:$A$20,0)),1,0)=1,"Escala B!","") ->  | T92: FALSE | U92: TRUE | V92: 86 | W92: 1 | X92: FALSE | Y92: FALSE | Z92: FALSE | AA92: =IF(ISERROR(IF(ISBLANK(Q92)=TRUE,FALSE,IF(AND(ISBLANK(Q92)=FALSE,isadate(Q92)=TRUE)=TRUE,FALSE,IF(AND(ISBLANK(Q92)=FALSE,isadate(Q92)=FALSE)=TRUE,TRUE))))=TRUE,TRUE,IF(ISBLANK(Q92)=TRUE,FALSE,IF(AND(ISBLANK(Q92)=FALSE,isadate(Q92)=TRUE)=TRUE,FALSE,IF(AND(ISBLANK(Q92)=FALSE,isadate(Q92)=FALSE)=TRUE,TRUE)))) -> FALSE
A93: B | B93: B | C93: =Home!B91 -> 2017-10-22 | D93: 2017-10-22 | E93: B | R93: =IF(IF(ISNUMBER(MATCH(C93,Feriados!$A$2:$A$20,0)),1,0)=1,"Escala B!","") ->  | T93: FALSE | U93: TRUE | V93: 87 | W93: 1 | X93: FALSE | Y93: FALSE | Z93: FALSE | AA93: =IF(ISERROR(IF(ISBLANK(Q93)=TRUE,FALSE,IF(AND(ISBLANK(Q93)=FALSE,isadate(Q93)=TRUE)=TRUE,FALSE,IF(AND(ISBLANK(Q93)=FALSE,isadate(Q93)=FALSE)=TRUE,TRUE))))=TRUE,TRUE,IF(ISBLANK(Q93)=TRUE,FALSE,IF(AND(ISBLANK(Q93)=FALSE,isadate(Q93)=TRUE)=TRUE,FALSE,IF(AND(ISBLANK(Q93)=FALSE,isadate(Q93)=FALSE)=TRUE,TRUE)))) -> FALSE
A94: A | B94: A | C94: =Home!B92 -> 2017-10-23 | D94: 2017-10-23 | E94: A | R94: =IF(IF(ISNUMBER(MATCH(C94,Feriados!$A$2:$A$20,0)),1,0)=1,"Escala B!","") ->  | T94: FALSE | U94: TRUE | V94: 88 | W94: 1 | X94: FALSE | Y94: FALSE | Z94: FALSE | AA94: =IF(ISERROR(IF(ISBLANK(Q94)=TRUE,FALSE,IF(AND(ISBLANK(Q94)=FALSE,isadate(Q94)=TRUE)=TRUE,FALSE,IF(AND(ISBLANK(Q94)=FALSE,isadate(Q94)=FALSE)=TRUE,TRUE))))=TRUE,TRUE,IF(ISBLANK(Q94)=TRUE,FALSE,IF(AND(ISBLANK(Q94)=FALSE,isadate(Q94)=TRUE)=TRUE,FALSE,IF(AND(ISBLANK(Q94)=FALSE,isadate(Q94)=FALSE)=TRUE,TRUE)))) -> FALSE
A95: A | B95: A | C95: =Home!B93 -> 2017-10-24 | D95: 2017-10-24 | E95: A | R95: =IF(IF(ISNUMBER(MATCH(C95,Feriados!$A$2:$A$20,0)),1,0)=1,"Escala B!","") ->  | T95: FALSE | U95: TRUE | V95: 89 | W95: 1 | X95: FALSE | Y95: FALSE | Z95: FALSE | AA95: =IF(ISERROR(IF(ISBLANK(Q95)=TRUE,FALSE,IF(AND(ISBLANK(Q95)=FALSE,isadate(Q95)=TRUE)=TRUE,FALSE,IF(AND(ISBLANK(Q95)=FALSE,isadate(Q95)=FALSE)=TRUE,TRUE))))=TRUE,TRUE,IF(ISBLANK(Q95)=TRUE,FALSE,IF(AND(ISBLANK(Q95)=FALSE,isadate(Q95)=TRUE)=TRUE,FALSE,IF(AND(ISBLANK(Q95)=FALSE,isadate(Q95)=FALSE)=TRUE,TRUE)))) -> FALSE
A96: A | B96: A | C96: =Home!B94 -> 2017-10-25 | D96: 2017-10-25 | E96: A | R96: =IF(IF(ISNUMBER(MATCH(C96,Feriados!$A$2:$A$20,0)),1,0)=1,"Escala B!","") ->  | T96: FALSE | U96: TRUE | V96: 90 | W96: 1 | X96: FALSE | Y96: FALSE | Z96: FALSE | AA96: =IF(ISERROR(IF(ISBLANK(Q96)=TRUE,FALSE,IF(AND(ISBLANK(Q96)=FALSE,isadate(Q96)=TRUE)=TRUE,FALSE,IF(AND(ISBLANK(Q96)=FALSE,isadate(Q96)=FALSE)=TRUE,TRUE))))=TRUE,TRUE,IF(ISBLANK(Q96)=TRUE,FALSE,IF(AND(ISBLANK(Q96)=FALSE,isadate(Q96)=TRUE)=TRUE,FALSE,IF(AND(ISBLANK(Q96)=FALSE,isadate(Q96)=FALSE)=TRUE,TRUE)))) -> FALSE
A97: A | B97: A | C97: =Home!B95 -> 2017-10-26 | D97: 2017-10-26 | E97: A | R97: =IF(IF(ISNUMBER(MATCH(C97,Feriados!$A$2:$A$20,0)),1,0)=1,"Escala B!","") ->  | T97: FALSE | U97: TRUE | V97: 91 | W97: 1 | X97: FALSE | Y97: FALSE | Z97: FALSE | AA97: =IF(ISERROR(IF(ISBLANK(Q97)=TRUE,FALSE,IF(AND(ISBLANK(Q97)=FALSE,isadate(Q97)=TRUE)=TRUE,FALSE,IF(AND(ISBLANK(Q97)=FALSE,isadate(Q97)=FALSE)=TRUE,TRUE))))=TRUE,TRUE,IF(ISBLANK(Q97)=TRUE,FALSE,IF(AND(ISBLANK(Q97)=FALSE,isadate(Q97)=TRUE)=TRUE,FALSE,IF(AND(ISBLANK(Q97)=FALSE,isadate(Q97)=FALSE)=TRUE,TRUE)))) -> FALSE
A98: A | B98: A | C98: =Home!B96 -> 2017-10-27 | D98: 2017-10-27 | E98: A | R98: =IF(IF(ISNUMBER(MATCH(C98,Feriados!$A$2:$A$20,0)),1,0)=1,"Escala B!","") ->  | T98: FALSE | U98: TRUE | V98: 92 | W98: 1 | X98: FALSE | Y98: FALSE | Z98: FALSE | AA98: =IF(ISERROR(IF(ISBLANK(Q98)=TRUE,FALSE,IF(AND(ISBLANK(Q98)=FALSE,isadate(Q98)=TRUE)=TRUE,FALSE,IF(AND(ISBLANK(Q98)=FALSE,isadate(Q98)=FALSE)=TRUE,TRUE))))=TRUE,TRUE,IF(ISBLANK(Q98)=TRUE,FALSE,IF(AND(ISBLANK(Q98)=FALSE,isadate(Q98)=TRUE)=TRUE,FALSE,IF(AND(ISBLANK(Q98)=FALSE,isadate(Q98)=FALSE)=TRUE,TRUE)))) -> FALSE
A99: B | B99: B | C99: =Home!B97 -> 2017-10-28 | D99: 2017-10-28 | E99: B | R99: =IF(IF(ISNUMBER(MATCH(C99,Feriados!$A$2:$A$20,0)),1,0)=1,"Escala B!","") ->  | T99: FALSE | U99: TRUE | V99: 93 | W99: 1 | X99: FALSE | Y99: FALSE | Z99: FALSE | AA99: =IF(ISERROR(IF(ISBLANK(Q99)=TRUE,FALSE,IF(AND(ISBLANK(Q99)=FALSE,isadate(Q99)=TRUE)=TRUE,FALSE,IF(AND(ISBLANK(Q99)=FALSE,isadate(Q99)=FALSE)=TRUE,TRUE))))=TRUE,TRUE,IF(ISBLANK(Q99)=TRUE,FALSE,IF(AND(ISBLANK(Q99)=FALSE,isadate(Q99)=TRUE)=TRUE,FALSE,IF(AND(ISBLANK(Q99)=FALSE,isadate(Q99)=FALSE)=TRUE,TRUE)))) -> FALSE
A100: B | B100: B | C100: =Home!B98 -> 2017-10-29 | D100: 2017-10-29 | E100: B | R100: =IF(IF(ISNUMBER(MATCH(C100,Feriados!$A$2:$A$20,0)),1,0)=1,"Escala B!","") ->  | T100: FALSE | U100: TRUE | V100: 94 | W100: 1 | X100: FALSE | Y100: FALSE | Z100: FALSE | AA100: =IF(ISERROR(IF(ISBLANK(Q100)=TRUE,FALSE,IF(AND(ISBLANK(Q100)=FALSE,isadate(Q100)=TRUE)=TRUE,FALSE,IF(AND(ISBLANK(Q100)=FALSE,isadate(Q100)=FALSE)=TRUE,TRUE))))=TRUE,TRUE,IF(ISBLANK(Q100)=TRUE,FALSE,IF(AND(ISBLANK(Q100)=FALSE,isadate(Q100)=TRUE)=TRUE,FALSE,IF(AND(ISBLANK(Q100)=FALSE,isadate(Q100)=FALSE)=TRUE,TRUE)))) -> FALSE
A101: A | B101: A | C101: =Home!B99 -> 2017-10-30 | D101: 2017-10-30 | E101: A | R101: =IF(IF(ISNUMBER(MATCH(C101,Feriados!$A$2:$A$20,0)),1,0)=1,"Escala B!","") ->  | T101: FALSE | U101: TRUE | V101: 95 | W101: 1 | X101: FALSE | Y101: FALSE | Z101: FALSE | AA101: =IF(ISERROR(IF(ISBLANK(Q101)=TRUE,FALSE,IF(AND(ISBLANK(Q101)=FALSE,isadate(Q101)=TRUE)=TRUE,FALSE,IF(AND(ISBLANK(Q101)=FALSE,isadate(Q101)=FALSE)=TRUE,TRUE))))=TRUE,TRUE,IF(ISBLANK(Q101)=TRUE,FALSE,IF(AND(ISBLANK(Q101)=FALSE,isadate(Q101)=TRUE)=TRUE,FALSE,IF(AND(ISBLANK(Q101)=FALSE,isadate(Q101)=FALSE)=TRUE,TRUE)))) -> FALSE
A102: A | B102: A | C102: =Home!B100 -> 2017-10-31 | D102: 2017-10-31 | E102: A | R102: =IF(IF(ISNUMBER(MATCH(C102,Feriados!$A$2:$A$20,0)),1,0)=1,"Escala B!","") ->  | T102: FALSE | U102: TRUE | V102: 96 | W102: 1 | X102: FALSE | Y102: FALSE | Z102: FALSE | AA102: =IF(ISERROR(IF(ISBLANK(Q102)=TRUE,FALSE,IF(AND(ISBLANK(Q102)=FALSE,isadate(Q102)=TRUE)=TRUE,FALSE,IF(AND(ISBLANK(Q102)=FALSE,isadate(Q102)=FALSE)=TRUE,TRUE))))=TRUE,TRUE,IF(ISBLANK(Q102)=TRUE,FALSE,IF(AND(ISBLANK(Q102)=FALSE,isadate(Q102)=TRUE)=TRUE,FALSE,IF(AND(ISBLANK(Q102)=FALSE,isadate(Q102)=FALSE)=TRUE,TRUE)))) -> FALSE
A103: A | B103: A | C103: =Home!B101 -> 2017-11-01 | D103: 2017-11-01 | E103: A | R103: =IF(IF(ISNUMBER(MATCH(C103,Feriados!$A$2:$A$20,0)),1,0)=1,"Escala B!","") -> Escala B! | T103: FALSE | U103: TRUE | V103: 97 | W103: 1 | X103: FALSE | Y103: FALSE | Z103: FALSE | AA103: =IF(ISERROR(IF(ISBLANK(Q103)=TRUE,FALSE,IF(AND(ISBLANK(Q103)=FALSE,isadate(Q103)=TRUE)=TRUE,FALSE,IF(AND(ISBLANK(Q103)=FALSE,isadate(Q103)=FALSE)=TRUE,TRUE))))=TRUE,TRUE,IF(ISBLANK(Q103)=TRUE,FALSE,IF(AND(ISBLANK(Q103)=FALSE,isadate(Q103)=TRUE)=TRUE,FALSE,IF(AND(ISBLANK(Q103)=FALSE,isadate(Q103)=FALSE)=TRUE,TRUE)))) -> FALSE
A104: A | B104: A | C104: =Home!B102 -> 2017-11-02 | D104: 2017-11-02 | E104: A | R104: =IF(IF(ISNUMBER(MATCH(C104,Feriados!$A$2:$A$20,0)),1,0)=1,"Escala B!","") ->  | T104: FALSE | U104: TRUE | V104: 98 | W104: 1 | X104: FALSE | Y104: FALSE | Z104: FALSE | AA104: =IF(ISERROR(IF(ISBLANK(Q104)=TRUE,FALSE,IF(AND(ISBLANK(Q104)=FALSE,isadate(Q104)=TRUE)=TRUE,FALSE,IF(AND(ISBLANK(Q104)=FALSE,isadate(Q104)=FALSE)=TRUE,TRUE))))=TRUE,TRUE,IF(ISBLANK(Q104)=TRUE,FALSE,IF(AND(ISBLANK(Q104)=FALSE,isadate(Q104)=TRUE)=TRUE,FALSE,IF(AND(ISBLANK(Q104)=FALSE,isadate(Q104)=FALSE)=TRUE,TRUE)))) -> FALSE
A105: A | B105: A | C105: =Home!B103 -> 2017-11-03 | D105: 2017-11-03 | E105: A | R105: =IF(IF(ISNUMBER(MATCH(C105,Feriados!$A$2:$A$20,0)),1,0)=1,"Escala B!","") ->  | T105: FALSE | U105: TRUE | V105: 99 | W105: 1 | X105: FALSE | Y105: FALSE | Z105: FALSE | AA105: =IF(ISERROR(IF(ISBLANK(Q105)=TRUE,FALSE,IF(AND(ISBLANK(Q105)=FALSE,isadate(Q105)=TRUE)=TRUE,FALSE,IF(AND(ISBLANK(Q105)=FALSE,isadate(Q105)=FALSE)=TRUE,TRUE))))=TRUE,TRUE,IF(ISBLANK(Q105)=TRUE,FALSE,IF(AND(ISBLANK(Q105)=FALSE,isadate(Q105)=TRUE)=TRUE,FALSE,IF(AND(ISBLANK(Q105)=FALSE,isadate(Q105)=FALSE)=TRUE,TRUE)))) -> FALSE
A106: B | B106: B | C106: =Home!B104 -> 2017-11-04 | D106: 2017-11-04 | E106: B | R106: =IF(IF(ISNUMBER(MATCH(C106,Feriados!$A$2:$A$20,0)),1,0)=1,"Escala B!","") ->  | T106: FALSE | U106: TRUE | V106: 100 | W106: 1 | X106: FALSE | Y106: FALSE | Z106: FALSE | AA106: =IF(ISERROR(IF(ISBLANK(Q106)=TRUE,FALSE,IF(AND(ISBLANK(Q106)=FALSE,isadate(Q106)=TRUE)=TRUE,FALSE,IF(AND(ISBLANK(Q106)=FALSE,isadate(Q106)=FALSE)=TRUE,TRUE))))=TRUE,TRUE,IF(ISBLANK(Q106)=TRUE,FALSE,IF(AND(ISBLANK(Q106)=FALSE,isadate(Q106)=TRUE)=TRUE,FALSE,IF(AND(ISBLANK(Q106)=FALSE,isadate(Q106)=FALSE)=TRUE,TRUE)))) -> FALSE
A107: B | B107: B | C107: =Home!B105 -> 2017-11-05 | D107: 2017-11-05 | E107: B | R107: =IF(IF(ISNUMBER(MATCH(C107,Feriados!$A$2:$A$20,0)),1,0)=1,"Escala B!","") ->  | T107: FALSE | U107: TRUE | V107: 101 | W107: 1 | X107: FALSE | Y107: FALSE | Z107: FALSE | AA107: =IF(ISERROR(IF(ISBLANK(Q107)=TRUE,FALSE,IF(AND(ISBLANK(Q107)=FALSE,isadate(Q107)=TRUE)=TRUE,FALSE,IF(AND(ISBLANK(Q107)=FALSE,isadate(Q107)=FALSE)=TRUE,TRUE))))=TRUE,TRUE,IF(ISBLANK(Q107)=TRUE,FALSE,IF(AND(ISBLANK(Q107)=FALSE,isadate(Q107)=TRUE)=TRUE,FALSE,IF(AND(ISBLANK(Q107)=FALSE,isadate(Q107)=FALSE)=TRUE,TRUE)))) -> FALSE
A108: A | B108: A | C108: =Home!B106 -> 2017-11-06 | D108: 2017-11-06 | E108: A | R108: =IF(IF(ISNUMBER(MATCH(C108,Feriados!$A$2:$A$20,0)),1,0)=1,"Escala B!","") ->  | T108: FALSE | U108: TRUE | V108: 102 | W108: 1 | X108: FALSE | Y108: FALSE | Z108: FALSE | AA108: =IF(ISERROR(IF(ISBLANK(Q108)=TRUE,FALSE,IF(AND(ISBLANK(Q108)=FALSE,isadate(Q108)=TRUE)=TRUE,FALSE,IF(AND(ISBLANK(Q108)=FALSE,isadate(Q108)=FALSE)=TRUE,TRUE))))=TRUE,TRUE,IF(ISBLANK(Q108)=TRUE,FALSE,IF(AND(ISBLANK(Q108)=FALSE,isadate(Q108)=TRUE)=TRUE,FALSE,IF(AND(ISBLANK(Q108)=FALSE,isadate(Q108)=FALSE)=TRUE,TRUE)))) -> FALSE
A109: A | B109: A | C109: =Home!B107 -> 2017-11-07 | D109: 2017-11-07 | E109: A | R109: =IF(IF(ISNUMBER(MATCH(C109,Feriados!$A$2:$A$20,0)),1,0)=1,"Escala B!","") ->  | T109: FALSE | U109: TRUE | V109: 103 | W109: 1 | X109: FALSE | Y109: FALSE | Z109: FALSE | AA109: =IF(ISERROR(IF(ISBLANK(Q109)=TRUE,FALSE,IF(AND(ISBLANK(Q109)=FALSE,isadate(Q109)=TRUE)=TRUE,FALSE,IF(AND(ISBLANK(Q109)=FALSE,isadate(Q109)=FALSE)=TRUE,TRUE))))=TRUE,TRUE,IF(ISBLANK(Q109)=TRUE,FALSE,IF(AND(ISBLANK(Q109)=FALSE,isadate(Q109)=TRUE)=TRUE,FALSE,IF(AND(ISBLANK(Q109)=FALSE,isadate(Q109)=FALSE)=TRUE,TRUE)))) -> FALSE
A110: A | B110: A | C110: =Home!B108 -> 2017-11-08 | D110: 2017-11-08 | E110: A | R110: =IF(IF(ISNUMBER(MATCH(C110,Feriados!$A$2:$A$20,0)),1,0)=1,"Escala B!","") ->  | T110: FALSE | U110: TRUE | V110: 104 | W110: 1 | X110: FALSE | Y110: FALSE | Z110: FALSE | AA110: =IF(ISERROR(IF(ISBLANK(Q110)=TRUE,FALSE,IF(AND(ISBLANK(Q110)=FALSE,isadate(Q110)=TRUE)=TRUE,FALSE,IF(AND(ISBLANK(Q110)=FALSE,isadate(Q110)=FALSE)=TRUE,TRUE))))=TRUE,TRUE,IF(ISBLANK(Q110)=TRUE,FALSE,IF(AND(ISBLANK(Q110)=FALSE,isadate(Q110)=TRUE)=TRUE,FALSE,IF(AND(ISBLANK(Q110)=FALSE,isadate(Q110)=FALSE)=TRUE,TRUE)))) -> FALSE
A111: A | B111: A | C111: =Home!B109 -> 2017-11-09 | D111: 2017-11-09 | E111: A | R111: =IF(IF(ISNUMBER(MATCH(C111,Feriados!$A$2:$A$20,0)),1,0)=1,"Escala B!","") ->  | T111: FALSE | U111: TRUE | V111: 105 | W111: 1 | X111: FALSE | Y111: FALSE | Z111: FALSE | AA111: =IF(ISERROR(IF(ISBLANK(Q111)=TRUE,FALSE,IF(AND(ISBLANK(Q111)=FALSE,isadate(Q111)=TRUE)=TRUE,FALSE,IF(AND(ISBLANK(Q111)=FALSE,isadate(Q111)=FALSE)=TRUE,TRUE))))=TRUE,TRUE,IF(ISBLANK(Q111)=TRUE,FALSE,IF(AND(ISBLANK(Q111)=FALSE,isadate(Q111)=TRUE)=TRUE,FALSE,IF(AND(ISBLANK(Q111)=FALSE,isadate(Q111)=FALSE)=TRUE,TRUE)))) -> FALSE
A112: A | B112: A | C112: =Home!B110 -> 2017-11-10 | D112: 2017-11-10 | E112: A | R112: =IF(IF(ISNUMBER(MATCH(C112,Feriados!$A$2:$A$20,0)),1,0)=1,"Escala B!","") ->  | T112: FALSE | U112: TRUE | V112: 106 | W112: 1 | X112: FALSE | Y112: FALSE | Z112: FALSE | AA112: =IF(ISERROR(IF(ISBLANK(Q112)=TRUE,FALSE,IF(AND(ISBLANK(Q112)=FALSE,isadate(Q112)=TRUE)=TRUE,FALSE,IF(AND(ISBLANK(Q112)=FALSE,isadate(Q112)=FALSE)=TRUE,TRUE))))=TRUE,TRUE,IF(ISBLANK(Q112)=TRUE,FALSE,IF(AND(ISBLANK(Q112)=FALSE,isadate(Q112)=TRUE)=TRUE,FALSE,IF(AND(ISBLANK(Q112)=FALSE,isadate(Q112)=FALSE)=TRUE,TRUE)))) -> FALSE
A113: B | B113: B | C113: =Home!B111 -> 2017-11-11 | D113: 2017-11-11 | E113: B | R113: =IF(IF(ISNUMBER(MATCH(C113,Feriados!$A$2:$A$20,0)),1,0)=1,"Escala B!","") ->  | T113: FALSE | U113: TRUE | V113: 107 | W113: 1 | X113: FALSE | Y113: FALSE | Z113: FALSE | AA113: =IF(ISERROR(IF(ISBLANK(Q113)=TRUE,FALSE,IF(AND(ISBLANK(Q113)=FALSE,isadate(Q113)=TRUE)=TRUE,FALSE,IF(AND(ISBLANK(Q113)=FALSE,isadate(Q113)=FALSE)=TRUE,TRUE))))=TRUE,TRUE,IF(ISBLANK(Q113)=TRUE,FALSE,IF(AND(ISBLANK(Q113)=FALSE,isadate(Q113)=TRUE)=TRUE,FALSE,IF(AND(ISBLANK(Q113)=FALSE,isadate(Q113)=FALSE)=TRUE,TRUE)))) -> FALSE
A114: B | B114: B | C114: =Home!B112 -> 2017-11-12 | D114: 2017-11-12 | E114: B | R114: =IF(IF(ISNUMBER(MATCH(C114,Feriados!$A$2:$A$20,0)),1,0)=1,"Escala B!","") ->  | T114: FALSE | U114: TRUE | V114: 108 | W114: 1 | X114: FALSE | Y114: FALSE | Z114: FALSE | AA114: =IF(ISERROR(IF(ISBLANK(Q114)=TRUE,FALSE,IF(AND(ISBLANK(Q114)=FALSE,isadate(Q114)=TRUE)=TRUE,FALSE,IF(AND(ISBLANK(Q114)=FALSE,isadate(Q114)=FALSE)=TRUE,TRUE))))=TRUE,TRUE,IF(ISBLANK(Q114)=TRUE,FALSE,IF(AND(ISBLANK(Q114)=FALSE,isadate(Q114)=TRUE)=TRUE,FALSE,IF(AND(ISBLANK(Q114)=FALSE,isadate(Q114)=FALSE)=TRUE,TRUE)))) -> FALSE
A115: A | B115: A | C115: =Home!B113 -> 2017-11-13 | D115: 2017-11-13 | E115: A | R115: =IF(IF(ISNUMBER(MATCH(C115,Feriados!$A$2:$A$20,0)),1,0)=1,"Escala B!","") ->  | T115: FALSE | U115: TRUE | V115: 109 | W115: 1 | X115: FALSE | Y115: FALSE | Z115: FALSE | AA115: =IF(ISERROR(IF(ISBLANK(Q115)=TRUE,FALSE,IF(AND(ISBLANK(Q115)=FALSE,isadate(Q115)=TRUE)=TRUE,FALSE,IF(AND(ISBLANK(Q115)=FALSE,isadate(Q115)=FALSE)=TRUE,TRUE))))=TRUE,TRUE,IF(ISBLANK(Q115)=TRUE,FALSE,IF(AND(ISBLANK(Q115)=FALSE,isadate(Q115)=TRUE)=TRUE,FALSE,IF(AND(ISBLANK(Q115)=FALSE,isadate(Q115)=FALSE)=TRUE,TRUE)))) -> FALSE
A116: A | B116: A | C116: =Home!B114 -> 2017-11-14 | D116: 2017-11-14 | E116: A | R116: =IF(IF(ISNUMBER(MATCH(C116,Feriados!$A$2:$A$20,0)),1,0)=1,"Escala B!","") ->  | T116: FALSE | U116: TRUE | V116: 110 | W116: 1 | X116: FALSE | Y116: FALSE | Z116: FALSE | AA116: =IF(ISERROR(IF(ISBLANK(Q116)=TRUE,FALSE,IF(AND(ISBLANK(Q116)=FALSE,isadate(Q116)=TRUE)=TRUE,FALSE,IF(AND(ISBLANK(Q116)=FALSE,isadate(Q116)=FALSE)=TRUE,TRUE))))=TRUE,TRUE,IF(ISBLANK(Q116)=TRUE,FALSE,IF(AND(ISBLANK(Q116)=FALSE,isadate(Q116)=TRUE)=TRUE,FALSE,IF(AND(ISBLANK(Q116)=FALSE,isadate(Q116)=FALSE)=TRUE,TRUE)))) -> FALSE
A117: A | B117: A | C117: =Home!B115 -> 2017-11-15 | D117: 2017-11-15 | E117: A | R117: =IF(IF(ISNUMBER(MATCH(C117,Feriados!$A$2:$A$20,0)),1,0)=1,"Escala B!","") ->  | T117: FALSE | U117: TRUE | V117: 111 | W117: 1 | X117: FALSE | Y117: FALSE | Z117: FALSE | AA117: =IF(ISERROR(IF(ISBLANK(Q117)=TRUE,FALSE,IF(AND(ISBLANK(Q117)=FALSE,isadate(Q117)=TRUE)=TRUE,FALSE,IF(AND(ISBLANK(Q117)=FALSE,isadate(Q117)=FALSE)=TRUE,TRUE))))=TRUE,TRUE,IF(ISBLANK(Q117)=TRUE,FALSE,IF(AND(ISBLANK(Q117)=FALSE,isadate(Q117)=TRUE)=TRUE,FALSE,IF(AND(ISBLANK(Q117)=FALSE,isadate(Q117)=FALSE)=TRUE,TRUE)))) -> FALSE
A118: A | B118: A | C118: =Home!B116 -> 2017-11-16 | D118: 2017-11-16 | E118: A | R118: =IF(IF(ISNUMBER(MATCH(C118,Feriados!$A$2:$A$20,0)),1,0)=1,"Escala B!","") ->  | T118: FALSE | U118: TRUE | V118: 112 | W118: 1 | X118: FALSE | Y118: FALSE | Z118: FALSE | AA118: =IF(ISERROR(IF(ISBLANK(Q118)=TRUE,FALSE,IF(AND(ISBLANK(Q118)=FALSE,isadate(Q118)=TRUE)=TRUE,FALSE,IF(AND(ISBLANK(Q118)=FALSE,isadate(Q118)=FALSE)=TRUE,TRUE))))=TRUE,TRUE,IF(ISBLANK(Q118)=TRUE,FALSE,IF(AND(ISBLANK(Q118)=FALSE,isadate(Q118)=TRUE)=TRUE,FALSE,IF(AND(ISBLANK(Q118)=FALSE,isadate(Q118)=FALSE)=TRUE,TRUE)))) -> FALSE
A119: A | B119: A | C119: =Home!B117 -> 2017-11-17 | D119: 2017-11-17 | E119: A | R119: =IF(IF(ISNUMBER(MATCH(C119,Feriados!$A$2:$A$20,0)),1,0)=1,"Escala B!","") ->  | T119: FALSE | U119: TRUE | V119: 113 | W119: 1 | X119: FALSE | Y119: FALSE | Z119: FALSE | AA119: =IF(ISERROR(IF(ISBLANK(Q119)=TRUE,FALSE,IF(AND(ISBLANK(Q119)=FALSE,isadate(Q119)=TRUE)=TRUE,FALSE,IF(AND(ISBLANK(Q119)=FALSE,isadate(Q119)=FALSE)=TRUE,TRUE))))=TRUE,TRUE,IF(ISBLANK(Q119)=TRUE,FALSE,IF(AND(ISBLANK(Q119)=FALSE,isadate(Q119)=TRUE)=TRUE,FALSE,IF(AND(ISBLANK(Q119)=FALSE,isadate(Q119)=FALSE)=TRUE,TRUE)))) -> FALSE
A120: B | B120: B | C120: =Home!B118 -> 2017-11-18 | D120: 2017-11-18 | E120: B | R120: =IF(IF(ISNUMBER(MATCH(C120,Feriados!$A$2:$A$20,0)),1,0)=1,"Escala B!","") ->  | T120: FALSE | U120: TRUE | V120: 114 | W120: 1 | X120: FALSE | Y120: FALSE | Z120: FALSE | AA120: =IF(ISERROR(IF(ISBLANK(Q120)=TRUE,FALSE,IF(AND(ISBLANK(Q120)=FALSE,isadate(Q120)=TRUE)=TRUE,FALSE,IF(AND(ISBLANK(Q120)=FALSE,isadate(Q120)=FALSE)=TRUE,TRUE))))=TRUE,TRUE,IF(ISBLANK(Q120)=TRUE,FALSE,IF(AND(ISBLANK(Q120)=FALSE,isadate(Q120)=TRUE)=TRUE,FALSE,IF(AND(ISBLANK(Q120)=FALSE,isadate(Q120)=FALSE)=TRUE,TRUE)))) -> FALSE
A121: B | B121: B | C121: =Home!B119 -> 2017-11-19 | D121: 2017-11-19 | E121: B | R121: =IF(IF(ISNUMBER(MATCH(C121,Feriados!$A$2:$A$20,0)),1,0)=1,"Escala B!","") ->  | T121: FALSE | U121: TRUE | V121: 115 | W121: 1 | X121: FALSE | Y121: FALSE | Z121: FALSE | AA121: =IF(ISERROR(IF(ISBLANK(Q121)=TRUE,FALSE,IF(AND(ISBLANK(Q121)=FALSE,isadate(Q121)=TRUE)=TRUE,FALSE,IF(AND(ISBLANK(Q121)=FALSE,isadate(Q121)=FALSE)=TRUE,TRUE))))=TRUE,TRUE,IF(ISBLANK(Q121)=TRUE,FALSE,IF(AND(ISBLANK(Q121)=FALSE,isadate(Q121)=TRUE)=TRUE,FALSE,IF(AND(ISBLANK(Q121)=FALSE,isadate(Q121)=FALSE)=TRUE,TRUE)))) -> FALSE
A122: A | B122: A | C122: =Home!B120 -> 2017-11-20 | D122: 2017-11-20 | E122: A | R122: =IF(IF(ISNUMBER(MATCH(C122,Feriados!$A$2:$A$20,0)),1,0)=1,"Escala B!","") ->  | T122: FALSE | U122: TRUE | V122: 116 | W122: 1 | X122: FALSE | Y122: FALSE | Z122: FALSE | AA122: =IF(ISERROR(IF(ISBLANK(Q122)=TRUE,FALSE,IF(AND(ISBLANK(Q122)=FALSE,isadate(Q122)=TRUE)=TRUE,FALSE,IF(AND(ISBLANK(Q122)=FALSE,isadate(Q122)=FALSE)=TRUE,TRUE))))=TRUE,TRUE,IF(ISBLANK(Q122)=TRUE,FALSE,IF(AND(ISBLANK(Q122)=FALSE,isadate(Q122)=TRUE)=TRUE,FALSE,IF(AND(ISBLANK(Q122)=FALSE,isadate(Q122)=FALSE)=TRUE,TRUE)))) -> FALSE
A123: A | B123: A | C123: =Home!B121 -> 2017-11-21 | D123: 2017-11-21 | E123: A | R123: =IF(IF(ISNUMBER(MATCH(C123,Feriados!$A$2:$A$20,0)),1,0)=1,"Escala B!","") ->  | T123: FALSE | U123: TRUE | V123: 117 | W123: 1 | X123: FALSE | Y123: FALSE | Z123: FALSE | AA123: =IF(ISERROR(IF(ISBLANK(Q123)=TRUE,FALSE,IF(AND(ISBLANK(Q123)=FALSE,isadate(Q123)=TRUE)=TRUE,FALSE,IF(AND(ISBLANK(Q123)=FALSE,isadate(Q123)=FALSE)=TRUE,TRUE))))=TRUE,TRUE,IF(ISBLANK(Q123)=TRUE,FALSE,IF(AND(ISBLANK(Q123)=FALSE,isadate(Q123)=TRUE)=TRUE,FALSE,IF(AND(ISBLANK(Q123)=FALSE,isadate(Q123)=FALSE)=TRUE,TRUE)))) -> FALSE
A124: A | B124: A | C124: =Home!B122 -> 2017-11-22 | D124: 2017-11-22 | E124: A | R124: =IF(IF(ISNUMBER(MATCH(C124,Feriados!$A$2:$A$20,0)),1,0)=1,"Escala B!","") ->  | T124: FALSE | U124: TRUE | V124: 118 | W124: 1 | X124: FALSE | Y124: FALSE | Z124: FALSE | AA124: =IF(ISERROR(IF(ISBLANK(Q124)=TRUE,FALSE,IF(AND(ISBLANK(Q124)=FALSE,isadate(Q124)=TRUE)=TRUE,FALSE,IF(AND(ISBLANK(Q124)=FALSE,isadate(Q124)=FALSE)=TRUE,TRUE))))=TRUE,TRUE,IF(ISBLANK(Q124)=TRUE,FALSE,IF(AND(ISBLANK(Q124)=FALSE,isadate(Q124)=TRUE)=TRUE,FALSE,IF(AND(ISBLANK(Q124)=FALSE,isadate(Q124)=FALSE)=TRUE,TRUE)))) -> FALSE
A125: A | B125: A | C125: =Home!B123 -> 2017-11-23 | D125: 2017-11-23 | E125: A | R125: =IF(IF(ISNUMBER(MATCH(C125,Feriados!$A$2:$A$20,0)),1,0)=1,"Escala B!","") ->  | T125: =IF(P125="OK",TRUE,FALSE) -> FALSE | U125: =IF(AND(IF(AND(AND(IF(ISBLANK(O125)=TRUE,FALSE,TRUE)=TRUE,IF(TODAY()>O125,FALSE,TRUE)=TRUE)=TRUE,ISBLANK(N125)=TRUE=TRUE)=TRUE,FALSE,IF(AND(AND(IF(ISBLANK(O125)=TRUE,FALSE,TRUE)=TRUE,IF(TODAY()>O125,FALSE,TRUE)=FALSE)=TRUE,ISBLANK(N125)=TRUE=TRUE)=TRUE,TRUE,IF(AND(ISBLANK(N125)=TRUE=TRUE,IF(ISBLANK(O125)=TRUE,FALSE,TRUE)=FALSE,IF(TODAY()>O125,FALSE,TRUE)=FALSE)=TRUE,TRUE)))=TRUE,T125=FALSE)=TRUE,TRUE,FALSE) -> TRUE | V125: =IF(U125=TRUE,V124+1,V124) -> 119 | W125: =IF(X125=TRUE,W124+1,W124) -> 1 | X125: =IF(AND(T125=FALSE,U125=FALSE)=TRUE,TRUE,FALSE) -> FALSE | Y125: =IF(AND(IF(P125="OK",TRUE,FALSE)=TRUE,IF(LEN(Q125)=0,FALSE,TRUE)=TRUE)=TRUE,TRUE,FALSE) -> FALSE | Z125: =OR(IF(N125="",FALSE,TRUE)=TRUE,IF(AND(IF(O125="",FALSE,TRUE)=TRUE,IF(O125<=TODAY(),FALSE,TRUE)=TRUE)=TRUE,TRUE,FALSE)=TRUE) -> FALSE | AA125: =IF(ISERROR(IF(ISBLANK(Q125)=TRUE,FALSE,IF(AND(ISBLANK(Q125)=FALSE,isadate(Q125)=TRUE)=TRUE,FALSE,IF(AND(ISBLANK(Q125)=FALSE,isadate(Q125)=FALSE)=TRUE,TRUE))))=TRUE,TRUE,IF(ISBLANK(Q125)=TRUE,FALSE,IF(AND(ISBLANK(Q125)=FALSE,isadate(Q125)=TRUE)=TRUE,FALSE,IF(AND(ISBLANK(Q125)=FALSE,isadate(Q125)=FALSE)=TRUE,TRUE)))) -> FALSE
A126: A | B126: A | C126: =Home!B124 -> 2017-11-24 | D126: 2017-11-24 | E126: A | R126: =IF(IF(ISNUMBER(MATCH(C126,Feriados!$A$2:$A$20,0)),1,0)=1,"Escala B!","") ->  | T126: FALSE | U126: =IF(AND(IF(AND(AND(IF(ISBLANK(O126)=TRUE,FALSE,TRUE)=TRUE,IF(TODAY()>O126,FALSE,TRUE)=TRUE)=TRUE,ISBLANK(N126)=TRUE=TRUE)=TRUE,FALSE,IF(AND(AND(IF(ISBLANK(O126)=TRUE,FALSE,TRUE)=TRUE,IF(TODAY()>O126,FALSE,TRUE)=FALSE)=TRUE,ISBLANK(N126)=TRUE=TRUE)=TRUE,TRUE,IF(AND(ISBLANK(N126)=TRUE=TRUE,IF(ISBLANK(O126)=TRUE,FALSE,TRUE)=FALSE,IF(TODAY()>O126,FALSE,TRUE)=FALSE)=TRUE,TRUE)))=TRUE,T126=FALSE)=TRUE,TRUE,FALSE) -> TRUE | V126: =IF(U126=TRUE,V125+1,V125) -> 120 | W126: =IF(X126=TRUE,W125+1,W125) -> 1 | X126: =IF(AND(T126=FALSE,U126=FALSE)=TRUE,TRUE,FALSE) -> FALSE | Y126: FALSE | Z126: FALSE | AA126: =IF(ISERROR(IF(ISBLANK(Q126)=TRUE,FALSE,IF(AND(ISBLANK(Q126)=FALSE,isadate(Q126)=TRUE)=TRUE,FALSE,IF(AND(ISBLANK(Q126)=FALSE,isadate(Q126)=FALSE)=TRUE,TRUE))))=TRUE,TRUE,IF(ISBLANK(Q126)=TRUE,FALSE,IF(AND(ISBLANK(Q126)=FALSE,isadate(Q126)=TRUE)=TRUE,FALSE,IF(AND(ISBLANK(Q126)=FALSE,isadate(Q126)=FALSE)=TRUE,TRUE)))) -> FALSE
A127: B | B127: B | C127: =Home!B125 -> 2017-11-25 | D127: 2017-11-25 | E127: B | R127: =IF(IF(ISNUMBER(MATCH(C127,Feriados!$A$2:$A$20,0)),1,0)=1,"Escala B!","") ->  | T127: FALSE | U127: =IF(AND(IF(AND(AND(IF(ISBLANK(O127)=TRUE,FALSE,TRUE)=TRUE,IF(TODAY()>O127,FALSE,TRUE)=TRUE)=TRUE,ISBLANK(N127)=TRUE=TRUE)=TRUE,FALSE,IF(AND(AND(IF(ISBLANK(O127)=TRUE,FALSE,TRUE)=TRUE,IF(TODAY()>O127,FALSE,TRUE)=FALSE)=TRUE,ISBLANK(N127)=TRUE=TRUE)=TRUE,TRUE,IF(AND(ISBLANK(N127)=TRUE=TRUE,IF(ISBLANK(O127)=TRUE,FALSE,TRUE)=FALSE,IF(TODAY()>O127,FALSE,TRUE)=FALSE)=TRUE,TRUE)))=TRUE,T127=FALSE)=TRUE,TRUE,FALSE) -> TRUE | V127: =IF(U127=TRUE,V126+1,V126) -> 121 | W127: 1 | X127: FALSE | Y127: FALSE | Z127: FALSE | AA127: =IF(ISERROR(IF(ISBLANK(Q127)=TRUE,FALSE,IF(AND(ISBLANK(Q127)=FALSE,isadate(Q127)=TRUE)=TRUE,FALSE,IF(AND(ISBLANK(Q127)=FALSE,isadate(Q127)=FALSE)=TRUE,TRUE))))=TRUE,TRUE,IF(ISBLANK(Q127)=TRUE,FALSE,IF(AND(ISBLANK(Q127)=FALSE,isadate(Q127)=TRUE)=TRUE,FALSE,IF(AND(ISBLANK(Q127)=FALSE,isadate(Q127)=FALSE)=TRUE,TRUE)))) -> FALSE
A128: B | B128: B | C128: =Home!B126 -> 2017-11-26 | D128: 2017-11-26 | E128: B | R128: =IF(IF(ISNUMBER(MATCH(C128,Feriados!$A$2:$A$20,0)),1,0)=1,"Escala B!","") ->  | T128: FALSE | U128: TRUE | V128: 122 | W128: 1 | X128: FALSE | Y128: FALSE | Z128: FALSE | AA128: =IF(ISERROR(IF(ISBLANK(Q128)=TRUE,FALSE,IF(AND(ISBLANK(Q128)=FALSE,isadate(Q128)=TRUE)=TRUE,FALSE,IF(AND(ISBLANK(Q128)=FALSE,isadate(Q128)=FALSE)=TRUE,TRUE))))=TRUE,TRUE,IF(ISBLANK(Q128)=TRUE,FALSE,IF(AND(ISBLANK(Q128)=FALSE,isadate(Q128)=TRUE)=TRUE,FALSE,IF(AND(ISBLANK(Q128)=FALSE,isadate(Q128)=FALSE)=TRUE,TRUE)))) -> FALSE
A129: A | B129: A | C129: =Home!B127 -> 2017-11-27 | D129: 2017-11-27 | E129: A | R129: =IF(IF(ISNUMBER(MATCH(C129,Feriados!$A$2:$A$20,0)),1,0)=1,"Escala B!","") ->  | T129: FALSE | U129: TRUE | V129: 123 | W129: 1 | X129: FALSE | Y129: FALSE | Z129: FALSE | AA129: =IF(ISERROR(IF(ISBLANK(Q129)=TRUE,FALSE,IF(AND(ISBLANK(Q129)=FALSE,isadate(Q129)=TRUE)=TRUE,FALSE,IF(AND(ISBLANK(Q129)=FALSE,isadate(Q129)=FALSE)=TRUE,TRUE))))=TRUE,TRUE,IF(ISBLANK(Q129)=TRUE,FALSE,IF(AND(ISBLANK(Q129)=FALSE,isadate(Q129)=TRUE)=TRUE,FALSE,IF(AND(ISBLANK(Q129)=FALSE,isadate(Q129)=FALSE)=TRUE,TRUE)))) -> FALSE
A130: A | B130: A | C130: =Home!B128 -> 2017-11-28 | D130: 2017-11-28 | E130: A | R130: =IF(IF(ISNUMBER(MATCH(C130,Feriados!$A$2:$A$20,0)),1,0)=1,"Escala B!","") ->  | T130: FALSE | U130: TRUE | V130: 124 | W130: 1 | X130: FALSE | Y130: FALSE | Z130: FALSE | AA130: =IF(ISERROR(IF(ISBLANK(Q130)=TRUE,FALSE,IF(AND(ISBLANK(Q130)=FALSE,isadate(Q130)=TRUE)=TRUE,FALSE,IF(AND(ISBLANK(Q130)=FALSE,isadate(Q130)=FALSE)=TRUE,TRUE))))=TRUE,TRUE,IF(ISBLANK(Q130)=TRUE,FALSE,IF(AND(ISBLANK(Q130)=FALSE,isadate(Q130)=TRUE)=TRUE,FALSE,IF(AND(ISBLANK(Q130)=FALSE,isadate(Q130)=FALSE)=TRUE,TRUE)))) -> FALSE
A131: A | B131: A | C131: =Home!B129 -> 2017-11-29 | D131: 2017-11-29 | E131: =A131 -> A | R131: =IF(IF(ISNUMBER(MATCH(C131,Feriados!$A$2:$A$20,0)),1,0)=1,"Escala B!","") ->  | T131: FALSE | U131: TRUE | V131: 125 | W131: 1 | X131: FALSE | Y131: FALSE | Z131: FALSE | AA131: =IF(ISERROR(IF(ISBLANK(Q131)=TRUE,FALSE,IF(AND(ISBLANK(Q131)=FALSE,isadate(Q131)=TRUE)=TRUE,FALSE,IF(AND(ISBLANK(Q131)=FALSE,isadate(Q131)=FALSE)=TRUE,TRUE))))=TRUE,TRUE,IF(ISBLANK(Q131)=TRUE,FALSE,IF(AND(ISBLANK(Q131)=FALSE,isadate(Q131)=TRUE)=TRUE,FALSE,IF(AND(ISBLANK(Q131)=FALSE,isadate(Q131)=FALSE)=TRUE,TRUE)))) -> FALSE
A132: A | B132: =IF(S132="B","B",IF(S132="A","A",IF(AND(WEEKDAY(C132,2)>=1,WEEKDAY(C132,2)<=5)=TRUE,"A","B"))) -> A | C132: =Home!B130 -> 2017-11-30 | D132: 2017-11-30 | E132: A | R132: =IF(IF(ISNUMBER(MATCH(C132,Feriados!$A$2:$A$20,0)),1,0)=1,"Escala B!","") ->  | T132: FALSE | U132: TRUE | V132: 126 | W132: 1 | X132: FALSE | Y132: FALSE | Z132: FALSE | AA132: =IF(ISERROR(IF(ISBLANK(Q132)=TRUE,FALSE,IF(AND(ISBLANK(Q132)=FALSE,isadate(Q132)=TRUE)=TRUE,FALSE,IF(AND(ISBLANK(Q132)=FALSE,isadate(Q132)=FALSE)=TRUE,TRUE))))=TRUE,TRUE,IF(ISBLANK(Q132)=TRUE,FALSE,IF(AND(ISBLANK(Q132)=FALSE,isadate(Q132)=TRUE)=TRUE,FALSE,IF(AND(ISBLANK(Q132)=FALSE,isadate(Q132)=FALSE)=TRUE,TRUE)))) -> FALSE
A133: =B133 -> A | B133: A | C133: =Home!B131 -> 2017-12-01 | D133: =C133 -> 2017-12-01 | E133: A | R133: =IF(IF(ISNUMBER(MATCH(C133,Feriados!$A$2:$A$20,0)),1,0)=1,"Escala B!","") -> Escala B! | T133: FALSE | U133: TRUE | V133: 127 | W133: 1 | X133: FALSE | Y133: FALSE | Z133: FALSE | AA133: =IF(ISERROR(IF(ISBLANK(Q133)=TRUE,FALSE,IF(AND(ISBLANK(Q133)=FALSE,isadate(Q133)=TRUE)=TRUE,FALSE,IF(AND(ISBLANK(Q133)=FALSE,isadate(Q133)=FALSE)=TRUE,TRUE))))=TRUE,TRUE,IF(ISBLANK(Q133)=TRUE,FALSE,IF(AND(ISBLANK(Q133)=FALSE,isadate(Q133)=TRUE)=TRUE,FALSE,IF(AND(ISBLANK(Q133)=FALSE,isadate(Q133)=FALSE)=TRUE,TRUE)))) -> FALSE
A134: B | B134: B | C134: =Home!B132 -> 2017-12-02 | D134: 2017-12-02 | E134: B | R134: =IF(IF(ISNUMBER(MATCH(C134,Feriados!$A$2:$A$20,0)),1,0)=1,"Escala B!","") ->  | T134: FALSE | U134: TRUE | V134: 128 | W134: 1 | X134: FALSE | Y134: FALSE | Z134: FALSE | AA134: =IF(ISERROR(IF(ISBLANK(Q134)=TRUE,FALSE,IF(AND(ISBLANK(Q134)=FALSE,isadate(Q134)=TRUE)=TRUE,FALSE,IF(AND(ISBLANK(Q134)=FALSE,isadate(Q134)=FALSE)=TRUE,TRUE))))=TRUE,TRUE,IF(ISBLANK(Q134)=TRUE,FALSE,IF(AND(ISBLANK(Q134)=FALSE,isadate(Q134)=TRUE)=TRUE,FALSE,IF(AND(ISBLANK(Q134)=FALSE,isadate(Q134)=FALSE)=TRUE,TRUE)))) -> FALSE
A135: B | B135: B | C135: =Home!B133 -> 2017-12-03 | D135: 2017-12-03 | E135: B | R135: =IF(IF(ISNUMBER(MATCH(C135,Feriados!$A$2:$A$20,0)),1,0)=1,"Escala B!","") ->  | T135: FALSE | U135: TRUE | V135: 129 | W135: 1 | X135: FALSE | Y135: FALSE | Z135: FALSE | AA135: =IF(ISERROR(IF(ISBLANK(Q135)=TRUE,FALSE,IF(AND(ISBLANK(Q135)=FALSE,isadate(Q135)=TRUE)=TRUE,FALSE,IF(AND(ISBLANK(Q135)=FALSE,isadate(Q135)=FALSE)=TRUE,TRUE))))=TRUE,TRUE,IF(ISBLANK(Q135)=TRUE,FALSE,IF(AND(ISBLANK(Q135)=FALSE,isadate(Q135)=TRUE)=TRUE,FALSE,IF(AND(ISBLANK(Q135)=FALSE,isadate(Q135)=FALSE)=TRUE,TRUE)))) -> FALSE
A136: A | B136: A | C136: =Home!B134 -> 2017-12-04 | D136: 2017-12-04 | E136: A | R136: =IF(IF(ISNUMBER(MATCH(C136,Feriados!$A$2:$A$20,0)),1,0)=1,"Escala B!","") ->  | T136: FALSE | U136: TRUE | V136: 130 | W136: 1 | X136: FALSE | Y136: FALSE | Z136: FALSE | AA136: =IF(ISERROR(IF(ISBLANK(Q136)=TRUE,FALSE,IF(AND(ISBLANK(Q136)=FALSE,isadate(Q136)=TRUE)=TRUE,FALSE,IF(AND(ISBLANK(Q136)=FALSE,isadate(Q136)=FALSE)=TRUE,TRUE))))=TRUE,TRUE,IF(ISBLANK(Q136)=TRUE,FALSE,IF(AND(ISBLANK(Q136)=FALSE,isadate(Q136)=TRUE)=TRUE,FALSE,IF(AND(ISBLANK(Q136)=FALSE,isadate(Q136)=FALSE)=TRUE,TRUE)))) -> FALSE
A137: A | B137: A | C137: =Home!B135 -> 2017-12-05 | D137: 2017-12-05 | E137: A | R137: =IF(IF(ISNUMBER(MATCH(C137,Feriados!$A$2:$A$20,0)),1,0)=1,"Escala B!","") ->  | T137: FALSE | U137: TRUE | V137: 131 | W137: 1 | X137: FALSE | Y137: FALSE | Z137: FALSE | AA137: =IF(ISERROR(IF(ISBLANK(Q137)=TRUE,FALSE,IF(AND(ISBLANK(Q137)=FALSE,isadate(Q137)=TRUE)=TRUE,FALSE,IF(AND(ISBLANK(Q137)=FALSE,isadate(Q137)=FALSE)=TRUE,TRUE))))=TRUE,TRUE,IF(ISBLANK(Q137)=TRUE,FALSE,IF(AND(ISBLANK(Q137)=FALSE,isadate(Q137)=TRUE)=TRUE,FALSE,IF(AND(ISBLANK(Q137)=FALSE,isadate(Q137)=FALSE)=TRUE,TRUE)))) -> FALSE
A138: A | B138: A | C138: =Home!B136 -> 2017-12-06 | D138: 2017-12-06 | E138: A | R138: =IF(IF(ISNUMBER(MATCH(C138,Feriados!$A$2:$A$20,0)),1,0)=1,"Escala B!","") ->  | T138: FALSE | U138: =IF(AND(IF(AND(AND(IF(ISBLANK(O138)=TRUE,FALSE,TRUE)=TRUE,IF(TODAY()>O138,FALSE,TRUE)=TRUE)=TRUE,ISBLANK(N138)=TRUE=TRUE)=TRUE,FALSE,IF(AND(AND(IF(ISBLANK(O138)=TRUE,FALSE,TRUE)=TRUE,IF(TODAY()>O138,FALSE,TRUE)=FALSE)=TRUE,ISBLANK(N138)=TRUE=TRUE)=TRUE,TRUE,IF(AND(ISBLANK(N138)=TRUE=TRUE,IF(ISBLANK(O138)=TRUE,FALSE,TRUE)=FALSE,IF(TODAY()>O138,FALSE,TRUE)=FALSE)=TRUE,TRUE)))=TRUE,T138=FALSE)=TRUE,TRUE,FALSE) -> TRUE | V138: 132 | W138: 1 | X138: =IF(AND(T138=FALSE,U138=FALSE)=TRUE,TRUE,FALSE) -> FALSE | Y138: FALSE | Z138: FALSE | AA138: =IF(ISERROR(IF(ISBLANK(Q138)=TRUE,FALSE,IF(AND(ISBLANK(Q138)=FALSE,isadate(Q138)=TRUE)=TRUE,FALSE,IF(AND(ISBLANK(Q138)=FALSE,isadate(Q138)=FALSE)=TRUE,TRUE))))=TRUE,TRUE,IF(ISBLANK(Q138)=TRUE,FALSE,IF(AND(ISBLANK(Q138)=FALSE,isadate(Q138)=TRUE)=TRUE,FALSE,IF(AND(ISBLANK(Q138)=FALSE,isadate(Q138)=FALSE)=TRUE,TRUE)))) -> FALSE
A139: A | B139: A | C139: =Home!B137 -> 2017-12-07 | D139: 2017-12-07 | E139: A | R139: =IF(IF(ISNUMBER(MATCH(C139,Feriados!$A$2:$A$20,0)),1,0)=1,"Escala B!","") ->  | T139: FALSE | U139: TRUE | V139: 133 | W139: 1 | X139: FALSE | Y139: FALSE | Z139: FALSE | AA139: =IF(ISERROR(IF(ISBLANK(Q139)=TRUE,FALSE,IF(AND(ISBLANK(Q139)=FALSE,isadate(Q139)=TRUE)=TRUE,FALSE,IF(AND(ISBLANK(Q139)=FALSE,isadate(Q139)=FALSE)=TRUE,TRUE))))=TRUE,TRUE,IF(ISBLANK(Q139)=TRUE,FALSE,IF(AND(ISBLANK(Q139)=FALSE,isadate(Q139)=TRUE)=TRUE,FALSE,IF(AND(ISBLANK(Q139)=FALSE,isadate(Q139)=FALSE)=TRUE,TRUE)))) -> FALSE
A140: A | B140: A | C140: =Home!B138 -> 2017-12-08 | D140: 2017-12-08 | E140: A | R140: =IF(IF(ISNUMBER(MATCH(C140,Feriados!$A$2:$A$20,0)),1,0)=1,"Escala B!","") -> Escala B! | T140: FALSE | U140: TRUE | V140: 134 | W140: 1 | X140: FALSE | Y140: FALSE | Z140: FALSE | AA140: =IF(ISERROR(IF(ISBLANK(Q140)=TRUE,FALSE,IF(AND(ISBLANK(Q140)=FALSE,isadate(Q140)=TRUE)=TRUE,FALSE,IF(AND(ISBLANK(Q140)=FALSE,isadate(Q140)=FALSE)=TRUE,TRUE))))=TRUE,TRUE,IF(ISBLANK(Q140)=TRUE,FALSE,IF(AND(ISBLANK(Q140)=FALSE,isadate(Q140)=TRUE)=TRUE,FALSE,IF(AND(ISBLANK(Q140)=FALSE,isadate(Q140)=FALSE)=TRUE,TRUE)))) -> FALSE
A141: B | B141: B | C141: =Home!B139 -> 2017-12-09 | D141: 2017-12-09 | E141: B | R141: =IF(IF(ISNUMBER(MATCH(C141,Feriados!$A$2:$A$20,0)),1,0)=1,"Escala B!","") ->  | T141: FALSE | U141: TRUE | V141: 135 | W141: =IF(X141=TRUE,W140+1,W140) -> 1 | X141: =IF(AND(T141=FALSE,U141=FALSE)=TRUE,TRUE,FALSE) -> FALSE | Y141: FALSE | Z141: FALSE | AA141: =IF(ISERROR(IF(ISBLANK(Q141)=TRUE,FALSE,IF(AND(ISBLANK(Q141)=FALSE,isadate(Q141)=TRUE)=TRUE,FALSE,IF(AND(ISBLANK(Q141)=FALSE,isadate(Q141)=FALSE)=TRUE,TRUE))))=TRUE,TRUE,IF(ISBLANK(Q141)=TRUE,FALSE,IF(AND(ISBLANK(Q141)=FALSE,isadate(Q141)=TRUE)=TRUE,FALSE,IF(AND(ISBLANK(Q141)=FALSE,isadate(Q141)=FALSE)=TRUE,TRUE)))) -> FALSE
A142: B | B142: B | C142: =Home!B140 -> 2017-12-10 | D142: 2017-12-10 | E142: B | R142: =IF(IF(ISNUMBER(MATCH(C142,Feriados!$A$2:$A$20,0)),1,0)=1,"Escala B!","") ->  | T142: FALSE | U142: TRUE | V142: 136 | W142: 1 | X142: FALSE | Y142: FALSE | Z142: FALSE | AA142: =IF(ISERROR(IF(ISBLANK(Q142)=TRUE,FALSE,IF(AND(ISBLANK(Q142)=FALSE,isadate(Q142)=TRUE)=TRUE,FALSE,IF(AND(ISBLANK(Q142)=FALSE,isadate(Q142)=FALSE)=TRUE,TRUE))))=TRUE,TRUE,IF(ISBLANK(Q142)=TRUE,FALSE,IF(AND(ISBLANK(Q142)=FALSE,isadate(Q142)=TRUE)=TRUE,FALSE,IF(AND(ISBLANK(Q142)=FALSE,isadate(Q142)=FALSE)=TRUE,TRUE)))) -> FALSE
A143: A | B143: A | C143: =Home!B141 -> 2017-12-11 | D143: 2017-12-11 | E143: A | R143: =IF(IF(ISNUMBER(MATCH(C143,Feriados!$A$2:$A$20,0)),1,0)=1,"Escala B!","") ->  | T143: FALSE | U143: TRUE | V143: 137 | W143: 1 | X143: FALSE | Y143: FALSE | Z143: FALSE | AA143: =IF(ISERROR(IF(ISBLANK(Q143)=TRUE,FALSE,IF(AND(ISBLANK(Q143)=FALSE,isadate(Q143)=TRUE)=TRUE,FALSE,IF(AND(ISBLANK(Q143)=FALSE,isadate(Q143)=FALSE)=TRUE,TRUE))))=TRUE,TRUE,IF(ISBLANK(Q143)=TRUE,FALSE,IF(AND(ISBLANK(Q143)=FALSE,isadate(Q143)=TRUE)=TRUE,FALSE,IF(AND(ISBLANK(Q143)=FALSE,isadate(Q143)=FALSE)=TRUE,TRUE)))) -> FALSE
A144: A | B144: A | C144: =Home!B142 -> 2017-12-12 | D144: 2017-12-12 | E144: A | R144: =IF(IF(ISNUMBER(MATCH(C144,Feriados!$A$2:$A$20,0)),1,0)=1,"Escala B!","") ->  | T144: FALSE | U144: TRUE | V144: 138 | W144: 1 | X144: FALSE | Y144: FALSE | Z144: FALSE | AA144: =IF(ISERROR(IF(ISBLANK(Q144)=TRUE,FALSE,IF(AND(ISBLANK(Q144)=FALSE,isadate(Q144)=TRUE)=TRUE,FALSE,IF(AND(ISBLANK(Q144)=FALSE,isadate(Q144)=FALSE)=TRUE,TRUE))))=TRUE,TRUE,IF(ISBLANK(Q144)=TRUE,FALSE,IF(AND(ISBLANK(Q144)=FALSE,isadate(Q144)=TRUE)=TRUE,FALSE,IF(AND(ISBLANK(Q144)=FALSE,isadate(Q144)=FALSE)=TRUE,TRUE)))) -> FALSE
A145: A | B145: A | C145: =Home!B143 -> 2017-12-13 | D145: 2017-12-13 | E145: A | R145: =IF(IF(ISNUMBER(MATCH(C145,Feriados!$A$2:$A$20,0)),1,0)=1,"Escala B!","") ->  | T145: FALSE | U145: TRUE | V145: 139 | W145: 1 | X145: FALSE | Y145: FALSE | Z145: FALSE | AA145: =IF(ISERROR(IF(ISBLANK(Q145)=TRUE,FALSE,IF(AND(ISBLANK(Q145)=FALSE,isadate(Q145)=TRUE)=TRUE,FALSE,IF(AND(ISBLANK(Q145)=FALSE,isadate(Q145)=FALSE)=TRUE,TRUE))))=TRUE,TRUE,IF(ISBLANK(Q145)=TRUE,FALSE,IF(AND(ISBLANK(Q145)=FALSE,isadate(Q145)=TRUE)=TRUE,FALSE,IF(AND(ISBLANK(Q145)=FALSE,isadate(Q145)=FALSE)=TRUE,TRUE)))) -> FALSE
A146: A | B146: A | C146: =Home!B144 -> 2017-12-14 | D146: 2017-12-14 | E146: A | R146: =IF(IF(ISNUMBER(MATCH(C146,Feriados!$A$2:$A$20,0)),1,0)=1,"Escala B!","") ->  | T146: FALSE | U146: TRUE | V146: 140 | W146: 1 | X146: FALSE | Y146: FALSE | Z146: FALSE | AA146: =IF(ISERROR(IF(ISBLANK(Q146)=TRUE,FALSE,IF(AND(ISBLANK(Q146)=FALSE,isadate(Q146)=TRUE)=TRUE,FALSE,IF(AND(ISBLANK(Q146)=FALSE,isadate(Q146)=FALSE)=TRUE,TRUE))))=TRUE,TRUE,IF(ISBLANK(Q146)=TRUE,FALSE,IF(AND(ISBLANK(Q146)=FALSE,isadate(Q146)=TRUE)=TRUE,FALSE,IF(AND(ISBLANK(Q146)=FALSE,isadate(Q146)=FALSE)=TRUE,TRUE)))) -> FALSE
A147: A | B147: A | C147: =Home!B145 -> 2017-12-15 | D147: 2017-12-15 | E147: A | R147: =IF(IF(ISNUMBER(MATCH(C147,Feriados!$A$2:$A$20,0)),1,0)=1,"Escala B!","") ->  | T147: FALSE | U147: TRUE | V147: 141 | W147: 1 | X147: FALSE | Y147: FALSE | Z147: FALSE | AA147: =IF(ISERROR(IF(ISBLANK(Q147)=TRUE,FALSE,IF(AND(ISBLANK(Q147)=FALSE,isadate(Q147)=TRUE)=TRUE,FALSE,IF(AND(ISBLANK(Q147)=FALSE,isadate(Q147)=FALSE)=TRUE,TRUE))))=TRUE,TRUE,IF(ISBLANK(Q147)=TRUE,FALSE,IF(AND(ISBLANK(Q147)=FALSE,isadate(Q147)=TRUE)=TRUE,FALSE,IF(AND(ISBLANK(Q147)=FALSE,isadate(Q147)=FALSE)=TRUE,TRUE)))) -> FALSE
A148: B | B148: B | C148: =Home!B146 -> 2017-12-16 | D148: 2017-12-16 | E148: B | R148: =IF(IF(ISNUMBER(MATCH(C148,Feriados!$A$2:$A$20,0)),1,0)=1,"Escala B!","") ->  | T148: FALSE | U148: TRUE | V148: 142 | W148: 1 | X148: FALSE | Y148: FALSE | Z148: FALSE | AA148: =IF(ISERROR(IF(ISBLANK(Q148)=TRUE,FALSE,IF(AND(ISBLANK(Q148)=FALSE,isadate(Q148)=TRUE)=TRUE,FALSE,IF(AND(ISBLANK(Q148)=FALSE,isadate(Q148)=FALSE)=TRUE,TRUE))))=TRUE,TRUE,IF(ISBLANK(Q148)=TRUE,FALSE,IF(AND(ISBLANK(Q148)=FALSE,isadate(Q148)=TRUE)=TRUE,FALSE,IF(AND(ISBLANK(Q148)=FALSE,isadate(Q148)=FALSE)=TRUE,TRUE)))) -> FALSE
A149: B | B149: B | C149: =Home!B147 -> 2017-12-17 | D149: 2017-12-17 | E149: B | R149: =IF(IF(ISNUMBER(MATCH(C149,Feriados!$A$2:$A$20,0)),1,0)=1,"Escala B!","") ->  | T149: FALSE | U149: TRUE | V149: 143 | W149: 1 | X149: FALSE | Y149: FALSE | Z149: FALSE | AA149: =IF(ISERROR(IF(ISBLANK(Q149)=TRUE,FALSE,IF(AND(ISBLANK(Q149)=FALSE,isadate(Q149)=TRUE)=TRUE,FALSE,IF(AND(ISBLANK(Q149)=FALSE,isadate(Q149)=FALSE)=TRUE,TRUE))))=TRUE,TRUE,IF(ISBLANK(Q149)=TRUE,FALSE,IF(AND(ISBLANK(Q149)=FALSE,isadate(Q149)=TRUE)=TRUE,FALSE,IF(AND(ISBLANK(Q149)=FALSE,isadate(Q149)=FALSE)=TRUE,TRUE)))) -> FALSE
A150: A | B150: A | C150: =Home!B148 -> 2017-12-18 | D150: 2017-12-18 | E150: A | R150: =IF(IF(ISNUMBER(MATCH(C150,Feriados!$A$2:$A$20,0)),1,0)=1,"Escala B!","") ->  | T150: FALSE | U150: TRUE | V150: 144 | W150: 1 | X150: FALSE | Y150: FALSE | Z150: FALSE | AA150: =IF(ISERROR(IF(ISBLANK(Q150)=TRUE,FALSE,IF(AND(ISBLANK(Q150)=FALSE,isadate(Q150)=TRUE)=TRUE,FALSE,IF(AND(ISBLANK(Q150)=FALSE,isadate(Q150)=FALSE)=TRUE,TRUE))))=TRUE,TRUE,IF(ISBLANK(Q150)=TRUE,FALSE,IF(AND(ISBLANK(Q150)=FALSE,isadate(Q150)=TRUE)=TRUE,FALSE,IF(AND(ISBLANK(Q150)=FALSE,isadate(Q150)=FALSE)=TRUE,TRUE)))) -> FALSE
A151: A | B151: A | C151: =Home!B149 -> 2017-12-19 | D151: 2017-12-19 | E151: A | R151: =IF(IF(ISNUMBER(MATCH(C151,Feriados!$A$2:$A$20,0)),1,0)=1,"Escala B!","") ->  | T151: FALSE | U151: TRUE | V151: 145 | W151: 1 | X151: FALSE | Y151: FALSE | Z151: FALSE | AA151: =IF(ISERROR(IF(ISBLANK(Q151)=TRUE,FALSE,IF(AND(ISBLANK(Q151)=FALSE,isadate(Q151)=TRUE)=TRUE,FALSE,IF(AND(ISBLANK(Q151)=FALSE,isadate(Q151)=FALSE)=TRUE,TRUE))))=TRUE,TRUE,IF(ISBLANK(Q151)=TRUE,FALSE,IF(AND(ISBLANK(Q151)=FALSE,isadate(Q151)=TRUE)=TRUE,FALSE,IF(AND(ISBLANK(Q151)=FALSE,isadate(Q151)=FALSE)=TRUE,TRUE)))) -> FALSE
A152: A | B152: A | C152: =Home!B150 -> 2017-12-20 | D152: 2017-12-20 | E152: A | R152: =IF(IF(ISNUMBER(MATCH(C152,Feriados!$A$2:$A$20,0)),1,0)=1,"Escala B!","") ->  | T152: FALSE | U152: TRUE | V152: 146 | W152: 1 | X152: FALSE | Y152: FALSE | Z152: FALSE | AA152: =IF(ISERROR(IF(ISBLANK(Q152)=TRUE,FALSE,IF(AND(ISBLANK(Q152)=FALSE,isadate(Q152)=TRUE)=TRUE,FALSE,IF(AND(ISBLANK(Q152)=FALSE,isadate(Q152)=FALSE)=TRUE,TRUE))))=TRUE,TRUE,IF(ISBLANK(Q152)=TRUE,FALSE,IF(AND(ISBLANK(Q152)=FALSE,isadate(Q152)=TRUE)=TRUE,FALSE,IF(AND(ISBLANK(Q152)=FALSE,isadate(Q152)=FALSE)=TRUE,TRUE)))) -> FALSE
A153: A | B153: A | C153: =Home!B151 -> 2017-12-21 | D153: 2017-12-21 | E153: A | R153: =IF(IF(ISNUMBER(MATCH(C153,Feriados!$A$2:$A$20,0)),1,0)=1,"Escala B!","") ->  | T153: FALSE | U153: TRUE | V153: 147 | W153: 1 | X153: FALSE | Y153: FALSE | Z153: FALSE | AA153: =IF(ISERROR(IF(ISBLANK(Q153)=TRUE,FALSE,IF(AND(ISBLANK(Q153)=FALSE,isadate(Q153)=TRUE)=TRUE,FALSE,IF(AND(ISBLANK(Q153)=FALSE,isadate(Q153)=FALSE)=TRUE,TRUE))))=TRUE,TRUE,IF(ISBLANK(Q153)=TRUE,FALSE,IF(AND(ISBLANK(Q153)=FALSE,isadate(Q153)=TRUE)=TRUE,FALSE,IF(AND(ISBLANK(Q153)=FALSE,isadate(Q153)=FALSE)=TRUE,TRUE)))) -> FALSE
A154: A | B154: A | C154: =Home!B152 -> 2017-12-22 | D154: 2017-12-22 | E154: A | R154: =IF(IF(ISNUMBER(MATCH(C154,Feriados!$A$2:$A$20,0)),1,0)=1,"Escala B!","") ->  | T154: FALSE | U154: TRUE | V154: 148 | W154: 1 | X154: FALSE | Y154: FALSE | Z154: FALSE | AA154: =IF(ISERROR(IF(ISBLANK(Q154)=TRUE,FALSE,IF(AND(ISBLANK(Q154)=FALSE,isadate(Q154)=TRUE)=TRUE,FALSE,IF(AND(ISBLANK(Q154)=FALSE,isadate(Q154)=FALSE)=TRUE,TRUE))))=TRUE,TRUE,IF(ISBLANK(Q154)=TRUE,FALSE,IF(AND(ISBLANK(Q154)=FALSE,isadate(Q154)=TRUE)=TRUE,FALSE,IF(AND(ISBLANK(Q154)=FALSE,isadate(Q154)=FALSE)=TRUE,TRUE)))) -> FALSE
A155: B | B155: B | C155: =Home!B153 -> 2017-12-23 | D155: 2017-12-23 | E155: B | R155: =IF(IF(ISNUMBER(MATCH(C155,Feriados!$A$2:$A$20,0)),1,0)=1,"Escala B!","") ->  | T155: FALSE | U155: TRUE | V155: 149 | W155: 1 | X155: FALSE | Y155: FALSE | Z155: FALSE | AA155: =IF(ISERROR(IF(ISBLANK(Q155)=TRUE,FALSE,IF(AND(ISBLANK(Q155)=FALSE,isadate(Q155)=TRUE)=TRUE,FALSE,IF(AND(ISBLANK(Q155)=FALSE,isadate(Q155)=FALSE)=TRUE,TRUE))))=TRUE,TRUE,IF(ISBLANK(Q155)=TRUE,FALSE,IF(AND(ISBLANK(Q155)=FALSE,isadate(Q155)=TRUE)=TRUE,FALSE,IF(AND(ISBLANK(Q155)=FALSE,isadate(Q155)=FALSE)=TRUE,TRUE)))) -> FALSE
A156: B | B156: B | C156: =Home!B154 -> 2017-12-24 | D156: 2017-12-24 | E156: B | R156: =IF(IF(ISNUMBER(MATCH(C156,Feriados!$A$2:$A$20,0)),1,0)=1,"Escala B!","") ->  | T156: FALSE | U156: TRUE | V156: 150 | W156: 1 | X156: FALSE | Y156: FALSE | Z156: FALSE | AA156: =IF(ISERROR(IF(ISBLANK(Q156)=TRUE,FALSE,IF(AND(ISBLANK(Q156)=FALSE,isadate(Q156)=TRUE)=TRUE,FALSE,IF(AND(ISBLANK(Q156)=FALSE,isadate(Q156)=FALSE)=TRUE,TRUE))))=TRUE,TRUE,IF(ISBLANK(Q156)=TRUE,FALSE,IF(AND(ISBLANK(Q156)=FALSE,isadate(Q156)=TRUE)=TRUE,FALSE,IF(AND(ISBLANK(Q156)=FALSE,isadate(Q156)=FALSE)=TRUE,TRUE)))) -> FALSE
A157: A | B157: A | C157: =Home!B155 -> 2017-12-25 | D157: 2017-12-25 | E157: A | R157: =IF(IF(ISNUMBER(MATCH(C157,Feriados!$A$2:$A$20,0)),1,0)=1,"Escala B!","") -> Escala B! | T157: FALSE | U157: TRUE | V157: 151 | W157: 1 | X157: FALSE | Y157: FALSE | Z157: FALSE | AA157: =IF(ISERROR(IF(ISBLANK(Q157)=TRUE,FALSE,IF(AND(ISBLANK(Q157)=FALSE,isadate(Q157)=TRUE)=TRUE,FALSE,IF(AND(ISBLANK(Q157)=FALSE,isadate(Q157)=FALSE)=TRUE,TRUE))))=TRUE,TRUE,IF(ISBLANK(Q157)=TRUE,FALSE,IF(AND(ISBLANK(Q157)=FALSE,isadate(Q157)=TRUE)=TRUE,FALSE,IF(AND(ISBLANK(Q157)=FALSE,isadate(Q157)=FALSE)=TRUE,TRUE)))) -> FALSE
A158: A | B158: A | C158: =Home!B156 -> 2017-12-26 | D158: 2017-12-26 | E158: A | R158: =IF(IF(ISNUMBER(MATCH(C158,Feriados!$A$2:$A$20,0)),1,0)=1,"Escala B!","") ->  | T158: FALSE | U158: =IF(AND(IF(AND(AND(IF(ISBLANK(O158)=TRUE,FALSE,TRUE)=TRUE,IF(TODAY()>O158,FALSE,TRUE)=TRUE)=TRUE,ISBLANK(N158)=TRUE=TRUE)=TRUE,FALSE,IF(AND(AND(IF(ISBLANK(O158)=TRUE,FALSE,TRUE)=TRUE,IF(TODAY()>O158,FALSE,TRUE)=FALSE)=TRUE,ISBLANK(N158)=TRUE=TRUE)=TRUE,TRUE,IF(AND(ISBLANK(N158)=TRUE=TRUE,IF(ISBLANK(O158)=TRUE,FALSE,TRUE)=FALSE,IF(TODAY()>O158,FALSE,TRUE)=FALSE)=TRUE,TRUE)))=TRUE,T158=FALSE)=TRUE,TRUE,FALSE) -> TRUE | V158: =IF(U158=TRUE,V157+1,V157) -> 152 | W158: 1 | X158: FALSE | Y158: FALSE | Z158: FALSE | AA158: =IF(ISERROR(IF(ISBLANK(Q158)=TRUE,FALSE,IF(AND(ISBLANK(Q158)=FALSE,isadate(Q158)=TRUE)=TRUE,FALSE,IF(AND(ISBLANK(Q158)=FALSE,isadate(Q158)=FALSE)=TRUE,TRUE))))=TRUE,TRUE,IF(ISBLANK(Q158)=TRUE,FALSE,IF(AND(ISBLANK(Q158)=FALSE,isadate(Q158)=TRUE)=TRUE,FALSE,IF(AND(ISBLANK(Q158)=FALSE,isadate(Q158)=FALSE)=TRUE,TRUE)))) -> FALSE
A159: A | B159: A | C159: =Home!B157 -> 2017-12-27 | D159: 2017-12-27 | E159: A | R159: =IF(IF(ISNUMBER(MATCH(C159,Feriados!$A$2:$A$20,0)),1,0)=1,"Escala B!","") ->  | T159: FALSE | U159: =IF(AND(IF(AND(AND(IF(ISBLANK(O159)=TRUE,FALSE,TRUE)=TRUE,IF(TODAY()>O159,FALSE,TRUE)=TRUE)=TRUE,ISBLANK(N159)=TRUE=TRUE)=TRUE,FALSE,IF(AND(AND(IF(ISBLANK(O159)=TRUE,FALSE,TRUE)=TRUE,IF(TODAY()>O159,FALSE,TRUE)=FALSE)=TRUE,ISBLANK(N159)=TRUE=TRUE)=TRUE,TRUE,IF(AND(ISBLANK(N159)=TRUE=TRUE,IF(ISBLANK(O159)=TRUE,FALSE,TRUE)=FALSE,IF(TODAY()>O159,FALSE,TRUE)=FALSE)=TRUE,TRUE)))=TRUE,T159=FALSE)=TRUE,TRUE,FALSE) -> TRUE | V159: =IF(U159=TRUE,V158+1,V158) -> 153 | W159: 1 | X159: FALSE | Y159: FALSE | Z159: FALSE | AA159: =IF(ISERROR(IF(ISBLANK(Q159)=TRUE,FALSE,IF(AND(ISBLANK(Q159)=FALSE,isadate(Q159)=TRUE)=TRUE,FALSE,IF(AND(ISBLANK(Q159)=FALSE,isadate(Q159)=FALSE)=TRUE,TRUE))))=TRUE,TRUE,IF(ISBLANK(Q159)=TRUE,FALSE,IF(AND(ISBLANK(Q159)=FALSE,isadate(Q159)=TRUE)=TRUE,FALSE,IF(AND(ISBLANK(Q159)=FALSE,isadate(Q159)=FALSE)=TRUE,TRUE)))) -> FALSE
A160: A | B160: A | C160: =Home!B158 -> 2017-12-28 | D160: 2017-12-28 | E160: A | R160: =IF(IF(ISNUMBER(MATCH(C160,Feriados!$A$2:$A$20,0)),1,0)=1,"Escala B!","") ->  | T160: FALSE | U160: =IF(AND(IF(AND(AND(IF(ISBLANK(O160)=TRUE,FALSE,TRUE)=TRUE,IF(TODAY()>O160,FALSE,TRUE)=TRUE)=TRUE,ISBLANK(N160)=TRUE=TRUE)=TRUE,FALSE,IF(AND(AND(IF(ISBLANK(O160)=TRUE,FALSE,TRUE)=TRUE,IF(TODAY()>O160,FALSE,TRUE)=FALSE)=TRUE,ISBLANK(N160)=TRUE=TRUE)=TRUE,TRUE,IF(AND(ISBLANK(N160)=TRUE=TRUE,IF(ISBLANK(O160)=TRUE,FALSE,TRUE)=FALSE,IF(TODAY()>O160,FALSE,TRUE)=FALSE)=TRUE,TRUE)))=TRUE,T160=FALSE)=TRUE,TRUE,FALSE) -> TRUE | V160: =IF(U160=TRUE,V159+1,V159) -> 154 | W160: 1 | X160: FALSE | Y160: FALSE | Z160: FALSE | AA160: =IF(ISERROR(IF(ISBLANK(Q160)=TRUE,FALSE,IF(AND(ISBLANK(Q160)=FALSE,isadate(Q160)=TRUE)=TRUE,FALSE,IF(AND(ISBLANK(Q160)=FALSE,isadate(Q160)=FALSE)=TRUE,TRUE))))=TRUE,TRUE,IF(ISBLANK(Q160)=TRUE,FALSE,IF(AND(ISBLANK(Q160)=FALSE,isadate(Q160)=TRUE)=TRUE,FALSE,IF(AND(ISBLANK(Q160)=FALSE,isadate(Q160)=FALSE)=TRUE,TRUE)))) -> FALSE
A161: A | B161: A | C161: =Home!B159 -> 2017-12-29 | D161: 2017-12-29 | E161: A | R161: =IF(IF(ISNUMBER(MATCH(C161,Feriados!$A$2:$A$20,0)),1,0)=1,"Escala B!","") ->  | T161: FALSE | U161: =IF(AND(IF(AND(AND(IF(ISBLANK(O161)=TRUE,FALSE,TRUE)=TRUE,IF(TODAY()>O161,FALSE,TRUE)=TRUE)=TRUE,ISBLANK(N161)=TRUE=TRUE)=TRUE,FALSE,IF(AND(AND(IF(ISBLANK(O161)=TRUE,FALSE,TRUE)=TRUE,IF(TODAY()>O161,FALSE,TRUE)=FALSE)=TRUE,ISBLANK(N161)=TRUE=TRUE)=TRUE,TRUE,IF(AND(ISBLANK(N161)=TRUE=TRUE,IF(ISBLANK(O161)=TRUE,FALSE,TRUE)=FALSE,IF(TODAY()>O161,FALSE,TRUE)=FALSE)=TRUE,TRUE)))=TRUE,T161=FALSE)=TRUE,TRUE,FALSE) -> TRUE | V161: =IF(U161=TRUE,V160+1,V160) -> 155 | W161: 1 | X161: FALSE | Y161: FALSE | Z161: FALSE | AA161: =IF(ISERROR(IF(ISBLANK(Q161)=TRUE,FALSE,IF(AND(ISBLANK(Q161)=FALSE,isadate(Q161)=TRUE)=TRUE,FALSE,IF(AND(ISBLANK(Q161)=FALSE,isadate(Q161)=FALSE)=TRUE,TRUE))))=TRUE,TRUE,IF(ISBLANK(Q161)=TRUE,FALSE,IF(AND(ISBLANK(Q161)=FALSE,isadate(Q161)=TRUE)=TRUE,FALSE,IF(AND(ISBLANK(Q161)=FALSE,isadate(Q161)=FALSE)=TRUE,TRUE)))) -> FALSE
A162: B | B162: B | C162: =Home!B160 -> 2017-12-30 | D162: 2017-12-30 | E162: B | R162: =IF(IF(ISNUMBER(MATCH(C162,Feriados!$A$2:$A$20,0)),1,0)=1,"Escala B!","") ->  | T162: FALSE | U162: =IF(AND(IF(AND(AND(IF(ISBLANK(O162)=TRUE,FALSE,TRUE)=TRUE,IF(TODAY()>O162,FALSE,TRUE)=TRUE)=TRUE,ISBLANK(N162)=TRUE=TRUE)=TRUE,FALSE,IF(AND(AND(IF(ISBLANK(O162)=TRUE,FALSE,TRUE)=TRUE,IF(TODAY()>O162,FALSE,TRUE)=FALSE)=TRUE,ISBLANK(N162)=TRUE=TRUE)=TRUE,TRUE,IF(AND(ISBLANK(N162)=TRUE=TRUE,IF(ISBLANK(O162)=TRUE,FALSE,TRUE)=FALSE,IF(TODAY()>O162,FALSE,TRUE)=FALSE)=TRUE,TRUE)))=TRUE,T162=FALSE)=TRUE,TRUE,FALSE) -> TRUE | V162: =IF(U162=TRUE,V161+1,V161) -> 156 | W162: 1 | X162: FALSE | Y162: FALSE | Z162: FALSE | AA162: =IF(ISERROR(IF(ISBLANK(Q162)=TRUE,FALSE,IF(AND(ISBLANK(Q162)=FALSE,isadate(Q162)=TRUE)=TRUE,FALSE,IF(AND(ISBLANK(Q162)=FALSE,isadate(Q162)=FALSE)=TRUE,TRUE))))=TRUE,TRUE,IF(ISBLANK(Q162)=TRUE,FALSE,IF(AND(ISBLANK(Q162)=FALSE,isadate(Q162)=TRUE)=TRUE,FALSE,IF(AND(ISBLANK(Q162)=FALSE,isadate(Q162)=FALSE)=TRUE,TRUE)))) -> FALSE
A163: B | B163: B | C163: =Home!B161 -> 2017-12-31 | D163: 2017-12-31 | E163: B | R163: =IF(IF(ISNUMBER(MATCH(C163,Feriados!$A$2:$A$20,0)),1,0)=1,"Escala B!","") ->  | T163: FALSE | U163: =IF(AND(IF(AND(AND(IF(ISBLANK(O163)=TRUE,FALSE,TRUE)=TRUE,IF(TODAY()>O163,FALSE,TRUE)=TRUE)=TRUE,ISBLANK(N163)=TRUE=TRUE)=TRUE,FALSE,IF(AND(AND(IF(ISBLANK(O163)=TRUE,FALSE,TRUE)=TRUE,IF(TODAY()>O163,FALSE,TRUE)=FALSE)=TRUE,ISBLANK(N163)=TRUE=TRUE)=TRUE,TRUE,IF(AND(ISBLANK(N163)=TRUE=TRUE,IF(ISBLANK(O163)=TRUE,FALSE,TRUE)=FALSE,IF(TODAY()>O163,FALSE,TRUE)=FALSE)=TRUE,TRUE)))=TRUE,T163=FALSE)=TRUE,TRUE,FALSE) -> TRUE | V163: =IF(U163=TRUE,V162+1,V162) -> 157 | W163: =IF(X163=TRUE,W162+1,W162) -> 1 | X163: =IF(AND(T163=FALSE,U163=FALSE)=TRUE,TRUE,FALSE) -> FALSE | Y163: FALSE | Z163: FALSE | AA163: =IF(ISERROR(IF(ISBLANK(Q163)=TRUE,FALSE,IF(AND(ISBLANK(Q163)=FALSE,isadate(Q163)=TRUE)=TRUE,FALSE,IF(AND(ISBLANK(Q163)=FALSE,isadate(Q163)=FALSE)=TRUE,TRUE))))=TRUE,TRUE,IF(ISBLANK(Q163)=TRUE,FALSE,IF(AND(ISBLANK(Q163)=FALSE,isadate(Q163)=TRUE)=TRUE,FALSE,IF(AND(ISBLANK(Q163)=FALSE,isadate(Q163)=FALSE)=TRUE,TRUE)))) -> FALSE
A164: A | B164: A | C164: =Home!B162 -> 2018-01-01 | D164: 2018-01-01 | E164: A | R164: =IF(IF(ISNUMBER(MATCH(C164,Feriados!$A$2:$A$20,0)),1,0)=1,"Escala B!","") -> Escala B! | T164: FALSE | U164: TRUE | V164: 158 | W164: 1 | X164: FALSE | Y164: FALSE | Z164: FALSE | AA164: =IF(ISERROR(IF(ISBLANK(Q164)=TRUE,FALSE,IF(AND(ISBLANK(Q164)=FALSE,isadate(Q164)=TRUE)=TRUE,FALSE,IF(AND(ISBLANK(Q164)=FALSE,isadate(Q164)=FALSE)=TRUE,TRUE))))=TRUE,TRUE,IF(ISBLANK(Q164)=TRUE,FALSE,IF(AND(ISBLANK(Q164)=FALSE,isadate(Q164)=TRUE)=TRUE,FALSE,IF(AND(ISBLANK(Q164)=FALSE,isadate(Q164)=FALSE)=TRUE,TRUE)))) -> FALSE
A165: A | B165: A | C165: =Home!B163 -> 2018-01-02 | D165: 2018-01-02 | E165: A | R165: =IF(IF(ISNUMBER(MATCH(C165,Feriados!$A$2:$A$20,0)),1,0)=1,"Escala B!","") ->  | T165: FALSE | U165: TRUE | V165: 159 | W165: 1 | X165: FALSE | Y165: FALSE | Z165: FALSE | AA165: =IF(ISERROR(IF(ISBLANK(Q165)=TRUE,FALSE,IF(AND(ISBLANK(Q165)=FALSE,isadate(Q165)=TRUE)=TRUE,FALSE,IF(AND(ISBLANK(Q165)=FALSE,isadate(Q165)=FALSE)=TRUE,TRUE))))=TRUE,TRUE,IF(ISBLANK(Q165)=TRUE,FALSE,IF(AND(ISBLANK(Q165)=FALSE,isadate(Q165)=TRUE)=TRUE,FALSE,IF(AND(ISBLANK(Q165)=FALSE,isadate(Q165)=FALSE)=TRUE,TRUE)))) -> FALSE
A166: A | B166: A | C166: =Home!B164 -> 2018-01-03 | D166: 2018-01-03 | E166: A | R166: =IF(IF(ISNUMBER(MATCH(C166,Feriados!$A$2:$A$20,0)),1,0)=1,"Escala B!","") ->  | T166: FALSE | U166: TRUE | V166: 160 | W166: 1 | X166: FALSE | Y166: FALSE | Z166: FALSE | AA166: =IF(ISERROR(IF(ISBLANK(Q166)=TRUE,FALSE,IF(AND(ISBLANK(Q166)=FALSE,isadate(Q166)=TRUE)=TRUE,FALSE,IF(AND(ISBLANK(Q166)=FALSE,isadate(Q166)=FALSE)=TRUE,TRUE))))=TRUE,TRUE,IF(ISBLANK(Q166)=TRUE,FALSE,IF(AND(ISBLANK(Q166)=FALSE,isadate(Q166)=TRUE)=TRUE,FALSE,IF(AND(ISBLANK(Q166)=FALSE,isadate(Q166)=FALSE)=TRUE,TRUE)))) -> FALSE
A167: A | B167: A | C167: =Home!B165 -> 2018-01-04 | D167: 2018-01-04 | E167: A | R167: =IF(IF(ISNUMBER(MATCH(C167,Feriados!$A$2:$A$20,0)),1,0)=1,"Escala B!","") ->  | T167: FALSE | U167: TRUE | V167: 161 | W167: 1 | X167: FALSE | Y167: FALSE | Z167: FALSE | AA167: =IF(ISERROR(IF(ISBLANK(Q167)=TRUE,FALSE,IF(AND(ISBLANK(Q167)=FALSE,isadate(Q167)=TRUE)=TRUE,FALSE,IF(AND(ISBLANK(Q167)=FALSE,isadate(Q167)=FALSE)=TRUE,TRUE))))=TRUE,TRUE,IF(ISBLANK(Q167)=TRUE,FALSE,IF(AND(ISBLANK(Q167)=FALSE,isadate(Q167)=TRUE)=TRUE,FALSE,IF(AND(ISBLANK(Q167)=FALSE,isadate(Q167)=FALSE)=TRUE,TRUE)))) -> FALSE
A168: A | B168: A | C168: =Home!B166 -> 2018-01-05 | D168: 2018-01-05 | E168: A | R168: =IF(IF(ISNUMBER(MATCH(C168,Feriados!$A$2:$A$20,0)),1,0)=1,"Escala B!","") ->  | T168: FALSE | U168: TRUE | V168: 162 | W168: 1 | X168: FALSE | Y168: FALSE | Z168: FALSE | AA168: =IF(ISERROR(IF(ISBLANK(Q168)=TRUE,FALSE,IF(AND(ISBLANK(Q168)=FALSE,isadate(Q168)=TRUE)=TRUE,FALSE,IF(AND(ISBLANK(Q168)=FALSE,isadate(Q168)=FALSE)=TRUE,TRUE))))=TRUE,TRUE,IF(ISBLANK(Q168)=TRUE,FALSE,IF(AND(ISBLANK(Q168)=FALSE,isadate(Q168)=TRUE)=TRUE,FALSE,IF(AND(ISBLANK(Q168)=FALSE,isadate(Q168)=FALSE)=TRUE,TRUE)))) -> FALSE
A169: B | B169: B | C169: =Home!B167 -> 2018-01-06 | D169: 2018-01-06 | E169: B | R169: =IF(IF(ISNUMBER(MATCH(C169,Feriados!$A$2:$A$20,0)),1,0)=1,"Escala B!","") ->  | T169: FALSE | U169: TRUE | V169: 163 | W169: 1 | X169: FALSE | Y169: FALSE | Z169: FALSE | AA169: =IF(ISERROR(IF(ISBLANK(Q169)=TRUE,FALSE,IF(AND(ISBLANK(Q169)=FALSE,isadate(Q169)=TRUE)=TRUE,FALSE,IF(AND(ISBLANK(Q169)=FALSE,isadate(Q169)=FALSE)=TRUE,TRUE))))=TRUE,TRUE,IF(ISBLANK(Q169)=TRUE,FALSE,IF(AND(ISBLANK(Q169)=FALSE,isadate(Q169)=TRUE)=TRUE,FALSE,IF(AND(ISBLANK(Q169)=FALSE,isadate(Q169)=FALSE)=TRUE,TRUE)))) -> FALSE
A170: B | B170: B | C170: =Home!B168 -> 2018-01-07 | D170: 2018-01-07 | E170: B | R170: =IF(IF(ISNUMBER(MATCH(C170,Feriados!$A$2:$A$20,0)),1,0)=1,"Escala B!","") ->  | T170: FALSE | U170: TRUE | V170: 164 | W170: 1 | X170: FALSE | Y170: FALSE | Z170: FALSE | AA170: =IF(ISERROR(IF(ISBLANK(Q170)=TRUE,FALSE,IF(AND(ISBLANK(Q170)=FALSE,isadate(Q170)=TRUE)=TRUE,FALSE,IF(AND(ISBLANK(Q170)=FALSE,isadate(Q170)=FALSE)=TRUE,TRUE))))=TRUE,TRUE,IF(ISBLANK(Q170)=TRUE,FALSE,IF(AND(ISBLANK(Q170)=FALSE,isadate(Q170)=TRUE)=TRUE,FALSE,IF(AND(ISBLANK(Q170)=FALSE,isadate(Q170)=FALSE)=TRUE,TRUE)))) -> FALSE
A171: A | B171: A | C171: =Home!B169 -> 2018-01-08 | D171: 2018-01-08 | E171: A | R171: =IF(IF(ISNUMBER(MATCH(C171,Feriados!$A$2:$A$20,0)),1,0)=1,"Escala B!","") ->  | T171: FALSE | U171: TRUE | V171: 165 | W171: 1 | X171: FALSE | Y171: FALSE | Z171: FALSE | AA171: =IF(ISERROR(IF(ISBLANK(Q171)=TRUE,FALSE,IF(AND(ISBLANK(Q171)=FALSE,isadate(Q171)=TRUE)=TRUE,FALSE,IF(AND(ISBLANK(Q171)=FALSE,isadate(Q171)=FALSE)=TRUE,TRUE))))=TRUE,TRUE,IF(ISBLANK(Q171)=TRUE,FALSE,IF(AND(ISBLANK(Q171)=FALSE,isadate(Q171)=TRUE)=TRUE,FALSE,IF(AND(ISBLANK(Q171)=FALSE,isadate(Q171)=FALSE)=TRUE,TRUE)))) -> FALSE
A172: A | B172: A | C172: =Home!B170 -> 2018-01-09 | D172: 2018-01-09 | E172: A | R172: =IF(IF(ISNUMBER(MATCH(C172,Feriados!$A$2:$A$20,0)),1,0)=1,"Escala B!","") ->  | T172: FALSE | U172: TRUE | V172: 166 | W172: 1 | X172: FALSE | Y172: FALSE | Z172: FALSE | AA172: =IF(ISERROR(IF(ISBLANK(Q172)=TRUE,FALSE,IF(AND(ISBLANK(Q172)=FALSE,isadate(Q172)=TRUE)=TRUE,FALSE,IF(AND(ISBLANK(Q172)=FALSE,isadate(Q172)=FALSE)=TRUE,TRUE))))=TRUE,TRUE,IF(ISBLANK(Q172)=TRUE,FALSE,IF(AND(ISBLANK(Q172)=FALSE,isadate(Q172)=TRUE)=TRUE,FALSE,IF(AND(ISBLANK(Q172)=FALSE,isadate(Q172)=FALSE)=TRUE,TRUE)))) -> FALSE
A173: A | B173: A | C173: =Home!B171 -> 2018-01-10 | D173: 2018-01-10 | E173: A | R173: =IF(IF(ISNUMBER(MATCH(C173,Feriados!$A$2:$A$20,0)),1,0)=1,"Escala B!","") ->  | T173: FALSE | U173: =IF(AND(IF(AND(AND(IF(ISBLANK(O173)=TRUE,FALSE,TRUE)=TRUE,IF(TODAY()>O173,FALSE,TRUE)=TRUE)=TRUE,ISBLANK(N173)=TRUE=TRUE)=TRUE,FALSE,IF(AND(AND(IF(ISBLANK(O173)=TRUE,FALSE,TRUE)=TRUE,IF(TODAY()>O173,FALSE,TRUE)=FALSE)=TRUE,ISBLANK(N173)=TRUE=TRUE)=TRUE,TRUE,IF(AND(ISBLANK(N173)=TRUE=TRUE,IF(ISBLANK(O173)=TRUE,FALSE,TRUE)=FALSE,IF(TODAY()>O173,FALSE,TRUE)=FALSE)=TRUE,TRUE)))=TRUE,T173=FALSE)=TRUE,TRUE,FALSE) -> TRUE | V173: =IF(U173=TRUE,V172+1,V172) -> 167 | W173: =IF(X173=TRUE,W172+1,W172) -> 1 | X173: =IF(AND(T173=FALSE,U173=FALSE)=TRUE,TRUE,FALSE) -> FALSE | Y173: FALSE | Z173: FALSE | AA173: =IF(ISERROR(IF(ISBLANK(Q173)=TRUE,FALSE,IF(AND(ISBLANK(Q173)=FALSE,isadate(Q173)=TRUE)=TRUE,FALSE,IF(AND(ISBLANK(Q173)=FALSE,isadate(Q173)=FALSE)=TRUE,TRUE))))=TRUE,TRUE,IF(ISBLANK(Q173)=TRUE,FALSE,IF(AND(ISBLANK(Q173)=FALSE,isadate(Q173)=TRUE)=TRUE,FALSE,IF(AND(ISBLANK(Q173)=FALSE,isadate(Q173)=FALSE)=TRUE,TRUE)))) -> FALSE
A174: A | B174: A | C174: =Home!B172 -> 2018-01-11 | D174: 2018-01-11 | E174: A | R174: =IF(IF(ISNUMBER(MATCH(C174,Feriados!$A$2:$A$20,0)),1,0)=1,"Escala B!","") ->  | T174: FALSE | U174: TRUE | V174: 168 | W174: 1 | X174: FALSE | Y174: FALSE | Z174: FALSE | AA174: =IF(ISERROR(IF(ISBLANK(Q174)=TRUE,FALSE,IF(AND(ISBLANK(Q174)=FALSE,isadate(Q174)=TRUE)=TRUE,FALSE,IF(AND(ISBLANK(Q174)=FALSE,isadate(Q174)=FALSE)=TRUE,TRUE))))=TRUE,TRUE,IF(ISBLANK(Q174)=TRUE,FALSE,IF(AND(ISBLANK(Q174)=FALSE,isadate(Q174)=TRUE)=TRUE,FALSE,IF(AND(ISBLANK(Q174)=FALSE,isadate(Q174)=FALSE)=TRUE,TRUE)))) -> FALSE
A175: A | B175: A | C175: =Home!B173 -> 2018-01-12 | D175: 2018-01-12 | E175: A | R175: =IF(IF(ISNUMBER(MATCH(C175,Feriados!$A$2:$A$20,0)),1,0)=1,"Escala B!","") ->  | T175: FALSE | U175: TRUE | V175: 169 | W175: 1 | X175: FALSE | Y175: FALSE | Z175: FALSE | AA175: =IF(ISERROR(IF(ISBLANK(Q175)=TRUE,FALSE,IF(AND(ISBLANK(Q175)=FALSE,isadate(Q175)=TRUE)=TRUE,FALSE,IF(AND(ISBLANK(Q175)=FALSE,isadate(Q175)=FALSE)=TRUE,TRUE))))=TRUE,TRUE,IF(ISBLANK(Q175)=TRUE,FALSE,IF(AND(ISBLANK(Q175)=FALSE,isadate(Q175)=TRUE)=TRUE,FALSE,IF(AND(ISBLANK(Q175)=FALSE,isadate(Q175)=FALSE)=TRUE,TRUE)))) -> FALSE
A176: B | B176: B | C176: =Home!B174 -> 2018-01-13 | D176: 2018-01-13 | E176: B | R176: =IF(IF(ISNUMBER(MATCH(C176,Feriados!$A$2:$A$20,0)),1,0)=1,"Escala B!","") ->  | T176: FALSE | U176: TRUE | V176: 170 | W176: 1 | X176: FALSE | Y176: FALSE | Z176: FALSE | AA176: =IF(ISERROR(IF(ISBLANK(Q176)=TRUE,FALSE,IF(AND(ISBLANK(Q176)=FALSE,isadate(Q176)=TRUE)=TRUE,FALSE,IF(AND(ISBLANK(Q176)=FALSE,isadate(Q176)=FALSE)=TRUE,TRUE))))=TRUE,TRUE,IF(ISBLANK(Q176)=TRUE,FALSE,IF(AND(ISBLANK(Q176)=FALSE,isadate(Q176)=TRUE)=TRUE,FALSE,IF(AND(ISBLANK(Q176)=FALSE,isadate(Q176)=FALSE)=TRUE,TRUE)))) -> FALSE
A177: B | B177: B | C177: =Home!B175 -> 2018-01-14 | D177: 2018-01-14 | E177: B | R177: =IF(IF(ISNUMBER(MATCH(C177,Feriados!$A$2:$A$20,0)),1,0)=1,"Escala B!","") ->  | T177: FALSE | U177: TRUE | V177: 171 | W177: 1 | X177: FALSE | Y177: FALSE | Z177: FALSE | AA177: =IF(ISERROR(IF(ISBLANK(Q177)=TRUE,FALSE,IF(AND(ISBLANK(Q177)=FALSE,isadate(Q177)=TRUE)=TRUE,FALSE,IF(AND(ISBLANK(Q177)=FALSE,isadate(Q177)=FALSE)=TRUE,TRUE))))=TRUE,TRUE,IF(ISBLANK(Q177)=TRUE,FALSE,IF(AND(ISBLANK(Q177)=FALSE,isadate(Q177)=TRUE)=TRUE,FALSE,IF(AND(ISBLANK(Q177)=FALSE,isadate(Q177)=FALSE)=TRUE,TRUE)))) -> FALSE
A178: A | B178: A | C178: =Home!B176 -> 2018-01-15 | D178: 2018-01-15 | E178: A | R178: =IF(IF(ISNUMBER(MATCH(C178,Feriados!$A$2:$A$20,0)),1,0)=1,"Escala B!","") ->  | T178: FALSE | U178: TRUE | V178: 172 | W178: 1 | X178: FALSE | Y178: FALSE | Z178: FALSE | AA178: =IF(ISERROR(IF(ISBLANK(Q178)=TRUE,FALSE,IF(AND(ISBLANK(Q178)=FALSE,isadate(Q178)=TRUE)=TRUE,FALSE,IF(AND(ISBLANK(Q178)=FALSE,isadate(Q178)=FALSE)=TRUE,TRUE))))=TRUE,TRUE,IF(ISBLANK(Q178)=TRUE,FALSE,IF(AND(ISBLANK(Q178)=FALSE,isadate(Q178)=TRUE)=TRUE,FALSE,IF(AND(ISBLANK(Q178)=FALSE,isadate(Q178)=FALSE)=TRUE,TRUE)))) -> FALSE
A179: B | B179: B | C179: =Home!B177 -> 2018-01-16 | D179: 2018-01-16 | E179: B | R179: =IF(IF(ISNUMBER(MATCH(C179,Feriados!$A$2:$A$20,0)),1,0)=1,"Escala B!","") ->  | S179: B | T179: FALSE | U179: TRUE | V179: 173 | W179: 1 | X179: FALSE | Y179: FALSE | Z179: FALSE | AA179: =IF(ISERROR(IF(ISBLANK(Q179)=TRUE,FALSE,IF(AND(ISBLANK(Q179)=FALSE,isadate(Q179)=TRUE)=TRUE,FALSE,IF(AND(ISBLANK(Q179)=FALSE,isadate(Q179)=FALSE)=TRUE,TRUE))))=TRUE,TRUE,IF(ISBLANK(Q179)=TRUE,FALSE,IF(AND(ISBLANK(Q179)=FALSE,isadate(Q179)=TRUE)=TRUE,FALSE,IF(AND(ISBLANK(Q179)=FALSE,isadate(Q179)=FALSE)=TRUE,TRUE)))) -> FALSE
A180: B | B180: B | C180: =Home!B178 -> 2018-01-17 | D180: 2018-01-17 | E180: B | R180: =IF(IF(ISNUMBER(MATCH(C180,Feriados!$A$2:$A$20,0)),1,0)=1,"Escala B!","") ->  | S180: B | T180: FALSE | U180: TRUE | V180: 174 | W180: 1 | X180: FALSE | Y180: FALSE | Z180: FALSE | AA180: =IF(ISERROR(IF(ISBLANK(Q180)=TRUE,FALSE,IF(AND(ISBLANK(Q180)=FALSE,isadate(Q180)=TRUE)=TRUE,FALSE,IF(AND(ISBLANK(Q180)=FALSE,isadate(Q180)=FALSE)=TRUE,TRUE))))=TRUE,TRUE,IF(ISBLANK(Q180)=TRUE,FALSE,IF(AND(ISBLANK(Q180)=FALSE,isadate(Q180)=TRUE)=TRUE,FALSE,IF(AND(ISBLANK(Q180)=FALSE,isadate(Q180)=FALSE)=TRUE,TRUE)))) -> FALSE
A181: B | B181: B | C181: =Home!B179 -> 2018-01-18 | D181: 2018-01-18 | E181: B | R181: =IF(IF(ISNUMBER(MATCH(C181,Feriados!$A$2:$A$20,0)),1,0)=1,"Escala B!","") ->  | S181: B | T181: FALSE | U181: TRUE | V181: 175 | W181: 1 | X181: FALSE | Y181: FALSE | Z181: FALSE | AA181: =IF(ISERROR(IF(ISBLANK(Q181)=TRUE,FALSE,IF(AND(ISBLANK(Q181)=FALSE,isadate(Q181)=TRUE)=TRUE,FALSE,IF(AND(ISBLANK(Q181)=FALSE,isadate(Q181)=FALSE)=TRUE,TRUE))))=TRUE,TRUE,IF(ISBLANK(Q181)=TRUE,FALSE,IF(AND(ISBLANK(Q181)=FALSE,isadate(Q181)=TRUE)=TRUE,FALSE,IF(AND(ISBLANK(Q181)=FALSE,isadate(Q181)=FALSE)=TRUE,TRUE)))) -> FALSE
A182: B | B182: B | C182: =Home!B180 -> 2018-01-19 | D182: 2018-01-19 | E182: B | R182: =IF(IF(ISNUMBER(MATCH(C182,Feriados!$A$2:$A$20,0)),1,0)=1,"Escala B!","") ->  | S182: B | T182: FALSE | U182: TRUE | V182: 176 | W182: 1 | X182: FALSE | Y182: FALSE | Z182: FALSE | AA182: =IF(ISERROR(IF(ISBLANK(Q182)=TRUE,FALSE,IF(AND(ISBLANK(Q182)=FALSE,isadate(Q182)=TRUE)=TRUE,FALSE,IF(AND(ISBLANK(Q182)=FALSE,isadate(Q182)=FALSE)=TRUE,TRUE))))=TRUE,TRUE,IF(ISBLANK(Q182)=TRUE,FALSE,IF(AND(ISBLANK(Q182)=FALSE,isadate(Q182)=TRUE)=TRUE,FALSE,IF(AND(ISBLANK(Q182)=FALSE,isadate(Q182)=FALSE)=TRUE,TRUE)))) -> FALSE
A183: B | B183: B | C183: =Home!B181 -> 2018-01-20 | D183: 2018-01-20 | E183: B | R183: =IF(IF(ISNUMBER(MATCH(C183,Feriados!$A$2:$A$20,0)),1,0)=1,"Escala B!","") ->  | S183: B | T183: FALSE | U183: TRUE | V183: 177 | W183: 1 | X183: FALSE | Y183: FALSE | Z183: FALSE | AA183: =IF(ISERROR(IF(ISBLANK(Q183)=TRUE,FALSE,IF(AND(ISBLANK(Q183)=FALSE,isadate(Q183)=TRUE)=TRUE,FALSE,IF(AND(ISBLANK(Q183)=FALSE,isadate(Q183)=FALSE)=TRUE,TRUE))))=TRUE,TRUE,IF(ISBLANK(Q183)=TRUE,FALSE,IF(AND(ISBLANK(Q183)=FALSE,isadate(Q183)=TRUE)=TRUE,FALSE,IF(AND(ISBLANK(Q183)=FALSE,isadate(Q183)=FALSE)=TRUE,TRUE)))) -> FALSE
A184: B | B184: B | C184: =Home!B182 -> 2018-01-21 | D184: 2018-01-21 | E184: B | R184: =IF(IF(ISNUMBER(MATCH(C184,Feriados!$A$2:$A$20,0)),1,0)=1,"Escala B!","") ->  | S184: B | T184: FALSE | U184: TRUE | V184: 178 | W184: 1 | X184: FALSE | Y184: FALSE | Z184: FALSE | AA184: =IF(ISERROR(IF(ISBLANK(Q184)=TRUE,FALSE,IF(AND(ISBLANK(Q184)=FALSE,isadate(Q184)=TRUE)=TRUE,FALSE,IF(AND(ISBLANK(Q184)=FALSE,isadate(Q184)=FALSE)=TRUE,TRUE))))=TRUE,TRUE,IF(ISBLANK(Q184)=TRUE,FALSE,IF(AND(ISBLANK(Q184)=FALSE,isadate(Q184)=TRUE)=TRUE,FALSE,IF(AND(ISBLANK(Q184)=FALSE,isadate(Q184)=FALSE)=TRUE,TRUE)))) -> FALSE
A185: B | B185: B | C185: =Home!B183 -> 2018-01-22 | D185: 2018-01-22 | E185: B | R185: =IF(IF(ISNUMBER(MATCH(C185,Feriados!$A$2:$A$20,0)),1,0)=1,"Escala B!","") ->  | S185: B | T185: FALSE | U185: TRUE | V185: 179 | W185: 1 | X185: FALSE | Y185: FALSE | Z185: FALSE | AA185: =IF(ISERROR(IF(ISBLANK(Q185)=TRUE,FALSE,IF(AND(ISBLANK(Q185)=FALSE,isadate(Q185)=TRUE)=TRUE,FALSE,IF(AND(ISBLANK(Q185)=FALSE,isadate(Q185)=FALSE)=TRUE,TRUE))))=TRUE,TRUE,IF(ISBLANK(Q185)=TRUE,FALSE,IF(AND(ISBLANK(Q185)=FALSE,isadate(Q185)=TRUE)=TRUE,FALSE,IF(AND(ISBLANK(Q185)=FALSE,isadate(Q185)=FALSE)=TRUE,TRUE)))) -> FALSE
A186: B | B186: B | C186: =Home!B184 -> 2018-01-23 | D186: 2018-01-23 | E186: B | R186: =IF(IF(ISNUMBER(MATCH(C186,Feriados!$A$2:$A$20,0)),1,0)=1,"Escala B!","") ->  | S186: B | T186: FALSE | U186: TRUE | V186: 180 | W186: 1 | X186: FALSE | Y186: FALSE | Z186: FALSE | AA186: =IF(ISERROR(IF(ISBLANK(Q186)=TRUE,FALSE,IF(AND(ISBLANK(Q186)=FALSE,isadate(Q186)=TRUE)=TRUE,FALSE,IF(AND(ISBLANK(Q186)=FALSE,isadate(Q186)=FALSE)=TRUE,TRUE))))=TRUE,TRUE,IF(ISBLANK(Q186)=TRUE,FALSE,IF(AND(ISBLANK(Q186)=FALSE,isadate(Q186)=TRUE)=TRUE,FALSE,IF(AND(ISBLANK(Q186)=FALSE,isadate(Q186)=FALSE)=TRUE,TRUE)))) -> FALSE
A187: A | B187: A | C187: =Home!B185 -> 2018-01-24 | D187: 2018-01-24 | E187: A | R187: =IF(IF(ISNUMBER(MATCH(C187,Feriados!$A$2:$A$20,0)),1,0)=1,"Escala B!","") ->  | T187: FALSE | U187: TRUE | V187: 181 | W187: 1 | X187: FALSE | Y187: FALSE | Z187: FALSE | AA187: =IF(ISERROR(IF(ISBLANK(Q187)=TRUE,FALSE,IF(AND(ISBLANK(Q187)=FALSE,isadate(Q187)=TRUE)=TRUE,FALSE,IF(AND(ISBLANK(Q187)=FALSE,isadate(Q187)=FALSE)=TRUE,TRUE))))=TRUE,TRUE,IF(ISBLANK(Q187)=TRUE,FALSE,IF(AND(ISBLANK(Q187)=FALSE,isadate(Q187)=TRUE)=TRUE,FALSE,IF(AND(ISBLANK(Q187)=FALSE,isadate(Q187)=FALSE)=TRUE,TRUE)))) -> FALSE
A188: A | B188: A | C188: =Home!B186 -> 2018-01-25 | D188: 2018-01-25 | E188: A | R188: =IF(IF(ISNUMBER(MATCH(C188,Feriados!$A$2:$A$20,0)),1,0)=1,"Escala B!","") ->  | T188: FALSE | U188: TRUE | V188: 182 | W188: 1 | X188: FALSE | Y188: FALSE | Z188: =OR(IF(N188="",FALSE,TRUE)=TRUE,IF(AND(IF(O188="",FALSE,TRUE)=TRUE,IF(O188<=TODAY(),FALSE,TRUE)=TRUE)=TRUE,TRUE,FALSE)=TRUE) -> FALSE | AA188: =IF(ISERROR(IF(ISBLANK(Q188)=TRUE,FALSE,IF(AND(ISBLANK(Q188)=FALSE,isadate(Q188)=TRUE)=TRUE,FALSE,IF(AND(ISBLANK(Q188)=FALSE,isadate(Q188)=FALSE)=TRUE,TRUE))))=TRUE,TRUE,IF(ISBLANK(Q188)=TRUE,FALSE,IF(AND(ISBLANK(Q188)=FALSE,isadate(Q188)=TRUE)=TRUE,FALSE,IF(AND(ISBLANK(Q188)=FALSE,isadate(Q188)=FALSE)=TRUE,TRUE)))) -> FALSE
A189: A | B189: A | C189: =Home!B187 -> 2018-01-26 | D189: 2018-01-26 | E189: A | R189: =IF(IF(ISNUMBER(MATCH(C189,Feriados!$A$2:$A$20,0)),1,0)=1,"Escala B!","") ->  | T189: =IF(P189="OK",TRUE,FALSE) -> FALSE | U189: TRUE | V189: 183 | W189: 1 | X189: FALSE | Y189: =IF(AND(IF(P189="OK",TRUE,FALSE)=TRUE,IF(LEN(Q189)=0,FALSE,TRUE)=TRUE)=TRUE,TRUE,FALSE) -> FALSE | Z189: FALSE | AA189: =IF(ISERROR(IF(ISBLANK(Q189)=TRUE,FALSE,IF(AND(ISBLANK(Q189)=FALSE,isadate(Q189)=TRUE)=TRUE,FALSE,IF(AND(ISBLANK(Q189)=FALSE,isadate(Q189)=FALSE)=TRUE,TRUE))))=TRUE,TRUE,IF(ISBLANK(Q189)=TRUE,FALSE,IF(AND(ISBLANK(Q189)=FALSE,isadate(Q189)=TRUE)=TRUE,FALSE,IF(AND(ISBLANK(Q189)=FALSE,isadate(Q189)=FALSE)=TRUE,TRUE)))) -> FALSE
A190: B | B190: B | C190: =Home!B188 -> 2018-01-27 | D190: 2018-01-27 | E190: B | R190: =IF(IF(ISNUMBER(MATCH(C190,Feriados!$A$2:$A$20,0)),1,0)=1,"Escala B!","") ->  | T190: FALSE | U190: TRUE | V190: 184 | W190: 1 | X190: FALSE | Y190: FALSE | Z190: FALSE | AA190: =IF(ISERROR(IF(ISBLANK(Q190)=TRUE,FALSE,IF(AND(ISBLANK(Q190)=FALSE,isadate(Q190)=TRUE)=TRUE,FALSE,IF(AND(ISBLANK(Q190)=FALSE,isadate(Q190)=FALSE)=TRUE,TRUE))))=TRUE,TRUE,IF(ISBLANK(Q190)=TRUE,FALSE,IF(AND(ISBLANK(Q190)=FALSE,isadate(Q190)=TRUE)=TRUE,FALSE,IF(AND(ISBLANK(Q190)=FALSE,isadate(Q190)=FALSE)=TRUE,TRUE)))) -> FALSE
A191: B | B191: B | C191: =Home!B189 -> 2018-01-28 | D191: 2018-01-28 | E191: B | R191: =IF(IF(ISNUMBER(MATCH(C191,Feriados!$A$2:$A$20,0)),1,0)=1,"Escala B!","") ->  | T191: FALSE | U191: TRUE | V191: 185 | W191: 1 | X191: FALSE | Y191: FALSE | Z191: FALSE | AA191: =IF(ISERROR(IF(ISBLANK(Q191)=TRUE,FALSE,IF(AND(ISBLANK(Q191)=FALSE,isadate(Q191)=TRUE)=TRUE,FALSE,IF(AND(ISBLANK(Q191)=FALSE,isadate(Q191)=FALSE)=TRUE,TRUE))))=TRUE,TRUE,IF(ISBLANK(Q191)=TRUE,FALSE,IF(AND(ISBLANK(Q191)=FALSE,isadate(Q191)=TRUE)=TRUE,FALSE,IF(AND(ISBLANK(Q191)=FALSE,isadate(Q191)=FALSE)=TRUE,TRUE)))) -> FALSE
A192: A | B192: A | C192: =Home!B190 -> 2018-01-29 | D192: 2018-01-29 | E192: A | R192: =IF(IF(ISNUMBER(MATCH(C192,Feriados!$A$2:$A$20,0)),1,0)=1,"Escala B!","") ->  | T192: FALSE | U192: TRUE | V192: 186 | W192: 1 | X192: FALSE | Y192: FALSE | Z192: FALSE | AA192: =IF(ISERROR(IF(ISBLANK(Q192)=TRUE,FALSE,IF(AND(ISBLANK(Q192)=FALSE,isadate(Q192)=TRUE)=TRUE,FALSE,IF(AND(ISBLANK(Q192)=FALSE,isadate(Q192)=FALSE)=TRUE,TRUE))))=TRUE,TRUE,IF(ISBLANK(Q192)=TRUE,FALSE,IF(AND(ISBLANK(Q192)=FALSE,isadate(Q192)=TRUE)=TRUE,FALSE,IF(AND(ISBLANK(Q192)=FALSE,isadate(Q192)=FALSE)=TRUE,TRUE)))) -> FALSE
A193: A | B193: A | C193: =Home!B191 -> 2018-01-30 | D193: 2018-01-30 | E193: A | R193: =IF(IF(ISNUMBER(MATCH(C193,Feriados!$A$2:$A$20,0)),1,0)=1,"Escala B!","") ->  | T193: FALSE | U193: TRUE | V193: 187 | W193: 1 | X193: FALSE | Y193: FALSE | Z193: FALSE | AA193: =IF(ISERROR(IF(ISBLANK(Q193)=TRUE,FALSE,IF(AND(ISBLANK(Q193)=FALSE,isadate(Q193)=TRUE)=TRUE,FALSE,IF(AND(ISBLANK(Q193)=FALSE,isadate(Q193)=FALSE)=TRUE,TRUE))))=TRUE,TRUE,IF(ISBLANK(Q193)=TRUE,FALSE,IF(AND(ISBLANK(Q193)=FALSE,isadate(Q193)=TRUE)=TRUE,FALSE,IF(AND(ISBLANK(Q193)=FALSE,isadate(Q193)=FALSE)=TRUE,TRUE)))) -> FALSE
A194: A | B194: A | C194: =Home!B192 -> 2018-01-31 | D194: 2018-01-31 | E194: A | R194: =IF(IF(ISNUMBER(MATCH(C194,Feriados!$A$2:$A$20,0)),1,0)=1,"Escala B!","") ->  | T194: FALSE | U194: TRUE | V194: 188 | W194: 1 | X194: FALSE | Y194: FALSE | Z194: FALSE | AA194: =IF(ISERROR(IF(ISBLANK(Q194)=TRUE,FALSE,IF(AND(ISBLANK(Q194)=FALSE,isadate(Q194)=TRUE)=TRUE,FALSE,IF(AND(ISBLANK(Q194)=FALSE,isadate(Q194)=FALSE)=TRUE,TRUE))))=TRUE,TRUE,IF(ISBLANK(Q194)=TRUE,FALSE,IF(AND(ISBLANK(Q194)=FALSE,isadate(Q194)=TRUE)=TRUE,FALSE,IF(AND(ISBLANK(Q194)=FALSE,isadate(Q194)=FALSE)=TRUE,TRUE)))) -> FALSE
A195: A | B195: A | C195: =Home!B193 -> 2018-02-01 | D195: 2018-02-01 | E195: =A195 -> A | R195: =IF(IF(ISNUMBER(MATCH(C195,Feriados!$A$2:$A$20,0)),1,0)=1,"Escala B!","") ->  | T195: FALSE | U195: TRUE | V195: 189 | W195: 1 | X195: FALSE | Y195: FALSE | Z195: FALSE | AA195: =IF(ISERROR(IF(ISBLANK(Q195)=TRUE,FALSE,IF(AND(ISBLANK(Q195)=FALSE,isadate(Q195)=TRUE)=TRUE,FALSE,IF(AND(ISBLANK(Q195)=FALSE,isadate(Q195)=FALSE)=TRUE,TRUE))))=TRUE,TRUE,IF(ISBLANK(Q195)=TRUE,FALSE,IF(AND(ISBLANK(Q195)=FALSE,isadate(Q195)=TRUE)=TRUE,FALSE,IF(AND(ISBLANK(Q195)=FALSE,isadate(Q195)=FALSE)=TRUE,TRUE)))) -> FALSE
A196: A | B196: =IF(S196="B","B",IF(S196="A","A",IF(AND(WEEKDAY(C196,2)>=1,WEEKDAY(C196,2)<=5)=TRUE,"A","B"))) -> A | C196: =Home!B194 -> 2018-02-02 | D196: 2018-02-02 | E196: A | R196: =IF(IF(ISNUMBER(MATCH(C196,Feriados!$A$2:$A$20,0)),1,0)=1,"Escala B!","") ->  | T196: FALSE | U196: TRUE | V196: 190 | W196: 1 | X196: FALSE | Y196: FALSE | Z196: FALSE | AA196: =IF(ISERROR(IF(ISBLANK(Q196)=TRUE,FALSE,IF(AND(ISBLANK(Q196)=FALSE,isadate(Q196)=TRUE)=TRUE,FALSE,IF(AND(ISBLANK(Q196)=FALSE,isadate(Q196)=FALSE)=TRUE,TRUE))))=TRUE,TRUE,IF(ISBLANK(Q196)=TRUE,FALSE,IF(AND(ISBLANK(Q196)=FALSE,isadate(Q196)=TRUE)=TRUE,FALSE,IF(AND(ISBLANK(Q196)=FALSE,isadate(Q196)=FALSE)=TRUE,TRUE)))) -> FALSE
A197: =B197 -> B | B197: B | C197: =Home!B195 -> 2018-02-03 | D197: =C197 -> 2018-02-03 | E197: B | R197: =IF(IF(ISNUMBER(MATCH(C197,Feriados!$A$2:$A$20,0)),1,0)=1,"Escala B!","") ->  | T197: FALSE | U197: TRUE | V197: 191 | W197: 1 | X197: FALSE | Y197: FALSE | Z197: FALSE | AA197: =IF(ISERROR(IF(ISBLANK(Q197)=TRUE,FALSE,IF(AND(ISBLANK(Q197)=FALSE,isadate(Q197)=TRUE)=TRUE,FALSE,IF(AND(ISBLANK(Q197)=FALSE,isadate(Q197)=FALSE)=TRUE,TRUE))))=TRUE,TRUE,IF(ISBLANK(Q197)=TRUE,FALSE,IF(AND(ISBLANK(Q197)=FALSE,isadate(Q197)=TRUE)=TRUE,FALSE,IF(AND(ISBLANK(Q197)=FALSE,isadate(Q197)=FALSE)=TRUE,TRUE)))) -> FALSE
A198: B | B198: B | C198: =Home!B196 -> 2018-02-04 | D198: 2018-02-04 | E198: B | R198: =IF(IF(ISNUMBER(MATCH(C198,Feriados!$A$2:$A$20,0)),1,0)=1,"Escala B!","") ->  | T198: FALSE | U198: TRUE | V198: 192 | W198: 1 | X198: FALSE | Y198: FALSE | Z198: FALSE | AA198: =IF(ISERROR(IF(ISBLANK(Q198)=TRUE,FALSE,IF(AND(ISBLANK(Q198)=FALSE,isadate(Q198)=TRUE)=TRUE,FALSE,IF(AND(ISBLANK(Q198)=FALSE,isadate(Q198)=FALSE)=TRUE,TRUE))))=TRUE,TRUE,IF(ISBLANK(Q198)=TRUE,FALSE,IF(AND(ISBLANK(Q198)=FALSE,isadate(Q198)=TRUE)=TRUE,FALSE,IF(AND(ISBLANK(Q198)=FALSE,isadate(Q198)=FALSE)=TRUE,TRUE)))) -> FALSE
A199: A | B199: A | C199: =Home!B197 -> 2018-02-05 | D199: 2018-02-05 | E199: A | R199: =IF(IF(ISNUMBER(MATCH(C199,Feriados!$A$2:$A$20,0)),1,0)=1,"Escala B!","") ->  | T199: FALSE | U199: TRUE | V199: 193 | W199: 1 | X199: FALSE | Y199: FALSE | Z199: FALSE | AA199: =IF(ISERROR(IF(ISBLANK(Q199)=TRUE,FALSE,IF(AND(ISBLANK(Q199)=FALSE,isadate(Q199)=TRUE)=TRUE,FALSE,IF(AND(ISBLANK(Q199)=FALSE,isadate(Q199)=FALSE)=TRUE,TRUE))))=TRUE,TRUE,IF(ISBLANK(Q199)=TRUE,FALSE,IF(AND(ISBLANK(Q199)=FALSE,isadate(Q199)=TRUE)=TRUE,FALSE,IF(AND(ISBLANK(Q199)=FALSE,isadate(Q199)=FALSE)=TRUE,TRUE)))) -> FALSE
A200: A | B200: A | C200: =Home!B198 -> 2018-02-06 | D200: 2018-02-06 | E200: A | R200: =IF(IF(ISNUMBER(MATCH(C200,Feriados!$A$2:$A$20,0)),1,0)=1,"Escala B!","") ->  | T200: FALSE | U200: TRUE | V200: 194 | W200: 1 | X200: FALSE | Y200: FALSE | Z200: FALSE | AA200: =IF(ISERROR(IF(ISBLANK(Q200)=TRUE,FALSE,IF(AND(ISBLANK(Q200)=FALSE,isadate(Q200)=TRUE)=TRUE,FALSE,IF(AND(ISBLANK(Q200)=FALSE,isadate(Q200)=FALSE)=TRUE,TRUE))))=TRUE,TRUE,IF(ISBLANK(Q200)=TRUE,FALSE,IF(AND(ISBLANK(Q200)=FALSE,isadate(Q200)=TRUE)=TRUE,FALSE,IF(AND(ISBLANK(Q200)=FALSE,isadate(Q200)=FALSE)=TRUE,TRUE)))) -> FALSE
... 1290 more rows

Sheet PREVISÃO_TODA (hidden)
B1: ESCALA | C1: POSTO | D1: NIM | E1: APELIDO
A2: 1 | B2: =IF(LEN(C2)<3,"",INDIRECT("GRELHA!A"&(MATCH(A2,Grelha!$V$3:$V$1490,0))+2)) -> A | C2: =INDIRECT("GRELHA!f"&(MATCH(A2,Grelha!$V$3:$V$1490,0))+2) -> 1Sar | D2: =INDIRECT("GRELHA!g"&(MATCH(A2,Grelha!$V$3:$V$1490,0))+2) -> 5 | E2: =INDIRECT("GRELHA!h"&(MATCH(A2,Grelha!$V$3:$V$1490,0))+2) -> Donny Belote | F2: 1
A3: 2 | B3: =IF(LEN(C3)<3,"",INDIRECT("GRELHA!A"&(MATCH(A3,Grelha!$V$3:$V$1490,0))+2)) -> B | C3: =INDIRECT("GRELHA!f"&(MATCH(A3,Grelha!$V$3:$V$1490,0))+2) -> 1Sar | D3: =INDIRECT("GRELHA!g"&(MATCH(A3,Grelha!$V$3:$V$1490,0))+2) -> 1 | E3: =INDIRECT("GRELHA!h"&(MATCH(A3,Grelha!$V$3:$V$1490,0))+2) -> Paul Dawes | F3: 1
A4: 3 | B4: =IF(LEN(C4)<3,"",INDIRECT("GRELHA!A"&(MATCH(A4,Grelha!$V$3:$V$1490,0))+2)) -> B | C4: =INDIRECT("GRELHA!f"&(MATCH(A4,Grelha!$V$3:$V$1490,0))+2) -> 1Sar | D4: =INDIRECT("GRELHA!g"&(MATCH(A4,Grelha!$V$3:$V$1490,0))+2) -> 2 | E4: =INDIRECT("GRELHA!h"&(MATCH(A4,Grelha!$V$3:$V$1490,0))+2) -> Odell Segarra | F4: 1
A5: 4 | B5: =IF(LEN(C5)<3,"",INDIRECT("GRELHA!A"&(MATCH(A5,Grelha!$V$3:$V$1490,0))+2)) -> A | C5: =INDIRECT("GRELHA!f"&(MATCH(A5,Grelha!$V$3:$V$1490,0))+2) -> 1Sar | D5: =INDIRECT("GRELHA!g"&(MATCH(A5,Grelha!$V$3:$V$1490,0))+2) -> 6 | E5: =INDIRECT("GRELHA!h"&(MATCH(A5,Grelha!$V$3:$V$1490,0))+2) -> Wm Payton | F5: 1
A6: 5 | B6: =IF(LEN(C6)<3,"",INDIRECT("GRELHA!A"&(MATCH(A6,Grelha!$V$3:$V$1490,0))+2)) -> A | C6: =INDIRECT("GRELHA!f"&(MATCH(A6,Grelha!$V$3:$V$1490,0))+2) -> 1Sar | D6: =INDIRECT("GRELHA!g"&(MATCH(A6,Grelha!$V$3:$V$1490,0))+2) -> 7 | E6: =INDIRECT("GRELHA!h"&(MATCH(A6,Grelha!$V$3:$V$1490,0))+2) -> Eugene Molloy | F6: 1
A7: 6 | B7: =IF(LEN(C7)<3,"",INDIRECT("GRELHA!A"&(MATCH(A7,Grelha!$V$3:$V$1490,0))+2)) -> A | C7: =INDIRECT("GRELHA!f"&(MATCH(A7,Grelha!$V$3:$V$1490,0))+2) -> 1Sar | D7: =INDIRECT("GRELHA!g"&(MATCH(A7,Grelha!$V$3:$V$1490,0))+2) -> 8 | E7: =INDIRECT("GRELHA!h"&(MATCH(A7,Grelha!$V$3:$V$1490,0))+2) -> Phillip Nottage | F7: 1
A8: 7 | B8: =IF(LEN(C8)<3,"",INDIRECT("GRELHA!A"&(MATCH(A8,Grelha!$V$3:$V$1490,0))+2)) -> A | C8: =INDIRECT("GRELHA!f"&(MATCH(A8,Grelha!$V$3:$V$1490,0))+2) -> 1Sar | D8: =INDIRECT("GRELHA!g"&(MATCH(A8,Grelha!$V$3:$V$1490,0))+2) -> 9 | E8: =INDIRECT("GRELHA!h"&(MATCH(A8,Grelha!$V$3:$V$1490,0))+2) -> Lavern Tank | F8: 1
A9: 8 | B9: =IF(LEN(C9)<3,"",INDIRECT("GRELHA!A"&(MATCH(A9,Grelha!$V$3:$V$1490,0))+2)) -> A | C9: =INDIRECT("GRELHA!f"&(MATCH(A9,Grelha!$V$3:$V$1490,0))+2) -> 1Sar | D9: =INDIRECT("GRELHA!g"&(MATCH(A9,Grelha!$V$3:$V$1490,0))+2) -> 10 | E9: =INDIRECT("GRELHA!h"&(MATCH(A9,Grelha!$V$3:$V$1490,0))+2) -> Elvis Feeney | F9: 1
A10: 9 | B10: =IF(LEN(C10)<3,"",INDIRECT("GRELHA!A"&(MATCH(A10,Grelha!$V$3:$V$1490,0))+2)) -> B | C10: =INDIRECT("GRELHA!f"&(MATCH(A10,Grelha!$V$3:$V$1490,0))+2) -> 1Sar | D10: =INDIRECT("GRELHA!g"&(MATCH(A10,Grelha!$V$3:$V$1490,0))+2) -> 3 | E10: =INDIRECT("GRELHA!h"&(MATCH(A10,Grelha!$V$3:$V$1490,0))+2) -> Lindsay Sanderlin | F10: 1
A11: 10 | B11: =IF(LEN(C11)<3,"",INDIRECT("GRELHA!A"&(MATCH(A11,Grelha!$V$3:$V$1490,0))+2)) -> B | C11: =INDIRECT("GRELHA!f"&(MATCH(A11,Grelha!$V$3:$V$1490,0))+2) -> 1Sar | D11: =INDIRECT("GRELHA!g"&(MATCH(A11,Grelha!$V$3:$V$1490,0))+2) -> 4 | E11: =INDIRECT("GRELHA!h"&(MATCH(A11,Grelha!$V$3:$V$1490,0))+2) -> Rodger Burney | F11: 1
A12: 11 | B12: =IF(LEN(C12)<3,"",INDIRECT("GRELHA!A"&(MATCH(A12,Grelha!$V$3:$V$1490,0))+2)) -> A | C12: =INDIRECT("GRELHA!f"&(MATCH(A12,Grelha!$V$3:$V$1490,0))+2) -> 1Sar | D12: =INDIRECT("GRELHA!g"&(MATCH(A12,Grelha!$V$3:$V$1490,0))+2) -> 11 | E12: =INDIRECT("GRELHA!h"&(MATCH(A12,Grelha!$V$3:$V$1490,0))+2) -> Nigel Knell | F12: 1
A13: 12 | B13: =IF(LEN(C13)<3,"",INDIRECT("GRELHA!A"&(MATCH(A13,Grelha!$V$3:$V$1490,0))+2)) -> A | C13: =INDIRECT("GRELHA!f"&(MATCH(A13,Grelha!$V$3:$V$1490,0))+2) -> 1Sar | D13: =INDIRECT("GRELHA!g"&(MATCH(A13,Grelha!$V$3:$V$1490,0))+2) -> 12 | E13: =INDIRECT("GRELHA!h"&(MATCH(A13,Grelha!$V$3:$V$1490,0))+2) -> Stanton Mccord | F13: 1
A14: 13 | B14: =IF(LEN(C14)<3,"",INDIRECT("GRELHA!A"&(MATCH(A14,Grelha!$V$3:$V$1490,0))+2)) -> A | C14: =INDIRECT("GRELHA!f"&(MATCH(A14,Grelha!$V$3:$V$1490,0))+2) -> 1Sar | D14: =INDIRECT("GRELHA!g"&(MATCH(A14,Grelha!$V$3:$V$1490,0))+2) -> 13 | E14: =INDIRECT("GRELHA!h"&(MATCH(A14,Grelha!$V$3:$V$1490,0))+2) -> Tracey Null | F14: 1
A15: 14 | B15: =IF(LEN(C15)<3,"",INDIRECT("GRELHA!A"&(MATCH(A15,Grelha!$V$3:$V$1490,0))+2)) -> A | C15: =INDIRECT("GRELHA!f"&(MATCH(A15,Grelha!$V$3:$V$1490,0))+2) -> 1Sar | D15: =INDIRECT("GRELHA!g"&(MATCH(A15,Grelha!$V$3:$V$1490,0))+2) -> 14 | E15: =INDIRECT("GRELHA!h"&(MATCH(A15,Grelha!$V$3:$V$1490,0))+2) -> Winfred Olivieri | F15: 1
A16: 15 | B16: =IF(LEN(C16)<3,"",INDIRECT("GRELHA!A"&(MATCH(A16,Grelha!$V$3:$V$1490,0))+2)) -> A | C16: =INDIRECT("GRELHA!f"&(MATCH(A16,Grelha!$V$3:$V$1490,0))+2) -> 1Sar | D16: =INDIRECT("GRELHA!g"&(MATCH(A16,Grelha!$V$3:$V$1490,0))+2) -> 15 | E16: =INDIRECT("GRELHA!h"&(MATCH(A16,Grelha!$V$3:$V$1490,0))+2) -> Roderick Lehto | F16: 1
A17: 16 | B17: =IF(LEN(C17)<3,"",INDIRECT("GRELHA!A"&(MATCH(A17,Grelha!$V$3:$V$1490,0))+2)) -> B | C17: =INDIRECT("GRELHA!f"&(MATCH(A17,Grelha!$V$3:$V$1490,0))+2) -> 1Sar | D17: =INDIRECT("GRELHA!g"&(MATCH(A17,Grelha!$V$3:$V$1490,0))+2) -> 5 | E17: =INDIRECT("GRELHA!h"&(MATCH(A17,Grelha!$V$3:$V$1490,0))+2) -> Donny Belote | F17: 1
A18: 17 | B18: =IF(LEN(C18)<3,"",INDIRECT("GRELHA!A"&(MATCH(A18,Grelha!$V$3:$V$1490,0))+2)) -> B | C18: =INDIRECT("GRELHA!f"&(MATCH(A18,Grelha!$V$3:$V$1490,0))+2) -> 1Sar | D18: =INDIRECT("GRELHA!g"&(MATCH(A18,Grelha!$V$3:$V$1490,0))+2) -> 6 | E18: =INDIRECT("GRELHA!h"&(MATCH(A18,Grelha!$V$3:$V$1490,0))+2) -> Wm Payton | F18: 1
A19: 18 | B19: =IF(LEN(C19)<3,"",INDIRECT("GRELHA!A"&(MATCH(A19,Grelha!$V$3:$V$1490,0))+2)) -> A | C19: =INDIRECT("GRELHA!f"&(MATCH(A19,Grelha!$V$3:$V$1490,0))+2) -> 1Sar | D19: =INDIRECT("GRELHA!g"&(MATCH(A19,Grelha!$V$3:$V$1490,0))+2) -> 1 | E19: =INDIRECT("GRELHA!h"&(MATCH(A19,Grelha!$V$3:$V$1490,0))+2) -> Paul Dawes | F19: 1
A20: 19 | B20: =IF(LEN(C20)<3,"",INDIRECT("GRELHA!A"&(MATCH(A20,Grelha!$V$3:$V$1490,0))+2)) -> B | C20: =INDIRECT("GRELHA!f"&(MATCH(A20,Grelha!$V$3:$V$1490,0))+2) -> 1Sar | D20: =INDIRECT("GRELHA!g"&(MATCH(A20,Grelha!$V$3:$V$1490,0))+2) -> 7 | E20: =INDIRECT("GRELHA!h"&(MATCH(A20,Grelha!$V$3:$V$1490,0))+2) -> Eugene Molloy | F20: 1
A21: 20 | B21: =IF(LEN(C21)<3,"",INDIRECT("GRELHA!A"&(MATCH(A21,Grelha!$V$3:$V$1490,0))+2)) -> A | C21: =INDIRECT("GRELHA!f"&(MATCH(A21,Grelha!$V$3:$V$1490,0))+2) -> 1Sar | D21: =INDIRECT("GRELHA!g"&(MATCH(A21,Grelha!$V$3:$V$1490,0))+2) -> 2 | E21: =INDIRECT("GRELHA!h"&(MATCH(A21,Grelha!$V$3:$V$1490,0))+2) -> Odell Segarra | F21: 1
A22: 21 | B22: =IF(LEN(C22)<3,"",INDIRECT("GRELHA!A"&(MATCH(A22,Grelha!$V$3:$V$1490,0))+2)) -> A | C22: =INDIRECT("GRELHA!f"&(MATCH(A22,Grelha!$V$3:$V$1490,0))+2) -> 1Sar | D22: =INDIRECT("GRELHA!g"&(MATCH(A22,Grelha!$V$3:$V$1490,0))+2) -> 4 | E22: =INDIRECT("GRELHA!h"&(MATCH(A22,Grelha!$V$3:$V$1490,0))+2) -> Rodger Burney | F22: 1
A23: 22 | B23: =IF(LEN(C23)<3,"",INDIRECT("GRELHA!A"&(MATCH(A23,Grelha!$V$3:$V$1490,0))+2)) ->  | C23: =INDIRECT("GRELHA!f"&(MATCH(A23,Grelha!$V$3:$V$1490,0))+2) -> 0 | D23: =INDIRECT("GRELHA!g"&(MATCH(A23,Grelha!$V$3:$V$1490,0))+2) -> 0 | E23: =INDIRECT("GRELHA!h"&(MATCH(A23,Grelha!$V$3:$V$1490,0))+2) -> 0 | F23: 1
A24: 23 | B24: =IF(LEN(C24)<3,"",INDIRECT("GRELHA!A"&(MATCH(A24,Grelha!$V$3:$V$1490,0))+2)) -> B | C24: =INDIRECT("GRELHA!f"&(MATCH(A24,Grelha!$V$3:$V$1490,0))+2) -> 1Sar | D24: =INDIRECT("GRELHA!g"&(MATCH(A24,Grelha!$V$3:$V$1490,0))+2) -> 8 | E24: =INDIRECT("GRELHA!h"&(MATCH(A24,Grelha!$V$3:$V$1490,0))+2) -> Phillip Nottage | F24: 1
A25: 24 | B25: =IF(LEN(C25)<3,"",INDIRECT("GRELHA!A"&(MATCH(A25,Grelha!$V$3:$V$1490,0))+2)) -> B | C25: =INDIRECT("GRELHA!f"&(MATCH(A25,Grelha!$V$3:$V$1490,0))+2) -> 1Sar | D25: =INDIRECT("GRELHA!g"&(MATCH(A25,Grelha!$V$3:$V$1490,0))+2) -> 9 | E25: =INDIRECT("GRELHA!h"&(MATCH(A25,Grelha!$V$3:$V$1490,0))+2) -> Lavern Tank | F25: 1
A26: 25 | B26: =IF(LEN(C26)<3,"",INDIRECT("GRELHA!A"&(MATCH(A26,Grelha!$V$3:$V$1490,0))+2)) ->  | C26: =INDIRECT("GRELHA!f"&(MATCH(A26,Grelha!$V$3:$V$1490,0))+2) -> 0 | D26: =INDIRECT("GRELHA!g"&(MATCH(A26,Grelha!$V$3:$V$1490,0))+2) -> 0 | E26: =INDIRECT("GRELHA!h"&(MATCH(A26,Grelha!$V$3:$V$1490,0))+2) -> 0 | F26: 1
A27: 26 | B27: =IF(LEN(C27)<3,"",INDIRECT("GRELHA!A"&(MATCH(A27,Grelha!$V$3:$V$1490,0))+2)) ->  | C27: =INDIRECT("GRELHA!f"&(MATCH(A27,Grelha!$V$3:$V$1490,0))+2) -> 0 | D27: =INDIRECT("GRELHA!g"&(MATCH(A27,Grelha!$V$3:$V$1490,0))+2) -> 0 | E27: =INDIRECT("GRELHA!h"&(MATCH(A27,Grelha!$V$3:$V$1490,0))+2) -> 0 | F27: 1
A28: 27 | B28: =IF(LEN(C28)<3,"",INDIRECT("GRELHA!A"&(MATCH(A28,Grelha!$V$3:$V$1490,0))+2)) ->  | C28: =INDIRECT("GRELHA!f"&(MATCH(A28,Grelha!$V$3:$V$1490,0))+2) -> 0 | D28: =INDIRECT("GRELHA!g"&(MATCH(A28,Grelha!$V$3:$V$1490,0))+2) -> 0 | E28: =INDIRECT("GRELHA!h"&(MATCH(A28,Grelha!$V$3:$V$1490,0))+2) -> 0 | F28: 1
A29: 28 | B29: =IF(LEN(C29)<3,"",INDIRECT("GRELHA!A"&(MATCH(A29,Grelha!$V$3:$V$1490,0))+2)) ->  | C29: =INDIRECT("GRELHA!f"&(MATCH(A29,Grelha!$V$3:$V$1490,0))+2) -> 0 | D29: =INDIRECT("GRELHA!g"&(MATCH(A29,Grelha!$V$3:$V$1490,0))+2) -> 0 | E29: =INDIRECT("GRELHA!h"&(MATCH(A29,Grelha!$V$3:$V$1490,0))+2) -> 0 | F29: 1
A30: 29 | B30: =IF(LEN(C30)<3,"",INDIRECT("GRELHA!A"&(MATCH(A30,Grelha!$V$3:$V$1490,0))+2)) ->  | C30: =INDIRECT("GRELHA!f"&(MATCH(A30,Grelha!$V$3:$V$1490,0))+2) -> 0 | D30: =INDIRECT("GRELHA!g"&(MATCH(A30,Grelha!$V$3:$V$1490,0))+2) -> 0 | E30: =INDIRECT("GRELHA!h"&(MATCH(A30,Grelha!$V$3:$V$1490,0))+2) -> 0 | F30: 1
A31: 30 | B31: =IF(LEN(C31)<3,"",INDIRECT("GRELHA!A"&(MATCH(A31,Grelha!$V$3:$V$1490,0))+2)) -> B | C31: =INDIRECT("GRELHA!f"&(MATCH(A31,Grelha!$V$3:$V$1490,0))+2) -> 1Sar | D31: =INDIRECT("GRELHA!g"&(MATCH(A31,Grelha!$V$3:$V$1490,0))+2) -> 10 | E31: =INDIRECT("GRELHA!h"&(MATCH(A31,Grelha!$V$3:$V$1490,0))+2) -> Elvis Feeney | F31: 1
A32: 31 | B32: =IF(LEN(C32)<3,"",INDIRECT("GRELHA!A"&(MATCH(A32,Grelha!$V$3:$V$1490,0))+2)) -> B | C32: =INDIRECT("GRELHA!f"&(MATCH(A32,Grelha!$V$3:$V$1490,0))+2) -> 1Sar | D32: =INDIRECT("GRELHA!g"&(MATCH(A32,Grelha!$V$3:$V$1490,0))+2) -> 11 | E32: =INDIRECT("GRELHA!h"&(MATCH(A32,Grelha!$V$3:$V$1490,0))+2) -> Nigel Knell | F32: 1
A33: 32 | B33: =IF(LEN(C33)<3,"",INDIRECT("GRELHA!A"&(MATCH(A33,Grelha!$V$3:$V$1490,0))+2)) ->  | C33: =INDIRECT("GRELHA!f"&(MATCH(A33,Grelha!$V$3:$V$1490,0))+2) -> 0 | D33: =INDIRECT("GRELHA!g"&(MATCH(A33,Grelha!$V$3:$V$1490,0))+2) -> 0 | E33: =INDIRECT("GRELHA!h"&(MATCH(A33,Grelha!$V$3:$V$1490,0))+2) -> 0 | F33: 1
A34: 33 | B34: =IF(LEN(C34)<3,"",INDIRECT("GRELHA!A"&(MATCH(A34,Grelha!$V$3:$V$1490,0))+2)) ->  | C34: =INDIRECT("GRELHA!f"&(MATCH(A34,Grelha!$V$3:$V$1490,0))+2) -> 0 | D34: =INDIRECT("GRELHA!g"&(MATCH(A34,Grelha!$V$3:$V$1490,0))+2) -> 0 | E34: =INDIRECT("GRELHA!h"&(MATCH(A34,Grelha!$V$3:$V$1490,0))+2) -> 0 | F34: 1
A35: 34 | B35: =IF(LEN(C35)<3,"",INDIRECT("GRELHA!A"&(MATCH(A35,Grelha!$V$3:$V$1490,0))+2)) ->  | C35: =INDIRECT("GRELHA!f"&(MATCH(A35,Grelha!$V$3:$V$1490,0))+2) -> 0 | D35: =INDIRECT("GRELHA!g"&(MATCH(A35,Grelha!$V$3:$V$1490,0))+2) -> 0 | E35: =INDIRECT("GRELHA!h"&(MATCH(A35,Grelha!$V$3:$V$1490,0))+2) -> 0 | F35: 1
A36: 35 | B36: =IF(LEN(C36)<3,"",INDIRECT("GRELHA!A"&(MATCH(A36,Grelha!$V$3:$V$1490,0))+2)) ->  | C36: =INDIRECT("GRELHA!f"&(MATCH(A36,Grelha!$V$3:$V$1490,0))+2) -> 0 | D36: =INDIRECT("GRELHA!g"&(MATCH(A36,Grelha!$V$3:$V$1490,0))+2) -> 0 | E36: =INDIRECT("GRELHA!h"&(MATCH(A36,Grelha!$V$3:$V$1490,0))+2) -> 0 | F36: 1
A37: 36 | B37: =IF(LEN(C37)<3,"",INDIRECT("GRELHA!A"&(MATCH(A37,Grelha!$V$3:$V$1490,0))+2)) ->  | C37: =INDIRECT("GRELHA!f"&(MATCH(A37,Grelha!$V$3:$V$1490,0))+2) -> 0 | D37: =INDIRECT("GRELHA!g"&(MATCH(A37,Grelha!$V$3:$V$1490,0))+2) -> 0 | E37: =INDIRECT("GRELHA!h"&(MATCH(A37,Grelha!$V$3:$V$1490,0))+2) -> 0 | F37: 1
A38: 37 | B38: =IF(LEN(C38)<3,"",INDIRECT("GRELHA!A"&(MATCH(A38,Grelha!$V$3:$V$1490,0))+2)) -> B | C38: =INDIRECT("GRELHA!f"&(MATCH(A38,Grelha!$V$3:$V$1490,0))+2) -> 1Sar | D38: =INDIRECT("GRELHA!g"&(MATCH(A38,Grelha!$V$3:$V$1490,0))+2) -> 12 | E38: =INDIRECT("GRELHA!h"&(MATCH(A38,Grelha!$V$3:$V$1490,0))+2) -> Stanton Mccord | F38: 1
A39: 38 | B39: =IF(LEN(C39)<3,"",INDIRECT("GRELHA!A"&(MATCH(A39,Grelha!$V$3:$V$1490,0))+2)) -> B | C39: =INDIRECT("GRELHA!f"&(MATCH(A39,Grelha!$V$3:$V$1490,0))+2) -> 1Sar | D39: =INDIRECT("GRELHA!g"&(MATCH(A39,Grelha!$V$3:$V$1490,0))+2) -> 13 | E39: =INDIRECT("GRELHA!h"&(MATCH(A39,Grelha!$V$3:$V$1490,0))+2) -> Tracey Null | F39: 1
A40: 39 | B40: =IF(LEN(C40)<3,"",INDIRECT("GRELHA!A"&(MATCH(A40,Grelha!$V$3:$V$1490,0))+2)) ->  | C40: =INDIRECT("GRELHA!f"&(MATCH(A40,Grelha!$V$3:$V$1490,0))+2) -> 0 | D40: =INDIRECT("GRELHA!g"&(MATCH(A40,Grelha!$V$3:$V$1490,0))+2) -> 0 | E40: =INDIRECT("GRELHA!h"&(MATCH(A40,Grelha!$V$3:$V$1490,0))+2) -> 0 | F40: 1
A41: 40 | B41: =IF(LEN(C41)<3,"",INDIRECT("GRELHA!A"&(MATCH(A41,Grelha!$V$3:$V$1490,0))+2)) ->  | C41: =INDIRECT("GRELHA!f"&(MATCH(A41,Grelha!$V$3:$V$1490,0))+2) -> 0 | D41: =INDIRECT("GRELHA!g"&(MATCH(A41,Grelha!$V$3:$V$1490,0))+2) -> 0 | E41: =INDIRECT("GRELHA!h"&(MATCH(A41,Grelha!$V$3:$V$1490,0))+2) -> 0 | F41: 1
A42: 41 | B42: =IF(LEN(C42)<3,"",INDIRECT("GRELHA!A"&(MATCH(A42,Grelha!$V$3:$V$1490,0))+2)) ->  | C42: =INDIRECT("GRELHA!f"&(MATCH(A42,Grelha!$V$3:$V$1490,0))+2) -> 0 | D42: =INDIRECT("GRELHA!g"&(MATCH(A42,Grelha!$V$3:$V$1490,0))+2) -> 0 | E42: =INDIRECT("GRELHA!h"&(MATCH(A42,Grelha!$V$3:$V$1490,0))+2) -> 0 | F42: 1
A43: 42 | B43: =IF(LEN(C43)<3,"",INDIRECT("GRELHA!A"&(MATCH(A43,Grelha!$V$3:$V$1490,0))+2)) ->  | C43: =INDIRECT("GRELHA!f"&(MATCH(A43,Grelha!$V$3:$V$1490,0))+2) -> 0 | D43: =INDIRECT("GRELHA!g"&(MATCH(A43,Grelha!$V$3:$V$1490,0))+2) -> 0 | E43: =INDIRECT("GRELHA!h"&(MATCH(A43,Grelha!$V$3:$V$1490,0))+2) -> 0 | F43: 1
A44: 43 | B44: =IF(LEN(C44)<3,"",INDIRECT("GRELHA!A"&(MATCH(A44,Grelha!$V$3:$V$1490,0))+2)) ->  | C44: =INDIRECT("GRELHA!f"&(MATCH(A44,Grelha!$V$3:$V$1490,0))+2) -> 0 | D44: =INDIRECT("GRELHA!g"&(MATCH(A44,Grelha!$V$3:$V$1490,0))+2) -> 0 | E44: =INDIRECT("GRELHA!h"&(MATCH(A44,Grelha!$V$3:$V$1490,0))+2) -> 0 | F44: 1
A45: 44 | B45: =IF(LEN(C45)<3,"",INDIRECT("GRELHA!A"&(MATCH(A45,Grelha!$V$3:$V$1490,0))+2)) -> B | C45: =INDIRECT("GRELHA!f"&(MATCH(A45,Grelha!$V$3:$V$1490,0))+2) -> 1Sar | D45: =INDIRECT("GRELHA!g"&(MATCH(A45,Grelha!$V$3:$V$1490,0))+2) -> 14 | E45: =INDIRECT("GRELHA!h"&(MATCH(A45,Grelha!$V$3:$V$1490,0))+2) -> Winfred Olivieri | F45: 1
A46: 45 | B46: =IF(LEN(C46)<3,"",INDIRECT("GRELHA!A"&(MATCH(A46,Grelha!$V$3:$V$1490,0))+2)) -> B | C46: =INDIRECT("GRELHA!f"&(MATCH(A46,Grelha!$V$3:$V$1490,0))+2) -> 1Sar | D46: =INDIRECT("GRELHA!g"&(MATCH(A46,Grelha!$V$3:$V$1490,0))+2) -> 15 | E46: =INDIRECT("GRELHA!h"&(MATCH(A46,Grelha!$V$3:$V$1490,0))+2) -> Roderick Lehto | F46: 1
A47: 46 | B47: =IF(LEN(C47)<3,"",INDIRECT("GRELHA!A"&(MATCH(A47,Grelha!$V$3:$V$1490,0))+2)) ->  | C47: =INDIRECT("GRELHA!f"&(MATCH(A47,Grelha!$V$3:$V$1490,0))+2) -> 0 | D47: =INDIRECT("GRELHA!g"&(MATCH(A47,Grelha!$V$3:$V$1490,0))+2) -> 0 | E47: =INDIRECT("GRELHA!h"&(MATCH(A47,Grelha!$V$3:$V$1490,0))+2) -> 0 | F47: 1
A48: 47 | B48: =IF(LEN(C48)<3,"",INDIRECT("GRELHA!A"&(MATCH(A48,Grelha!$V$3:$V$1490,0))+2)) ->  | C48: =INDIRECT("GRELHA!f"&(MATCH(A48,Grelha!$V$3:$V$1490,0))+2) -> 0 | D48: =INDIRECT("GRELHA!g"&(MATCH(A48,Grelha!$V$3:$V$1490,0))+2) -> 0 | E48: =INDIRECT("GRELHA!h"&(MATCH(A48,Grelha!$V$3:$V$1490,0))+2) -> 0 | F48: 1
A49: 48 | B49: =IF(LEN(C49)<3,"",INDIRECT("GRELHA!A"&(MATCH(A49,Grelha!$V$3:$V$1490,0))+2)) ->  | C49: =INDIRECT("GRELHA!f"&(MATCH(A49,Grelha!$V$3:$V$1490,0))+2) -> 0 | D49: =INDIRECT("GRELHA!g"&(MATCH(A49,Grelha!$V$3:$V$1490,0))+2) -> 0 | E49: =INDIRECT("GRELHA!h"&(MATCH(A49,Grelha!$V$3:$V$1490,0))+2) -> 0 | F49: 1
A50: 49 | B50: =IF(LEN(C50)<3,"",INDIRECT("GRELHA!A"&(MATCH(A50,Grelha!$V$3:$V$1490,0))+2)) ->  | C50: =INDIRECT("GRELHA!f"&(MATCH(A50,Grelha!$V$3:$V$1490,0))+2) -> 0 | D50: =INDIRECT("GRELHA!g"&(MATCH(A50,Grelha!$V$3:$V$1490,0))+2) -> 0 | E50: =INDIRECT("GRELHA!h"&(MATCH(A50,Grelha!$V$3:$V$1490,0))+2) -> 0 | F50: 1
A51: 50 | B51: =IF(LEN(C51)<3,"",INDIRECT("GRELHA!A"&(MATCH(A51,Grelha!$V$3:$V$1490,0))+2)) ->  | C51: =INDIRECT("GRELHA!f"&(MATCH(A51,Grelha!$V$3:$V$1490,0))+2) -> 0 | D51: =INDIRECT("GRELHA!g"&(MATCH(A51,Grelha!$V$3:$V$1490,0))+2) -> 0 | E51: =INDIRECT("GRELHA!h"&(MATCH(A51,Grelha!$V$3:$V$1490,0))+2) -> 0 | F51: 1
A52: 51 | B52: =IF(LEN(C52)<3,"",INDIRECT("GRELHA!A"&(MATCH(A52,Grelha!$V$3:$V$1490,0))+2)) ->  | C52: =INDIRECT("GRELHA!f"&(MATCH(A52,Grelha!$V$3:$V$1490,0))+2) -> 0 | D52: =INDIRECT("GRELHA!g"&(MATCH(A52,Grelha!$V$3:$V$1490,0))+2) -> 0 | E52: =INDIRECT("GRELHA!h"&(MATCH(A52,Grelha!$V$3:$V$1490,0))+2) -> 0 | F52: 1
A53: 52 | B53: =IF(LEN(C53)<3,"",INDIRECT("GRELHA!A"&(MATCH(A53,Grelha!$V$3:$V$1490,0))+2)) ->  | C53: =INDIRECT("GRELHA!f"&(MATCH(A53,Grelha!$V$3:$V$1490,0))+2) -> 0 | D53: =INDIRECT("GRELHA!g"&(MATCH(A53,Grelha!$V$3:$V$1490,0))+2) -> 0 | E53: =INDIRECT("GRELHA!h"&(MATCH(A53,Grelha!$V$3:$V$1490,0))+2) -> 0 | F53: 1
A54: 53 | B54: =IF(LEN(C54)<3,"",INDIRECT("GRELHA!A"&(MATCH(A54,Grelha!$V$3:$V$1490,0))+2)) ->  | C54: =INDIRECT("GRELHA!f"&(MATCH(A54,Grelha!$V$3:$V$1490,0))+2) -> 0 | D54: =INDIRECT("GRELHA!g"&(MATCH(A54,Grelha!$V$3:$V$1490,0))+2) -> 0 | E54: =INDIRECT("GRELHA!h"&(MATCH(A54,Grelha!$V$3:$V$1490,0))+2) -> 0 | F54: 1
A55: 54 | B55: =IF(LEN(C55)<3,"",INDIRECT("GRELHA!A"&(MATCH(A55,Grelha!$V$3:$V$1490,0))+2)) ->  | C55: =INDIRECT("GRELHA!f"&(MATCH(A55,Grelha!$V$3:$V$1490,0))+2) -> 0 | D55: =INDIRECT("GRELHA!g"&(MATCH(A55,Grelha!$V$3:$V$1490,0))+2) -> 0 | E55: =INDIRECT("GRELHA!h"&(MATCH(A55,Grelha!$V$3:$V$1490,0))+2) -> 0 | F55: 1
A56: 55 | B56: =IF(LEN(C56)<3,"",INDIRECT("GRELHA!A"&(MATCH(A56,Grelha!$V$3:$V$1490,0))+2)) ->  | C56: =INDIRECT("GRELHA!f"&(MATCH(A56,Grelha!$V$3:$V$1490,0))+2) -> 0 | D56: =INDIRECT("GRELHA!g"&(MATCH(A56,Grelha!$V$3:$V$1490,0))+2) -> 0 | E56: =INDIRECT("GRELHA!h"&(MATCH(A56,Grelha!$V$3:$V$1490,0))+2) -> 0
A57: 56 | B57: =IF(LEN(C57)<3,"",INDIRECT("GRELHA!A"&(MATCH(A57,Grelha!$V$3:$V$1490,0))+2)) ->  | C57: =INDIRECT("GRELHA!f"&(MATCH(A57,Grelha!$V$3:$V$1490,0))+2) -> 0 | D57: =INDIRECT("GRELHA!g"&(MATCH(A57,Grelha!$V$3:$V$1490,0))+2) -> 0 | E57: =INDIRECT("GRELHA!h"&(MATCH(A57,Grelha!$V$3:$V$1490,0))+2) -> 0
A58: 57 | B58: =IF(LEN(C58)<3,"",INDIRECT("GRELHA!A"&(MATCH(A58,Grelha!$V$3:$V$1490,0))+2)) ->  | C58: =INDIRECT("GRELHA!f"&(MATCH(A58,Grelha!$V$3:$V$1490,0))+2) -> 0 | D58: =INDIRECT("GRELHA!g"&(MATCH(A58,Grelha!$V$3:$V$1490,0))+2) -> 0 | E58: =INDIRECT("GRELHA!h"&(MATCH(A58,Grelha!$V$3:$V$1490,0))+2) -> 0
A59: 58 | B59: =IF(LEN(C59)<3,"",INDIRECT("GRELHA!A"&(MATCH(A59,Grelha!$V$3:$V$1490,0))+2)) ->  | C59: =INDIRECT("GRELHA!f"&(MATCH(A59,Grelha!$V$3:$V$1490,0))+2) -> 0 | D59: =INDIRECT("GRELHA!g"&(MATCH(A59,Grelha!$V$3:$V$1490,0))+2) -> 0 | E59: =INDIRECT("GRELHA!h"&(MATCH(A59,Grelha!$V$3:$V$1490,0))+2) -> 0
A60: 59 | B60: =IF(LEN(C60)<3,"",INDIRECT("GRELHA!A"&(MATCH(A60,Grelha!$V$3:$V$1490,0))+2)) ->  | C60: =INDIRECT("GRELHA!f"&(MATCH(A60,Grelha!$V$3:$V$1490,0))+2) -> 0 | D60: =INDIRECT("GRELHA!g"&(MATCH(A60,Grelha!$V$3:$V$1490,0))+2) -> 0 | E60: =INDIRECT("GRELHA!h"&(MATCH(A60,Grelha!$V$3:$V$1490,0))+2) -> 0
A61: 60 | B61: =IF(LEN(C61)<3,"",INDIRECT("GRELHA!A"&(MATCH(A61,Grelha!$V$3:$V$1490,0))+2)) ->  | C61: =INDIRECT("GRELHA!f"&(MATCH(A61,Grelha!$V$3:$V$1490,0))+2) -> 0 | D61: =INDIRECT("GRELHA!g"&(MATCH(A61,Grelha!$V$3:$V$1490,0))+2) -> 0 | E61: =INDIRECT("GRELHA!h"&(MATCH(A61,Grelha!$V$3:$V$1490,0))+2) -> 0
A62: 61 | B62: =IF(LEN(C62)<3,"",INDIRECT("GRELHA!A"&(MATCH(A62,Grelha!$V$3:$V$1490,0))+2)) ->  | C62: =INDIRECT("GRELHA!f"&(MATCH(A62,Grelha!$V$3:$V$1490,0))+2) -> 0 | D62: =INDIRECT("GRELHA!g"&(MATCH(A62,Grelha!$V$3:$V$1490,0))+2) -> 0 | E62: =INDIRECT("GRELHA!h"&(MATCH(A62,Grelha!$V$3:$V$1490,0))+2) -> 0
A63: 62 | B63: =IF(LEN(C63)<3,"",INDIRECT("GRELHA!A"&(MATCH(A63,Grelha!$V$3:$V$1490,0))+2)) ->  | C63: =INDIRECT("GRELHA!f"&(MATCH(A63,Grelha!$V$3:$V$1490,0))+2) -> 0 | D63: =INDIRECT("GRELHA!g"&(MATCH(A63,Grelha!$V$3:$V$1490,0))+2) -> 0 | E63: =INDIRECT("GRELHA!h"&(MATCH(A63,Grelha!$V$3:$V$1490,0))+2) -> 0
A64: 63 | B64: =IF(LEN(C64)<3,"",INDIRECT("GRELHA!A"&(MATCH(A64,Grelha!$V$3:$V$1490,0))+2)) ->  | C64: =INDIRECT("GRELHA!f"&(MATCH(A64,Grelha!$V$3:$V$1490,0))+2) -> 0 | D64: =INDIRECT("GRELHA!g"&(MATCH(A64,Grelha!$V$3:$V$1490,0))+2) -> 0 | E64: =INDIRECT("GRELHA!h"&(MATCH(A64,Grelha!$V$3:$V$1490,0))+2) -> 0
A65: 64 | B65: =IF(LEN(C65)<3,"",INDIRECT("GRELHA!A"&(MATCH(A65,Grelha!$V$3:$V$1490,0))+2)) ->  | C65: =INDIRECT("GRELHA!f"&(MATCH(A65,Grelha!$V$3:$V$1490,0))+2) -> 0 | D65: =INDIRECT("GRELHA!g"&(MATCH(A65,Grelha!$V$3:$V$1490,0))+2) -> 0 | E65: =INDIRECT("GRELHA!h"&(MATCH(A65,Grelha!$V$3:$V$1490,0))+2) -> 0
A66: 65 | B66: =IF(LEN(C66)<3,"",INDIRECT("GRELHA!A"&(MATCH(A66,Grelha!$V$3:$V$1490,0))+2)) ->  | C66: =INDIRECT("GRELHA!f"&(MATCH(A66,Grelha!$V$3:$V$1490,0))+2) -> 0 | D66: =INDIRECT("GRELHA!g"&(MATCH(A66,Grelha!$V$3:$V$1490,0))+2) -> 0 | E66: =INDIRECT("GRELHA!h"&(MATCH(A66,Grelha!$V$3:$V$1490,0))+2) -> 0
A67: 66 | B67: =IF(LEN(C67)<3,"",INDIRECT("GRELHA!A"&(MATCH(A67,Grelha!$V$3:$V$1490,0))+2)) ->  | C67: =INDIRECT("GRELHA!f"&(MATCH(A67,Grelha!$V$3:$V$1490,0))+2) -> 0 | D67: =INDIRECT("GRELHA!g"&(MATCH(A67,Grelha!$V$3:$V$1490,0))+2) -> 0 | E67: =INDIRECT("GRELHA!h"&(MATCH(A67,Grelha!$V$3:$V$1490,0))+2) -> 0
A68: 67 | B68: =IF(LEN(C68)<3,"",INDIRECT("GRELHA!A"&(MATCH(A68,Grelha!$V$3:$V$1490,0))+2)) ->  | C68: =INDIRECT("GRELHA!f"&(MATCH(A68,Grelha!$V$3:$V$1490,0))+2) -> 0 | D68: =INDIRECT("GRELHA!g"&(MATCH(A68,Grelha!$V$3:$V$1490,0))+2) -> 0 | E68: =INDIRECT("GRELHA!h"&(MATCH(A68,Grelha!$V$3:$V$1490,0))+2) -> 0
A69: 68 | B69: =IF(LEN(C69)<3,"",INDIRECT("GRELHA!A"&(MATCH(A69,Grelha!$V$3:$V$1490,0))+2)) ->  | C69: =INDIRECT("GRELHA!f"&(MATCH(A69,Grelha!$V$3:$V$1490,0))+2) -> 0 | D69: =INDIRECT("GRELHA!g"&(MATCH(A69,Grelha!$V$3:$V$1490,0))+2) -> 0 | E69: =INDIRECT("GRELHA!h"&(MATCH(A69,Grelha!$V$3:$V$1490,0))+2) -> 0
A70: 69 | B70: =IF(LEN(C70)<3,"",INDIRECT("GRELHA!A"&(MATCH(A70,Grelha!$V$3:$V$1490,0))+2)) ->  | C70: =INDIRECT("GRELHA!f"&(MATCH(A70,Grelha!$V$3:$V$1490,0))+2) -> 0 | D70: =INDIRECT("GRELHA!g"&(MATCH(A70,Grelha!$V$3:$V$1490,0))+2) -> 0 | E70: =INDIRECT("GRELHA!h"&(MATCH(A70,Grelha!$V$3:$V$1490,0))+2) -> 0
A71: 70 | B71: =IF(LEN(C71)<3,"",INDIRECT("GRELHA!A"&(MATCH(A71,Grelha!$V$3:$V$1490,0))+2)) ->  | C71: =INDIRECT("GRELHA!f"&(MATCH(A71,Grelha!$V$3:$V$1490,0))+2) -> 0 | D71: =INDIRECT("GRELHA!g"&(MATCH(A71,Grelha!$V$3:$V$1490,0))+2) -> 0 | E71: =INDIRECT("GRELHA!h"&(MATCH(A71,Grelha!$V$3:$V$1490,0))+2) -> 0
A72: 71 | B72: =IF(LEN(C72)<3,"",INDIRECT("GRELHA!A"&(MATCH(A72,Grelha!$V$3:$V$1490,0))+2)) ->  | C72: =INDIRECT("GRELHA!f"&(MATCH(A72,Grelha!$V$3:$V$1490,0))+2) -> 0 | D72: =INDIRECT("GRELHA!g"&(MATCH(A72,Grelha!$V$3:$V$1490,0))+2) -> 0 | E72: =INDIRECT("GRELHA!h"&(MATCH(A72,Grelha!$V$3:$V$1490,0))+2) -> 0
A73: 72 | B73: =IF(LEN(C73)<3,"",INDIRECT("GRELHA!A"&(MATCH(A73,Grelha!$V$3:$V$1490,0))+2)) ->  | C73: =INDIRECT("GRELHA!f"&(MATCH(A73,Grelha!$V$3:$V$1490,0))+2) -> 0 | D73: =INDIRECT("GRELHA!g"&(MATCH(A73,Grelha!$V$3:$V$1490,0))+2) -> 0 | E73: =INDIRECT("GRELHA!h"&(MATCH(A73,Grelha!$V$3:$V$1490,0))+2) -> 0
A74: 73 | B74: =IF(LEN(C74)<3,"",INDIRECT("GRELHA!A"&(MATCH(A74,Grelha!$V$3:$V$1490,0))+2)) ->  | C74: =INDIRECT("GRELHA!f"&(MATCH(A74,Grelha!$V$3:$V$1490,0))+2) -> 0 | D74: =INDIRECT("GRELHA!g"&(MATCH(A74,Grelha!$V$3:$V$1490,0))+2) -> 0 | E74: =INDIRECT("GRELHA!h"&(MATCH(A74,Grelha!$V$3:$V$1490,0))+2) -> 0
A75: 74 | B75: =IF(LEN(C75)<3,"",INDIRECT("GRELHA!A"&(MATCH(A75,Grelha!$V$3:$V$1490,0))+2)) ->  | C75: =INDIRECT("GRELHA!f"&(MATCH(A75,Grelha!$V$3:$V$1490,0))+2) -> 0 | D75: =INDIRECT("GRELHA!g"&(MATCH(A75,Grelha!$V$3:$V$1490,0))+2) -> 0 | E75: =INDIRECT("GRELHA!h"&(MATCH(A75,Grelha!$V$3:$V$1490,0))+2) -> 0
A76: 75 | B76: =IF(LEN(C76)<3,"",INDIRECT("GRELHA!A"&(MATCH(A76,Grelha!$V$3:$V$1490,0))+2)) ->  | C76: =INDIRECT("GRELHA!f"&(MATCH(A76,Grelha!$V$3:$V$1490,0))+2) -> 0 | D76: =INDIRECT("GRELHA!g"&(MATCH(A76,Grelha!$V$3:$V$1490,0))+2) -> 0 | E76: =INDIRECT("GRELHA!h"&(MATCH(A76,Grelha!$V$3:$V$1490,0))+2) -> 0
A77: 76 | B77: =IF(LEN(C77)<3,"",INDIRECT("GRELHA!A"&(MATCH(A77,Grelha!$V$3:$V$1490,0))+2)) ->  | C77: =INDIRECT("GRELHA!f"&(MATCH(A77,Grelha!$V$3:$V$1490,0))+2) -> 0 | D77: =INDIRECT("GRELHA!g"&(MATCH(A77,Grelha!$V$3:$V$1490,0))+2) -> 0 | E77: =INDIRECT("GRELHA!h"&(MATCH(A77,Grelha!$V$3:$V$1490,0))+2) -> 0
A78: 77 | B78: =IF(LEN(C78)<3,"",INDIRECT("GRELHA!A"&(MATCH(A78,Grelha!$V$3:$V$1490,0))+2)) ->  | C78: =INDIRECT("GRELHA!f"&(MATCH(A78,Grelha!$V$3:$V$1490,0))+2) -> 0 | D78: =INDIRECT("GRELHA!g"&(MATCH(A78,Grelha!$V$3:$V$1490,0))+2) -> 0 | E78: =INDIRECT("GRELHA!h"&(MATCH(A78,Grelha!$V$3:$V$1490,0))+2) -> 0
A79: 78 | B79: =IF(LEN(C79)<3,"",INDIRECT("GRELHA!A"&(MATCH(A79,Grelha!$V$3:$V$1490,0))+2)) ->  | C79: =INDIRECT("GRELHA!f"&(MATCH(A79,Grelha!$V$3:$V$1490,0))+2) -> 0 | D79: =INDIRECT("GRELHA!g"&(MATCH(A79,Grelha!$V$3:$V$1490,0))+2) -> 0 | E79: =INDIRECT("GRELHA!h"&(MATCH(A79,Grelha!$V$3:$V$1490,0))+2) -> 0
A80: 79 | B80: =IF(LEN(C80)<3,"",INDIRECT("GRELHA!A"&(MATCH(A80,Grelha!$V$3:$V$1490,0))+2)) ->  | C80: =INDIRECT("GRELHA!f"&(MATCH(A80,Grelha!$V$3:$V$1490,0))+2) -> 0 | D80: =INDIRECT("GRELHA!g"&(MATCH(A80,Grelha!$V$3:$V$1490,0))+2) -> 0 | E80: =INDIRECT("GRELHA!h"&(MATCH(A80,Grelha!$V$3:$V$1490,0))+2) -> 0
A81: 80 | B81: =IF(LEN(C81)<3,"",INDIRECT("GRELHA!A"&(MATCH(A81,Grelha!$V$3:$V$1490,0))+2)) ->  | C81: =INDIRECT("GRELHA!f"&(MATCH(A81,Grelha!$V$3:$V$1490,0))+2) -> 0 | D81: =INDIRECT("GRELHA!g"&(MATCH(A81,Grelha!$V$3:$V$1490,0))+2) -> 0 | E81: =INDIRECT("GRELHA!h"&(MATCH(A81,Grelha!$V$3:$V$1490,0))+2) -> 0
A82: 81 | B82: =IF(LEN(C82)<3,"",INDIRECT("GRELHA!A"&(MATCH(A82,Grelha!$V$3:$V$1490,0))+2)) ->  | C82: =INDIRECT("GRELHA!f"&(MATCH(A82,Grelha!$V$3:$V$1490,0))+2) -> 0 | D82: =INDIRECT("GRELHA!g"&(MATCH(A82,Grelha!$V$3:$V$1490,0))+2) -> 0 | E82: =INDIRECT("GRELHA!h"&(MATCH(A82,Grelha!$V$3:$V$1490,0))+2) -> 0
A83: 82 | B83: =IF(LEN(C83)<3,"",INDIRECT("GRELHA!A"&(MATCH(A83,Grelha!$V$3:$V$1490,0))+2)) ->  | C83: =INDIRECT("GRELHA!f"&(MATCH(A83,Grelha!$V$3:$V$1490,0))+2) -> 0 | D83: =INDIRECT("GRELHA!g"&(MATCH(A83,Grelha!$V$3:$V$1490,0))+2) -> 0 | E83: =INDIRECT("GRELHA!h"&(MATCH(A83,Grelha!$V$3:$V$1490,0))+2) -> 0
A84: 83 | B84: =IF(LEN(C84)<3,"",INDIRECT("GRELHA!A"&(MATCH(A84,Grelha!$V$3:$V$1490,0))+2)) ->  | C84: =INDIRECT("GRELHA!f"&(MATCH(A84,Grelha!$V$3:$V$1490,0))+2) -> 0 | D84: =INDIRECT("GRELHA!g"&(MATCH(A84,Grelha!$V$3:$V$1490,0))+2) -> 0 | E84: =INDIRECT("GRELHA!h"&(MATCH(A84,Grelha!$V$3:$V$1490,0))+2) -> 0
A85: 84 | B85: =IF(LEN(C85)<3,"",INDIRECT("GRELHA!A"&(MATCH(A85,Grelha!$V$3:$V$1490,0))+2)) ->  | C85: =INDIRECT("GRELHA!f"&(MATCH(A85,Grelha!$V$3:$V$1490,0))+2) -> 0 | D85: =INDIRECT("GRELHA!g"&(MATCH(A85,Grelha!$V$3:$V$1490,0))+2) -> 0 | E85: =INDIRECT("GRELHA!h"&(MATCH(A85,Grelha!$V$3:$V$1490,0))+2) -> 0
A86: 85 | B86: =IF(LEN(C86)<3,"",INDIRECT("GRELHA!A"&(MATCH(A86,Grelha!$V$3:$V$1490,0))+2)) ->  | C86: =INDIRECT("GRELHA!f"&(MATCH(A86,Grelha!$V$3:$V$1490,0))+2) -> 0 | D86: =INDIRECT("GRELHA!g"&(MATCH(A86,Grelha!$V$3:$V$1490,0))+2) -> 0 | E86: =INDIRECT("GRELHA!h"&(MATCH(A86,Grelha!$V$3:$V$1490,0))+2) -> 0
A87: 86 | B87: =IF(LEN(C87)<3,"",INDIRECT("GRELHA!A"&(MATCH(A87,Grelha!$V$3:$V$1490,0))+2)) ->  | C87: =INDIRECT("GRELHA!f"&(MATCH(A87,Grelha!$V$3:$V$1490,0))+2) -> 0 | D87: =INDIRECT("GRELHA!g"&(MATCH(A87,Grelha!$V$3:$V$1490,0))+2) -> 0 | E87: =INDIRECT("GRELHA!h"&(MATCH(A87,Grelha!$V$3:$V$1490,0))+2) -> 0
A88: 87 | B88: =IF(LEN(C88)<3,"",INDIRECT("GRELHA!A"&(MATCH(A88,Grelha!$V$3:$V$1490,0))+2)) ->  | C88: =INDIRECT("GRELHA!f"&(MATCH(A88,Grelha!$V$3:$V$1490,0))+2) -> 0 | D88: =INDIRECT("GRELHA!g"&(MATCH(A88,Grelha!$V$3:$V$1490,0))+2) -> 0 | E88: =INDIRECT("GRELHA!h"&(MATCH(A88,Grelha!$V$3:$V$1490,0))+2) -> 0
A89: 88 | B89: =IF(LEN(C89)<3,"",INDIRECT("GRELHA!A"&(MATCH(A89,Grelha!$V$3:$V$1490,0))+2)) ->  | C89: =INDIRECT("GRELHA!f"&(MATCH(A89,Grelha!$V$3:$V$1490,0))+2) -> 0 | D89: =INDIRECT("GRELHA!g"&(MATCH(A89,Grelha!$V$3:$V$1490,0))+2) -> 0 | E89: =INDIRECT("GRELHA!h"&(MATCH(A89,Grelha!$V$3:$V$1490,0))+2) -> 0
A90: 89 | B90: =IF(LEN(C90)<3,"",INDIRECT("GRELHA!A"&(MATCH(A90,Grelha!$V$3:$V$1490,0))+2)) ->  | C90: =INDIRECT("GRELHA!f"&(MATCH(A90,Grelha!$V$3:$V$1490,0))+2) -> 0 | D90: =INDIRECT("GRELHA!g"&(MATCH(A90,Grelha!$V$3:$V$1490,0))+2) -> 0 | E90: =INDIRECT("GRELHA!h"&(MATCH(A90,Grelha!$V$3:$V$1490,0))+2) -> 0
A91: 90 | B91: =IF(LEN(C91)<3,"",INDIRECT("GRELHA!A"&(MATCH(A91,Grelha!$V$3:$V$1490,0))+2)) ->  | C91: =INDIRECT("GRELHA!f"&(MATCH(A91,Grelha!$V$3:$V$1490,0))+2) -> 0 | D91: =INDIRECT("GRELHA!g"&(MATCH(A91,Grelha!$V$3:$V$1490,0))+2) -> 0 | E91: =INDIRECT("GRELHA!h"&(MATCH(A91,Grelha!$V$3:$V$1490,0))+2) -> 0
A92: 91 | B92: =IF(LEN(C92)<3,"",INDIRECT("GRELHA!A"&(MATCH(A92,Grelha!$V$3:$V$1490,0))+2)) ->  | C92: =INDIRECT("GRELHA!f"&(MATCH(A92,Grelha!$V$3:$V$1490,0))+2) -> 0 | D92: =INDIRECT("GRELHA!g"&(MATCH(A92,Grelha!$V$3:$V$1490,0))+2) -> 0 | E92: =INDIRECT("GRELHA!h"&(MATCH(A92,Grelha!$V$3:$V$1490,0))+2) -> 0
A93: 92 | B93: =IF(LEN(C93)<3,"",INDIRECT("GRELHA!A"&(MATCH(A93,Grelha!$V$3:$V$1490,0))+2)) ->  | C93: =INDIRECT("GRELHA!f"&(MATCH(A93,Grelha!$V$3:$V$1490,0))+2) -> 0 | D93: =INDIRECT("GRELHA!g"&(MATCH(A93,Grelha!$V$3:$V$1490,0))+2) -> 0 | E93: =INDIRECT("GRELHA!h"&(MATCH(A93,Grelha!$V$3:$V$1490,0))+2) -> 0
A94: 93 | B94: =IF(LEN(C94)<3,"",INDIRECT("GRELHA!A"&(MATCH(A94,Grelha!$V$3:$V$1490,0))+2)) ->  | C94: =INDIRECT("GRELHA!f"&(MATCH(A94,Grelha!$V$3:$V$1490,0))+2) -> 0 | D94: =INDIRECT("GRELHA!g"&(MATCH(A94,Grelha!$V$3:$V$1490,0))+2) -> 0 | E94: =INDIRECT("GRELHA!h"&(MATCH(A94,Grelha!$V$3:$V$1490,0))+2) -> 0
A95: 94 | B95: =IF(LEN(C95)<3,"",INDIRECT("GRELHA!A"&(MATCH(A95,Grelha!$V$3:$V$1490,0))+2)) ->  | C95: =INDIRECT("GRELHA!f"&(MATCH(A95,Grelha!$V$3:$V$1490,0))+2) -> 0 | D95: =INDIRECT("GRELHA!g"&(MATCH(A95,Grelha!$V$3:$V$1490,0))+2) -> 0 | E95: =INDIRECT("GRELHA!h"&(MATCH(A95,Grelha!$V$3:$V$1490,0))+2) -> 0
A96: 95 | B96: =IF(LEN(C96)<3,"",INDIRECT("GRELHA!A"&(MATCH(A96,Grelha!$V$3:$V$1490,0))+2)) ->  | C96: =INDIRECT("GRELHA!f"&(MATCH(A96,Grelha!$V$3:$V$1490,0))+2) -> 0 | D96: =INDIRECT("GRELHA!g"&(MATCH(A96,Grelha!$V$3:$V$1490,0))+2) -> 0 | E96: =INDIRECT("GRELHA!h"&(MATCH(A96,Grelha!$V$3:$V$1490,0))+2) -> 0
A97: 96 | B97: =IF(LEN(C97)<3,"",INDIRECT("GRELHA!A"&(MATCH(A97,Grelha!$V$3:$V$1490,0))+2)) ->  | C97: =INDIRECT("GRELHA!f"&(MATCH(A97,Grelha!$V$3:$V$1490,0))+2) -> 0 | D97: =INDIRECT("GRELHA!g"&(MATCH(A97,Grelha!$V$3:$V$1490,0))+2) -> 0 | E97: =INDIRECT("GRELHA!h"&(MATCH(A97,Grelha!$V$3:$V$1490,0))+2) -> 0
A98: 97 | B98: =IF(LEN(C98)<3,"",INDIRECT("GRELHA!A"&(MATCH(A98,Grelha!$V$3:$V$1490,0))+2)) ->  | C98: =INDIRECT("GRELHA!f"&(MATCH(A98,Grelha!$V$3:$V$1490,0))+2) -> 0 | D98: =INDIRECT("GRELHA!g"&(MATCH(A98,Grelha!$V$3:$V$1490,0))+2) -> 0 | E98: =INDIRECT("GRELHA!h"&(MATCH(A98,Grelha!$V$3:$V$1490,0))+2) -> 0
A99: 98 | B99: =IF(LEN(C99)<3,"",INDIRECT("GRELHA!A"&(MATCH(A99,Grelha!$V$3:$V$1490,0))+2)) ->  | C99: =INDIRECT("GRELHA!f"&(MATCH(A99,Grelha!$V$3:$V$1490,0))+2) -> 0 | D99: =INDIRECT("GRELHA!g"&(MATCH(A99,Grelha!$V$3:$V$1490,0))+2) -> 0 | E99: =INDIRECT("GRELHA!h"&(MATCH(A99,Grelha!$V$3:$V$1490,0))+2) -> 0
A100: 99 | B100: =IF(LEN(C100)<3,"",INDIRECT("GRELHA!A"&(MATCH(A100,Grelha!$V$3:$V$1490,0))+2)) ->  | C100: =INDIRECT("GRELHA!f"&(MATCH(A100,Grelha!$V$3:$V$1490,0))+2) -> 0 | D100: =INDIRECT("GRELHA!g"&(MATCH(A100,Grelha!$V$3:$V$1490,0))+2) -> 0 | E100: =INDIRECT("GRELHA!h"&(MATCH(A100,Grelha!$V$3:$V$1490,0))+2) -> 0
A101: 100 | B101: =IF(LEN(C101)<3,"",INDIRECT("GRELHA!A"&(MATCH(A101,Grelha!$V$3:$V$1490,0))+2)) ->  | C101: =INDIRECT("GRELHA!f"&(MATCH(A101,Grelha!$V$3:$V$1490,0))+2) -> 0 | D101: =INDIRECT("GRELHA!g"&(MATCH(A101,Grelha!$V$3:$V$1490,0))+2) -> 0 | E101: =INDIRECT("GRELHA!h"&(MATCH(A101,Grelha!$V$3:$V$1490,0))+2) -> 0
A102: 101 | B102: =IF(LEN(C102)<3,"",INDIRECT("GRELHA!A"&(MATCH(A102,Grelha!$V$3:$V$1490,0))+2)) ->  | C102: =INDIRECT("GRELHA!f"&(MATCH(A102,Grelha!$V$3:$V$1490,0))+2) -> 0 | D102: =INDIRECT("GRELHA!g"&(MATCH(A102,Grelha!$V$3:$V$1490,0))+2) -> 0 | E102: =INDIRECT("GRELHA!h"&(MATCH(A102,Grelha!$V$3:$V$1490,0))+2) -> 0
A103: 102 | B103: =IF(LEN(C103)<3,"",INDIRECT("GRELHA!A"&(MATCH(A103,Grelha!$V$3:$V$1490,0))+2)) ->  | C103: =INDIRECT("GRELHA!f"&(MATCH(A103,Grelha!$V$3:$V$1490,0))+2) -> 0 | D103: =INDIRECT("GRELHA!g"&(MATCH(A103,Grelha!$V$3:$V$1490,0))+2) -> 0 | E103: =INDIRECT("GRELHA!h"&(MATCH(A103,Grelha!$V$3:$V$1490,0))+2) -> 0
A104: 103 | B104: =IF(LEN(C104)<3,"",INDIRECT("GRELHA!A"&(MATCH(A104,Grelha!$V$3:$V$1490,0))+2)) ->  | C104: =INDIRECT("GRELHA!f"&(MATCH(A104,Grelha!$V$3:$V$1490,0))+2) -> 0 | D104: =INDIRECT("GRELHA!g"&(MATCH(A104,Grelha!$V$3:$V$1490,0))+2) -> 0 | E104: =INDIRECT("GRELHA!h"&(MATCH(A104,Grelha!$V$3:$V$1490,0))+2) -> 0
A105: 104 | B105: =IF(LEN(C105)<3,"",INDIRECT("GRELHA!A"&(MATCH(A105,Grelha!$V$3:$V$1490,0))+2)) ->  | C105: =INDIRECT("GRELHA!f"&(MATCH(A105,Grelha!$V$3:$V$1490,0))+2) -> 0 | D105: =INDIRECT("GRELHA!g"&(MATCH(A105,Grelha!$V$3:$V$1490,0))+2) -> 0 | E105: =INDIRECT("GRELHA!h"&(MATCH(A105,Grelha!$V$3:$V$1490,0))+2) -> 0
A106: 105 | B106: =IF(LEN(C106)<3,"",INDIRECT("GRELHA!A"&(MATCH(A106,Grelha!$V$3:$V$1490,0))+2)) ->  | C106: =INDIRECT("GRELHA!f"&(MATCH(A106,Grelha!$V$3:$V$1490,0))+2) -> 0 | D106: =INDIRECT("GRELHA!g"&(MATCH(A106,Grelha!$V$3:$V$1490,0))+2) -> 0 | E106: =INDIRECT("GRELHA!h"&(MATCH(A106,Grelha!$V$3:$V$1490,0))+2) -> 0
A107: 106 | B107: =IF(LEN(C107)<3,"",INDIRECT("GRELHA!A"&(MATCH(A107,Grelha!$V$3:$V$1490,0))+2)) ->  | C107: =INDIRECT("GRELHA!f"&(MATCH(A107,Grelha!$V$3:$V$1490,0))+2) -> 0 | D107: =INDIRECT("GRELHA!g"&(MATCH(A107,Grelha!$V$3:$V$1490,0))+2) -> 0 | E107: =INDIRECT("GRELHA!h"&(MATCH(A107,Grelha!$V$3:$V$1490,0))+2) -> 0
A108: 107 | B108: =IF(LEN(C108)<3,"",INDIRECT("GRELHA!A"&(MATCH(A108,Grelha!$V$3:$V$1490,0))+2)) ->  | C108: =INDIRECT("GRELHA!f"&(MATCH(A108,Grelha!$V$3:$V$1490,0))+2) -> 0 | D108: =INDIRECT("GRELHA!g"&(MATCH(A108,Grelha!$V$3:$V$1490,0))+2) -> 0 | E108: =INDIRECT("GRELHA!h"&(MATCH(A108,Grelha!$V$3:$V$1490,0))+2) -> 0
A109: 108 | B109: =IF(LEN(C109)<3,"",INDIRECT("GRELHA!A"&(MATCH(A109,Grelha!$V$3:$V$1490,0))+2)) ->  | C109: =INDIRECT("GRELHA!f"&(MATCH(A109,Grelha!$V$3:$V$1490,0))+2) -> 0 | D109: =INDIRECT("GRELHA!g"&(MATCH(A109,Grelha!$V$3:$V$1490,0))+2) -> 0 | E109: =INDIRECT("GRELHA!h"&(MATCH(A109,Grelha!$V$3:$V$1490,0))+2) -> 0
A110: 109 | B110: =IF(LEN(C110)<3,"",INDIRECT("GRELHA!A"&(MATCH(A110,Grelha!$V$3:$V$1490,0))+2)) ->  | C110: =INDIRECT("GRELHA!f"&(MATCH(A110,Grelha!$V$3:$V$1490,0))+2) -> 0 | D110: =INDIRECT("GRELHA!g"&(MATCH(A110,Grelha!$V$3:$V$1490,0))+2) -> 0 | E110: =INDIRECT("GRELHA!h"&(MATCH(A110,Grelha!$V$3:$V$1490,0))+2) -> 0
A111: 110 | B111: =IF(LEN(C111)<3,"",INDIRECT("GRELHA!A"&(MATCH(A111,Grelha!$V$3:$V$1490,0))+2)) ->  | C111: =INDIRECT("GRELHA!f"&(MATCH(A111,Grelha!$V$3:$V$1490,0))+2) -> 0 | D111: =INDIRECT("GRELHA!g"&(MATCH(A111,Grelha!$V$3:$V$1490,0))+2) -> 0 | E111: =INDIRECT("GRELHA!h"&(MATCH(A111,Grelha!$V$3:$V$1490,0))+2) -> 0
A112: 111 | B112: =IF(LEN(C112)<3,"",INDIRECT("GRELHA!A"&(MATCH(A112,Grelha!$V$3:$V$1490,0))+2)) ->  | C112: =INDIRECT("GRELHA!f"&(MATCH(A112,Grelha!$V$3:$V$1490,0))+2) -> 0 | D112: =INDIRECT("GRELHA!g"&(MATCH(A112,Grelha!$V$3:$V$1490,0))+2) -> 0 | E112: =INDIRECT("GRELHA!h"&(MATCH(A112,Grelha!$V$3:$V$1490,0))+2) -> 0
A113: 112 | B113: =IF(LEN(C113)<3,"",INDIRECT("GRELHA!A"&(MATCH(A113,Grelha!$V$3:$V$1490,0))+2)) ->  | C113: =INDIRECT("GRELHA!f"&(MATCH(A113,Grelha!$V$3:$V$1490,0))+2) -> 0 | D113: =INDIRECT("GRELHA!g"&(MATCH(A113,Grelha!$V$3:$V$1490,0))+2) -> 0 | E113: =INDIRECT("GRELHA!h"&(MATCH(A113,Grelha!$V$3:$V$1490,0))+2) -> 0
A114: 113 | B114: =IF(LEN(C114)<3,"",INDIRECT("GRELHA!A"&(MATCH(A114,Grelha!$V$3:$V$1490,0))+2)) ->  | C114: =INDIRECT("GRELHA!f"&(MATCH(A114,Grelha!$V$3:$V$1490,0))+2) -> 0 | D114: =INDIRECT("GRELHA!g"&(MATCH(A114,Grelha!$V$3:$V$1490,0))+2) -> 0 | E114: =INDIRECT("GRELHA!h"&(MATCH(A114,Grelha!$V$3:$V$1490,0))+2) -> 0
A115: 114 | B115: =IF(LEN(C115)<3,"",INDIRECT("GRELHA!A"&(MATCH(A115,Grelha!$V$3:$V$1490,0))+2)) ->  | C115: =INDIRECT("GRELHA!f"&(MATCH(A115,Grelha!$V$3:$V$1490,0))+2) -> 0 | D115: =INDIRECT("GRELHA!g"&(MATCH(A115,Grelha!$V$3:$V$1490,0))+2) -> 0 | E115: =INDIRECT("GRELHA!h"&(MATCH(A115,Grelha!$V$3:$V$1490,0))+2) -> 0
A116: 115 | B116: =IF(LEN(C116)<3,"",INDIRECT("GRELHA!A"&(MATCH(A116,Grelha!$V$3:$V$1490,0))+2)) ->  | C116: =INDIRECT("GRELHA!f"&(MATCH(A116,Grelha!$V$3:$V$1490,0))+2) -> 0 | D116: =INDIRECT("GRELHA!g"&(MATCH(A116,Grelha!$V$3:$V$1490,0))+2) -> 0 | E116: =INDIRECT("GRELHA!h"&(MATCH(A116,Grelha!$V$3:$V$1490,0))+2) -> 0
A117: 116 | B117: =IF(LEN(C117)<3,"",INDIRECT("GRELHA!A"&(MATCH(A117,Grelha!$V$3:$V$1490,0))+2)) ->  | C117: =INDIRECT("GRELHA!f"&(MATCH(A117,Grelha!$V$3:$V$1490,0))+2) -> 0 | D117: =INDIRECT("GRELHA!g"&(MATCH(A117,Grelha!$V$3:$V$1490,0))+2) -> 0 | E117: =INDIRECT("GRELHA!h"&(MATCH(A117,Grelha!$V$3:$V$1490,0))+2) -> 0
A118: 117 | B118: =IF(LEN(C118)<3,"",INDIRECT("GRELHA!A"&(MATCH(A118,Grelha!$V$3:$V$1490,0))+2)) ->  | C118: =INDIRECT("GRELHA!f"&(MATCH(A118,Grelha!$V$3:$V$1490,0))+2) -> 0 | D118: =INDIRECT("GRELHA!g"&(MATCH(A118,Grelha!$V$3:$V$1490,0))+2) -> 0 | E118: =INDIRECT("GRELHA!h"&(MATCH(A118,Grelha!$V$3:$V$1490,0))+2) -> 0
A119: 118 | B119: =IF(LEN(C119)<3,"",INDIRECT("GRELHA!A"&(MATCH(A119,Grelha!$V$3:$V$1490,0))+2)) ->  | C119: =INDIRECT("GRELHA!f"&(MATCH(A119,Grelha!$V$3:$V$1490,0))+2) -> 0 | D119: =INDIRECT("GRELHA!g"&(MATCH(A119,Grelha!$V$3:$V$1490,0))+2) -> 0 | E119: =INDIRECT("GRELHA!h"&(MATCH(A119,Grelha!$V$3:$V$1490,0))+2) -> 0
A120: 119 | B120: =IF(LEN(C120)<3,"",INDIRECT("GRELHA!A"&(MATCH(A120,Grelha!$V$3:$V$1490,0))+2)) ->  | C120: =INDIRECT("GRELHA!f"&(MATCH(A120,Grelha!$V$3:$V$1490,0))+2) -> 0 | D120: =INDIRECT("GRELHA!g"&(MATCH(A120,Grelha!$V$3:$V$1490,0))+2) -> 0 | E120: =INDIRECT("GRELHA!h"&(MATCH(A120,Grelha!$V$3:$V$1490,0))+2) -> 0
A121: 120 | B121: =IF(LEN(C121)<3,"",INDIRECT("GRELHA!A"&(MATCH(A121,Grelha!$V$3:$V$1490,0))+2)) ->  | C121: =INDIRECT("GRELHA!f"&(MATCH(A121,Grelha!$V$3:$V$1490,0))+2) -> 0 | D121: =INDIRECT("GRELHA!g"&(MATCH(A121,Grelha!$V$3:$V$1490,0))+2) -> 0 | E121: =INDIRECT("GRELHA!h"&(MATCH(A121,Grelha!$V$3:$V$1490,0))+2) -> 0
A122: 121 | B122: =IF(LEN(C122)<3,"",INDIRECT("GRELHA!A"&(MATCH(A122,Grelha!$V$3:$V$1490,0))+2)) ->  | C122: =INDIRECT("GRELHA!f"&(MATCH(A122,Grelha!$V$3:$V$1490,0))+2) -> 0 | D122: =INDIRECT("GRELHA!g"&(MATCH(A122,Grelha!$V$3:$V$1490,0))+2) -> 0 | E122: =INDIRECT("GRELHA!h"&(MATCH(A122,Grelha!$V$3:$V$1490,0))+2) -> 0
A123: 122 | B123: =IF(LEN(C123)<3,"",INDIRECT("GRELHA!A"&(MATCH(A123,Grelha!$V$3:$V$1490,0))+2)) ->  | C123: =INDIRECT("GRELHA!f"&(MATCH(A123,Grelha!$V$3:$V$1490,0))+2) -> 0 | D123: =INDIRECT("GRELHA!g"&(MATCH(A123,Grelha!$V$3:$V$1490,0))+2) -> 0 | E123: =INDIRECT("GRELHA!h"&(MATCH(A123,Grelha!$V$3:$V$1490,0))+2) -> 0
A124: 123 | B124: =IF(LEN(C124)<3,"",INDIRECT("GRELHA!A"&(MATCH(A124,Grelha!$V$3:$V$1490,0))+2)) ->  | C124: =INDIRECT("GRELHA!f"&(MATCH(A124,Grelha!$V$3:$V$1490,0))+2) -> 0 | D124: =INDIRECT("GRELHA!g"&(MATCH(A124,Grelha!$V$3:$V$1490,0))+2) -> 0 | E124: =INDIRECT("GRELHA!h"&(MATCH(A124,Grelha!$V$3:$V$1490,0))+2) -> 0
A125: 124 | B125: =IF(LEN(C125)<3,"",INDIRECT("GRELHA!A"&(MATCH(A125,Grelha!$V$3:$V$1490,0))+2)) ->  | C125: =INDIRECT("GRELHA!f"&(MATCH(A125,Grelha!$V$3:$V$1490,0))+2) -> 0 | D125: =INDIRECT("GRELHA!g"&(MATCH(A125,Grelha!$V$3:$V$1490,0))+2) -> 0 | E125: =INDIRECT("GRELHA!h"&(MATCH(A125,Grelha!$V$3:$V$1490,0))+2) -> 0
A126: 125 | B126: =IF(LEN(C126)<3,"",INDIRECT("GRELHA!A"&(MATCH(A126,Grelha!$V$3:$V$1490,0))+2)) ->  | C126: =INDIRECT("GRELHA!f"&(MATCH(A126,Grelha!$V$3:$V$1490,0))+2) -> 0 | D126: =INDIRECT("GRELHA!g"&(MATCH(A126,Grelha!$V$3:$V$1490,0))+2) -> 0 | E126: =INDIRECT("GRELHA!h"&(MATCH(A126,Grelha!$V$3:$V$1490,0))+2) -> 0
A127: 126 | B127: =IF(LEN(C127)<3,"",INDIRECT("GRELHA!A"&(MATCH(A127,Grelha!$V$3:$V$1490,0))+2)) ->  | C127: =INDIRECT("GRELHA!f"&(MATCH(A127,Grelha!$V$3:$V$1490,0))+2) -> 0 | D127: =INDIRECT("GRELHA!g"&(MATCH(A127,Grelha!$V$3:$V$1490,0))+2) -> 0 | E127: =INDIRECT("GRELHA!h"&(MATCH(A127,Grelha!$V$3:$V$1490,0))+2) -> 0
A128: 127 | B128: =IF(LEN(C128)<3,"",INDIRECT("GRELHA!A"&(MATCH(A128,Grelha!$V$3:$V$1490,0))+2)) ->  | C128: =INDIRECT("GRELHA!f"&(MATCH(A128,Grelha!$V$3:$V$1490,0))+2) -> 0 | D128: =INDIRECT("GRELHA!g"&(MATCH(A128,Grelha!$V$3:$V$1490,0))+2) -> 0 | E128: =INDIRECT("GRELHA!h"&(MATCH(A128,Grelha!$V$3:$V$1490,0))+2) -> 0
A129: 128 | B129: =IF(LEN(C129)<3,"",INDIRECT("GRELHA!A"&(MATCH(A129,Grelha!$V$3:$V$1490,0))+2)) ->  | C129: =INDIRECT("GRELHA!f"&(MATCH(A129,Grelha!$V$3:$V$1490,0))+2) -> 0 | D129: =INDIRECT("GRELHA!g"&(MATCH(A129,Grelha!$V$3:$V$1490,0))+2) -> 0 | E129: =INDIRECT("GRELHA!h"&(MATCH(A129,Grelha!$V$3:$V$1490,0))+2) -> 0
A130: 129 | B130: =IF(LEN(C130)<3,"",INDIRECT("GRELHA!A"&(MATCH(A130,Grelha!$V$3:$V$1490,0))+2)) ->  | C130: =INDIRECT("GRELHA!f"&(MATCH(A130,Grelha!$V$3:$V$1490,0))+2) -> 0 | D130: =INDIRECT("GRELHA!g"&(MATCH(A130,Grelha!$V$3:$V$1490,0))+2) -> 0 | E130: =INDIRECT("GRELHA!h"&(MATCH(A130,Grelha!$V$3:$V$1490,0))+2) -> 0
A131: 130 | B131: =IF(LEN(C131)<3,"",INDIRECT("GRELHA!A"&(MATCH(A131,Grelha!$V$3:$V$1490,0))+2)) ->  | C131: =INDIRECT("GRELHA!f"&(MATCH(A131,Grelha!$V$3:$V$1490,0))+2) -> 0 | D131: =INDIRECT("GRELHA!g"&(MATCH(A131,Grelha!$V$3:$V$1490,0))+2) -> 0 | E131: =INDIRECT("GRELHA!h"&(MATCH(A131,Grelha!$V$3:$V$1490,0))+2) -> 0
A132: 131 | B132: =IF(LEN(C132)<3,"",INDIRECT("GRELHA!A"&(MATCH(A132,Grelha!$V$3:$V$1490,0))+2)) ->  | C132: =INDIRECT("GRELHA!f"&(MATCH(A132,Grelha!$V$3:$V$1490,0))+2) -> 0 | D132: =INDIRECT("GRELHA!g"&(MATCH(A132,Grelha!$V$3:$V$1490,0))+2) -> 0 | E132: =INDIRECT("GRELHA!h"&(MATCH(A132,Grelha!$V$3:$V$1490,0))+2) -> 0
A133: 132 | B133: =IF(LEN(C133)<3,"",INDIRECT("GRELHA!A"&(MATCH(A133,Grelha!$V$3:$V$1490,0))+2)) ->  | C133: =INDIRECT("GRELHA!f"&(MATCH(A133,Grelha!$V$3:$V$1490,0))+2) -> 0 | D133: =INDIRECT("GRELHA!g"&(MATCH(A133,Grelha!$V$3:$V$1490,0))+2) -> 0 | E133: =INDIRECT("GRELHA!h"&(MATCH(A133,Grelha!$V$3:$V$1490,0))+2) -> 0
A134: 133 | B134: =IF(LEN(C134)<3,"",INDIRECT("GRELHA!A"&(MATCH(A134,Grelha!$V$3:$V$1490,0))+2)) ->  | C134: =INDIRECT("GRELHA!f"&(MATCH(A134,Grelha!$V$3:$V$1490,0))+2) -> 0 | D134: =INDIRECT("GRELHA!g"&(MATCH(A134,Grelha!$V$3:$V$1490,0))+2) -> 0 | E134: =INDIRECT("GRELHA!h"&(MATCH(A134,Grelha!$V$3:$V$1490,0))+2) -> 0
A135: 134 | B135: =IF(LEN(C135)<3,"",INDIRECT("GRELHA!A"&(MATCH(A135,Grelha!$V$3:$V$1490,0))+2)) ->  | C135: =INDIRECT("GRELHA!f"&(MATCH(A135,Grelha!$V$3:$V$1490,0))+2) -> 0 | D135: =INDIRECT("GRELHA!g"&(MATCH(A135,Grelha!$V$3:$V$1490,0))+2) -> 0 | E135: =INDIRECT("GRELHA!h"&(MATCH(A135,Grelha!$V$3:$V$1490,0))+2) -> 0
A136: 135 | B136: =IF(LEN(C136)<3,"",INDIRECT("GRELHA!A"&(MATCH(A136,Grelha!$V$3:$V$1490,0))+2)) ->  | C136: =INDIRECT("GRELHA!f"&(MATCH(A136,Grelha!$V$3:$V$1490,0))+2) -> 0 | D136: =INDIRECT("GRELHA!g"&(MATCH(A136,Grelha!$V$3:$V$1490,0))+2) -> 0 | E136: =INDIRECT("GRELHA!h"&(MATCH(A136,Grelha!$V$3:$V$1490,0))+2) -> 0
A137: 136 | B137: =IF(LEN(C137)<3,"",INDIRECT("GRELHA!A"&(MATCH(A137,Grelha!$V$3:$V$1490,0))+2)) ->  | C137: =INDIRECT("GRELHA!f"&(MATCH(A137,Grelha!$V$3:$V$1490,0))+2) -> 0 | D137: =INDIRECT("GRELHA!g"&(MATCH(A137,Grelha!$V$3:$V$1490,0))+2) -> 0 | E137: =INDIRECT("GRELHA!h"&(MATCH(A137,Grelha!$V$3:$V$1490,0))+2) -> 0
A138: 137 | B138: =IF(LEN(C138)<3,"",INDIRECT("GRELHA!A"&(MATCH(A138,Grelha!$V$3:$V$1490,0))+2)) ->  | C138: =INDIRECT("GRELHA!f"&(MATCH(A138,Grelha!$V$3:$V$1490,0))+2) -> 0 | D138: =INDIRECT("GRELHA!g"&(MATCH(A138,Grelha!$V$3:$V$1490,0))+2) -> 0 | E138: =INDIRECT("GRELHA!h"&(MATCH(A138,Grelha!$V$3:$V$1490,0))+2) -> 0
A139: 138 | B139: =IF(LEN(C139)<3,"",INDIRECT("GRELHA!A"&(MATCH(A139,Grelha!$V$3:$V$1490,0))+2)) ->  | C139: =INDIRECT("GRELHA!f"&(MATCH(A139,Grelha!$V$3:$V$1490,0))+2) -> 0 | D139: =INDIRECT("GRELHA!g"&(MATCH(A139,Grelha!$V$3:$V$1490,0))+2) -> 0 | E139: =INDIRECT("GRELHA!h"&(MATCH(A139,Grelha!$V$3:$V$1490,0))+2) -> 0
A140: 139 | B140: =IF(LEN(C140)<3,"",INDIRECT("GRELHA!A"&(MATCH(A140,Grelha!$V$3:$V$1490,0))+2)) ->  | C140: =INDIRECT("GRELHA!f"&(MATCH(A140,Grelha!$V$3:$V$1490,0))+2) -> 0 | D140: =INDIRECT("GRELHA!g"&(MATCH(A140,Grelha!$V$3:$V$1490,0))+2) -> 0 | E140: =INDIRECT("GRELHA!h"&(MATCH(A140,Grelha!$V$3:$V$1490,0))+2) -> 0
A141: 140 | B141: =IF(LEN(C141)<3,"",INDIRECT("GRELHA!A"&(MATCH(A141,Grelha!$V$3:$V$1490,0))+2)) ->  | C141: =INDIRECT("GRELHA!f"&(MATCH(A141,Grelha!$V$3:$V$1490,0))+2) -> 0 | D141: =INDIRECT("GRELHA!g"&(MATCH(A141,Grelha!$V$3:$V$1490,0))+2) -> 0 | E141: =INDIRECT("GRELHA!h"&(MATCH(A141,Grelha!$V$3:$V$1490,0))+2) -> 0
A142: 141 | B142: =IF(LEN(C142)<3,"",INDIRECT("GRELHA!A"&(MATCH(A142,Grelha!$V$3:$V$1490,0))+2)) ->  | C142: =INDIRECT("GRELHA!f"&(MATCH(A142,Grelha!$V$3:$V$1490,0))+2) -> 0 | D142: =INDIRECT("GRELHA!g"&(MATCH(A142,Grelha!$V$3:$V$1490,0))+2) -> 0 | E142: =INDIRECT("GRELHA!h"&(MATCH(A142,Grelha!$V$3:$V$1490,0))+2) -> 0
E145: =SUBTOTAL(2,F2:F115) -> 54

Sheet Previsão_Print (hidden)
B9: Posto | C9: Nim | D9: Apelido | E9: Data | F9: Dia de semana | G9: Obs | H9: para validação… | J9: 1ª corresp | K9: corresponde a B… | L9: localização | O9: indirecto | P9: proxima PARA formula
B10: =INDIRECT("PREVISÃO_TODA!C"&MATCH("A",PREVISÃO_TODA!B2:B143,0)+1) -> 1Sar | C10: =INDIRECT("PREVISÃO_TODA!D"&MATCH("A",PREVISÃO_TODA!B2:B143,0)+1) -> 5 | D10: =INDIRECT("PREVISÃO_TODA!E"&MATCH("A",PREVISÃO_TODA!B2:B143,0)+1) -> Donny Belote | E10: 2017-08-01 | F10: =E10 -> 2017-08-01 | H10: =OR(WEEKDAY(E10)=1,WEEKDAY(E10)=7,COUNTIF(Feriados!A2:A20,Previsão_Print!E10)=1)+N("dia da semana 1 ou 7 verifica se é sábado ou domingo. Contar.se procura na folha feriados de o dia existe lá. Se assim for é escala B") -> 0 | J10: =MATCH("A",PREVISÃO_TODA!B2:B143,0) -> 1 | K10: =MATCH("A",PREVISÃO_TODA!B2:B143,0)+1 -> 2 | L10: ="PREVISÃO_TODA!E"&MATCH("A",PREVISÃO_TODA!B2:B143,0)+1 -> PREVISÃO_TODA!E2 | O10: =INDIRECT("PREVISÃO_TODA!E"&MATCH("A",PREVISÃO_TODA!B2:B143,0)+1) -> Donny Belote | P10: ="PREVISÃO_TODA!b"&K10+1&":B143" -> PREVISÃO_TODA!b3:B143
B11: =INDIRECT("PREVISÃO_TODA!C"&MATCH("A",INDIRECT("PREVISÃO_TODA!b"&MATCH("A",PREVISÃO_TODA!B2:B143,0)+1+1&":B143"),0)+MATCH("A",PREVISÃO_TODA!B2:B143,0)+1) -> 1Sar | C11: =INDIRECT("PREVISÃO_TODA!D"&MATCH("A",INDIRECT("PREVISÃO_TODA!b"&MATCH("A",PREVISÃO_TODA!B2:B143,0)+1+1&":B143"),0)+MATCH("A",PREVISÃO_TODA!B2:B143,0)+1) -> 6 | D11: =INDIRECT("PREVISÃO_TODA!E"&MATCH("A",INDIRECT("PREVISÃO_TODA!b"&MATCH("A",PREVISÃO_TODA!B2:B143,0)+1+1&":B143"),0)+MATCH("A",PREVISÃO_TODA!B2:B143,0)+1) -> Wm Payton | E11: =IF(AND(VLOOKUP(E10+1,Grelha!$D$3:$E$1490,2)="B",VLOOKUP(E10+1+1,Grelha!$D$3:$E$1490,2)="B",VLOOKUP(E10+1+1+1,Grelha!$D$3:$E$1490,2)="B")=TRUE,E10+4,IF(AND(VLOOKUP(E10+1,Grelha!$D$3:$E$1490,2)="B",VLOOKUP(E10+1+1,Grelha!$D$3:$E$1490,2)="B")=TRUE,E10+3,IF(AND(VLOOKUP(E10+1,Grelha!$D$3:$E$1490,2)="B",VLOOKUP(E10+1+1,Grelha!$D$3:$E$1490,2)="A")=TRUE,E10+2,IF(VLOOKUP(E10+1,Grelha!$D$3:$E$1490,2)="A",E10+1)))) -> 2017-08-02 | F11: =E11 -> 2017-08-02 | J11: =MATCH("A",INDIRECT(P10),0) -> 3 | K11: =J11+K10 -> 5 | L11: ="PREVISÃO_TODA!E"&K11 -> PREVISÃO_TODA!E5 | O11: =INDIRECT("PREVISÃO_TODA!E"&MATCH("A",INDIRECT("PREVISÃO_TODA!b"&MATCH("A",PREVISÃO_TODA!B2:B143,0)+1+1&":B143"),0)+MATCH("A",PREVISÃO_TODA!B2:B143,0)+1) -> Wm Payton | P11: PREVISÃO_TODA!b6:B143
B12: =INDIRECT("PREVISÃO_TODA!C"&MATCH("A",INDIRECT("PREVISÃO_TODA!b"&MATCH("A",PREVISÃO_TODA!B2:B143,0)+1+1&":B143"),0)+MATCH("A",PREVISÃO_TODA!B2:B143,0)+1+MATCH("A",INDIRECT("PREVISÃO_TODA!b"&MATCH("A",INDIRECT("PREVISÃO_TODA!b"&MATCH("A",PREVISÃO_TODA!B2:B143,0)+1+1&":B143"),0)+MATCH("A",PREVISÃO_TODA!B2:B143,0)+1+1&":B143"),0)) -> 1Sar | C12: =INDIRECT("PREVISÃO_TODA!D"&MATCH("A",INDIRECT("PREVISÃO_TODA!b"&MATCH("A",PREVISÃO_TODA!B2:B143,0)+1+1&":B143"),0)+MATCH("A",PREVISÃO_TODA!B2:B143,0)+1+MATCH("A",INDIRECT("PREVISÃO_TODA!b"&MATCH("A",INDIRECT("PREVISÃO_TODA!b"&MATCH("A",PREVISÃO_TODA!B2:B143,0)+1+1&":B143"),0)+MATCH("A",PREVISÃO_TODA!B2:B143,0)+1+1&":B143"),0)) -> 7 | D12: =INDIRECT("PREVISÃO_TODA!E"&MATCH("A",INDIRECT("PREVISÃO_TODA!b"&MATCH("A",PREVISÃO_TODA!B2:B143,0)+1+1&":B143"),0)+MATCH("A",PREVISÃO_TODA!B2:B143,0)+1+MATCH("A",INDIRECT("PREVISÃO_TODA!b"&MATCH("A",INDIRECT("PREVISÃO_TODA!b"&MATCH("A",PREVISÃO_TODA!B2:B143,0)+1+1&":B143"),0)+MATCH("A",PREVISÃO_TODA!B2:B143,0)+1+1&":B143"),0)) -> Eugene Molloy | E12: =IF(AND(VLOOKUP(E11+1,Grelha!$D$3:$E$1490,2)="B",VLOOKUP(E11+1+1,Grelha!$D$3:$E$1490,2)="B",VLOOKUP(E11+1+1+1,Grelha!$D$3:$E$1490,2)="B")=TRUE,E11+4,IF(AND(VLOOKUP(E11+1,Grelha!$D$3:$E$1490,2)="B",VLOOKUP(E11+1+1,Grelha!$D$3:$E$1490,2)="B")=TRUE,E11+3,IF(AND(VLOOKUP(E11+1,Grelha!$D$3:$E$1490,2)="B",VLOOKUP(E11+1+1,Grelha!$D$3:$E$1490,2)="A")=TRUE,E11+2,IF(VLOOKUP(E11+1,Grelha!$D$3:$E$1490,2)="A",E11+1)))) -> 2017-08-03 | F12: =E12 -> 2017-08-03 | J12: 1 | K12: =K11+J12 -> 6 | L12: PREVISÃO_TODA!E6 | O12: =INDIRECT("PREVISÃO_TODA!E"&MATCH("A",INDIRECT("PREVISÃO_TODA!b"&MATCH("A",PREVISÃO_TODA!B2:B143,0)+1+1&":B143"),0)+MATCH("A",PREVISÃO_TODA!B2:B143,0)+1+MATCH("A",INDIRECT("PREVISÃO_TODA!b"&MATCH("A",INDIRECT("PREVISÃO_TODA!b"&MATCH("A",PREVISÃO_TODA!B2:B143,0)+1+1&":B143"),0)+MATCH("A",PREVISÃO_TODA!B2:B143,0)+1+1&":B143"),0)) -> Eugene Molloy | P12: PREVISÃO_TODA!b7:B143
B13: =INDIRECT("PREVISÃO_TODA!C"&MATCH("A",INDIRECT("PREVISÃO_TODA!b"&MATCH("A",PREVISÃO_TODA!B2:B143,0)+1+1&":B143"),0)+MATCH("A",PREVISÃO_TODA!B2:B143,0)+1+MATCH("A",INDIRECT("PREVISÃO_TODA!b"&MATCH("A",INDIRECT("PREVISÃO_TODA!b"&MATCH("A",PREVISÃO_TODA!B2:B143,0)+1+1&":B143"),0)+MATCH("A",PREVISÃO_TODA!B2:B143,0)+1+1&":B143"),0)+MATCH("A",INDIRECT("PREVISÃO_TODA!b"&MATCH("A",INDIRECT("PREVISÃO_TODA!b"&MATCH("A",PREVISÃO_TODA!B2:B143,0)+1+1&":B143"),0)+MATCH("A",PREVISÃO_TODA!B2:B143,0)+1+MATCH("A",INDIRECT("PREVISÃO_TODA!b"&MATCH("A",INDIRECT("PREVISÃO_TODA!b"&MATCH("A",PREVISÃO_TODA!B2:B143,0)+1+1&":B143"),0)+MATCH("A",PREVISÃO_TODA!B2:B143,0)+1+1&":B143"),0)+1&":B143"),0)) -> 1Sar | C13: =INDIRECT("PREVISÃO_TODA!D"&MATCH("A",INDIRECT("PREVISÃO_TODA!b"&MATCH("A",PREVISÃO_TODA!B2:B143,0)+1+1&":B143"),0)+MATCH("A",PREVISÃO_TODA!B2:B143,0)+1+MATCH("A",INDIRECT("PREVISÃO_TODA!b"&MATCH("A",INDIRECT("PREVISÃO_TODA!b"&MATCH("A",PREVISÃO_TODA!B2:B143,0)+1+1&":B143"),0)+MATCH("A",PREVISÃO_TODA!B2:B143,0)+1+1&":B143"),0)+MATCH("A",INDIRECT("PREVISÃO_TODA!b"&MATCH("A",INDIRECT("PREVISÃO_TODA!b"&MATCH("A",PREVISÃO_TODA!B2:B143,0)+1+1&":B143"),0)+MATCH("A",PREVISÃO_TODA!B2:B143,0)+1+MATCH("A",INDIRECT("PREVISÃO_TODA!b"&MATCH("A",INDIRECT("PREVISÃO_TODA!b"&MATCH("A",PREVISÃO_TODA!B2:B143,0)+1+1&":B143"),0)+MATCH("A",PREVISÃO_TODA!B2:B143,0)+1+1&":B143"),0)+1&":B143"),0)) -> 8 | D13: =INDIRECT("PREVISÃO_TODA!E"&MATCH("A",INDIRECT("PREVISÃO_TODA!b"&MATCH("A",PREVISÃO_TODA!B2:B143,0)+1+1&":B143"),0)+MATCH("A",PREVISÃO_TODA!B2:B143,0)+1+MATCH("A",INDIRECT("PREVISÃO_TODA!b"&MATCH("A",INDIRECT("PREVISÃO_TODA!b"&MATCH("A",PREVISÃO_TODA!B2:B143,0)+1+1&":B143"),0)+MATCH("A",PREVISÃO_TODA!B2:B143,0)+1+1&":B143"),0)+MATCH("A",INDIRECT("PREVISÃO_TODA!b"&MATCH("A",INDIRECT("PREVISÃO_TODA!b"&MATCH("A",PREVISÃO_TODA!B2:B143,0)+1+1&":B143"),0)+MATCH("A",PREVISÃO_TODA!B2:B143,0)+1+MATCH("A",INDIRECT("PREVISÃO_TODA!b"&MATCH("A",INDIRECT("PREVISÃO_TODA!b"&MATCH("A",PREVISÃO_TODA!B2:B143,0)+1+1&":B143"),0)+MATCH("A",PREVISÃO_TODA!B2:B143,0)+1+1&":B143"),0)+1&":B143"),0)) -> Phillip Nottage | E13: =IF(AND(VLOOKUP(E12+1,Grelha!$D$3:$E$1490,2)="B",VLOOKUP(E12+1+1,Grelha!$D$3:$E$1490,2)="B",VLOOKUP(E12+1+1+1,Grelha!$D$3:$E$1490,2)="B")=TRUE,E12+4,IF(AND(VLOOKUP(E12+1,Grelha!$D$3:$E$1490,2)="B",VLOOKUP(E12+1+1,Grelha!$D$3:$E$1490,2)="B")=TRUE,E12+3,IF(AND(VLOOKUP(E12+1,Grelha!$D$3:$E$1490,2)="B",VLOOKUP(E12+1+1,Grelha!$D$3:$E$1490,2)="A")=TRUE,E12+2,IF(VLOOKUP(E12+1,Grelha!$D$3:$E$1490,2)="A",E12+1)))) -> 2017-08-04 | F13: 2017-08-04 | J13: 1 | K13: 7 | L13: PREVISÃO_TODA!E7 | O13: =INDIRECT("PREVISÃO_TODA!E"&MATCH("A",INDIRECT("PREVISÃO_TODA!b"&MATCH("A",PREVISÃO_TODA!B2:B143,0)+1+1&":B143"),0)+MATCH("A",PREVISÃO_TODA!B2:B143,0)+1+MATCH("A",INDIRECT("PREVISÃO_TODA!b"&MATCH("A",INDIRECT("PREVISÃO_TODA!b"&MATCH("A",PREVISÃO_TODA!B2:B143,0)+1+1&":B143"),0)+MATCH("A",PREVISÃO_TODA!B2:B143,0)+1+1&":B143"),0)+MATCH("A",INDIRECT("PREVISÃO_TODA!b"&MATCH("A",INDIRECT("PREVISÃO_TODA!b"&MATCH("A",PREVISÃO_TODA!B2:B143,0)+1+1&":B143"),0)+MATCH("A",PREVISÃO_TODA!B2:B143,0)+1+MATCH("A",INDIRECT("PREVISÃO_TODA!b"&MATCH("A",INDIRECT("PREVISÃO_TODA!b"&MATCH("A",PREVISÃO_TODA!B2:B143,0)+1+1&":B143"),0)+MATCH("A",PREVISÃO_TODA!B2:B143,0)+1+1&":B143"),0)+1&":B143"),0)) -> Phillip Nottage | P13: PREVISÃO_TODA!b8:B143 | Q13: posto | R13: nim | T13: posto | U13: nim
B14: =T14 -> 1Sar | C14: =U14 -> 9 | D14: =O14 -> Lavern Tank | E14: =IF(AND(VLOOKUP(E13+1,Grelha!$D$3:$E$1490,2)="B",VLOOKUP(E13+1+1,Grelha!$D$3:$E$1490,2)="B",VLOOKUP(E13+1+1+1,Grelha!$D$3:$E$1490,2)="B")=TRUE,E13+4,IF(AND(VLOOKUP(E13+1,Grelha!$D$3:$E$1490,2)="B",VLOOKUP(E13+1+1,Grelha!$D$3:$E$1490,2)="B")=TRUE,E13+3,IF(AND(VLOOKUP(E13+1,Grelha!$D$3:$E$1490,2)="B",VLOOKUP(E13+1+1,Grelha!$D$3:$E$1490,2)="A")=TRUE,E13+2,IF(VLOOKUP(E13+1,Grelha!$D$3:$E$1490,2)="A",E13+1)))) -> 2017-08-07 | F14: 2017-08-07 | J14: 1 | K14: 8 | L14: PREVISÃO_TODA!E8 | O14: =INDIRECT("PREVISÃO_TODA!E"&MATCH("A",INDIRECT("PREVISÃO_TODA!b"&MATCH("A",PREVISÃO_TODA!B2:B143,0)+1+1&":B143"),0)+MATCH("A",PREVISÃO_TODA!B2:B143,0)+1+MATCH("A",INDIRECT("PREVISÃO_TODA!b"&MATCH("A",INDIRECT("PREVISÃO_TODA!b"&MATCH("A",PREVISÃO_TODA!B2:B143,0)+1+1&":B143"),0)+MATCH("A",PREVISÃO_TODA!B2:B143,0)+1+1&":B143"),0)+MATCH("A",INDIRECT("PREVISÃO_TODA!b"&MATCH("A",INDIRECT("PREVISÃO_TODA!b"&MATCH("A",PREVISÃO_TODA!B2:B143,0)+1+1&":B143"),0)+MATCH("A",PREVISÃO_TODA!B2:B143,0)+1+MATCH("A",INDIRECT("PREVISÃO_TODA!b"&MATCH("A",INDIRECT("PREVISÃO_TODA!b"&MATCH("A",PREVISÃO_TODA!B2:B143,0)+1+1&":B143"),0)+MATCH("A",PREVISÃO_TODA!B2:B143,0)+1+1&":B143"),0)+1&":B143"),0)+MATCH("A",INDIRECT("PREVISÃO_TODA!b"&MATCH("A",INDIRECT("PREVISÃO_TODA!b"&MATCH("A",PREVISÃO_TODA!B2:B143,0)+1+1&":B143"),0)+MATCH("A",PREVISÃO_TODA!B2:B143,0)+1+MATCH("A",INDIRECT("PREVISÃO_TODA!b"&MATCH("A",INDIRECT(P10),0)+MATCH("A",PREVISÃO_TODA!B2:B143,0)+1+1&":B143"),0)+J13+1&":B143"),0)) -> Lavern Tank | P14: PREVISÃO_TODA!b9:B143 | Q14: ="PREVISÃO_TODA!c"&K14 -> PREVISÃO_TODA!c8 | R14: ="PREVISÃO_TODA!d"&K14 -> PREVISÃO_TODA!d8 | T14: =INDIRECT(Q14) -> 1Sar | U14: 9
B15: 1Sar | C15: 10 | D15: Elvis Feeney | E15: =IF(AND(VLOOKUP(E14+1,Grelha!$D$3:$E$1490,2)="B",VLOOKUP(E14+1+1,Grelha!$D$3:$E$1490,2)="B",VLOOKUP(E14+1+1+1,Grelha!$D$3:$E$1490,2)="B")=TRUE,E14+4,IF(AND(VLOOKUP(E14+1,Grelha!$D$3:$E$1490,2)="B",VLOOKUP(E14+1+1,Grelha!$D$3:$E$1490,2)="B")=TRUE,E14+3,IF(AND(VLOOKUP(E14+1,Grelha!$D$3:$E$1490,2)="B",VLOOKUP(E14+1+1,Grelha!$D$3:$E$1490,2)="A")=TRUE,E14+2,IF(VLOOKUP(E14+1,Grelha!$D$3:$E$1490,2)="A",E14+1)))) -> 2017-08-08 | F15: 2017-08-08 | J15: 1 | K15: 9 | L15: PREVISÃO_TODA!E9 | O15: =INDIRECT(L15) -> Elvis Feeney | P15: PREVISÃO_TODA!b10:B143 | Q15: PREVISÃO_TODA!c9 | R15: PREVISÃO_TODA!d9 | T15: 1Sar | U15: 10
B16: 1Sar | C16: 11 | D16: Nigel Knell | E16: =IF(AND(VLOOKUP(E15+1,Grelha!$D$3:$E$1490,2)="B",VLOOKUP(E15+1+1,Grelha!$D$3:$E$1490,2)="B",VLOOKUP(E15+1+1+1,Grelha!$D$3:$E$1490,2)="B")=TRUE,E15+4,IF(AND(VLOOKUP(E15+1,Grelha!$D$3:$E$1490,2)="B",VLOOKUP(E15+1+1,Grelha!$D$3:$E$1490,2)="B")=TRUE,E15+3,IF(AND(VLOOKUP(E15+1,Grelha!$D$3:$E$1490,2)="B",VLOOKUP(E15+1+1,Grelha!$D$3:$E$1490,2)="A")=TRUE,E15+2,IF(VLOOKUP(E15+1,Grelha!$D$3:$E$1490,2)="A",E15+1)))) -> 2017-08-09 | F16: 2017-08-09 | J16: 3 | K16: 12 | L16: PREVISÃO_TODA!E12 | O16: Nigel Knell | P16: PREVISÃO_TODA!b13:B143 | Q16: PREVISÃO_TODA!c12 | R16: PREVISÃO_TODA!d12 | T16: 1Sar | U16: 11
B17: 1Sar | C17: 12 | D17: Stanton Mccord | E17: =IF(AND(VLOOKUP(E16+1,Grelha!$D$3:$E$1490,2)="B",VLOOKUP(E16+1+1,Grelha!$D$3:$E$1490,2)="B",VLOOKUP(E16+1+1+1,Grelha!$D$3:$E$1490,2)="B")=TRUE,E16+4,IF(AND(VLOOKUP(E16+1,Grelha!$D$3:$E$1490,2)="B",VLOOKUP(E16+1+1,Grelha!$D$3:$E$1490,2)="B")=TRUE,E16+3,IF(AND(VLOOKUP(E16+1,Grelha!$D$3:$E$1490,2)="B",VLOOKUP(E16+1+1,Grelha!$D$3:$E$1490,2)="A")=TRUE,E16+2,IF(VLOOKUP(E16+1,Grelha!$D$3:$E$1490,2)="A",E16+1)))) -> 2017-08-10 | F17: 2017-08-10 | J17: 1 | K17: 13 | L17: PREVISÃO_TODA!E13 | O17: Stanton Mccord | P17: PREVISÃO_TODA!b14:B143 | Q17: PREVISÃO_TODA!c13 | R17: PREVISÃO_TODA!d13 | T17: 1Sar | U17: 12
B18: 1Sar | C18: =U18 -> 13 | D18: Tracey Null | E18: =IF(AND(VLOOKUP(E17+1,Grelha!$D$3:$E$1490,2)="B",VLOOKUP(E17+1+1,Grelha!$D$3:$E$1490,2)="B",VLOOKUP(E17+1+1+1,Grelha!$D$3:$E$1490,2)="B")=TRUE,E17+4,IF(AND(VLOOKUP(E17+1,Grelha!$D$3:$E$1490,2)="B",VLOOKUP(E17+1+1,Grelha!$D$3:$E$1490,2)="B")=TRUE,E17+3,IF(AND(VLOOKUP(E17+1,Grelha!$D$3:$E$1490,2)="B",VLOOKUP(E17+1+1,Grelha!$D$3:$E$1490,2)="A")=TRUE,E17+2,IF(VLOOKUP(E17+1,Grelha!$D$3:$E$1490,2)="A",E17+1)))) -> 2017-08-11 | F18: =E18 -> 2017-08-11 | J18: =MATCH("A",INDIRECT(P17),0) -> 1 | K18: =K17+J18 -> 14 | L18: ="PREVISÃO_TODA!E"&K18 -> PREVISÃO_TODA!E14 | O18: Tracey Null | P18: PREVISÃO_TODA!b15:B143 | Q18: PREVISÃO_TODA!c14 | R18: PREVISÃO_TODA!d14 | T18: =INDIRECT(Q18) -> 1Sar | U18: =INDIRECT(R18) -> 13
B19: 1Sar | C19: =U19 -> 14 | D19: Winfred Olivieri | E19: =IF(AND(VLOOKUP(E18+1,Grelha!$D$3:$E$1490,2)="B",VLOOKUP(E18+1+1,Grelha!$D$3:$E$1490,2)="B",VLOOKUP(E18+1+1+1,Grelha!$D$3:$E$1490,2)="B")=TRUE,E18+4,IF(AND(VLOOKUP(E18+1,Grelha!$D$3:$E$1490,2)="B",VLOOKUP(E18+1+1,Grelha!$D$3:$E$1490,2)="B")=TRUE,E18+3,IF(AND(VLOOKUP(E18+1,Grelha!$D$3:$E$1490,2)="B",VLOOKUP(E18+1+1,Grelha!$D$3:$E$1490,2)="A")=TRUE,E18+2,IF(VLOOKUP(E18+1,Grelha!$D$3:$E$1490,2)="A",E18+1)))) -> 2017-08-14 | F19: =E19 -> 2017-08-14 | J19: =MATCH("A",INDIRECT(P18),0) -> 1 | K19: =K18+J19 -> 15 | L19: ="PREVISÃO_TODA!E"&K19 -> PREVISÃO_TODA!E15 | O19: Winfred Olivieri | P19: PREVISÃO_TODA!b16:B143 | Q19: PREVISÃO_TODA!c15 | R19: PREVISÃO_TODA!d15 | T19: =INDIRECT(Q19) -> 1Sar | U19: =INDIRECT(R19) -> 14
B20: =T20 -> 1Sar | C20: =U20 -> 15 | D20: =O20 -> Roderick Lehto | E20: =IF(AND(VLOOKUP(E19+1,Grelha!$D$3:$E$1490,2)="B",VLOOKUP(E19+1+1,Grelha!$D$3:$E$1490,2)="B",VLOOKUP(E19+1+1+1,Grelha!$D$3:$E$1490,2)="B")=TRUE,E19+4,IF(AND(VLOOKUP(E19+1,Grelha!$D$3:$E$1490,2)="B",VLOOKUP(E19+1+1,Grelha!$D$3:$E$1490,2)="B")=TRUE,E19+3,IF(AND(VLOOKUP(E19+1,Grelha!$D$3:$E$1490,2)="B",VLOOKUP(E19+1+1,Grelha!$D$3:$E$1490,2)="A")=TRUE,E19+2,IF(VLOOKUP(E19+1,Grelha!$D$3:$E$1490,2)="A",E19+1)))) -> 2017-08-16 | F20: =E20 -> 2017-08-16 | J20: =MATCH("A",INDIRECT(P19),0) -> 1 | K20: =K19+J20 -> 16 | L20: ="PREVISÃO_TODA!E"&K20 -> PREVISÃO_TODA!E16 | O20: Roderick Lehto | P20: PREVISÃO_TODA!b17:B143 | Q20: PREVISÃO_TODA!c16 | R20: PREVISÃO_TODA!d16 | T20: =INDIRECT(Q20) -> 1Sar | U20: =INDIRECT(R20) -> 15
B21: 1Sar | C21: 1 | D21: Paul Dawes | E21: =IF(AND(VLOOKUP(E20+1,Grelha!$D$3:$E$1490,2)="B",VLOOKUP(E20+1+1,Grelha!$D$3:$E$1490,2)="B",VLOOKUP(E20+1+1+1,Grelha!$D$3:$E$1490,2)="B")=TRUE,E20+4,IF(AND(VLOOKUP(E20+1,Grelha!$D$3:$E$1490,2)="B",VLOOKUP(E20+1+1,Grelha!$D$3:$E$1490,2)="B")=TRUE,E20+3,IF(AND(VLOOKUP(E20+1,Grelha!$D$3:$E$1490,2)="B",VLOOKUP(E20+1+1,Grelha!$D$3:$E$1490,2)="A")=TRUE,E20+2,IF(VLOOKUP(E20+1,Grelha!$D$3:$E$1490,2)="A",E20+1)))) -> 2017-08-17 | F21: 2017-08-17 | J21: =MATCH("A",INDIRECT(P20),0) -> 3 | K21: =K20+J21 -> 19 | L21: ="PREVISÃO_TODA!E"&K21 -> PREVISÃO_TODA!E19 | O21: =INDIRECT(L21) -> Paul Dawes | P21: PREVISÃO_TODA!b20:B143 | Q21: ="PREVISÃO_TODA!c"&K21 -> PREVISÃO_TODA!c19 | R21: ="PREVISÃO_TODA!d"&K21 -> PREVISÃO_TODA!d19 | T21: 1Sar | U21: 1
B22: 1Sar | C22: 2 | D22: Odell Segarra | E22: =IF(AND(VLOOKUP(E21+1,Grelha!$D$3:$E$1490,2)="B",VLOOKUP(E21+1+1,Grelha!$D$3:$E$1490,2)="B",VLOOKUP(E21+1+1+1,Grelha!$D$3:$E$1490,2)="B")=TRUE,E21+4,IF(AND(VLOOKUP(E21+1,Grelha!$D$3:$E$1490,2)="B",VLOOKUP(E21+1+1,Grelha!$D$3:$E$1490,2)="B")=TRUE,E21+3,IF(AND(VLOOKUP(E21+1,Grelha!$D$3:$E$1490,2)="B",VLOOKUP(E21+1+1,Grelha!$D$3:$E$1490,2)="A")=TRUE,E21+2,IF(VLOOKUP(E21+1,Grelha!$D$3:$E$1490,2)="A",E21+1)))) -> 2017-08-18 | F22: 2017-08-18 | J22: 2 | K22: 21 | L22: PREVISÃO_TODA!E21 | O22: Odell Segarra | P22: PREVISÃO_TODA!b22:B143 | Q22: PREVISÃO_TODA!c21 | R22: PREVISÃO_TODA!d21 | T22: =INDIRECT(Q22) -> 1Sar | U22: =INDIRECT(R22) -> 2
B23: 1Sar | C23: 4 | D23: Rodger Burney | E23: =IF(AND(VLOOKUP(E22+1,Grelha!$D$3:$E$1490,2)="B",VLOOKUP(E22+1+1,Grelha!$D$3:$E$1490,2)="B",VLOOKUP(E22+1+1+1,Grelha!$D$3:$E$1490,2)="B")=TRUE,E22+4,IF(AND(VLOOKUP(E22+1,Grelha!$D$3:$E$1490,2)="B",VLOOKUP(E22+1+1,Grelha!$D$3:$E$1490,2)="B")=TRUE,E22+3,IF(AND(VLOOKUP(E22+1,Grelha!$D$3:$E$1490,2)="B",VLOOKUP(E22+1+1,Grelha!$D$3:$E$1490,2)="A")=TRUE,E22+2,IF(VLOOKUP(E22+1,Grelha!$D$3:$E$1490,2)="A",E22+1)))) -> 2017-08-21 | F23: 2017-08-21 | J23: 1 | K23: 22 | L23: PREVISÃO_TODA!E22 | O23: Rodger Burney | P23: PREVISÃO_TODA!b23:B143 | Q23: PREVISÃO_TODA!c22 | R23: PREVISÃO_TODA!d22 | T23: 1Sar | U23: 4
E24: =IF(AND(VLOOKUP(E23+1,Grelha!$D$3:$E$1490,2)="B",VLOOKUP(E23+1+1,Grelha!$D$3:$E$1490,2)="B",VLOOKUP(E23+1+1+1,Grelha!$D$3:$E$1490,2)="B")=TRUE,E23+4,IF(AND(VLOOKUP(E23+1,Grelha!$D$3:$E$1490,2)="B",VLOOKUP(E23+1+1,Grelha!$D$3:$E$1490,2)="B")=TRUE,E23+3,IF(AND(VLOOKUP(E23+1,Grelha!$D$3:$E$1490,2)="B",VLOOKUP(E23+1+1,Grelha!$D$3:$E$1490,2)="A")=TRUE,E23+2,IF(VLOOKUP(E23+1,Grelha!$D$3:$E$1490,2)="A",E23+1)))) -> 2017-08-22 | F24: 2017-08-22
E25: =IF(AND(VLOOKUP(E24+1,Grelha!$D$3:$E$1490,2)="B",VLOOKUP(E24+1+1,Grelha!$D$3:$E$1490,2)="B",VLOOKUP(E24+1+1+1,Grelha!$D$3:$E$1490,2)="B")=TRUE,E24+4,IF(AND(VLOOKUP(E24+1,Grelha!$D$3:$E$1490,2)="B",VLOOKUP(E24+1+1,Grelha!$D$3:$E$1490,2)="B")=TRUE,E24+3,IF(AND(VLOOKUP(E24+1,Grelha!$D$3:$E$1490,2)="B",VLOOKUP(E24+1+1,Grelha!$D$3:$E$1490,2)="A")=TRUE,E24+2,IF(VLOOKUP(E24+1,Grelha!$D$3:$E$1490,2)="A",E24+1)))) -> 2017-08-23 | F25: 2017-08-23
E26: =IF(AND(VLOOKUP(E25+1,Grelha!$D$3:$E$1490,2)="B",VLOOKUP(E25+1+1,Grelha!$D$3:$E$1490,2)="B",VLOOKUP(E25+1+1+1,Grelha!$D$3:$E$1490,2)="B")=TRUE,E25+4,IF(AND(VLOOKUP(E25+1,Grelha!$D$3:$E$1490,2)="B",VLOOKUP(E25+1+1,Grelha!$D$3:$E$1490,2)="B")=TRUE,E25+3,IF(AND(VLOOKUP(E25+1,Grelha!$D$3:$E$1490,2)="B",VLOOKUP(E25+1+1,Grelha!$D$3:$E$1490,2)="A")=TRUE,E25+2,IF(VLOOKUP(E25+1,Grelha!$D$3:$E$1490,2)="A",E25+1)))) -> 2017-08-24 | F26: 2017-08-24
E27: =IF(AND(VLOOKUP(E26+1,Grelha!$D$3:$E$1490,2)="B",VLOOKUP(E26+1+1,Grelha!$D$3:$E$1490,2)="B",VLOOKUP(E26+1+1+1,Grelha!$D$3:$E$1490,2)="B")=TRUE,E26+4,IF(AND(VLOOKUP(E26+1,Grelha!$D$3:$E$1490,2)="B",VLOOKUP(E26+1+1,Grelha!$D$3:$E$1490,2)="B")=TRUE,E26+3,IF(AND(VLOOKUP(E26+1,Grelha!$D$3:$E$1490,2)="B",VLOOKUP(E26+1+1,Grelha!$D$3:$E$1490,2)="A")=TRUE,E26+2,IF(VLOOKUP(E26+1,Grelha!$D$3:$E$1490,2)="A",E26+1)))) -> 2017-08-25 | F27: 2017-08-25
E28: =IF(AND(VLOOKUP(E27+1,Grelha!$D$3:$E$1490,2)="B",VLOOKUP(E27+1+1,Grelha!$D$3:$E$1490,2)="B",VLOOKUP(E27+1+1+1,Grelha!$D$3:$E$1490,2)="B")=TRUE,E27+4,IF(AND(VLOOKUP(E27+1,Grelha!$D$3:$E$1490,2)="B",VLOOKUP(E27+1+1,Grelha!$D$3:$E$1490,2)="B")=TRUE,E27+3,IF(AND(VLOOKUP(E27+1,Grelha!$D$3:$E$1490,2)="B",VLOOKUP(E27+1+1,Grelha!$D$3:$E$1490,2)="A")=TRUE,E27+2,IF(VLOOKUP(E27+1,Grelha!$D$3:$E$1490,2)="A",E27+1)))) -> 2017-08-28 | F28: 2017-08-28
E29: =IF(AND(VLOOKUP(E28+1,Grelha!$D$3:$E$1490,2)="B",VLOOKUP(E28+1+1,Grelha!$D$3:$E$1490,2)="B",VLOOKUP(E28+1+1+1,Grelha!$D$3:$E$1490,2)="B")=TRUE,E28+4,IF(AND(VLOOKUP(E28+1,Grelha!$D$3:$E$1490,2)="B",VLOOKUP(E28+1+1,Grelha!$D$3:$E$1490,2)="B")=TRUE,E28+3,IF(AND(VLOOKUP(E28+1,Grelha!$D$3:$E$1490,2)="B",VLOOKUP(E28+1+1,Grelha!$D$3:$E$1490,2)="A")=TRUE,E28+2,IF(VLOOKUP(E28+1,Grelha!$D$3:$E$1490,2)="A",E28+1)))) -> 2017-08-29 | F29: 2017-08-29
B30: =T30 ->  | C30: =U30 ->  | D30: =O30 ->  | E30: =IF(AND(VLOOKUP(E29+1,Grelha!$D$3:$E$1490,2)="B",VLOOKUP(E29+1+1,Grelha!$D$3:$E$1490,2)="B",VLOOKUP(E29+1+1+1,Grelha!$D$3:$E$1490,2)="B")=TRUE,E29+4,IF(AND(VLOOKUP(E29+1,Grelha!$D$3:$E$1490,2)="B",VLOOKUP(E29+1+1,Grelha!$D$3:$E$1490,2)="B")=TRUE,E29+3,IF(AND(VLOOKUP(E29+1,Grelha!$D$3:$E$1490,2)="B",VLOOKUP(E29+1+1,Grelha!$D$3:$E$1490,2)="A")=TRUE,E29+2,IF(VLOOKUP(E29+1,Grelha!$D$3:$E$1490,2)="A",E29+1)))) -> 2017-08-30 | F30: =E30 -> 2017-08-30 | J30: =MATCH("A",INDIRECT(P29),0) ->  | K30: =K29+J30 ->  | L30: ="PREVISÃO_TODA!E"&K30 ->  | O30: =INDIRECT(L30) ->  | Q30: ="PREVISÃO_TODA!c"&K30 ->  | R30: ="PREVISÃO_TODA!d"&K30 ->  | T30: =INDIRECT(Q30) ->  | U30: =INDIRECT(R30) -> 
E31: =IF(AND(VLOOKUP(E30+1,Grelha!$D$3:$E$1490,2)="B",VLOOKUP(E30+1+1,Grelha!$D$3:$E$1490,2)="B",VLOOKUP(E30+1+1+1,Grelha!$D$3:$E$1490,2)="B")=TRUE,E30+4,IF(AND(VLOOKUP(E30+1,Grelha!$D$3:$E$1490,2)="B",VLOOKUP(E30+1+1,Grelha!$D$3:$E$1490,2)="B")=TRUE,E30+3,IF(AND(VLOOKUP(E30+1,Grelha!$D$3:$E$1490,2)="B",VLOOKUP(E30+1+1,Grelha!$D$3:$E$1490,2)="A")=TRUE,E30+2,IF(VLOOKUP(E30+1,Grelha!$D$3:$E$1490,2)="A",E30+1)))) -> 2017-08-31 | F31: 2017-08-31
E32: =IF(AND(VLOOKUP(E31+1,Grelha!$D$3:$E$1490,2)="B",VLOOKUP(E31+1+1,Grelha!$D$3:$E$1490,2)="B",VLOOKUP(E31+1+1+1,Grelha!$D$3:$E$1490,2)="B")=TRUE,E31+4,IF(AND(VLOOKUP(E31+1,Grelha!$D$3:$E$1490,2)="B",VLOOKUP(E31+1+1,Grelha!$D$3:$E$1490,2)="B")=TRUE,E31+3,IF(AND(VLOOKUP(E31+1,Grelha!$D$3:$E$1490,2)="B",VLOOKUP(E31+1+1,Grelha!$D$3:$E$1490,2)="A")=TRUE,E31+2,IF(VLOOKUP(E31+1,Grelha!$D$3:$E$1490,2)="A",E31+1)))) -> 2017-09-01 | F32: 2017-09-01
E33: =IF(AND(VLOOKUP(E32+1,Grelha!$D$3:$E$1490,2)="B",VLOOKUP(E32+1+1,Grelha!$D$3:$E$1490,2)="B",VLOOKUP(E32+1+1+1,Grelha!$D$3:$E$1490,2)="B")=TRUE,E32+4,IF(AND(VLOOKUP(E32+1,Grelha!$D$3:$E$1490,2)="B",VLOOKUP(E32+1+1,Grelha!$D$3:$E$1490,2)="B")=TRUE,E32+3,IF(AND(VLOOKUP(E32+1,Grelha!$D$3:$E$1490,2)="B",VLOOKUP(E32+1+1,Grelha!$D$3:$E$1490,2)="A")=TRUE,E32+2,IF(VLOOKUP(E32+1,Grelha!$D$3:$E$1490,2)="A",E32+1)))) -> 2017-09-04 | F33: 2017-09-04
E34: =IF(AND(VLOOKUP(E33+1,Grelha!$D$3:$E$1490,2)="B",VLOOKUP(E33+1+1,Grelha!$D$3:$E$1490,2)="B",VLOOKUP(E33+1+1+1,Grelha!$D$3:$E$1490,2)="B")=TRUE,E33+4,IF(AND(VLOOKUP(E33+1,Grelha!$D$3:$E$1490,2)="B",VLOOKUP(E33+1+1,Grelha!$D$3:$E$1490,2)="B")=TRUE,E33+3,IF(AND(VLOOKUP(E33+1,Grelha!$D$3:$E$1490,2)="B",VLOOKUP(E33+1+1,Grelha!$D$3:$E$1490,2)="A")=TRUE,E33+2,IF(VLOOKUP(E33+1,Grelha!$D$3:$E$1490,2)="A",E33+1)))) -> 2017-09-05 | F34: 2017-09-05
B35: =T35 ->  | C35: =U35 ->  | D35: =O35 ->  | E35: =IF(AND(VLOOKUP(E34+1,Grelha!$D$3:$E$1490,2)="B",VLOOKUP(E34+1+1,Grelha!$D$3:$E$1490,2)="B",VLOOKUP(E34+1+1+1,Grelha!$D$3:$E$1490,2)="B")=TRUE,E34+4,IF(AND(VLOOKUP(E34+1,Grelha!$D$3:$E$1490,2)="B",VLOOKUP(E34+1+1,Grelha!$D$3:$E$1490,2)="B")=TRUE,E34+3,IF(AND(VLOOKUP(E34+1,Grelha!$D$3:$E$1490,2)="B",VLOOKUP(E34+1+1,Grelha!$D$3:$E$1490,2)="A")=TRUE,E34+2,IF(VLOOKUP(E34+1,Grelha!$D$3:$E$1490,2)="A",E34+1)))) -> 2017-09-06 | F35: 2017-09-06 | J35: =MATCH("A",INDIRECT(P34),0) ->  | K35: =K34+J35 ->  | L35: ="PREVISÃO_TODA!E"&K35 ->  | O35: =INDIRECT(L35) ->  | Q35: ="PREVISÃO_TODA!c"&K35 ->  | R35: ="PREVISÃO_TODA!d"&K35 ->  | T35: =INDIRECT(Q35) ->  | U35: =INDIRECT(R35) -> 
E36: =IF(AND(VLOOKUP(E35+1,Grelha!$D$3:$E$1490,2)="B",VLOOKUP(E35+1+1,Grelha!$D$3:$E$1490,2)="B",VLOOKUP(E35+1+1+1,Grelha!$D$3:$E$1490,2)="B")=TRUE,E35+4,IF(AND(VLOOKUP(E35+1,Grelha!$D$3:$E$1490,2)="B",VLOOKUP(E35+1+1,Grelha!$D$3:$E$1490,2)="B")=TRUE,E35+3,IF(AND(VLOOKUP(E35+1,Grelha!$D$3:$E$1490,2)="B",VLOOKUP(E35+1+1,Grelha!$D$3:$E$1490,2)="A")=TRUE,E35+2,IF(VLOOKUP(E35+1,Grelha!$D$3:$E$1490,2)="A",E35+1)))) -> 2017-09-07 | F36: 2017-09-07
E37: =IF(AND(VLOOKUP(E36+1,Grelha!$D$3:$E$1490,2)="B",VLOOKUP(E36+1+1,Grelha!$D$3:$E$1490,2)="B",VLOOKUP(E36+1+1+1,Grelha!$D$3:$E$1490,2)="B")=TRUE,E36+4,IF(AND(VLOOKUP(E36+1,Grelha!$D$3:$E$1490,2)="B",VLOOKUP(E36+1+1,Grelha!$D$3:$E$1490,2)="B")=TRUE,E36+3,IF(AND(VLOOKUP(E36+1,Grelha!$D$3:$E$1490,2)="B",VLOOKUP(E36+1+1,Grelha!$D$3:$E$1490,2)="A")=TRUE,E36+2,IF(VLOOKUP(E36+1,Grelha!$D$3:$E$1490,2)="A",E36+1)))) -> 2017-09-08 | F37: 2017-09-08
E38: =IF(AND(VLOOKUP(E37+1,Grelha!$D$3:$E$1490,2)="B",VLOOKUP(E37+1+1,Grelha!$D$3:$E$1490,2)="B",VLOOKUP(E37+1+1+1,Grelha!$D$3:$E$1490,2)="B")=TRUE,E37+4,IF(AND(VLOOKUP(E37+1,Grelha!$D$3:$E$1490,2)="B",VLOOKUP(E37+1+1,Grelha!$D$3:$E$1490,2)="B")=TRUE,E37+3,IF(AND(VLOOKUP(E37+1,Grelha!$D$3:$E$1490,2)="B",VLOOKUP(E37+1+1,Grelha!$D$3:$E$1490,2)="A")=TRUE,E37+2,IF(VLOOKUP(E37+1,Grelha!$D$3:$E$1490,2)="A",E37+1)))) -> 2017-09-11 | F38: =E38 -> 2017-09-11
E39: =IF(AND(VLOOKUP(E38+1,Grelha!$D$3:$E$1490,2)="B",VLOOKUP(E38+1+1,Grelha!$D$3:$E$1490,2)="B",VLOOKUP(E38+1+1+1,Grelha!$D$3:$E$1490,2)="B")=TRUE,E38+4,IF(AND(VLOOKUP(E38+1,Grelha!$D$3:$E$1490,2)="B",VLOOKUP(E38+1+1,Grelha!$D$3:$E$1490,2)="B")=TRUE,E38+3,IF(AND(VLOOKUP(E38+1,Grelha!$D$3:$E$1490,2)="B",VLOOKUP(E38+1+1,Grelha!$D$3:$E$1490,2)="A")=TRUE,E38+2,IF(VLOOKUP(E38+1,Grelha!$D$3:$E$1490,2)="A",E38+1)))) -> 2017-09-12 | F39: 2017-09-12
E40: =IF(AND(VLOOKUP(E39+1,Grelha!$D$3:$E$1490,2)="B",VLOOKUP(E39+1+1,Grelha!$D$3:$E$1490,2)="B",VLOOKUP(E39+1+1+1,Grelha!$D$3:$E$1490,2)="B")=TRUE,E39+4,IF(AND(VLOOKUP(E39+1,Grelha!$D$3:$E$1490,2)="B",VLOOKUP(E39+1+1,Grelha!$D$3:$E$1490,2)="B")=TRUE,E39+3,IF(AND(VLOOKUP(E39+1,Grelha!$D$3:$E$1490,2)="B",VLOOKUP(E39+1+1,Grelha!$D$3:$E$1490,2)="A")=TRUE,E39+2,IF(VLOOKUP(E39+1,Grelha!$D$3:$E$1490,2)="A",E39+1)))) -> 2017-09-13 | F40: 2017-09-13
E41: =IF(AND(VLOOKUP(E40+1,Grelha!$D$3:$E$1490,2)="B",VLOOKUP(E40+1+1,Grelha!$D$3:$E$1490,2)="B",VLOOKUP(E40+1+1+1,Grelha!$D$3:$E$1490,2)="B")=TRUE,E40+4,IF(AND(VLOOKUP(E40+1,Grelha!$D$3:$E$1490,2)="B",VLOOKUP(E40+1+1,Grelha!$D$3:$E$1490,2)="B")=TRUE,E40+3,IF(AND(VLOOKUP(E40+1,Grelha!$D$3:$E$1490,2)="B",VLOOKUP(E40+1+1,Grelha!$D$3:$E$1490,2)="A")=TRUE,E40+2,IF(VLOOKUP(E40+1,Grelha!$D$3:$E$1490,2)="A",E40+1)))) -> 2017-09-14 | F41: 2017-09-14
E42: =IF(AND(VLOOKUP(E41+1,Grelha!$D$3:$E$1490,2)="B",VLOOKUP(E41+1+1,Grelha!$D$3:$E$1490,2)="B",VLOOKUP(E41+1+1+1,Grelha!$D$3:$E$1490,2)="B")=TRUE,E41+4,IF(AND(VLOOKUP(E41+1,Grelha!$D$3:$E$1490,2)="B",VLOOKUP(E41+1+1,Grelha!$D$3:$E$1490,2)="B")=TRUE,E41+3,IF(AND(VLOOKUP(E41+1,Grelha!$D$3:$E$1490,2)="B",VLOOKUP(E41+1+1,Grelha!$D$3:$E$1490,2)="A")=TRUE,E41+2,IF(VLOOKUP(E41+1,Grelha!$D$3:$E$1490,2)="A",E41+1)))) -> 2017-09-15 | F42: 2017-09-15
E43: =IF(AND(VLOOKUP(E42+1,Grelha!$D$3:$E$1490,2)="B",VLOOKUP(E42+1+1,Grelha!$D$3:$E$1490,2)="B",VLOOKUP(E42+1+1+1,Grelha!$D$3:$E$1490,2)="B")=TRUE,E42+4,IF(AND(VLOOKUP(E42+1,Grelha!$D$3:$E$1490,2)="B",VLOOKUP(E42+1+1,Grelha!$D$3:$E$1490,2)="B")=TRUE,E42+3,IF(AND(VLOOKUP(E42+1,Grelha!$D$3:$E$1490,2)="B",VLOOKUP(E42+1+1,Grelha!$D$3:$E$1490,2)="A")=TRUE,E42+2,IF(VLOOKUP(E42+1,Grelha!$D$3:$E$1490,2)="A",E42+1)))) -> 2017-09-18 | F43: 2017-09-18
E44: =IF(AND(VLOOKUP(E43+1,Grelha!$D$3:$E$1490,2)="B",VLOOKUP(E43+1+1,Grelha!$D$3:$E$1490,2)="B",VLOOKUP(E43+1+1+1,Grelha!$D$3:$E$1490,2)="B")=TRUE,E43+4,IF(AND(VLOOKUP(E43+1,Grelha!$D$3:$E$1490,2)="B",VLOOKUP(E43+1+1,Grelha!$D$3:$E$1490,2)="B")=TRUE,E43+3,IF(AND(VLOOKUP(E43+1,Grelha!$D$3:$E$1490,2)="B",VLOOKUP(E43+1+1,Grelha!$D$3:$E$1490,2)="A")=TRUE,E43+2,IF(VLOOKUP(E43+1,Grelha!$D$3:$E$1490,2)="A",E43+1)))) -> 2017-09-19 | F44: 2017-09-19
E45: =IF(AND(VLOOKUP(E44+1,Grelha!$D$3:$E$1490,2)="B",VLOOKUP(E44+1+1,Grelha!$D$3:$E$1490,2)="B",VLOOKUP(E44+1+1+1,Grelha!$D$3:$E$1490,2)="B")=TRUE,E44+4,IF(AND(VLOOKUP(E44+1,Grelha!$D$3:$E$1490,2)="B",VLOOKUP(E44+1+1,Grelha!$D$3:$E$1490,2)="B")=TRUE,E44+3,IF(AND(VLOOKUP(E44+1,Grelha!$D$3:$E$1490,2)="B",VLOOKUP(E44+1+1,Grelha!$D$3:$E$1490,2)="A")=TRUE,E44+2,IF(VLOOKUP(E44+1,Grelha!$D$3:$E$1490,2)="A",E44+1)))) -> 2017-09-20 | F45: 2017-09-20
E46: =IF(AND(VLOOKUP(E45+1,Grelha!$D$3:$E$1490,2)="B",VLOOKUP(E45+1+1,Grelha!$D$3:$E$1490,2)="B",VLOOKUP(E45+1+1+1,Grelha!$D$3:$E$1490,2)="B")=TRUE,E45+4,IF(AND(VLOOKUP(E45+1,Grelha!$D$3:$E$1490,2)="B",VLOOKUP(E45+1+1,Grelha!$D$3:$E$1490,2)="B")=TRUE,E45+3,IF(AND(VLOOKUP(E45+1,Grelha!$D$3:$E$1490,2)="B",VLOOKUP(E45+1+1,Grelha!$D$3:$E$1490,2)="A")=TRUE,E45+2,IF(VLOOKUP(E45+1,Grelha!$D$3:$E$1490,2)="A",E45+1)))) -> 2017-09-21 | F46: 2017-09-21
E47: =IF(AND(VLOOKUP(E46+1,Grelha!$D$3:$E$1490,2)="B",VLOOKUP(E46+1+1,Grelha!$D$3:$E$1490,2)="B",VLOOKUP(E46+1+1+1,Grelha!$D$3:$E$1490,2)="B")=TRUE,E46+4,IF(AND(VLOOKUP(E46+1,Grelha!$D$3:$E$1490,2)="B",VLOOKUP(E46+1+1,Grelha!$D$3:$E$1490,2)="B")=TRUE,E46+3,IF(AND(VLOOKUP(E46+1,Grelha!$D$3:$E$1490,2)="B",VLOOKUP(E46+1+1,Grelha!$D$3:$E$1490,2)="A")=TRUE,E46+2,IF(VLOOKUP(E46+1,Grelha!$D$3:$E$1490,2)="A",E46+1)))) -> 2017-09-22 | F47: 2017-09-22
E48: =IF(AND(VLOOKUP(E47+1,Grelha!$D$3:$E$1490,2)="B",VLOOKUP(E47+1+1,Grelha!$D$3:$E$1490,2)="B",VLOOKUP(E47+1+1+1,Grelha!$D$3:$E$1490,2)="B")=TRUE,E47+4,IF(AND(VLOOKUP(E47+1,Grelha!$D$3:$E$1490,2)="B",VLOOKUP(E47+1+1,Grelha!$D$3:$E$1490,2)="B")=TRUE,E47+3,IF(AND(VLOOKUP(E47+1,Grelha!$D$3:$E$1490,2)="B",VLOOKUP(E47+1+1,Grelha!$D$3:$E$1490,2)="A")=TRUE,E47+2,IF(VLOOKUP(E47+1,Grelha!$D$3:$E$1490,2)="A",E47+1)))) -> 2017-09-25 | F48: 2017-09-25 | J48: =MATCH("A",INDIRECT(P47),0) ->  | K48: =K47+J48 ->  | L48: ="PREVISÃO_TODA!E"&K48 ->  | O48: =INDIRECT(L48) ->  | Q48: ="PREVISÃO_TODA!c"&K48 ->  | R48: ="PREVISÃO_TODA!d"&K48 ->  | T48: =INDIRECT(Q48) ->  | U48: =INDIRECT(R48) -> 
E49: =IF(AND(VLOOKUP(E48+1,Grelha!$D$3:$E$1490,2)="B",VLOOKUP(E48+1+1,Grelha!$D$3:$E$1490,2)="B",VLOOKUP(E48+1+1+1,Grelha!$D$3:$E$1490,2)="B")=TRUE,E48+4,IF(AND(VLOOKUP(E48+1,Grelha!$D$3:$E$1490,2)="B",VLOOKUP(E48+1+1,Grelha!$D$3:$E$1490,2)="B")=TRUE,E48+3,IF(AND(VLOOKUP(E48+1,Grelha!$D$3:$E$1490,2)="B",VLOOKUP(E48+1+1,Grelha!$D$3:$E$1490,2)="A")=TRUE,E48+2,IF(VLOOKUP(E48+1,Grelha!$D$3:$E$1490,2)="A",E48+1)))) -> 2017-09-26 | F49: 2017-09-26
E50: =IF(AND(VLOOKUP(E49+1,Grelha!$D$3:$E$1490,2)="B",VLOOKUP(E49+1+1,Grelha!$D$3:$E$1490,2)="B",VLOOKUP(E49+1+1+1,Grelha!$D$3:$E$1490,2)="B")=TRUE,E49+4,IF(AND(VLOOKUP(E49+1,Grelha!$D$3:$E$1490,2)="B",VLOOKUP(E49+1+1,Grelha!$D$3:$E$1490,2)="B")=TRUE,E49+3,IF(AND(VLOOKUP(E49+1,Grelha!$D$3:$E$1490,2)="B",VLOOKUP(E49+1+1,Grelha!$D$3:$E$1490,2)="A")=TRUE,E49+2,IF(VLOOKUP(E49+1,Grelha!$D$3:$E$1490,2)="A",E49+1)))) -> 2017-09-27 | F50: 2017-09-27
E51: =IF(AND(VLOOKUP(E50+1,Grelha!$D$3:$E$1490,2)="B",VLOOKUP(E50+1+1,Grelha!$D$3:$E$1490,2)="B",VLOOKUP(E50+1+1+1,Grelha!$D$3:$E$1490,2)="B")=TRUE,E50+4,IF(AND(VLOOKUP(E50+1,Grelha!$D$3:$E$1490,2)="B",VLOOKUP(E50+1+1,Grelha!$D$3:$E$1490,2)="B")=TRUE,E50+3,IF(AND(VLOOKUP(E50+1,Grelha!$D$3:$E$1490,2)="B",VLOOKUP(E50+1+1,Grelha!$D$3:$E$1490,2)="A")=TRUE,E50+2,IF(VLOOKUP(E50+1,Grelha!$D$3:$E$1490,2)="A",E50+1)))) -> 2017-09-28 | F51: =E51 -> 2017-09-28
E52: =IF(AND(VLOOKUP(E51+1,Grelha!$D$3:$E$1490,2)="B",VLOOKUP(E51+1+1,Grelha!$D$3:$E$1490,2)="B",VLOOKUP(E51+1+1+1,Grelha!$D$3:$E$1490,2)="B")=TRUE,E51+4,IF(AND(VLOOKUP(E51+1,Grelha!$D$3:$E$1490,2)="B",VLOOKUP(E51+1+1,Grelha!$D$3:$E$1490,2)="B")=TRUE,E51+3,IF(AND(VLOOKUP(E51+1,Grelha!$D$3:$E$1490,2)="B",VLOOKUP(E51+1+1,Grelha!$D$3:$E$1490,2)="A")=TRUE,E51+2,IF(VLOOKUP(E51+1,Grelha!$D$3:$E$1490,2)="A",E51+1)))) -> 2017-09-29 | F52: 2017-09-29
E53: =IF(AND(VLOOKUP(E52+1,Grelha!$D$3:$E$1490,2)="B",VLOOKUP(E52+1+1,Grelha!$D$3:$E$1490,2)="B",VLOOKUP(E52+1+1+1,Grelha!$D$3:$E$1490,2)="B")=TRUE,E52+4,IF(AND(VLOOKUP(E52+1,Grelha!$D$3:$E$1490,2)="B",VLOOKUP(E52+1+1,Grelha!$D$3:$E$1490,2)="B")=TRUE,E52+3,IF(AND(VLOOKUP(E52+1,Grelha!$D$3:$E$1490,2)="B",VLOOKUP(E52+1+1,Grelha!$D$3:$E$1490,2)="A")=TRUE,E52+2,IF(VLOOKUP(E52+1,Grelha!$D$3:$E$1490,2)="A",E52+1)))) -> 2017-10-02 | F53: 2017-10-02
E54: =IF(AND(VLOOKUP(E53+1,Grelha!$D$3:$E$1490,2)="B",VLOOKUP(E53+1+1,Grelha!$D$3:$E$1490,2)="B",VLOOKUP(E53+1+1+1,Grelha!$D$3:$E$1490,2)="B")=TRUE,E53+4,IF(AND(VLOOKUP(E53+1,Grelha!$D$3:$E$1490,2)="B",VLOOKUP(E53+1+1,Grelha!$D$3:$E$1490,2)="B")=TRUE,E53+3,IF(AND(VLOOKUP(E53+1,Grelha!$D$3:$E$1490,2)="B",VLOOKUP(E53+1+1,Grelha!$D$3:$E$1490,2)="A")=TRUE,E53+2,IF(VLOOKUP(E53+1,Grelha!$D$3:$E$1490,2)="A",E53+1)))) -> 2017-10-03 | F54: 2017-10-03
E55: =IF(AND(VLOOKUP(E54+1,Grelha!$D$3:$E$1490,2)="B",VLOOKUP(E54+1+1,Grelha!$D$3:$E$1490,2)="B",VLOOKUP(E54+1+1+1,Grelha!$D$3:$E$1490,2)="B")=TRUE,E54+4,IF(AND(VLOOKUP(E54+1,Grelha!$D$3:$E$1490,2)="B",VLOOKUP(E54+1+1,Grelha!$D$3:$E$1490,2)="B")=TRUE,E54+3,IF(AND(VLOOKUP(E54+1,Grelha!$D$3:$E$1490,2)="B",VLOOKUP(E54+1+1,Grelha!$D$3:$E$1490,2)="A")=TRUE,E54+2,IF(VLOOKUP(E54+1,Grelha!$D$3:$E$1490,2)="A",E54+1)))) -> 2017-10-04 | F55: 2017-10-04
E56: =IF(AND(VLOOKUP(E55+1,Grelha!$D$3:$E$1490,2)="B",VLOOKUP(E55+1+1,Grelha!$D$3:$E$1490,2)="B",VLOOKUP(E55+1+1+1,Grelha!$D$3:$E$1490,2)="B")=TRUE,E55+4,IF(AND(VLOOKUP(E55+1,Grelha!$D$3:$E$1490,2)="B",VLOOKUP(E55+1+1,Grelha!$D$3:$E$1490,2)="B")=TRUE,E55+3,IF(AND(VLOOKUP(E55+1,Grelha!$D$3:$E$1490,2)="B",VLOOKUP(E55+1+1,Grelha!$D$3:$E$1490,2)="A")=TRUE,E55+2,IF(VLOOKUP(E55+1,Grelha!$D$3:$E$1490,2)="A",E55+1)))) -> 2017-10-06 | F56: 2017-10-06
E57: =IF(AND(VLOOKUP(E56+1,Grelha!$D$3:$E$1490,2)="B",VLOOKUP(E56+1+1,Grelha!$D$3:$E$1490,2)="B",VLOOKUP(E56+1+1+1,Grelha!$D$3:$E$1490,2)="B")=TRUE,E56+4,IF(AND(VLOOKUP(E56+1,Grelha!$D$3:$E$1490,2)="B",VLOOKUP(E56+1+1,Grelha!$D$3:$E$1490,2)="B")=TRUE,E56+3,IF(AND(VLOOKUP(E56+1,Grelha!$D$3:$E$1490,2)="B",VLOOKUP(E56+1+1,Grelha!$D$3:$E$1490,2)="A")=TRUE,E56+2,IF(VLOOKUP(E56+1,Grelha!$D$3:$E$1490,2)="A",E56+1)))) -> 2017-10-09 | F57: 2017-10-09
B66: Posto | C66: Nim | D66: Apelido | E66: Data | F66: Dia de semana | G66: Obs | Q66: posto | R66: nim | S66: posto | T66: nim
B67: =S67 -> 1Sar | C67: 1 | D67: =O67 -> Paul Dawes | E67: 2017-08-05 | F67: =E67 -> 2017-08-05 | J67: =MATCH("B",PREVISÃO_TODA!B2:B143,0) -> 2 | K67: =MATCH("B",PREVISÃO_TODA!B2:B143,0)+1 -> 3 | L67: ="PREVISÃO_TODA!E"&MATCH("B",PREVISÃO_TODA!B2:B143,0)+1 -> PREVISÃO_TODA!E3 | O67: =INDIRECT("PREVISÃO_TODA!E"&MATCH("B",PREVISÃO_TODA!B2:B143,0)+1) -> Paul Dawes | P67: ="PREVISÃO_TODA!b"&K67+1&":B143" -> PREVISÃO_TODA!b4:B143 | Q67: ="PREVISÃO_TODA!c"&MATCH("B",PREVISÃO_TODA!B2:B143,0)+1 -> PREVISÃO_TODA!c3 | R67: ="PREVISÃO_TODA!d"&MATCH("B",PREVISÃO_TODA!B2:B143,0)+1 -> PREVISÃO_TODA!d3 | S67: =INDIRECT(Q67) -> 1Sar | T67: 1
A68: 1 | B68: 1Sar | C68: 2 | D68: Odell Segarra | E68: =INDIRECT("k"&MATCH(A68,$M$118:$M$369,0)+117) -> 2017-08-06 | F68: 2017-08-06 | J68: =MATCH("B",INDIRECT(P67),0) -> 1 | K68: =K67+J68 -> 4 | L68: ="PREVISÃO_TODA!E"&K68 -> PREVISÃO_TODA!E4 | O68: =INDIRECT(L68) -> Odell Segarra | P68: PREVISÃO_TODA!b5:B143 | Q68: ="PREVISÃO_TODA!c"&K68 -> PREVISÃO_TODA!c4 | R68: ="PREVISÃO_TODA!d"&K68 -> PREVISÃO_TODA!d4 | S68: 1Sar | T68: 2
A69: 2 | B69: 1Sar | C69: 3 | D69: Lindsay Sanderlin | E69: 2017-08-12 | F69: 2017-08-12 | J69: =MATCH("B",INDIRECT(P68),0) -> 6 | K69: =K68+J69 -> 10 | L69: ="PREVISÃO_TODA!E"&K69 -> PREVISÃO_TODA!E10 | O69: =INDIRECT(L69) -> Lindsay Sanderlin | P69: PREVISÃO_TODA!b11:B143 | Q69: ="PREVISÃO_TODA!c"&K69 -> PREVISÃO_TODA!c10 | R69: ="PREVISÃO_TODA!d"&K69 -> PREVISÃO_TODA!d10 | S69: 1Sar | T69: 3
A70: 3 | B70: 1Sar | C70: 4 | D70: Rodger Burney | E70: 2017-08-13 | F70: 2017-08-13 | J70: =MATCH("B",INDIRECT(P69),0) -> 1 | K70: =K69+J70 -> 11 | L70: ="PREVISÃO_TODA!E"&K70 -> PREVISÃO_TODA!E11 | O70: =INDIRECT(L70) -> Rodger Burney | P70: PREVISÃO_TODA!b12:B143 | Q70: ="PREVISÃO_TODA!c"&K70 -> PREVISÃO_TODA!c11 | R70: ="PREVISÃO_TODA!d"&K70 -> PREVISÃO_TODA!d11 | S70: 1Sar | T70: 4
A71: 4 | B71: 1Sar | C71: 5 | D71: Donny Belote | E71: 2017-08-15 | F71: 2017-08-15 | J71: =MATCH("B",INDIRECT(P70),0) -> 6 | K71: =K70+J71 -> 17 | L71: ="PREVISÃO_TODA!E"&K71 -> PREVISÃO_TODA!E17 | O71: =INDIRECT(L71) -> Donny Belote | P71: PREVISÃO_TODA!b18:B143 | Q71: ="PREVISÃO_TODA!c"&K71 -> PREVISÃO_TODA!c17 | R71: ="PREVISÃO_TODA!d"&K71 -> PREVISÃO_TODA!d17 | S71: 1Sar | T71: 5
A72: 5 | B72: 1Sar | C72: 6 | D72: Wm Payton | E72: 2017-08-19 | F72: 2017-08-19 | J72: =MATCH("B",INDIRECT(P71),0) -> 1 | K72: =K71+J72 -> 18 | L72: ="PREVISÃO_TODA!E"&K72 -> PREVISÃO_TODA!E18 | O72: =INDIRECT(L72) -> Wm Payton | P72: PREVISÃO_TODA!b19:B143 | Q72: ="PREVISÃO_TODA!c"&K72 -> PREVISÃO_TODA!c18 | R72: ="PREVISÃO_TODA!d"&K72 -> PREVISÃO_TODA!d18 | S72: 1Sar | T72: 6
A73: 6 | B73: =S73 -> 1Sar | C73: 7 | D73: =O73 -> Eugene Molloy | E73: 2017-08-20 | F73: =E73 -> 2017-08-20 | J73: =MATCH("B",INDIRECT(P72),0) -> 2 | K73: =K72+J73 -> 20 | L73: ="PREVISÃO_TODA!E"&K73 -> PREVISÃO_TODA!E20 | O73: =INDIRECT(L73) -> Eugene Molloy | P73: PREVISÃO_TODA!b21:B143 | Q73: ="PREVISÃO_TODA!c"&K73 -> PREVISÃO_TODA!c20 | R73: ="PREVISÃO_TODA!d"&K73 -> PREVISÃO_TODA!d20 | S73: =INDIRECT(Q73) -> 1Sar | T73: =INDIRECT(R73) -> 7
A74: 7 | B74: 1Sar | C74: 8 | D74: Phillip Nottage | E74: =INDIRECT("k"&MATCH(A74,$M$118:$M$369,0)+117) -> 2017-08-26 | F74: 2017-08-26 | J74: 4 | K74: 24 | L74: PREVISÃO_TODA!E24 | O74: Phillip Nottage | P74: PREVISÃO_TODA!b25:B143 | Q74: PREVISÃO_TODA!c24 | R74: PREVISÃO_TODA!d24 | S74: 1Sar | T74: 8
A75: 8 | B75: 1Sar | C75: 9 | D75: Lavern Tank | E75: 2017-08-27 | F75: 2017-08-27 | J75: 1 | K75: 25 | L75: PREVISÃO_TODA!E25 | O75: Lavern Tank | P75: PREVISÃO_TODA!b26:B143 | Q75: PREVISÃO_TODA!c25 | R75: PREVISÃO_TODA!d25 | S75: 1Sar | T75: 9
A76: 9 | B76: 1Sar | C76: 10 | D76: Elvis Feeney | E76: 2017-09-02 | F76: 2017-09-02 | J76: 6 | K76: 31 | L76: PREVISÃO_TODA!E31 | O76: Elvis Feeney | P76: PREVISÃO_TODA!b32:B143 | Q76: PREVISÃO_TODA!c31 | R76: PREVISÃO_TODA!d31 | S76: 1Sar | T76: 10
A77: 10 | B77: 1Sar | C77: 11 | D77: Nigel Knell | E77: 2017-09-03 | F77: 2017-09-03 | J77: 1 | K77: 32 | L77: PREVISÃO_TODA!E32 | O77: Nigel Knell | P77: PREVISÃO_TODA!b33:B143 | Q77: PREVISÃO_TODA!c32 | R77: PREVISÃO_TODA!d32 | S77: 1Sar | T77: 11
A78: 11 | B78: 1Sar | C78: 12 | D78: Stanton Mccord | E78: 2017-09-09 | F78: 2017-09-09 | J78: 6 | K78: 38 | L78: PREVISÃO_TODA!E38 | O78: Stanton Mccord | P78: PREVISÃO_TODA!b39:B143 | Q78: PREVISÃO_TODA!c38 | R78: PREVISÃO_TODA!d38 | S78: 1Sar | T78: 12
A79: 12 | B79: 1Sar | C79: 13 | D79: Tracey Null | E79: 2017-09-10 | F79: 2017-09-10 | J79: =MATCH("B",INDIRECT(P78),0) -> 1 | K79: 39 | L79: PREVISÃO_TODA!E39 | O79: Tracey Null | P79: PREVISÃO_TODA!b40:B143 | Q79: PREVISÃO_TODA!c39 | R79: PREVISÃO_TODA!d39 | S79: 1Sar | T79: 13
A80: 13 | B80: 1Sar | C80: 14 | D80: Winfred Olivieri | E80: 2017-09-16 | F80: 2017-09-16 | J80: 6 | K80: 45 | L80: PREVISÃO_TODA!E45 | O80: Winfred Olivieri | P80: PREVISÃO_TODA!b46:B143 | Q80: PREVISÃO_TODA!c45 | R80: PREVISÃO_TODA!d45 | S80: 1Sar | T80: 14
A81: 14 | B81: 1Sar | C81: 15 | D81: Roderick Lehto | E81: 2017-09-17 | F81: 2017-09-17 | J81: 1 | K81: 46 | L81: PREVISÃO_TODA!E46 | O81: Roderick Lehto | P81: PREVISÃO_TODA!b47:B143 | Q81: PREVISÃO_TODA!c46 | R81: PREVISÃO_TODA!d46 | S81: 1Sar | T81: 15
A82: 15 | E82: 2017-09-23 | F82: 2017-09-23
A83: 16 | B83: =S83 ->  | C83: =T83 ->  | D83: =O83 ->  | E83: 2017-09-24 | F83: =E83 -> 2017-09-24
A84: 17 | E84: 2017-09-30 | F84: 2017-09-30
A85: 18 | E85: 2017-10-01 | F85: 2017-10-01
A86: 19 | E86: 2017-10-05 | F86: 2017-10-05
A87: 20 | E87: 2017-10-07 | F87: 2017-10-07
A88: 21 | E88: 2017-10-08 | F88: 2017-10-08 | J88: =MATCH("B",INDIRECT(P87),0) ->  | K88: =K87+J88 ->  | L88: ="PREVISÃO_TODA!E"&K88 ->  | O88: =INDIRECT(L88) ->  | Q88: ="PREVISÃO_TODA!c"&K88 ->  | R88: ="PREVISÃO_TODA!d"&K88 ->  | S88: =INDIRECT(Q88) ->  | T88: =INDIRECT(R88) -> 
A89: 22 | E89: 2017-10-14 | F89: 2017-10-14
A90: 23 | E90: 2017-10-15 | F90: 2017-10-15
A91: 24 | E91: 2017-10-21 | F91: 2017-10-21
A92: 25 | E92: 2017-10-22 | F92: 2017-10-22
A93: 26 | E93: 2017-10-28 | F93: 2017-10-28
A94: 27 | E94: 2017-10-29 | F94: 2017-10-29
A95: 28 | E95: 2017-11-04 | F95: 2017-11-04
A96: 29 | E96: 2017-11-05 | F96: 2017-11-05
A97: 30 | E97: 2017-11-11 | F97: 2017-11-11
A98: 31 | E98: 2017-11-12 | F98: 2017-11-12
A99: 32 | E99: 2017-11-18 | F99: 2017-11-18
A100: 33 | E100: 2017-11-19 | F100: 2017-11-19
A101: 34 | E101: 2017-11-25 | F101: 2017-11-25
A102: 35 | E102: 2017-11-26 | F102: 2017-11-26
A103: 36 | E103: 2017-12-02 | F103: 2017-12-02
A104: 37 | E104: 2017-12-03 | F104: 2017-12-03
A105: 38 | E105: 2017-12-09 | F105: 2017-12-09
A106: 39 | E106: 2017-12-10 | F106: 2017-12-10
A107: 40 | E107: 2017-12-16 | F107: 2017-12-16
A108: 41 | E108: 2017-12-17 | F108: 2017-12-17
A109: 42 | E109: 2017-12-23 | F109: 2017-12-23
A110: 43 | E110: 2017-12-24 | F110: 2017-12-24
A111: 44 | E111: 2017-12-30 | F111: 2017-12-30
K117: em… | L117: a escala é…
I118: e67 | J118: 1 | K118: =INDIRECT(I118)+J118 -> 2017-08-06 | L118: =VLOOKUP(K118,Grelha!$D$3:$E$1490,2) -> B | M118: =IF(L118="B",1,0) -> 1
I119: e67 | J119: 2 | K119: =INDIRECT(I119)+J119 -> 2017-08-07 | L119: =VLOOKUP(K119,Grelha!$D$3:$E$1490,2) -> A | M119: =IF(L119="B",M118+1,M118) -> 1
I120: e67 | J120: 3 | K120: 2017-08-08 | L120: =VLOOKUP(K120,Grelha!$D$3:$E$1490,2) -> A | M120: 1
I121: e67 | J121: 4 | K121: 2017-08-09 | L121: =VLOOKUP(K121,Grelha!$D$3:$E$1490,2) -> A | M121: 1
I122: e67 | J122: 5 | K122: 2017-08-10 | L122: =VLOOKUP(K122,Grelha!$D$3:$E$1490,2) -> A | M122: 1
I123: e67 | J123: 6 | K123: 2017-08-11 | L123: =VLOOKUP(K123,Grelha!$D$3:$E$1490,2) -> A | M123: 1
I124: e67 | J124: 7 | K124: 2017-08-12 | L124: =VLOOKUP(K124,Grelha!$D$3:$E$1490,2) -> B | M124: 2
I125: e67 | J125: 8 | K125: 2017-08-13 | L125: =VLOOKUP(K125,Grelha!$D$3:$E$1490,2) -> B | M125: 3
I126: e67 | J126: 9 | K126: 2017-08-14 | L126: =VLOOKUP(K126,Grelha!$D$3:$E$1490,2) -> A | M126: 3
I127: e67 | J127: 10 | K127: 2017-08-15 | L127: =VLOOKUP(K127,Grelha!$D$3:$E$1490,2) -> B | M127: 4
I128: e67 | J128: 11 | K128: 2017-08-16 | L128: =VLOOKUP(K128,Grelha!$D$3:$E$1490,2) -> A | M128: 4
I129: e67 | J129: 12 | K129: 2017-08-17 | L129: =VLOOKUP(K129,Grelha!$D$3:$E$1490,2) -> A | M129: 4
I130: e67 | J130: 13 | K130: 2017-08-18 | L130: =VLOOKUP(K130,Grelha!$D$3:$E$1490,2) -> A | M130: 4
I131: e67 | J131: 14 | K131: 2017-08-19 | L131: =VLOOKUP(K131,Grelha!$D$3:$E$1490,2) -> B | M131: 5
I132: e67 | J132: 15 | K132: 2017-08-20 | L132: =VLOOKUP(K132,Grelha!$D$3:$E$1490,2) -> B | M132: 6
I133: e67 | J133: 16 | K133: 2017-08-21 | L133: =VLOOKUP(K133,Grelha!$D$3:$E$1490,2) -> A | M133: 6
I134: e67 | J134: 17 | K134: 2017-08-22 | L134: =VLOOKUP(K134,Grelha!$D$3:$E$1490,2) -> A | M134: 6
I135: e67 | J135: 18 | K135: 2017-08-23 | L135: =VLOOKUP(K135,Grelha!$D$3:$E$1490,2) -> A | M135: 6
I136: e67 | J136: 19 | K136: 2017-08-24 | L136: =VLOOKUP(K136,Grelha!$D$3:$E$1490,2) -> A | M136: 6
I137: e67 | J137: 20 | K137: 2017-08-25 | L137: =VLOOKUP(K137,Grelha!$D$3:$E$1490,2) -> A | M137: 6
I138: e67 | J138: 21 | K138: 2017-08-26 | L138: =VLOOKUP(K138,Grelha!$D$3:$E$1490,2) -> B | M138: 7
I139: e67 | J139: 22 | K139: 2017-08-27 | L139: =VLOOKUP(K139,Grelha!$D$3:$E$1490,2) -> B | M139: 8
I140: e67 | J140: 23 | K140: 2017-08-28 | L140: =VLOOKUP(K140,Grelha!$D$3:$E$1490,2) -> A | M140: 8
I141: e67 | J141: 24 | K141: 2017-08-29 | L141: =VLOOKUP(K141,Grelha!$D$3:$E$1490,2) -> A | M141: 8
I142: e67 | J142: 25 | K142: 2017-08-30 | L142: =VLOOKUP(K142,Grelha!$D$3:$E$1490,2) -> A | M142: 8
I143: e67 | J143: 26 | K143: 2017-08-31 | L143: =VLOOKUP(K143,Grelha!$D$3:$E$1490,2) -> A | M143: 8
I144: e67 | J144: 27 | K144: 2017-09-01 | L144: =VLOOKUP(K144,Grelha!$D$3:$E$1490,2) -> A | M144: 8
I145: e67 | J145: 28 | K145: 2017-09-02 | L145: =VLOOKUP(K145,Grelha!$D$3:$E$1490,2) -> B | M145: =IF(L145="B",M144+1,M144) -> 9
I146: e67 | J146: 29 | K146: 2017-09-03 | L146: =VLOOKUP(K146,Grelha!$D$3:$E$1490,2) -> B | M146: 10
I147: e67 | J147: 30 | K147: 2017-09-04 | L147: =VLOOKUP(K147,Grelha!$D$3:$E$1490,2) -> A | M147: 10
I148: e67 | J148: 31 | K148: 2017-09-05 | L148: =VLOOKUP(K148,Grelha!$D$3:$E$1490,2) -> A | M148: 10
I149: e67 | J149: 32 | K149: 2017-09-06 | L149: =VLOOKUP(K149,Grelha!$D$3:$E$1490,2) -> A | M149: 10
I150: e67 | J150: 33 | K150: 2017-09-07 | L150: =VLOOKUP(K150,Grelha!$D$3:$E$1490,2) -> A | M150: 10
I151: e67 | J151: 34 | K151: 2017-09-08 | L151: =VLOOKUP(K151,Grelha!$D$3:$E$1490,2) -> A | M151: 10
I152: e67 | J152: 35 | K152: 2017-09-09 | L152: =VLOOKUP(K152,Grelha!$D$3:$E$1490,2) -> B | M152: 11
I153: e67 | J153: 36 | K153: 2017-09-10 | L153: =VLOOKUP(K153,Grelha!$D$3:$E$1490,2) -> B | M153: 12
I154: e67 | J154: 37 | K154: 2017-09-11 | L154: =VLOOKUP(K154,Grelha!$D$3:$E$1490,2) -> A | M154: 12
I155: e67 | J155: 38 | K155: 2017-09-12 | L155: =VLOOKUP(K155,Grelha!$D$3:$E$1490,2) -> A | M155: 12
I156: e67 | J156: 39 | K156: 2017-09-13 | L156: =VLOOKUP(K156,Grelha!$D$3:$E$1490,2) -> A | M156: 12
I157: e67 | J157: 40 | K157: 2017-09-14 | L157: =VLOOKUP(K157,Grelha!$D$3:$E$1490,2) -> A | M157: 12
I158: e67 | J158: 41 | K158: 2017-09-15 | L158: =VLOOKUP(K158,Grelha!$D$3:$E$1490,2) -> A | M158: 12
I159: e67 | J159: 42 | K159: 2017-09-16 | L159: =VLOOKUP(K159,Grelha!$D$3:$E$1490,2) -> B | M159: 13
I160: e67 | J160: 43 | K160: 2017-09-17 | L160: =VLOOKUP(K160,Grelha!$D$3:$E$1490,2) -> B | M160: 14
I161: e67 | J161: 44 | K161: 2017-09-18 | L161: =VLOOKUP(K161,Grelha!$D$3:$E$1490,2) -> A | M161: 14
I162: e67 | J162: 45 | K162: 2017-09-19 | L162: =VLOOKUP(K162,Grelha!$D$3:$E$1490,2) -> A | M162: 14
I163: e67 | J163: 46 | K163: 2017-09-20 | L163: =VLOOKUP(K163,Grelha!$D$3:$E$1490,2) -> A | M163: 14
I164: e67 | J164: 47 | K164: 2017-09-21 | L164: =VLOOKUP(K164,Grelha!$D$3:$E$1490,2) -> A | M164: 14
I165: e67 | J165: 48 | K165: 2017-09-22 | L165: =VLOOKUP(K165,Grelha!$D$3:$E$1490,2) -> A | M165: 14
I166: e67 | J166: 49 | K166: 2017-09-23 | L166: =VLOOKUP(K166,Grelha!$D$3:$E$1490,2) -> B | M166: 15
I167: e67 | J167: 50 | K167: =INDIRECT(I167)+J167 -> 2017-09-24 | L167: =VLOOKUP(K167,Grelha!$D$3:$E$1490,2) -> B | M167: 16
I168: e67 | J168: 51 | K168: 2017-09-25 | L168: =VLOOKUP(K168,Grelha!$D$3:$E$1490,2) -> A | M168: =IF(L168="B",M167+1,M167) -> 16
I169: e67 | J169: 52 | K169: 2017-09-26 | L169: =VLOOKUP(K169,Grelha!$D$3:$E$1490,2) -> A | M169: 16
I170: e67 | J170: 53 | K170: 2017-09-27 | L170: =VLOOKUP(K170,Grelha!$D$3:$E$1490,2) -> A | M170: 16
I171: e67 | J171: 54 | K171: 2017-09-28 | L171: =VLOOKUP(K171,Grelha!$D$3:$E$1490,2) -> A | M171: 16
I172: e67 | J172: 55 | K172: 2017-09-29 | L172: =VLOOKUP(K172,Grelha!$D$3:$E$1490,2) -> A | M172: 16
I173: e67 | J173: 56 | K173: 2017-09-30 | L173: =VLOOKUP(K173,Grelha!$D$3:$E$1490,2) -> B | M173: 17
I174: e67 | J174: 57 | K174: 2017-10-01 | L174: =VLOOKUP(K174,Grelha!$D$3:$E$1490,2) -> B | M174: 18
I175: e67 | J175: 58 | K175: 2017-10-02 | L175: =VLOOKUP(K175,Grelha!$D$3:$E$1490,2) -> A | M175: 18
I176: e67 | J176: 59 | K176: 2017-10-03 | L176: =VLOOKUP(K176,Grelha!$D$3:$E$1490,2) -> A | M176: 18
I177: e67 | J177: 60 | K177: 2017-10-04 | L177: =VLOOKUP(K177,Grelha!$D$3:$E$1490,2) -> A | M177: 18
I178: e67 | J178: 61 | K178: 2017-10-05 | L178: =VLOOKUP(K178,Grelha!$D$3:$E$1490,2) -> B | M178: 19
I179: e67 | J179: 62 | K179: 2017-10-06 | L179: =VLOOKUP(K179,Grelha!$D$3:$E$1490,2) -> A | M179: 19
I180: e67 | J180: 63 | K180: 2017-10-07 | L180: =VLOOKUP(K180,Grelha!$D$3:$E$1490,2) -> B | M180: 20
I181: e67 | J181: 64 | K181: 2017-10-08 | L181: =VLOOKUP(K181,Grelha!$D$3:$E$1490,2) -> B | M181: 21
I182: e67 | J182: 65 | K182: 2017-10-09 | L182: =VLOOKUP(K182,Grelha!$D$3:$E$1490,2) -> A | M182: 21
I183: e67 | J183: 66 | K183: 2017-10-10 | L183: =VLOOKUP(K183,Grelha!$D$3:$E$1490,2) -> A | M183: 21
I184: e67 | J184: 67 | K184: 2017-10-11 | L184: =VLOOKUP(K184,Grelha!$D$3:$E$1490,2) -> A | M184: 21
I185: e67 | J185: 68 | K185: 2017-10-12 | L185: =VLOOKUP(K185,Grelha!$D$3:$E$1490,2) -> A | M185: 21
I186: e67 | J186: 69 | K186: 2017-10-13 | L186: =VLOOKUP(K186,Grelha!$D$3:$E$1490,2) -> A | M186: 21
I187: e67 | J187: 70 | K187: 2017-10-14 | L187: =VLOOKUP(K187,Grelha!$D$3:$E$1490,2) -> B | M187: 22
I188: e67 | J188: 71 | K188: 2017-10-15 | L188: =VLOOKUP(K188,Grelha!$D$3:$E$1490,2) -> B | M188: 23
I189: e67 | J189: 72 | K189: 2017-10-16 | L189: =VLOOKUP(K189,Grelha!$D$3:$E$1490,2) -> A | M189: 23
I190: e67 | J190: 73 | K190: 2017-10-17 | L190: =VLOOKUP(K190,Grelha!$D$3:$E$1490,2) -> A | M190: 23
I191: e67 | J191: 74 | K191: 2017-10-18 | L191: =VLOOKUP(K191,Grelha!$D$3:$E$1490,2) -> A | M191: 23
I192: e67 | J192: 75 | K192: 2017-10-19 | L192: =VLOOKUP(K192,Grelha!$D$3:$E$1490,2) -> A | M192: 23
I193: e67 | J193: 76 | K193: 2017-10-20 | L193: =VLOOKUP(K193,Grelha!$D$3:$E$1490,2) -> A | M193: 23
I194: e67 | J194: 77 | K194: 2017-10-21 | L194: =VLOOKUP(K194,Grelha!$D$3:$E$1490,2) -> B | M194: 24
I195: e67 | J195: 78 | K195: 2017-10-22 | L195: =VLOOKUP(K195,Grelha!$D$3:$E$1490,2) -> B | M195: 25
I196: e67 | J196: 79 | K196: 2017-10-23 | L196: =VLOOKUP(K196,Grelha!$D$3:$E$1490,2) -> A | M196: 25
I197: e67 | J197: 80 | K197: 2017-10-24 | L197: =VLOOKUP(K197,Grelha!$D$3:$E$1490,2) -> A | M197: 25
I198: e67 | J198: 81 | K198: 2017-10-25 | L198: =VLOOKUP(K198,Grelha!$D$3:$E$1490,2) -> A | M198: 25
I199: e67 | J199: 82 | K199: 2017-10-26 | L199: =VLOOKUP(K199,Grelha!$D$3:$E$1490,2) -> A | M199: 25
I200: e67 | J200: 83 | K200: 2017-10-27 | L200: =VLOOKUP(K200,Grelha!$D$3:$E$1490,2) -> A | M200: 25
I201: e67 | J201: 84 | K201: 2017-10-28 | L201: =VLOOKUP(K201,Grelha!$D$3:$E$1490,2) -> B | M201: 26
I202: e67 | J202: 85 | K202: 2017-10-29 | L202: =VLOOKUP(K202,Grelha!$D$3:$E$1490,2) -> B | M202: 27
I203: e67 | J203: 86 | K203: 2017-10-30 | L203: =VLOOKUP(K203,Grelha!$D$3:$E$1490,2) -> A | M203: 27
I204: e67 | J204: 87 | K204: 2017-10-31 | L204: =VLOOKUP(K204,Grelha!$D$3:$E$1490,2) -> A | M204: 27
I205: e67 | J205: 88 | K205: 2017-11-01 | L205: =VLOOKUP(K205,Grelha!$D$3:$E$1490,2) -> A | M205: 27
I206: e67 | J206: 89 | K206: 2017-11-02 | L206: =VLOOKUP(K206,Grelha!$D$3:$E$1490,2) -> A | M206: 27
I207: e67 | J207: 90 | K207: 2017-11-03 | L207: =VLOOKUP(K207,Grelha!$D$3:$E$1490,2) -> A | M207: 27
I208: e67 | J208: 91 | K208: 2017-11-04 | L208: =VLOOKUP(K208,Grelha!$D$3:$E$1490,2) -> B | M208: 28
I209: e67 | J209: 92 | K209: 2017-11-05 | L209: =VLOOKUP(K209,Grelha!$D$3:$E$1490,2) -> B | M209: 29
I210: e67 | J210: 93 | K210: 2017-11-06 | L210: =VLOOKUP(K210,Grelha!$D$3:$E$1490,2) -> A | M210: 29
I211: e67 | J211: 94 | K211: 2017-11-07 | L211: =VLOOKUP(K211,Grelha!$D$3:$E$1490,2) -> A | M211: 29
I212: e67 | J212: 95 | K212: 2017-11-08 | L212: =VLOOKUP(K212,Grelha!$D$3:$E$1490,2) -> A | M212: 29
I213: e67 | J213: 96 | K213: 2017-11-09 | L213: =VLOOKUP(K213,Grelha!$D$3:$E$1490,2) -> A | M213: 29
I214: e67 | J214: 97 | K214: 2017-11-10 | L214: =VLOOKUP(K214,Grelha!$D$3:$E$1490,2) -> A | M214: 29
I215: e67 | J215: 98 | K215: 2017-11-11 | L215: =VLOOKUP(K215,Grelha!$D$3:$E$1490,2) -> B | M215: 30
I216: e67 | J216: 99 | K216: 2017-11-12 | L216: =VLOOKUP(K216,Grelha!$D$3:$E$1490,2) -> B | M216: 31
I217: e67 | J217: 100 | K217: 2017-11-13 | L217: =VLOOKUP(K217,Grelha!$D$3:$E$1490,2) -> A | M217: 31
I218: e67 | J218: 101 | K218: 2017-11-14 | L218: =VLOOKUP(K218,Grelha!$D$3:$E$1490,2) -> A | M218: 31
I219: e67 | J219: 102 | K219: 2017-11-15 | L219: =VLOOKUP(K219,Grelha!$D$3:$E$1490,2) -> A | M219: 31
I220: e67 | J220: 103 | K220: 2017-11-16 | L220: =VLOOKUP(K220,Grelha!$D$3:$E$1490,2) -> A | M220: 31
I221: e67 | J221: 104 | K221: 2017-11-17 | L221: =VLOOKUP(K221,Grelha!$D$3:$E$1490,2) -> A | M221: 31
... 148 more rows

Sheet Previsão Rápida
C2: ESCALA | D2: POSTO | E2: NIM | F2: APELIDO | G2: COMPANHIA
B3: 1 | C3: =IF(LEN(D3)<3,"",INDIRECT("GRELHA!A"&(MATCH(B3,Grelha!$V$3:$V$1490,0))+2)) -> A | D3: =INDIRECT("GRELHA!f"&(MATCH(B3,Grelha!$V$3:$V$1490,0))+2) -> 1Sar | E3: =INDIRECT("GRELHA!g"&(MATCH(B3,Grelha!$V$3:$V$1490,0))+2) -> 5 | F3: =INDIRECT("GRELHA!h"&(MATCH(B3,Grelha!$V$3:$V$1490,0))+2) -> Donny Belote | G3: =INDIRECT("GRELHA!i"&(MATCH(B3,Grelha!$V$3:$V$1490,0))+2) -> Comp5
B4: 2 | C4: =IF(LEN(D4)<3,"",INDIRECT("GRELHA!A"&(MATCH(B4,Grelha!$V$3:$V$1490,0))+2)) -> B | D4: =INDIRECT("GRELHA!f"&(MATCH(B4,Grelha!$V$3:$V$1490,0))+2) -> 1Sar | E4: =INDIRECT("GRELHA!g"&(MATCH(B4,Grelha!$V$3:$V$1490,0))+2) -> 1 | F4: =INDIRECT("GRELHA!h"&(MATCH(B4,Grelha!$V$3:$V$1490,0))+2) -> Paul Dawes | G4: =INDIRECT("GRELHA!i"&(MATCH(B4,Grelha!$V$3:$V$1490,0))+2) -> Comp1
B5: 3 | C5: =IF(LEN(D5)<3,"",INDIRECT("GRELHA!A"&(MATCH(B5,Grelha!$V$3:$V$1490,0))+2)) -> B | D5: =INDIRECT("GRELHA!f"&(MATCH(B5,Grelha!$V$3:$V$1490,0))+2) -> 1Sar | E5: =INDIRECT("GRELHA!g"&(MATCH(B5,Grelha!$V$3:$V$1490,0))+2) -> 2 | F5: =INDIRECT("GRELHA!h"&(MATCH(B5,Grelha!$V$3:$V$1490,0))+2) -> Odell Segarra | G5: =INDIRECT("GRELHA!i"&(MATCH(B5,Grelha!$V$3:$V$1490,0))+2) -> Comp2
B6: 4 | C6: =IF(LEN(D6)<3,"",INDIRECT("GRELHA!A"&(MATCH(B6,Grelha!$V$3:$V$1490,0))+2)) -> A | D6: =INDIRECT("GRELHA!f"&(MATCH(B6,Grelha!$V$3:$V$1490,0))+2) -> 1Sar | E6: =INDIRECT("GRELHA!g"&(MATCH(B6,Grelha!$V$3:$V$1490,0))+2) -> 6 | F6: =INDIRECT("GRELHA!h"&(MATCH(B6,Grelha!$V$3:$V$1490,0))+2) -> Wm Payton | G6: =INDIRECT("GRELHA!i"&(MATCH(B6,Grelha!$V$3:$V$1490,0))+2) -> Comp6
B7: 5 | C7: =IF(LEN(D7)<3,"",INDIRECT("GRELHA!A"&(MATCH(B7,Grelha!$V$3:$V$1490,0))+2)) -> A | D7: =INDIRECT("GRELHA!f"&(MATCH(B7,Grelha!$V$3:$V$1490,0))+2) -> 1Sar | E7: =INDIRECT("GRELHA!g"&(MATCH(B7,Grelha!$V$3:$V$1490,0))+2) -> 7 | F7: =INDIRECT("GRELHA!h"&(MATCH(B7,Grelha!$V$3:$V$1490,0))+2) -> Eugene Molloy | G7: =INDIRECT("GRELHA!i"&(MATCH(B7,Grelha!$V$3:$V$1490,0))+2) -> Comp7
B8: 6 | C8: =IF(LEN(D8)<3,"",INDIRECT("GRELHA!A"&(MATCH(B8,Grelha!$V$3:$V$1490,0))+2)) -> A | D8: =INDIRECT("GRELHA!f"&(MATCH(B8,Grelha!$V$3:$V$1490,0))+2) -> 1Sar | E8: =INDIRECT("GRELHA!g"&(MATCH(B8,Grelha!$V$3:$V$1490,0))+2) -> 8 | F8: =INDIRECT("GRELHA!h"&(MATCH(B8,Grelha!$V$3:$V$1490,0))+2) -> Phillip Nottage | G8: =INDIRECT("GRELHA!i"&(MATCH(B8,Grelha!$V$3:$V$1490,0))+2) -> Comp8
B9: 7 | C9: =IF(LEN(D9)<3,"",INDIRECT("GRELHA!A"&(MATCH(B9,Grelha!$V$3:$V$1490,0))+2)) -> A | D9: =INDIRECT("GRELHA!f"&(MATCH(B9,Grelha!$V$3:$V$1490,0))+2) -> 1Sar | E9: =INDIRECT("GRELHA!g"&(MATCH(B9,Grelha!$V$3:$V$1490,0))+2) -> 9 | F9: =INDIRECT("GRELHA!h"&(MATCH(B9,Grelha!$V$3:$V$1490,0))+2) -> Lavern Tank | G9: =INDIRECT("GRELHA!i"&(MATCH(B9,Grelha!$V$3:$V$1490,0))+2) -> Comp9
B10: 8 | C10: =IF(LEN(D10)<3,"",INDIRECT("GRELHA!A"&(MATCH(B10,Grelha!$V$3:$V$1490,0))+2)) -> A | D10: =INDIRECT("GRELHA!f"&(MATCH(B10,Grelha!$V$3:$V$1490,0))+2) -> 1Sar | E10: =INDIRECT("GRELHA!g"&(MATCH(B10,Grelha!$V$3:$V$1490,0))+2) -> 10 | F10: =INDIRECT("GRELHA!h"&(MATCH(B10,Grelha!$V$3:$V$1490,0))+2) -> Elvis Feeney | G10: =INDIRECT("GRELHA!i"&(MATCH(B10,Grelha!$V$3:$V$1490,0))+2) -> Comp10
B11: 9 | C11: =IF(LEN(D11)<3,"",INDIRECT("GRELHA!A"&(MATCH(B11,Grelha!$V$3:$V$1490,0))+2)) -> B | D11: =INDIRECT("GRELHA!f"&(MATCH(B11,Grelha!$V$3:$V$1490,0))+2) -> 1Sar | E11: =INDIRECT("GRELHA!g"&(MATCH(B11,Grelha!$V$3:$V$1490,0))+2) -> 3 | F11: =INDIRECT("GRELHA!h"&(MATCH(B11,Grelha!$V$3:$V$1490,0))+2) -> Lindsay Sanderlin | G11: =INDIRECT("GRELHA!i"&(MATCH(B11,Grelha!$V$3:$V$1490,0))+2) -> Comp3
B12: 10 | C12: =IF(LEN(D12)<3,"",INDIRECT("GRELHA!A"&(MATCH(B12,Grelha!$V$3:$V$1490,0))+2)) -> B | D12: =INDIRECT("GRELHA!f"&(MATCH(B12,Grelha!$V$3:$V$1490,0))+2) -> 1Sar | E12: =INDIRECT("GRELHA!g"&(MATCH(B12,Grelha!$V$3:$V$1490,0))+2) -> 4 | F12: =INDIRECT("GRELHA!h"&(MATCH(B12,Grelha!$V$3:$V$1490,0))+2) -> Rodger Burney | G12: =INDIRECT("GRELHA!i"&(MATCH(B12,Grelha!$V$3:$V$1490,0))+2) -> Comp4
B13: 11 | C13: =IF(LEN(D13)<3,"",INDIRECT("GRELHA!A"&(MATCH(B13,Grelha!$V$3:$V$1490,0))+2)) -> A | D13: =INDIRECT("GRELHA!f"&(MATCH(B13,Grelha!$V$3:$V$1490,0))+2) -> 1Sar | E13: =INDIRECT("GRELHA!g"&(MATCH(B13,Grelha!$V$3:$V$1490,0))+2) -> 11 | F13: =INDIRECT("GRELHA!h"&(MATCH(B13,Grelha!$V$3:$V$1490,0))+2) -> Nigel Knell | G13: =INDIRECT("GRELHA!i"&(MATCH(B13,Grelha!$V$3:$V$1490,0))+2) -> Comp11
B14: 12 | C14: =IF(LEN(D14)<3,"",INDIRECT("GRELHA!A"&(MATCH(B14,Grelha!$V$3:$V$1490,0))+2)) -> A | D14: =INDIRECT("GRELHA!f"&(MATCH(B14,Grelha!$V$3:$V$1490,0))+2) -> 1Sar | E14: =INDIRECT("GRELHA!g"&(MATCH(B14,Grelha!$V$3:$V$1490,0))+2) -> 12 | F14: =INDIRECT("GRELHA!h"&(MATCH(B14,Grelha!$V$3:$V$1490,0))+2) -> Stanton Mccord | G14: =INDIRECT("GRELHA!i"&(MATCH(B14,Grelha!$V$3:$V$1490,0))+2) -> Comp12
B15: 13 | C15: =IF(LEN(D15)<3,"",INDIRECT("GRELHA!A"&(MATCH(B15,Grelha!$V$3:$V$1490,0))+2)) -> A | D15: =INDIRECT("GRELHA!f"&(MATCH(B15,Grelha!$V$3:$V$1490,0))+2) -> 1Sar | E15: =INDIRECT("GRELHA!g"&(MATCH(B15,Grelha!$V$3:$V$1490,0))+2) -> 13 | F15: =INDIRECT("GRELHA!h"&(MATCH(B15,Grelha!$V$3:$V$1490,0))+2) -> Tracey Null | G15: =INDIRECT("GRELHA!i"&(MATCH(B15,Grelha!$V$3:$V$1490,0))+2) -> Comp13
B16: 14 | C16: =IF(LEN(D16)<3,"",INDIRECT("GRELHA!A"&(MATCH(B16,Grelha!$V$3:$V$498,0))+2)) -> A | D16: =INDIRECT("GRELHA!f"&(MATCH(B16,Grelha!$V$3:$V$1490,0))+2) -> 1Sar | E16: =INDIRECT("GRELHA!g"&(MATCH(B16,Grelha!$V$3:$V$1490,0))+2) -> 14 | F16: =INDIRECT("GRELHA!h"&(MATCH(B16,Grelha!$V$3:$V$1490,0))+2) -> Winfred Olivieri | G16: =INDIRECT("GRELHA!i"&(MATCH(B16,Grelha!$V$3:$V$1490,0))+2) -> Comp14
B17: 15 | C17: =IF(LEN(D17)<3,"",INDIRECT("GRELHA!A"&(MATCH(B17,Grelha!$V$3:$V$498,0))+2)) -> A | D17: =INDIRECT("GRELHA!f"&(MATCH(B17,Grelha!$V$3:$V$1490,0))+2) -> 1Sar | E17: =INDIRECT("GRELHA!g"&(MATCH(B17,Grelha!$V$3:$V$1490,0))+2) -> 15 | F17: =INDIRECT("GRELHA!h"&(MATCH(B17,Grelha!$V$3:$V$1490,0))+2) -> Roderick Lehto | G17: =INDIRECT("GRELHA!i"&(MATCH(B17,Grelha!$V$3:$V$1490,0))+2) -> Comp15
B18: 16 | C18: =IF(LEN(D18)<3,"",INDIRECT("GRELHA!A"&(MATCH(B18,Grelha!$V$3:$V$498,0))+2)) -> B | D18: =INDIRECT("GRELHA!f"&(MATCH(B18,Grelha!$V$3:$V$1490,0))+2) -> 1Sar | E18: =INDIRECT("GRELHA!g"&(MATCH(B18,Grelha!$V$3:$V$1490,0))+2) -> 5 | F18: =INDIRECT("GRELHA!h"&(MATCH(B18,Grelha!$V$3:$V$1490,0))+2) -> Donny Belote | G18: =INDIRECT("GRELHA!i"&(MATCH(B18,Grelha!$V$3:$V$1490,0))+2) -> Comp5
B19: 17 | C19: =IF(LEN(D19)<3,"",INDIRECT("GRELHA!A"&(MATCH(B19,Grelha!$V$3:$V$498,0))+2)) -> B | D19: =INDIRECT("GRELHA!f"&(MATCH(B19,Grelha!$V$3:$V$1490,0))+2) -> 1Sar | E19: =INDIRECT("GRELHA!g"&(MATCH(B19,Grelha!$V$3:$V$1490,0))+2) -> 6 | F19: =INDIRECT("GRELHA!h"&(MATCH(B19,Grelha!$V$3:$V$1490,0))+2) -> Wm Payton | G19: =INDIRECT("GRELHA!i"&(MATCH(B19,Grelha!$V$3:$V$1490,0))+2) -> Comp6
B20: 18 | C20: =IF(LEN(D20)<3,"",INDIRECT("GRELHA!A"&(MATCH(B20,Grelha!$V$3:$V$498,0))+2)) -> A | D20: =INDIRECT("GRELHA!f"&(MATCH(B20,Grelha!$V$3:$V$1490,0))+2) -> 1Sar | E20: =INDIRECT("GRELHA!g"&(MATCH(B20,Grelha!$V$3:$V$1490,0))+2) -> 1 | F20: =INDIRECT("GRELHA!h"&(MATCH(B20,Grelha!$V$3:$V$1490,0))+2) -> Paul Dawes | G20: =INDIRECT("GRELHA!i"&(MATCH(B20,Grelha!$V$3:$V$1490,0))+2) -> Comp1
B21: 19 | C21: =IF(LEN(D21)<3,"",INDIRECT("GRELHA!A"&(MATCH(B21,Grelha!$V$3:$V$498,0))+2)) -> B | D21: =INDIRECT("GRELHA!f"&(MATCH(B21,Grelha!$V$3:$V$1490,0))+2) -> 1Sar | E21: =INDIRECT("GRELHA!g"&(MATCH(B21,Grelha!$V$3:$V$1490,0))+2) -> 7 | F21: =INDIRECT("GRELHA!h"&(MATCH(B21,Grelha!$V$3:$V$1490,0))+2) -> Eugene Molloy | G21: =INDIRECT("GRELHA!i"&(MATCH(B21,Grelha!$V$3:$V$1490,0))+2) -> Comp7
B22: 20 | C22: =IF(LEN(D22)<3,"",INDIRECT("GRELHA!A"&(MATCH(B22,Grelha!$V$3:$V$498,0))+2)) -> A | D22: =INDIRECT("GRELHA!f"&(MATCH(B22,Grelha!$V$3:$V$1490,0))+2) -> 1Sar | E22: =INDIRECT("GRELHA!g"&(MATCH(B22,Grelha!$V$3:$V$1490,0))+2) -> 2 | F22: =INDIRECT("GRELHA!h"&(MATCH(B22,Grelha!$V$3:$V$1490,0))+2) -> Odell Segarra | G22: =INDIRECT("GRELHA!i"&(MATCH(B22,Grelha!$V$3:$V$1490,0))+2) -> Comp2
B23: 21 | C23: =IF(LEN(D23)<3,"",INDIRECT("GRELHA!A"&(MATCH(B23,Grelha!$V$3:$V$498,0))+2)) -> A | D23: =INDIRECT("GRELHA!f"&(MATCH(B23,Grelha!$V$3:$V$1490,0))+2) -> 1Sar | E23: =INDIRECT("GRELHA!g"&(MATCH(B23,Grelha!$V$3:$V$1490,0))+2) -> 4 | F23: =INDIRECT("GRELHA!h"&(MATCH(B23,Grelha!$V$3:$V$1490,0))+2) -> Rodger Burney | G23: =INDIRECT("GRELHA!i"&(MATCH(B23,Grelha!$V$3:$V$1490,0))+2) -> Comp4
B24: 22 | C24: =IF(LEN(D24)<3,"",INDIRECT("GRELHA!A"&(MATCH(B24,Grelha!$V$3:$V$498,0))+2)) ->  | D24: =INDIRECT("GRELHA!f"&(MATCH(B24,Grelha!$V$3:$V$1490,0))+2) -> 0 | E24: =INDIRECT("GRELHA!g"&(MATCH(B24,Grelha!$V$3:$V$1490,0))+2) -> 0 | F24: =INDIRECT("GRELHA!h"&(MATCH(B24,Grelha!$V$3:$V$1490,0))+2) -> 0 | G24: =INDIRECT("GRELHA!i"&(MATCH(B24,Grelha!$V$3:$V$1490,0))+2) -> 0
B25: 23 | C25: =IF(LEN(D25)<3,"",INDIRECT("GRELHA!A"&(MATCH(B25,Grelha!$V$3:$V$498,0))+2)) -> B | D25: =INDIRECT("GRELHA!f"&(MATCH(B25,Grelha!$V$3:$V$1490,0))+2) -> 1Sar | E25: =INDIRECT("GRELHA!g"&(MATCH(B25,Grelha!$V$3:$V$1490,0))+2) -> 8 | F25: =INDIRECT("GRELHA!h"&(MATCH(B25,Grelha!$V$3:$V$1490,0))+2) -> Phillip Nottage | G25: =INDIRECT("GRELHA!i"&(MATCH(B25,Grelha!$V$3:$V$1490,0))+2) -> Comp8
B26: 24 | C26: =IF(LEN(D26)<3,"",INDIRECT("GRELHA!A"&(MATCH(B26,Grelha!$V$3:$V$498,0))+2)) -> B | D26: =INDIRECT("GRELHA!f"&(MATCH(B26,Grelha!$V$3:$V$1490,0))+2) -> 1Sar | E26: =INDIRECT("GRELHA!g"&(MATCH(B26,Grelha!$V$3:$V$1490,0))+2) -> 9 | F26: =INDIRECT("GRELHA!h"&(MATCH(B26,Grelha!$V$3:$V$1490,0))+2) -> Lavern Tank | G26: =INDIRECT("GRELHA!i"&(MATCH(B26,Grelha!$V$3:$V$1490,0))+2) -> Comp9
B27: 25 | C27: =IF(LEN(D27)<3,"",INDIRECT("GRELHA!A"&(MATCH(B27,Grelha!$V$3:$V$498,0))+2)) ->  | D27: =INDIRECT("GRELHA!f"&(MATCH(B27,Grelha!$V$3:$V$1490,0))+2) -> 0 | E27: =INDIRECT("GRELHA!g"&(MATCH(B27,Grelha!$V$3:$V$1490,0))+2) -> 0 | F27: =INDIRECT("GRELHA!h"&(MATCH(B27,Grelha!$V$3:$V$1490,0))+2) -> 0 | G27: =INDIRECT("GRELHA!i"&(MATCH(B27,Grelha!$V$3:$V$1490,0))+2) -> 0
B28: 26 | C28: =IF(LEN(D28)<3,"",INDIRECT("GRELHA!A"&(MATCH(B28,Grelha!$V$3:$V$1490,0))+2)) ->  | D28: =INDIRECT("GRELHA!f"&(MATCH(B28,Grelha!$V$3:$V$1490,0))+2) -> 0 | E28: =INDIRECT("GRELHA!g"&(MATCH(B28,Grelha!$V$3:$V$1490,0))+2) -> 0 | F28: =INDIRECT("GRELHA!h"&(MATCH(B28,Grelha!$V$3:$V$1490,0))+2) -> 0 | G28: =INDIRECT("GRELHA!i"&(MATCH(B28,Grelha!$V$3:$V$1490,0))+2) -> 0
B29: 27 | C29: =IF(LEN(D29)<3,"",INDIRECT("GRELHA!A"&(MATCH(B29,Grelha!$V$3:$V$1490,0))+2)) ->  | D29: =INDIRECT("GRELHA!f"&(MATCH(B29,Grelha!$V$3:$V$1490,0))+2) -> 0 | E29: =INDIRECT("GRELHA!g"&(MATCH(B29,Grelha!$V$3:$V$1490,0))+2) -> 0 | F29: =INDIRECT("GRELHA!h"&(MATCH(B29,Grelha!$V$3:$V$1490,0))+2) -> 0 | G29: =INDIRECT("GRELHA!i"&(MATCH(B29,Grelha!$V$3:$V$1490,0))+2) -> 0
B30: 28 | C30: =IF(LEN(D30)<3,"",INDIRECT("GRELHA!A"&(MATCH(B30,Grelha!$V$3:$V$1490,0))+2)) ->  | D30: =INDIRECT("GRELHA!f"&(MATCH(B30,Grelha!$V$3:$V$1490,0))+2) -> 0 | E30: =INDIRECT("GRELHA!g"&(MATCH(B30,Grelha!$V$3:$V$1490,0))+2) -> 0 | F30: =INDIRECT("GRELHA!h"&(MATCH(B30,Grelha!$V$3:$V$1490,0))+2) -> 0 | G30: =INDIRECT("GRELHA!i"&(MATCH(B30,Grelha!$V$3:$V$1490,0))+2) -> 0
B31: 29 | C31: =IF(LEN(D31)<3,"",INDIRECT("GRELHA!A"&(MATCH(B31,Grelha!$V$3:$V$1490,0))+2)) ->  | D31: =INDIRECT("GRELHA!f"&(MATCH(B31,Grelha!$V$3:$V$1490,0))+2) -> 0 | E31: =INDIRECT("GRELHA!g"&(MATCH(B31,Grelha!$V$3:$V$1490,0))+2) -> 0 | F31: =INDIRECT("GRELHA!h"&(MATCH(B31,Grelha!$V$3:$V$1490,0))+2) -> 0 | G31: =INDIRECT("GRELHA!i"&(MATCH(B31,Grelha!$V$3:$V$1490,0))+2) -> 0
B32: 30 | C32: =IF(LEN(D32)<3,"",INDIRECT("GRELHA!A"&(MATCH(B32,Grelha!$V$3:$V$1490,0))+2)) -> B | D32: =INDIRECT("GRELHA!f"&(MATCH(B32,Grelha!$V$3:$V$1490,0))+2) -> 1Sar | E32: =INDIRECT("GRELHA!g"&(MATCH(B32,Grelha!$V$3:$V$1490,0))+2) -> 10 | F32: =INDIRECT("GRELHA!h"&(MATCH(B32,Grelha!$V$3:$V$1490,0))+2) -> Elvis Feeney | G32: =INDIRECT("GRELHA!i"&(MATCH(B32,Grelha!$V$3:$V$1490,0))+2) -> Comp10
B33: 31 | C33: =IF(LEN(D33)<3,"",INDIRECT("GRELHA!A"&(MATCH(B33,Grelha!$V$3:$V$1490,0))+2)) -> B | D33: =INDIRECT("GRELHA!f"&(MATCH(B33,Grelha!$V$3:$V$1490,0))+2) -> 1Sar | E33: =INDIRECT("GRELHA!g"&(MATCH(B33,Grelha!$V$3:$V$1490,0))+2) -> 11 | F33: =INDIRECT("GRELHA!h"&(MATCH(B33,Grelha!$V$3:$V$1490,0))+2) -> Nigel Knell | G33: =INDIRECT("GRELHA!i"&(MATCH(B33,Grelha!$V$3:$V$1490,0))+2) -> Comp11
B34: 32 | C34: =IF(LEN(D34)<3,"",INDIRECT("GRELHA!A"&(MATCH(B34,Grelha!$V$3:$V$1490,0))+2)) ->  | D34: =INDIRECT("GRELHA!f"&(MATCH(B34,Grelha!$V$3:$V$1490,0))+2) -> 0 | E34: =INDIRECT("GRELHA!g"&(MATCH(B34,Grelha!$V$3:$V$1490,0))+2) -> 0 | F34: =INDIRECT("GRELHA!h"&(MATCH(B34,Grelha!$V$3:$V$1490,0))+2) -> 0 | G34: =INDIRECT("GRELHA!i"&(MATCH(B34,Grelha!$V$3:$V$1490,0))+2) -> 0
B35: 33 | C35: =IF(LEN(D35)<3,"",INDIRECT("GRELHA!A"&(MATCH(B35,Grelha!$V$3:$V$1490,0))+2)) ->  | D35: =INDIRECT("GRELHA!f"&(MATCH(B35,Grelha!$V$3:$V$1490,0))+2) -> 0 | E35: =INDIRECT("GRELHA!g"&(MATCH(B35,Grelha!$V$3:$V$1490,0))+2) -> 0 | F35: =INDIRECT("GRELHA!h"&(MATCH(B35,Grelha!$V$3:$V$1490,0))+2) -> 0 | G35: =INDIRECT("GRELHA!i"&(MATCH(B35,Grelha!$V$3:$V$1490,0))+2) -> 0
B36: 34 | C36: =IF(LEN(D36)<3,"",INDIRECT("GRELHA!A"&(MATCH(B36,Grelha!$V$3:$V$1490,0))+2)) ->  | D36: =INDIRECT("GRELHA!f"&(MATCH(B36,Grelha!$V$3:$V$1490,0))+2) -> 0 | E36: =INDIRECT("GRELHA!g"&(MATCH(B36,Grelha!$V$3:$V$1490,0))+2) -> 0 | F36: =INDIRECT("GRELHA!h"&(MATCH(B36,Grelha!$V$3:$V$1490,0))+2) -> 0 | G36: =INDIRECT("GRELHA!i"&(MATCH(B36,Grelha!$V$3:$V$1490,0))+2) -> 0
B37: 35 | C37: =IF(LEN(D37)<3,"",INDIRECT("GRELHA!A"&(MATCH(B37,Grelha!$V$3:$V$1490,0))+2)) ->  | D37: =INDIRECT("GRELHA!f"&(MATCH(B37,Grelha!$V$3:$V$1490,0))+2) -> 0 | E37: =INDIRECT("GRELHA!g"&(MATCH(B37,Grelha!$V$3:$V$1490,0))+2) -> 0 | F37: =INDIRECT("GRELHA!h"&(MATCH(B37,Grelha!$V$3:$V$1490,0))+2) -> 0 | G37: =INDIRECT("GRELHA!i"&(MATCH(B37,Grelha!$V$3:$V$1490,0))+2) -> 0
B38: 36 | C38: =IF(LEN(D38)<3,"",INDIRECT("GRELHA!A"&(MATCH(B38,Grelha!$V$3:$V$1490,0))+2)) ->  | D38: =INDIRECT("GRELHA!f"&(MATCH(B38,Grelha!$V$3:$V$1490,0))+2) -> 0 | E38: =INDIRECT("GRELHA!g"&(MATCH(B38,Grelha!$V$3:$V$1490,0))+2) -> 0 | F38: =INDIRECT("GRELHA!h"&(MATCH(B38,Grelha!$V$3:$V$1490,0))+2) -> 0 | G38: =INDIRECT("GRELHA!i"&(MATCH(B38,Grelha!$V$3:$V$1490,0))+2) -> 0
B39: 37 | C39: =IF(LEN(D39)<3,"",INDIRECT("GRELHA!A"&(MATCH(B39,Grelha!$V$3:$V$1490,0))+2)) -> B | D39: =INDIRECT("GRELHA!f"&(MATCH(B39,Grelha!$V$3:$V$1490,0))+2) -> 1Sar | E39: =INDIRECT("GRELHA!g"&(MATCH(B39,Grelha!$V$3:$V$1490,0))+2) -> 12 | F39: =INDIRECT("GRELHA!h"&(MATCH(B39,Grelha!$V$3:$V$1490,0))+2) -> Stanton Mccord | G39: =INDIRECT("GRELHA!i"&(MATCH(B39,Grelha!$V$3:$V$1490,0))+2) -> Comp12
B40: 38 | C40: =IF(LEN(D40)<3,"",INDIRECT("GRELHA!A"&(MATCH(B40,Grelha!$V$3:$V$1490,0))+2)) -> B | D40: =INDIRECT("GRELHA!f"&(MATCH(B40,Grelha!$V$3:$V$1490,0))+2) -> 1Sar | E40: =INDIRECT("GRELHA!g"&(MATCH(B40,Grelha!$V$3:$V$1490,0))+2) -> 13 | F40: =INDIRECT("GRELHA!h"&(MATCH(B40,Grelha!$V$3:$V$1490,0))+2) -> Tracey Null | G40: =INDIRECT("GRELHA!i"&(MATCH(B40,Grelha!$V$3:$V$1490,0))+2) -> Comp13
B41: 39 | C41: =IF(LEN(D41)<3,"",INDIRECT("GRELHA!A"&(MATCH(B41,Grelha!$V$3:$V$1490,0))+2)) ->  | D41: =INDIRECT("GRELHA!f"&(MATCH(B41,Grelha!$V$3:$V$1490,0))+2) -> 0 | E41: =INDIRECT("GRELHA!g"&(MATCH(B41,Grelha!$V$3:$V$1490,0))+2) -> 0 | F41: =INDIRECT("GRELHA!h"&(MATCH(B41,Grelha!$V$3:$V$1490,0))+2) -> 0 | G41: =INDIRECT("GRELHA!i"&(MATCH(B41,Grelha!$V$3:$V$1490,0))+2) -> 0
B42: 40 | C42: =IF(LEN(D42)<3,"",INDIRECT("GRELHA!A"&(MATCH(B42,Grelha!$V$3:$V$1490,0))+2)) ->  | D42: =INDIRECT("GRELHA!f"&(MATCH(B42,Grelha!$V$3:$V$1490,0))+2) -> 0 | E42: =INDIRECT("GRELHA!g"&(MATCH(B42,Grelha!$V$3:$V$1490,0))+2) -> 0 | F42: =INDIRECT("GRELHA!h"&(MATCH(B42,Grelha!$V$3:$V$1490,0))+2) -> 0 | G42: =INDIRECT("GRELHA!i"&(MATCH(B42,Grelha!$V$3:$V$1490,0))+2) -> 0
B43: 41 | C43: =IF(LEN(D43)<3,"",INDIRECT("GRELHA!A"&(MATCH(B43,Grelha!$V$3:$V$1490,0))+2)) ->  | D43: =INDIRECT("GRELHA!f"&(MATCH(B43,Grelha!$V$3:$V$1490,0))+2) -> 0 | E43: =INDIRECT("GRELHA!g"&(MATCH(B43,Grelha!$V$3:$V$1490,0))+2) -> 0 | F43: =INDIRECT("GRELHA!h"&(MATCH(B43,Grelha!$V$3:$V$1490,0))+2) -> 0 | G43: =INDIRECT("GRELHA!i"&(MATCH(B43,Grelha!$V$3:$V$1490,0))+2) -> 0
B44: 42 | C44: =IF(LEN(D44)<3,"",INDIRECT("GRELHA!A"&(MATCH(B44,Grelha!$V$3:$V$1490,0))+2)) ->  | D44: =INDIRECT("GRELHA!f"&(MATCH(B44,Grelha!$V$3:$V$1490,0))+2) -> 0 | E44: =INDIRECT("GRELHA!g"&(MATCH(B44,Grelha!$V$3:$V$1490,0))+2) -> 0 | F44: =INDIRECT("GRELHA!h"&(MATCH(B44,Grelha!$V$3:$V$1490,0))+2) -> 0 | G44: =INDIRECT("GRELHA!i"&(MATCH(B44,Grelha!$V$3:$V$1490,0))+2) -> 0
B45: 43 | C45: =IF(LEN(D45)<3,"",INDIRECT("GRELHA!A"&(MATCH(B45,Grelha!$V$3:$V$1490,0))+2)) ->  | D45: =INDIRECT("GRELHA!f"&(MATCH(B45,Grelha!$V$3:$V$1490,0))+2) -> 0 | E45: =INDIRECT("GRELHA!g"&(MATCH(B45,Grelha!$V$3:$V$1490,0))+2) -> 0 | F45: =INDIRECT("GRELHA!h"&(MATCH(B45,Grelha!$V$3:$V$1490,0))+2) -> 0 | G45: =INDIRECT("GRELHA!i"&(MATCH(B45,Grelha!$V$3:$V$1490,0))+2) -> 0
B46: 44 | C46: =IF(LEN(D46)<3,"",INDIRECT("GRELHA!A"&(MATCH(B46,Grelha!$V$3:$V$1490,0))+2)) -> B | D46: =INDIRECT("GRELHA!f"&(MATCH(B46,Grelha!$V$3:$V$1490,0))+2) -> 1Sar | E46: =INDIRECT("GRELHA!g"&(MATCH(B46,Grelha!$V$3:$V$1490,0))+2) -> 14 | F46: =INDIRECT("GRELHA!h"&(MATCH(B46,Grelha!$V$3:$V$1490,0))+2) -> Winfred Olivieri | G46: =INDIRECT("GRELHA!i"&(MATCH(B46,Grelha!$V$3:$V$1490,0))+2) -> Comp14
B47: 45 | C47: =IF(LEN(D47)<3,"",INDIRECT("GRELHA!A"&(MATCH(B47,Grelha!$V$3:$V$1490,0))+2)) -> B | D47: =INDIRECT("GRELHA!f"&(MATCH(B47,Grelha!$V$3:$V$1490,0))+2) -> 1Sar | E47: =INDIRECT("GRELHA!g"&(MATCH(B47,Grelha!$V$3:$V$1490,0))+2) -> 15 | F47: =INDIRECT("GRELHA!h"&(MATCH(B47,Grelha!$V$3:$V$1490,0))+2) -> Roderick Lehto | G47: =INDIRECT("GRELHA!i"&(MATCH(B47,Grelha!$V$3:$V$1490,0))+2) -> Comp15
B48: 46 | C48: =IF(LEN(D48)<3,"",INDIRECT("GRELHA!A"&(MATCH(B48,Grelha!$V$3:$V$1490,0))+2)) ->  | D48: =INDIRECT("GRELHA!f"&(MATCH(B48,Grelha!$V$3:$V$1490,0))+2) -> 0 | E48: =INDIRECT("GRELHA!g"&(MATCH(B48,Grelha!$V$3:$V$1490,0))+2) -> 0 | F48: =INDIRECT("GRELHA!h"&(MATCH(B48,Grelha!$V$3:$V$1490,0))+2) -> 0 | G48: =INDIRECT("GRELHA!i"&(MATCH(B48,Grelha!$V$3:$V$1490,0))+2) -> 0
B49: 47 | C49: =IF(LEN(D49)<3,"",INDIRECT("GRELHA!A"&(MATCH(B49,Grelha!$V$3:$V$1490,0))+2)) ->  | D49: =INDIRECT("GRELHA!f"&(MATCH(B49,Grelha!$V$3:$V$1490,0))+2) -> 0 | E49: =INDIRECT("GRELHA!g"&(MATCH(B49,Grelha!$V$3:$V$1490,0))+2) -> 0 | F49: =INDIRECT("GRELHA!h"&(MATCH(B49,Grelha!$V$3:$V$1490,0))+2) -> 0 | G49: =INDIRECT("GRELHA!i"&(MATCH(B49,Grelha!$V$3:$V$1490,0))+2) -> 0
B50: 48 | C50: =IF(LEN(D50)<3,"",INDIRECT("GRELHA!A"&(MATCH(B50,Grelha!$V$3:$V$1490,0))+2)) ->  | D50: =INDIRECT("GRELHA!f"&(MATCH(B50,Grelha!$V$3:$V$1490,0))+2) -> 0 | E50: =INDIRECT("GRELHA!g"&(MATCH(B50,Grelha!$V$3:$V$1490,0))+2) -> 0 | F50: =INDIRECT("GRELHA!h"&(MATCH(B50,Grelha!$V$3:$V$1490,0))+2) -> 0 | G50: =INDIRECT("GRELHA!i"&(MATCH(B50,Grelha!$V$3:$V$1490,0))+2) -> 0
B51: 49 | C51: =IF(LEN(D51)<3,"",INDIRECT("GRELHA!A"&(MATCH(B51,Grelha!$V$3:$V$1490,0))+2)) ->  | D51: =INDIRECT("GRELHA!f"&(MATCH(B51,Grelha!$V$3:$V$1490,0))+2) -> 0 | E51: =INDIRECT("GRELHA!g"&(MATCH(B51,Grelha!$V$3:$V$1490,0))+2) -> 0 | F51: =INDIRECT("GRELHA!h"&(MATCH(B51,Grelha!$V$3:$V$1490,0))+2) -> 0 | G51: =INDIRECT("GRELHA!i"&(MATCH(B51,Grelha!$V$3:$V$1490,0))+2) -> 0
B52: 50 | C52: =IF(LEN(D52)<3,"",INDIRECT("GRELHA!A"&(MATCH(B52,Grelha!$V$3:$V$1490,0))+2)) ->  | D52: =INDIRECT("GRELHA!f"&(MATCH(B52,Grelha!$V$3:$V$1490,0))+2) -> 0 | E52: =INDIRECT("GRELHA!g"&(MATCH(B52,Grelha!$V$3:$V$1490,0))+2) -> 0 | F52: =INDIRECT("GRELHA!h"&(MATCH(B52,Grelha!$V$3:$V$1490,0))+2) -> 0 | G52: =INDIRECT("GRELHA!i"&(MATCH(B52,Grelha!$V$3:$V$1490,0))+2) -> 0
B53: 51 | C53: =IF(LEN(D53)<3,"",INDIRECT("GRELHA!A"&(MATCH(B53,Grelha!$V$3:$V$1490,0))+2)) ->  | D53: =INDIRECT("GRELHA!f"&(MATCH(B53,Grelha!$V$3:$V$1490,0))+2) -> 0 | E53: =INDIRECT("GRELHA!g"&(MATCH(B53,Grelha!$V$3:$V$1490,0))+2) -> 0 | F53: =INDIRECT("GRELHA!h"&(MATCH(B53,Grelha!$V$3:$V$1490,0))+2) -> 0 | G53: =INDIRECT("GRELHA!i"&(MATCH(B53,Grelha!$V$3:$V$1490,0))+2) -> 0
B54: 52 | C54: =IF(LEN(D54)<3,"",INDIRECT("GRELHA!A"&(MATCH(B54,Grelha!$V$3:$V$1490,0))+2)) ->  | D54: =INDIRECT("GRELHA!f"&(MATCH(B54,Grelha!$V$3:$V$1490,0))+2) -> 0 | E54: =INDIRECT("GRELHA!g"&(MATCH(B54,Grelha!$V$3:$V$1490,0))+2) -> 0 | F54: =INDIRECT("GRELHA!h"&(MATCH(B54,Grelha!$V$3:$V$1490,0))+2) -> 0 | G54: =INDIRECT("GRELHA!i"&(MATCH(B54,Grelha!$V$3:$V$1490,0))+2) -> 0
B55: 53 | C55: =IF(LEN(D55)<3,"",INDIRECT("GRELHA!A"&(MATCH(B55,Grelha!$V$3:$V$1490,0))+2)) ->  | D55: =INDIRECT("GRELHA!f"&(MATCH(B55,Grelha!$V$3:$V$1490,0))+2) -> 0 | E55: =INDIRECT("GRELHA!g"&(MATCH(B55,Grelha!$V$3:$V$1490,0))+2) -> 0 | F55: =INDIRECT("GRELHA!h"&(MATCH(B55,Grelha!$V$3:$V$1490,0))+2) -> 0 | G55: =INDIRECT("GRELHA!i"&(MATCH(B55,Grelha!$V$3:$V$1490,0))+2) -> 0
B56: 54 | C56: =IF(LEN(D56)<3,"",INDIRECT("GRELHA!A"&(MATCH(B56,Grelha!$V$3:$V$1490,0))+2)) ->  | D56: =INDIRECT("GRELHA!f"&(MATCH(B56,Grelha!$V$3:$V$1490,0))+2) -> 0 | E56: =INDIRECT("GRELHA!g"&(MATCH(B56,Grelha!$V$3:$V$1490,0))+2) -> 0 | F56: =INDIRECT("GRELHA!h"&(MATCH(B56,Grelha!$V$3:$V$1490,0))+2) -> 0 | G56: =INDIRECT("GRELHA!i"&(MATCH(B56,Grelha!$V$3:$V$1490,0))+2) -> 0
B57: 55 | C57: =IF(LEN(D57)<3,"",INDIRECT("GRELHA!A"&(MATCH(B57,Grelha!$V$3:$V$1490,0))+2)) ->  | D57: =INDIRECT("GRELHA!f"&(MATCH(B57,Grelha!$V$3:$V$1490,0))+2) -> 0 | E57: =INDIRECT("GRELHA!g"&(MATCH(B57,Grelha!$V$3:$V$1490,0))+2) -> 0 | F57: =INDIRECT("GRELHA!h"&(MATCH(B57,Grelha!$V$3:$V$1490,0))+2) -> 0 | G57: =INDIRECT("GRELHA!i"&(MATCH(B57,Grelha!$V$3:$V$1490,0))+2) -> 0
B58: 56 | C58: =IF(LEN(D58)<3,"",INDIRECT("GRELHA!A"&(MATCH(B58,Grelha!$V$3:$V$498,0))+2)) ->  | D58: =INDIRECT("GRELHA!f"&(MATCH(B58,Grelha!$V$3:$V$1490,0))+2) -> 0 | E58: =INDIRECT("GRELHA!g"&(MATCH(B58,Grelha!$V$3:$V$1490,0))+2) -> 0 | F58: =INDIRECT("GRELHA!h"&(MATCH(B58,Grelha!$V$3:$V$1490,0))+2) -> 0 | G58: =INDIRECT("GRELHA!i"&(MATCH(B58,Grelha!$V$3:$V$1490,0))+2) -> 0
B59: 57 | C59: =IF(LEN(D59)<3,"",INDIRECT("GRELHA!A"&(MATCH(B59,Grelha!$V$3:$V$498,0))+2)) ->  | D59: =INDIRECT("GRELHA!f"&(MATCH(B59,Grelha!$V$3:$V$1490,0))+2) -> 0 | E59: =INDIRECT("GRELHA!g"&(MATCH(B59,Grelha!$V$3:$V$1490,0))+2) -> 0 | F59: =INDIRECT("GRELHA!h"&(MATCH(B59,Grelha!$V$3:$V$1490,0))+2) -> 0 | G59: =INDIRECT("GRELHA!i"&(MATCH(B59,Grelha!$V$3:$V$1490,0))+2) -> 0
B60: 58 | C60: =IF(LEN(D60)<3,"",INDIRECT("GRELHA!A"&(MATCH(B60,Grelha!$V$3:$V$498,0))+2)) ->  | D60: =INDIRECT("GRELHA!f"&(MATCH(B60,Grelha!$V$3:$V$1490,0))+2) -> 0 | E60: =INDIRECT("GRELHA!g"&(MATCH(B60,Grelha!$V$3:$V$1490,0))+2) -> 0 | F60: =INDIRECT("GRELHA!h"&(MATCH(B60,Grelha!$V$3:$V$1490,0))+2) -> 0 | G60: =INDIRECT("GRELHA!i"&(MATCH(B60,Grelha!$V$3:$V$1490,0))+2) -> 0
B61: 59 | C61: =IF(LEN(D61)<3,"",INDIRECT("GRELHA!A"&(MATCH(B61,Grelha!$V$3:$V$498,0))+2)) ->  | D61: =INDIRECT("GRELHA!f"&(MATCH(B61,Grelha!$V$3:$V$1490,0))+2) -> 0 | E61: =INDIRECT("GRELHA!g"&(MATCH(B61,Grelha!$V$3:$V$1490,0))+2) -> 0 | F61: =INDIRECT("GRELHA!h"&(MATCH(B61,Grelha!$V$3:$V$1490,0))+2) -> 0 | G61: =INDIRECT("GRELHA!i"&(MATCH(B61,Grelha!$V$3:$V$1490,0))+2) -> 0
B62: 60 | C62: =IF(LEN(D62)<3,"",INDIRECT("GRELHA!A"&(MATCH(B62,Grelha!$V$3:$V$498,0))+2)) ->  | D62: =INDIRECT("GRELHA!f"&(MATCH(B62,Grelha!$V$3:$V$1490,0))+2) -> 0 | E62: =INDIRECT("GRELHA!g"&(MATCH(B62,Grelha!$V$3:$V$1490,0))+2) -> 0 | F62: =INDIRECT("GRELHA!h"&(MATCH(B62,Grelha!$V$3:$V$1490,0))+2) -> 0 | G62: =INDIRECT("GRELHA!i"&(MATCH(B62,Grelha!$V$3:$V$1490,0))+2) -> 0
B63: 61 | C63: =IF(LEN(D63)<3,"",INDIRECT("GRELHA!A"&(MATCH(B63,Grelha!$V$3:$V$498,0))+2)) ->  | D63: =INDIRECT("GRELHA!f"&(MATCH(B63,Grelha!$V$3:$V$1490,0))+2) -> 0 | E63: =INDIRECT("GRELHA!g"&(MATCH(B63,Grelha!$V$3:$V$1490,0))+2) -> 0 | F63: =INDIRECT("GRELHA!h"&(MATCH(B63,Grelha!$V$3:$V$1490,0))+2) -> 0 | G63: =INDIRECT("GRELHA!i"&(MATCH(B63,Grelha!$V$3:$V$1490,0))+2) -> 0
B64: 62 | C64: =IF(LEN(D64)<3,"",INDIRECT("GRELHA!A"&(MATCH(B64,Grelha!$V$3:$V$498,0))+2)) ->  | D64: =INDIRECT("GRELHA!f"&(MATCH(B64,Grelha!$V$3:$V$1490,0))+2) -> 0 | E64: =INDIRECT("GRELHA!g"&(MATCH(B64,Grelha!$V$3:$V$1490,0))+2) -> 0 | F64: =INDIRECT("GRELHA!h"&(MATCH(B64,Grelha!$V$3:$V$1490,0))+2) -> 0 | G64: =INDIRECT("GRELHA!i"&(MATCH(B64,Grelha!$V$3:$V$1490,0))+2) -> 0
B65: 63 | C65: =IF(LEN(D65)<3,"",INDIRECT("GRELHA!A"&(MATCH(B65,Grelha!$V$3:$V$498,0))+2)) ->  | D65: =INDIRECT("GRELHA!f"&(MATCH(B65,Grelha!$V$3:$V$1490,0))+2) -> 0 | E65: =INDIRECT("GRELHA!g"&(MATCH(B65,Grelha!$V$3:$V$1490,0))+2) -> 0 | F65: =INDIRECT("GRELHA!h"&(MATCH(B65,Grelha!$V$3:$V$1490,0))+2) -> 0 | G65: =INDIRECT("GRELHA!i"&(MATCH(B65,Grelha!$V$3:$V$1490,0))+2) -> 0
B66: 64 | C66: =IF(LEN(D66)<3,"",INDIRECT("GRELHA!A"&(MATCH(B66,Grelha!$V$3:$V$498,0))+2)) ->  | D66: =INDIRECT("GRELHA!f"&(MATCH(B66,Grelha!$V$3:$V$1490,0))+2) -> 0 | E66: =INDIRECT("GRELHA!g"&(MATCH(B66,Grelha!$V$3:$V$1490,0))+2) -> 0 | F66: =INDIRECT("GRELHA!h"&(MATCH(B66,Grelha!$V$3:$V$1490,0))+2) -> 0 | G66: =INDIRECT("GRELHA!i"&(MATCH(B66,Grelha!$V$3:$V$1490,0))+2) -> 0
B67: 65 | C67: =IF(LEN(D67)<3,"",INDIRECT("GRELHA!A"&(MATCH(B67,Grelha!$V$3:$V$498,0))+2)) ->  | D67: =INDIRECT("GRELHA!f"&(MATCH(B67,Grelha!$V$3:$V$1490,0))+2) -> 0 | E67: =INDIRECT("GRELHA!g"&(MATCH(B67,Grelha!$V$3:$V$1490,0))+2) -> 0 | F67: =INDIRECT("GRELHA!h"&(MATCH(B67,Grelha!$V$3:$V$1490,0))+2) -> 0 | G67: =INDIRECT("GRELHA!i"&(MATCH(B67,Grelha!$V$3:$V$1490,0))+2) -> 0
B68: 66 | C68: =IF(LEN(D68)<3,"",INDIRECT("GRELHA!A"&(MATCH(B68,Grelha!$V$3:$V$498,0))+2)) ->  | D68: =INDIRECT("GRELHA!f"&(MATCH(B68,Grelha!$V$3:$V$1490,0))+2) -> 0 | E68: =INDIRECT("GRELHA!g"&(MATCH(B68,Grelha!$V$3:$V$1490,0))+2) -> 0 | F68: =INDIRECT("GRELHA!h"&(MATCH(B68,Grelha!$V$3:$V$1490,0))+2) -> 0 | G68: =INDIRECT("GRELHA!i"&(MATCH(B68,Grelha!$V$3:$V$1490,0))+2) -> 0
B69: 67 | C69: =IF(LEN(D69)<3,"",INDIRECT("GRELHA!A"&(MATCH(B69,Grelha!$V$3:$V$498,0))+2)) ->  | D69: =INDIRECT("GRELHA!f"&(MATCH(B69,Grelha!$V$3:$V$1490,0))+2) -> 0 | E69: =INDIRECT("GRELHA!g"&(MATCH(B69,Grelha!$V$3:$V$1490,0))+2) -> 0 | F69: =INDIRECT("GRELHA!h"&(MATCH(B69,Grelha!$V$3:$V$1490,0))+2) -> 0 | G69: =INDIRECT("GRELHA!i"&(MATCH(B69,Grelha!$V$3:$V$1490,0))+2) -> 0
B70: 68 | C70: =IF(LEN(D70)<3,"",INDIRECT("GRELHA!A"&(MATCH(B70,Grelha!$V$3:$V$1490,0))+2)) ->  | D70: =INDIRECT("GRELHA!f"&(MATCH(B70,Grelha!$V$3:$V$1490,0))+2) -> 0 | E70: =INDIRECT("GRELHA!g"&(MATCH(B70,Grelha!$V$3:$V$1490,0))+2) -> 0 | F70: =INDIRECT("GRELHA!h"&(MATCH(B70,Grelha!$V$3:$V$1490,0))+2) -> 0 | G70: =INDIRECT("GRELHA!i"&(MATCH(B70,Grelha!$V$3:$V$1490,0))+2) -> 0
B71: 69 | C71: =IF(LEN(D71)<3,"",INDIRECT("GRELHA!A"&(MATCH(B71,Grelha!$V$3:$V$1490,0))+2)) ->  | D71: =INDIRECT("GRELHA!f"&(MATCH(B71,Grelha!$V$3:$V$1490,0))+2) -> 0 | E71: =INDIRECT("GRELHA!g"&(MATCH(B71,Grelha!$V$3:$V$1490,0))+2) -> 0 | F71: =INDIRECT("GRELHA!h"&(MATCH(B71,Grelha!$V$3:$V$1490,0))+2) -> 0 | G71: =INDIRECT("GRELHA!i"&(MATCH(B71,Grelha!$V$3:$V$1490,0))+2) -> 0
B72: 70 | C72: =IF(LEN(D72)<3,"",INDIRECT("GRELHA!A"&(MATCH(B72,Grelha!$V$3:$V$1490,0))+2)) ->  | D72: =INDIRECT("GRELHA!f"&(MATCH(B72,Grelha!$V$3:$V$1490,0))+2) -> 0 | E72: =INDIRECT("GRELHA!g"&(MATCH(B72,Grelha!$V$3:$V$1490,0))+2) -> 0 | F72: =INDIRECT("GRELHA!h"&(MATCH(B72,Grelha!$V$3:$V$1490,0))+2) -> 0 | G72: =INDIRECT("GRELHA!i"&(MATCH(B72,Grelha!$V$3:$V$1490,0))+2) -> 0
B73: 71 | C73: =IF(LEN(D73)<3,"",INDIRECT("GRELHA!A"&(MATCH(B73,Grelha!$V$3:$V$1490,0))+2)) ->  | D73: =INDIRECT("GRELHA!f"&(MATCH(B73,Grelha!$V$3:$V$1490,0))+2) -> 0 | E73: =INDIRECT("GRELHA!g"&(MATCH(B73,Grelha!$V$3:$V$1490,0))+2) -> 0 | F73: =INDIRECT("GRELHA!h"&(MATCH(B73,Grelha!$V$3:$V$1490,0))+2) -> 0 | G73: =INDIRECT("GRELHA!i"&(MATCH(B73,Grelha!$V$3:$V$1490,0))+2) -> 0
B74: 72 | C74: =IF(LEN(D74)<3,"",INDIRECT("GRELHA!A"&(MATCH(B74,Grelha!$V$3:$V$1490,0))+2)) ->  | D74: =INDIRECT("GRELHA!f"&(MATCH(B74,Grelha!$V$3:$V$1490,0))+2) -> 0 | E74: =INDIRECT("GRELHA!g"&(MATCH(B74,Grelha!$V$3:$V$1490,0))+2) -> 0 | F74: =INDIRECT("GRELHA!h"&(MATCH(B74,Grelha!$V$3:$V$1490,0))+2) -> 0 | G74: =INDIRECT("GRELHA!i"&(MATCH(B74,Grelha!$V$3:$V$1490,0))+2) -> 0
B75: 73 | C75: =IF(LEN(D75)<3,"",INDIRECT("GRELHA!A"&(MATCH(B75,Grelha!$V$3:$V$1490,0))+2)) ->  | D75: =INDIRECT("GRELHA!f"&(MATCH(B75,Grelha!$V$3:$V$1490,0))+2) -> 0 | E75: =INDIRECT("GRELHA!g"&(MATCH(B75,Grelha!$V$3:$V$1490,0))+2) -> 0 | F75: =INDIRECT("GRELHA!h"&(MATCH(B75,Grelha!$V$3:$V$1490,0))+2) -> 0 | G75: =INDIRECT("GRELHA!i"&(MATCH(B75,Grelha!$V$3:$V$1490,0))+2) -> 0
B76: 74 | C76: =IF(LEN(D76)<3,"",INDIRECT("GRELHA!A"&(MATCH(B76,Grelha!$V$3:$V$1490,0))+2)) ->  | D76: =INDIRECT("GRELHA!f"&(MATCH(B76,Grelha!$V$3:$V$1490,0))+2) -> 0 | E76: =INDIRECT("GRELHA!g"&(MATCH(B76,Grelha!$V$3:$V$1490,0))+2) -> 0 | F76: =INDIRECT("GRELHA!h"&(MATCH(B76,Grelha!$V$3:$V$1490,0))+2) -> 0 | G76: =INDIRECT("GRELHA!i"&(MATCH(B76,Grelha!$V$3:$V$1490,0))+2) -> 0
B77: 75 | C77: =IF(LEN(D77)<3,"",INDIRECT("GRELHA!A"&(MATCH(B77,Grelha!$V$3:$V$1490,0))+2)) ->  | D77: =INDIRECT("GRELHA!f"&(MATCH(B77,Grelha!$V$3:$V$1490,0))+2) -> 0 | E77: =INDIRECT("GRELHA!g"&(MATCH(B77,Grelha!$V$3:$V$1490,0))+2) -> 0 | F77: =INDIRECT("GRELHA!h"&(MATCH(B77,Grelha!$V$3:$V$1490,0))+2) -> 0 | G77: =INDIRECT("GRELHA!i"&(MATCH(B77,Grelha!$V$3:$V$1490,0))+2) -> 0
B78: 76 | C78: =IF(LEN(D78)<3,"",INDIRECT("GRELHA!A"&(MATCH(B78,Grelha!$V$3:$V$1490,0))+2)) ->  | D78: =INDIRECT("GRELHA!f"&(MATCH(B78,Grelha!$V$3:$V$1490,0))+2) -> 0 | E78: =INDIRECT("GRELHA!g"&(MATCH(B78,Grelha!$V$3:$V$1490,0))+2) -> 0 | F78: =INDIRECT("GRELHA!h"&(MATCH(B78,Grelha!$V$3:$V$1490,0))+2) -> 0 | G78: =INDIRECT("GRELHA!i"&(MATCH(B78,Grelha!$V$3:$V$1490,0))+2) -> 0
B79: 77 | C79: =IF(LEN(D79)<3,"",INDIRECT("GRELHA!A"&(MATCH(B79,Grelha!$V$3:$V$1490,0))+2)) ->  | D79: =INDIRECT("GRELHA!f"&(MATCH(B79,Grelha!$V$3:$V$1490,0))+2) -> 0 | E79: =INDIRECT("GRELHA!g"&(MATCH(B79,Grelha!$V$3:$V$1490,0))+2) -> 0 | F79: =INDIRECT("GRELHA!h"&(MATCH(B79,Grelha!$V$3:$V$1490,0))+2) -> 0 | G79: =INDIRECT("GRELHA!i"&(MATCH(B79,Grelha!$V$3:$V$1490,0))+2) -> 0
B80: 78 | C80: =IF(LEN(D80)<3,"",INDIRECT("GRELHA!A"&(MATCH(B80,Grelha!$V$3:$V$1490,0))+2)) ->  | D80: =INDIRECT("GRELHA!f"&(MATCH(B80,Grelha!$V$3:$V$1490,0))+2) -> 0 | E80: =INDIRECT("GRELHA!g"&(MATCH(B80,Grelha!$V$3:$V$1490,0))+2) -> 0 | F80: =INDIRECT("GRELHA!h"&(MATCH(B80,Grelha!$V$3:$V$1490,0))+2) -> 0 | G80: =INDIRECT("GRELHA!i"&(MATCH(B80,Grelha!$V$3:$V$1490,0))+2) -> 0
B81: 79 | C81: =IF(LEN(D81)<3,"",INDIRECT("GRELHA!A"&(MATCH(B81,Grelha!$V$3:$V$1490,0))+2)) ->  | D81: =INDIRECT("GRELHA!f"&(MATCH(B81,Grelha!$V$3:$V$1490,0))+2) -> 0 | E81: =INDIRECT("GRELHA!g"&(MATCH(B81,Grelha!$V$3:$V$1490,0))+2) -> 0 | F81: =INDIRECT("GRELHA!h"&(MATCH(B81,Grelha!$V$3:$V$1490,0))+2) -> 0 | G81: =INDIRECT("GRELHA!i"&(MATCH(B81,Grelha!$V$3:$V$1490,0))+2) -> 0
B82: 80 | C82: =IF(LEN(D82)<3,"",INDIRECT("GRELHA!A"&(MATCH(B82,Grelha!$V$3:$V$1490,0))+2)) ->  | D82: =INDIRECT("GRELHA!f"&(MATCH(B82,Grelha!$V$3:$V$1490,0))+2) -> 0 | E82: =INDIRECT("GRELHA!g"&(MATCH(B82,Grelha!$V$3:$V$1490,0))+2) -> 0 | F82: =INDIRECT("GRELHA!h"&(MATCH(B82,Grelha!$V$3:$V$1490,0))+2) -> 0 | G82: =INDIRECT("GRELHA!i"&(MATCH(B82,Grelha!$V$3:$V$1490,0))+2) -> 0
B83: 81 | C83: =IF(LEN(D83)<3,"",INDIRECT("GRELHA!A"&(MATCH(B83,Grelha!$V$3:$V$1490,0))+2)) ->  | D83: =INDIRECT("GRELHA!f"&(MATCH(B83,Grelha!$V$3:$V$1490,0))+2) -> 0 | E83: =INDIRECT("GRELHA!g"&(MATCH(B83,Grelha!$V$3:$V$1490,0))+2) -> 0 | F83: =INDIRECT("GRELHA!h"&(MATCH(B83,Grelha!$V$3:$V$1490,0))+2) -> 0 | G83: =INDIRECT("GRELHA!i"&(MATCH(B83,Grelha!$V$3:$V$1490,0))+2) -> 0
B84: 82 | C84: =IF(LEN(D84)<3,"",INDIRECT("GRELHA!A"&(MATCH(B84,Grelha!$V$3:$V$1490,0))+2)) ->  | D84: =INDIRECT("GRELHA!f"&(MATCH(B84,Grelha!$V$3:$V$1490,0))+2) -> 0 | E84: =INDIRECT("GRELHA!g"&(MATCH(B84,Grelha!$V$3:$V$1490,0))+2) -> 0 | F84: =INDIRECT("GRELHA!h"&(MATCH(B84,Grelha!$V$3:$V$1490,0))+2) -> 0 | G84: =INDIRECT("GRELHA!i"&(MATCH(B84,Grelha!$V$3:$V$1490,0))+2) -> 0
B85: 83 | C85: =IF(LEN(D85)<3,"",INDIRECT("GRELHA!A"&(MATCH(B85,Grelha!$V$3:$V$1490,0))+2)) ->  | D85: =INDIRECT("GRELHA!f"&(MATCH(B85,Grelha!$V$3:$V$1490,0))+2) -> 0 | E85: =INDIRECT("GRELHA!g"&(MATCH(B85,Grelha!$V$3:$V$1490,0))+2) -> 0 | F85: =INDIRECT("GRELHA!h"&(MATCH(B85,Grelha!$V$3:$V$1490,0))+2) -> 0 | G85: =INDIRECT("GRELHA!i"&(MATCH(B85,Grelha!$V$3:$V$1490,0))+2) -> 0
B86: 84 | C86: =IF(LEN(D86)<3,"",INDIRECT("GRELHA!A"&(MATCH(B86,Grelha!$V$3:$V$1490,0))+2)) ->  | D86: =INDIRECT("GRELHA!f"&(MATCH(B86,Grelha!$V$3:$V$1490,0))+2) -> 0 | E86: =INDIRECT("GRELHA!g"&(MATCH(B86,Grelha!$V$3:$V$1490,0))+2) -> 0 | F86: =INDIRECT("GRELHA!h"&(MATCH(B86,Grelha!$V$3:$V$1490,0))+2) -> 0 | G86: =INDIRECT("GRELHA!i"&(MATCH(B86,Grelha!$V$3:$V$1490,0))+2) -> 0
B87: 85 | C87: =IF(LEN(D87)<3,"",INDIRECT("GRELHA!A"&(MATCH(B87,Grelha!$V$3:$V$1490,0))+2)) ->  | D87: =INDIRECT("GRELHA!f"&(MATCH(B87,Grelha!$V$3:$V$1490,0))+2) -> 0 | E87: =INDIRECT("GRELHA!g"&(MATCH(B87,Grelha!$V$3:$V$1490,0))+2) -> 0 | F87: =INDIRECT("GRELHA!h"&(MATCH(B87,Grelha!$V$3:$V$1490,0))+2) -> 0 | G87: =INDIRECT("GRELHA!i"&(MATCH(B87,Grelha!$V$3:$V$1490,0))+2) -> 0
B88: 86 | C88: =IF(LEN(D88)<3,"",INDIRECT("GRELHA!A"&(MATCH(B88,Grelha!$V$3:$V$1490,0))+2)) ->  | D88: =INDIRECT("GRELHA!f"&(MATCH(B88,Grelha!$V$3:$V$1490,0))+2) -> 0 | E88: =INDIRECT("GRELHA!g"&(MATCH(B88,Grelha!$V$3:$V$1490,0))+2) -> 0 | F88: =INDIRECT("GRELHA!h"&(MATCH(B88,Grelha!$V$3:$V$1490,0))+2) -> 0 | G88: =INDIRECT("GRELHA!i"&(MATCH(B88,Grelha!$V$3:$V$1490,0))+2) -> 0
B89: 87 | C89: =IF(LEN(D89)<3,"",INDIRECT("GRELHA!A"&(MATCH(B89,Grelha!$V$3:$V$1490,0))+2)) ->  | D89: =INDIRECT("GRELHA!f"&(MATCH(B89,Grelha!$V$3:$V$1490,0))+2) -> 0 | E89: =INDIRECT("GRELHA!g"&(MATCH(B89,Grelha!$V$3:$V$1490,0))+2) -> 0 | F89: =INDIRECT("GRELHA!h"&(MATCH(B89,Grelha!$V$3:$V$1490,0))+2) -> 0 | G89: =INDIRECT("GRELHA!i"&(MATCH(B89,Grelha!$V$3:$V$1490,0))+2) -> 0
B90: 88 | C90: =IF(LEN(D90)<3,"",INDIRECT("GRELHA!A"&(MATCH(B90,Grelha!$V$3:$V$1490,0))+2)) ->  | D90: =INDIRECT("GRELHA!f"&(MATCH(B90,Grelha!$V$3:$V$1490,0))+2) -> 0 | E90: =INDIRECT("GRELHA!g"&(MATCH(B90,Grelha!$V$3:$V$1490,0))+2) -> 0 | F90: =INDIRECT("GRELHA!h"&(MATCH(B90,Grelha!$V$3:$V$1490,0))+2) -> 0 | G90: =INDIRECT("GRELHA!i"&(MATCH(B90,Grelha!$V$3:$V$1490,0))+2) -> 0
B91: 89 | C91: =IF(LEN(D91)<3,"",INDIRECT("GRELHA!A"&(MATCH(B91,Grelha!$V$3:$V$1490,0))+2)) ->  | D91: =INDIRECT("GRELHA!f"&(MATCH(B91,Grelha!$V$3:$V$1490,0))+2) -> 0 | E91: =INDIRECT("GRELHA!g"&(MATCH(B91,Grelha!$V$3:$V$1490,0))+2) -> 0 | F91: =INDIRECT("GRELHA!h"&(MATCH(B91,Grelha!$V$3:$V$1490,0))+2) -> 0 | G91: =INDIRECT("GRELHA!i"&(MATCH(B91,Grelha!$V$3:$V$1490,0))+2) -> 0
B92: 90 | C92: =IF(LEN(D92)<3,"",INDIRECT("GRELHA!A"&(MATCH(B92,Grelha!$V$3:$V$1490,0))+2)) ->  | D92: =INDIRECT("GRELHA!f"&(MATCH(B92,Grelha!$V$3:$V$1490,0))+2) -> 0 | E92: =INDIRECT("GRELHA!g"&(MATCH(B92,Grelha!$V$3:$V$1490,0))+2) -> 0 | F92: =INDIRECT("GRELHA!h"&(MATCH(B92,Grelha!$V$3:$V$1490,0))+2) -> 0 | G92: =INDIRECT("GRELHA!i"&(MATCH(B92,Grelha!$V$3:$V$1490,0))+2) -> 0
B93: 91 | C93: =IF(LEN(D93)<3,"",INDIRECT("GRELHA!A"&(MATCH(B93,Grelha!$V$3:$V$1490,0))+2)) ->  | D93: =INDIRECT("GRELHA!f"&(MATCH(B93,Grelha!$V$3:$V$1490,0))+2) -> 0 | E93: =INDIRECT("GRELHA!g"&(MATCH(B93,Grelha!$V$3:$V$1490,0))+2) -> 0 | F93: =INDIRECT("GRELHA!h"&(MATCH(B93,Grelha!$V$3:$V$1490,0))+2) -> 0 | G93: =INDIRECT("GRELHA!i"&(MATCH(B93,Grelha!$V$3:$V$1490,0))+2) -> 0
B94: 92 | C94: =IF(LEN(D94)<3,"",INDIRECT("GRELHA!A"&(MATCH(B94,Grelha!$V$3:$V$1490,0))+2)) ->  | D94: =INDIRECT("GRELHA!f"&(MATCH(B94,Grelha!$V$3:$V$1490,0))+2) -> 0 | E94: =INDIRECT("GRELHA!g"&(MATCH(B94,Grelha!$V$3:$V$1490,0))+2) -> 0 | F94: =INDIRECT("GRELHA!h"&(MATCH(B94,Grelha!$V$3:$V$1490,0))+2) -> 0 | G94: =INDIRECT("GRELHA!i"&(MATCH(B94,Grelha!$V$3:$V$1490,0))+2) -> 0
B95: 93 | C95: =IF(LEN(D95)<3,"",INDIRECT("GRELHA!A"&(MATCH(B95,Grelha!$V$3:$V$1490,0))+2)) ->  | D95: =INDIRECT("GRELHA!f"&(MATCH(B95,Grelha!$V$3:$V$1490,0))+2) -> 0 | E95: =INDIRECT("GRELHA!g"&(MATCH(B95,Grelha!$V$3:$V$1490,0))+2) -> 0 | F95: =INDIRECT("GRELHA!h"&(MATCH(B95,Grelha!$V$3:$V$1490,0))+2) -> 0 | G95: =INDIRECT("GRELHA!i"&(MATCH(B95,Grelha!$V$3:$V$1490,0))+2) -> 0
B96: 94 | C96: =IF(LEN(D96)<3,"",INDIRECT("GRELHA!A"&(MATCH(B96,Grelha!$V$3:$V$1490,0))+2)) ->  | D96: =INDIRECT("GRELHA!f"&(MATCH(B96,Grelha!$V$3:$V$1490,0))+2) -> 0 | E96: =INDIRECT("GRELHA!g"&(MATCH(B96,Grelha!$V$3:$V$1490,0))+2) -> 0 | F96: =INDIRECT("GRELHA!h"&(MATCH(B96,Grelha!$V$3:$V$1490,0))+2) -> 0 | G96: =INDIRECT("GRELHA!i"&(MATCH(B96,Grelha!$V$3:$V$1490,0))+2) -> 0
B97: 95 | C97: =IF(LEN(D97)<3,"",INDIRECT("GRELHA!A"&(MATCH(B97,Grelha!$V$3:$V$1490,0))+2)) ->  | D97: =INDIRECT("GRELHA!f"&(MATCH(B97,Grelha!$V$3:$V$1490,0))+2) -> 0 | E97: =INDIRECT("GRELHA!g"&(MATCH(B97,Grelha!$V$3:$V$1490,0))+2) -> 0 | F97: =INDIRECT("GRELHA!h"&(MATCH(B97,Grelha!$V$3:$V$1490,0))+2) -> 0 | G97: =INDIRECT("GRELHA!i"&(MATCH(B97,Grelha!$V$3:$V$1490,0))+2) -> 0
B98: 96 | C98: =IF(LEN(D98)<3,"",INDIRECT("GRELHA!A"&(MATCH(B98,Grelha!$V$3:$V$1490,0))+2)) ->  | D98: =INDIRECT("GRELHA!f"&(MATCH(B98,Grelha!$V$3:$V$1490,0))+2) -> 0 | E98: =INDIRECT("GRELHA!g"&(MATCH(B98,Grelha!$V$3:$V$1490,0))+2) -> 0 | F98: =INDIRECT("GRELHA!h"&(MATCH(B98,Grelha!$V$3:$V$1490,0))+2) -> 0 | G98: =INDIRECT("GRELHA!i"&(MATCH(B98,Grelha!$V$3:$V$1490,0))+2) -> 0
B99: 97 | C99: =IF(LEN(D99)<3,"",INDIRECT("GRELHA!A"&(MATCH(B99,Grelha!$V$3:$V$1490,0))+2)) ->  | D99: =INDIRECT("GRELHA!f"&(MATCH(B99,Grelha!$V$3:$V$1490,0))+2) -> 0 | E99: =INDIRECT("GRELHA!g"&(MATCH(B99,Grelha!$V$3:$V$1490,0))+2) -> 0 | F99: =INDIRECT("GRELHA!h"&(MATCH(B99,Grelha!$V$3:$V$1490,0))+2) -> 0 | G99: =INDIRECT("GRELHA!i"&(MATCH(B99,Grelha!$V$3:$V$1490,0))+2) -> 0
B100: 98 | C100: =IF(LEN(D100)<3,"",INDIRECT("GRELHA!A"&(MATCH(B100,Grelha!$V$3:$V$498,0))+2)) ->  | D100: =INDIRECT("GRELHA!f"&(MATCH(B100,Grelha!$V$3:$V$1490,0))+2) -> 0 | E100: =INDIRECT("GRELHA!g"&(MATCH(B100,Grelha!$V$3:$V$1490,0))+2) -> 0 | F100: =INDIRECT("GRELHA!h"&(MATCH(B100,Grelha!$V$3:$V$1490,0))+2) -> 0 | G100: =INDIRECT("GRELHA!i"&(MATCH(B100,Grelha!$V$3:$V$1490,0))+2) -> 0
B101: 99 | C101: =IF(LEN(D101)<3,"",INDIRECT("GRELHA!A"&(MATCH(B101,Grelha!$V$3:$V$498,0))+2)) ->  | D101: =INDIRECT("GRELHA!f"&(MATCH(B101,Grelha!$V$3:$V$1490,0))+2) -> 0 | E101: =INDIRECT("GRELHA!g"&(MATCH(B101,Grelha!$V$3:$V$1490,0))+2) -> 0 | F101: =INDIRECT("GRELHA!h"&(MATCH(B101,Grelha!$V$3:$V$1490,0))+2) -> 0 | G101: =INDIRECT("GRELHA!i"&(MATCH(B101,Grelha!$V$3:$V$1490,0))+2) -> 0
B102: 100 | C102: =IF(LEN(D102)<3,"",INDIRECT("GRELHA!A"&(MATCH(B102,Grelha!$V$3:$V$498,0))+2)) ->  | D102: =INDIRECT("GRELHA!f"&(MATCH(B102,Grelha!$V$3:$V$1490,0))+2) -> 0 | E102: =INDIRECT("GRELHA!g"&(MATCH(B102,Grelha!$V$3:$V$1490,0))+2) -> 0 | F102: =INDIRECT("GRELHA!h"&(MATCH(B102,Grelha!$V$3:$V$1490,0))+2) -> 0 | G102: =INDIRECT("GRELHA!i"&(MATCH(B102,Grelha!$V$3:$V$1490,0))+2) -> 0
B103: 101 | C103: =IF(LEN(D103)<3,"",INDIRECT("GRELHA!A"&(MATCH(B103,Grelha!$V$3:$V$498,0))+2)) ->  | D103: =INDIRECT("GRELHA!f"&(MATCH(B103,Grelha!$V$3:$V$1490,0))+2) -> 0 | E103: =INDIRECT("GRELHA!g"&(MATCH(B103,Grelha!$V$3:$V$1490,0))+2) -> 0 | F103: =INDIRECT("GRELHA!h"&(MATCH(B103,Grelha!$V$3:$V$1490,0))+2) -> 0 | G103: =INDIRECT("GRELHA!i"&(MATCH(B103,Grelha!$V$3:$V$1490,0))+2) -> 0
B104: 102 | C104: =IF(LEN(D104)<3,"",INDIRECT("GRELHA!A"&(MATCH(B104,Grelha!$V$3:$V$498,0))+2)) ->  | D104: =INDIRECT("GRELHA!f"&(MATCH(B104,Grelha!$V$3:$V$1490,0))+2) -> 0 | E104: =INDIRECT("GRELHA!g"&(MATCH(B104,Grelha!$V$3:$V$1490,0))+2) -> 0 | F104: =INDIRECT("GRELHA!h"&(MATCH(B104,Grelha!$V$3:$V$1490,0))+2) -> 0 | G104: =INDIRECT("GRELHA!i"&(MATCH(B104,Grelha!$V$3:$V$1490,0))+2) -> 0
B105: 103 | C105: =IF(LEN(D105)<3,"",INDIRECT("GRELHA!A"&(MATCH(B105,Grelha!$V$3:$V$498,0))+2)) ->  | D105: =INDIRECT("GRELHA!f"&(MATCH(B105,Grelha!$V$3:$V$1490,0))+2) -> 0 | E105: =INDIRECT("GRELHA!g"&(MATCH(B105,Grelha!$V$3:$V$1490,0))+2) -> 0 | F105: =INDIRECT("GRELHA!h"&(MATCH(B105,Grelha!$V$3:$V$1490,0))+2) -> 0 | G105: =INDIRECT("GRELHA!i"&(MATCH(B105,Grelha!$V$3:$V$1490,0))+2) -> 0
B106: 104 | C106: =IF(LEN(D106)<3,"",INDIRECT("GRELHA!A"&(MATCH(B106,Grelha!$V$3:$V$498,0))+2)) ->  | D106: =INDIRECT("GRELHA!f"&(MATCH(B106,Grelha!$V$3:$V$1490,0))+2) -> 0 | E106: =INDIRECT("GRELHA!g"&(MATCH(B106,Grelha!$V$3:$V$1490,0))+2) -> 0 | F106: =INDIRECT("GRELHA!h"&(MATCH(B106,Grelha!$V$3:$V$1490,0))+2) -> 0 | G106: =INDIRECT("GRELHA!i"&(MATCH(B106,Grelha!$V$3:$V$1490,0))+2) -> 0
B107: 105 | C107: =IF(LEN(D107)<3,"",INDIRECT("GRELHA!A"&(MATCH(B107,Grelha!$V$3:$V$498,0))+2)) ->  | D107: =INDIRECT("GRELHA!f"&(MATCH(B107,Grelha!$V$3:$V$1490,0))+2) -> 0 | E107: =INDIRECT("GRELHA!g"&(MATCH(B107,Grelha!$V$3:$V$1490,0))+2) -> 0 | F107: =INDIRECT("GRELHA!h"&(MATCH(B107,Grelha!$V$3:$V$1490,0))+2) -> 0 | G107: =INDIRECT("GRELHA!i"&(MATCH(B107,Grelha!$V$3:$V$1490,0))+2) -> 0
B108: 106 | C108: =IF(LEN(D108)<3,"",INDIRECT("GRELHA!A"&(MATCH(B108,Grelha!$V$3:$V$498,0))+2)) ->  | D108: =INDIRECT("GRELHA!f"&(MATCH(B108,Grelha!$V$3:$V$1490,0))+2) -> 0 | E108: =INDIRECT("GRELHA!g"&(MATCH(B108,Grelha!$V$3:$V$1490,0))+2) -> 0 | F108: =INDIRECT("GRELHA!h"&(MATCH(B108,Grelha!$V$3:$V$1490,0))+2) -> 0 | G108: =INDIRECT("GRELHA!i"&(MATCH(B108,Grelha!$V$3:$V$1490,0))+2) -> 0
B109: 107 | C109: =IF(LEN(D109)<3,"",INDIRECT("GRELHA!A"&(MATCH(B109,Grelha!$V$3:$V$498,0))+2)) ->  | D109: =INDIRECT("GRELHA!f"&(MATCH(B109,Grelha!$V$3:$V$1490,0))+2) -> 0 | E109: =INDIRECT("GRELHA!g"&(MATCH(B109,Grelha!$V$3:$V$1490,0))+2) -> 0 | F109: =INDIRECT("GRELHA!h"&(MATCH(B109,Grelha!$V$3:$V$1490,0))+2) -> 0 | G109: =INDIRECT("GRELHA!i"&(MATCH(B109,Grelha!$V$3:$V$1490,0))+2) -> 0
B110: 108 | C110: =IF(LEN(D110)<3,"",INDIRECT("GRELHA!A"&(MATCH(B110,Grelha!$V$3:$V$498,0))+2)) ->  | D110: =INDIRECT("GRELHA!f"&(MATCH(B110,Grelha!$V$3:$V$1490,0))+2) -> 0 | E110: =INDIRECT("GRELHA!g"&(MATCH(B110,Grelha!$V$3:$V$1490,0))+2) -> 0 | F110: =INDIRECT("GRELHA!h"&(MATCH(B110,Grelha!$V$3:$V$1490,0))+2) -> 0 | G110: =INDIRECT("GRELHA!i"&(MATCH(B110,Grelha!$V$3:$V$1490,0))+2) -> 0
B111: 109 | C111: =IF(LEN(D111)<3,"",INDIRECT("GRELHA!A"&(MATCH(B111,Grelha!$V$3:$V$498,0))+2)) ->  | D111: =INDIRECT("GRELHA!f"&(MATCH(B111,Grelha!$V$3:$V$1490,0))+2) -> 0 | E111: =INDIRECT("GRELHA!g"&(MATCH(B111,Grelha!$V$3:$V$1490,0))+2) -> 0 | F111: =INDIRECT("GRELHA!h"&(MATCH(B111,Grelha!$V$3:$V$1490,0))+2) -> 0 | G111: =INDIRECT("GRELHA!i"&(MATCH(B111,Grelha!$V$3:$V$1490,0))+2) -> 0
B112: 110 | C112: =IF(LEN(D112)<3,"",INDIRECT("GRELHA!A"&(MATCH(B112,Grelha!$V$3:$V$1490,0))+2)) ->  | D112: =INDIRECT("GRELHA!f"&(MATCH(B112,Grelha!$V$3:$V$1490,0))+2) -> 0 | E112: =INDIRECT("GRELHA!g"&(MATCH(B112,Grelha!$V$3:$V$1490,0))+2) -> 0 | F112: =INDIRECT("GRELHA!h"&(MATCH(B112,Grelha!$V$3:$V$1490,0))+2) -> 0 | G112: =INDIRECT("GRELHA!i"&(MATCH(B112,Grelha!$V$3:$V$1490,0))+2) -> 0
B113: 111 | C113: =IF(LEN(D113)<3,"",INDIRECT("GRELHA!A"&(MATCH(B113,Grelha!$V$3:$V$1490,0))+2)) ->  | D113: =INDIRECT("GRELHA!f"&(MATCH(B113,Grelha!$V$3:$V$1490,0))+2) -> 0 | E113: =INDIRECT("GRELHA!g"&(MATCH(B113,Grelha!$V$3:$V$1490,0))+2) -> 0 | F113: =INDIRECT("GRELHA!h"&(MATCH(B113,Grelha!$V$3:$V$1490,0))+2) -> 0 | G113: =INDIRECT("GRELHA!i"&(MATCH(B113,Grelha!$V$3:$V$1490,0))+2) -> 0
B114: 112 | C114: =IF(LEN(D114)<3,"",INDIRECT("GRELHA!A"&(MATCH(B114,Grelha!$V$3:$V$1490,0))+2)) ->  | D114: =INDIRECT("GRELHA!f"&(MATCH(B114,Grelha!$V$3:$V$1490,0))+2) -> 0 | E114: =INDIRECT("GRELHA!g"&(MATCH(B114,Grelha!$V$3:$V$1490,0))+2) -> 0 | F114: =INDIRECT("GRELHA!h"&(MATCH(B114,Grelha!$V$3:$V$1490,0))+2) -> 0 | G114: =INDIRECT("GRELHA!i"&(MATCH(B114,Grelha!$V$3:$V$1490,0))+2) -> 0
B115: 113 | C115: =IF(LEN(D115)<3,"",INDIRECT("GRELHA!A"&(MATCH(B115,Grelha!$V$3:$V$1490,0))+2)) ->  | D115: =INDIRECT("GRELHA!f"&(MATCH(B115,Grelha!$V$3:$V$1490,0))+2) -> 0 | E115: =INDIRECT("GRELHA!g"&(MATCH(B115,Grelha!$V$3:$V$1490,0))+2) -> 0 | F115: =INDIRECT("GRELHA!h"&(MATCH(B115,Grelha!$V$3:$V$1490,0))+2) -> 0 | G115: =INDIRECT("GRELHA!i"&(MATCH(B115,Grelha!$V$3:$V$1490,0))+2) -> 0
B116: 114 | C116: =IF(LEN(D116)<3,"",INDIRECT("GRELHA!A"&(MATCH(B116,Grelha!$V$3:$V$1490,0))+2)) ->  | D116: =INDIRECT("GRELHA!f"&(MATCH(B116,Grelha!$V$3:$V$1490,0))+2) -> 0 | E116: =INDIRECT("GRELHA!g"&(MATCH(B116,Grelha!$V$3:$V$1490,0))+2) -> 0 | F116: =INDIRECT("GRELHA!h"&(MATCH(B116,Grelha!$V$3:$V$1490,0))+2) -> 0 | G116: =INDIRECT("GRELHA!i"&(MATCH(B116,Grelha!$V$3:$V$1490,0))+2) -> 0
B117: 115 | C117: =IF(LEN(D117)<3,"",INDIRECT("GRELHA!A"&(MATCH(B117,Grelha!$V$3:$V$1490,0))+2)) ->  | D117: =INDIRECT("GRELHA!f"&(MATCH(B117,Grelha!$V$3:$V$1490,0))+2) -> 0 | E117: =INDIRECT("GRELHA!g"&(MATCH(B117,Grelha!$V$3:$V$1490,0))+2) -> 0 | F117: =INDIRECT("GRELHA!h"&(MATCH(B117,Grelha!$V$3:$V$1490,0))+2) -> 0 | G117: =INDIRECT("GRELHA!i"&(MATCH(B117,Grelha!$V$3:$V$1490,0))+2) -> 0
B118: 116 | C118: =IF(LEN(D118)<3,"",INDIRECT("GRELHA!A"&(MATCH(B118,Grelha!$V$3:$V$1490,0))+2)) ->  | D118: =INDIRECT("GRELHA!f"&(MATCH(B118,Grelha!$V$3:$V$1490,0))+2) -> 0 | E118: =INDIRECT("GRELHA!g"&(MATCH(B118,Grelha!$V$3:$V$1490,0))+2) -> 0 | F118: =INDIRECT("GRELHA!h"&(MATCH(B118,Grelha!$V$3:$V$1490,0))+2) -> 0 | G118: =INDIRECT("GRELHA!i"&(MATCH(B118,Grelha!$V$3:$V$1490,0))+2) -> 0
B119: 117 | C119: =IF(LEN(D119)<3,"",INDIRECT("GRELHA!A"&(MATCH(B119,Grelha!$V$3:$V$1490,0))+2)) ->  | D119: =INDIRECT("GRELHA!f"&(MATCH(B119,Grelha!$V$3:$V$1490,0))+2) -> 0 | E119: =INDIRECT("GRELHA!g"&(MATCH(B119,Grelha!$V$3:$V$1490,0))+2) -> 0 | F119: =INDIRECT("GRELHA!h"&(MATCH(B119,Grelha!$V$3:$V$1490,0))+2) -> 0 | G119: =INDIRECT("GRELHA!i"&(MATCH(B119,Grelha!$V$3:$V$1490,0))+2) -> 0
B120: 118 | C120: =IF(LEN(D120)<3,"",INDIRECT("GRELHA!A"&(MATCH(B120,Grelha!$V$3:$V$1490,0))+2)) ->  | D120: =INDIRECT("GRELHA!f"&(MATCH(B120,Grelha!$V$3:$V$1490,0))+2) -> 0 | E120: =INDIRECT("GRELHA!g"&(MATCH(B120,Grelha!$V$3:$V$1490,0))+2) -> 0 | F120: =INDIRECT("GRELHA!h"&(MATCH(B120,Grelha!$V$3:$V$1490,0))+2) -> 0 | G120: =INDIRECT("GRELHA!i"&(MATCH(B120,Grelha!$V$3:$V$1490,0))+2) -> 0
B121: 119 | C121: =IF(LEN(D121)<3,"",INDIRECT("GRELHA!A"&(MATCH(B121,Grelha!$V$3:$V$1490,0))+2)) ->  | D121: =INDIRECT("GRELHA!f"&(MATCH(B121,Grelha!$V$3:$V$1490,0))+2) -> 0 | E121: =INDIRECT("GRELHA!g"&(MATCH(B121,Grelha!$V$3:$V$1490,0))+2) -> 0 | F121: =INDIRECT("GRELHA!h"&(MATCH(B121,Grelha!$V$3:$V$1490,0))+2) -> 0 | G121: =INDIRECT("GRELHA!i"&(MATCH(B121,Grelha!$V$3:$V$1490,0))+2) -> 0
B122: 120 | C122: =IF(LEN(D122)<3,"",INDIRECT("GRELHA!A"&(MATCH(B122,Grelha!$V$3:$V$1490,0))+2)) ->  | D122: =INDIRECT("GRELHA!f"&(MATCH(B122,Grelha!$V$3:$V$1490,0))+2) -> 0 | E122: =INDIRECT("GRELHA!g"&(MATCH(B122,Grelha!$V$3:$V$1490,0))+2) -> 0 | F122: =INDIRECT("GRELHA!h"&(MATCH(B122,Grelha!$V$3:$V$1490,0))+2) -> 0 | G122: =INDIRECT("GRELHA!i"&(MATCH(B122,Grelha!$V$3:$V$1490,0))+2) -> 0
B123: 121 | C123: =IF(LEN(D123)<3,"",INDIRECT("GRELHA!A"&(MATCH(B123,Grelha!$V$3:$V$1490,0))+2)) ->  | D123: =INDIRECT("GRELHA!f"&(MATCH(B123,Grelha!$V$3:$V$1490,0))+2) -> 0 | E123: =INDIRECT("GRELHA!g"&(MATCH(B123,Grelha!$V$3:$V$1490,0))+2) -> 0 | F123: =INDIRECT("GRELHA!h"&(MATCH(B123,Grelha!$V$3:$V$1490,0))+2) -> 0 | G123: =INDIRECT("GRELHA!i"&(MATCH(B123,Grelha!$V$3:$V$1490,0))+2) -> 0
B124: 122 | C124: =IF(LEN(D124)<3,"",INDIRECT("GRELHA!A"&(MATCH(B124,Grelha!$V$3:$V$1490,0))+2)) ->  | D124: =INDIRECT("GRELHA!f"&(MATCH(B124,Grelha!$V$3:$V$1490,0))+2) -> 0 | E124: =INDIRECT("GRELHA!g"&(MATCH(B124,Grelha!$V$3:$V$1490,0))+2) -> 0 | F124: =INDIRECT("GRELHA!h"&(MATCH(B124,Grelha!$V$3:$V$1490,0))+2) -> 0 | G124: =INDIRECT("GRELHA!i"&(MATCH(B124,Grelha!$V$3:$V$1490,0))+2) -> 0
B125: 123 | C125: =IF(LEN(D125)<3,"",INDIRECT("GRELHA!A"&(MATCH(B125,Grelha!$V$3:$V$1490,0))+2)) ->  | D125: =INDIRECT("GRELHA!f"&(MATCH(B125,Grelha!$V$3:$V$1490,0))+2) -> 0 | E125: =INDIRECT("GRELHA!g"&(MATCH(B125,Grelha!$V$3:$V$1490,0))+2) -> 0 | F125: =INDIRECT("GRELHA!h"&(MATCH(B125,Grelha!$V$3:$V$1490,0))+2) -> 0 | G125: =INDIRECT("GRELHA!i"&(MATCH(B125,Grelha!$V$3:$V$1490,0))+2) -> 0
B126: 124 | C126: =IF(LEN(D126)<3,"",INDIRECT("GRELHA!A"&(MATCH(B126,Grelha!$V$3:$V$1490,0))+2)) ->  | D126: =INDIRECT("GRELHA!f"&(MATCH(B126,Grelha!$V$3:$V$1490,0))+2) -> 0 | E126: =INDIRECT("GRELHA!g"&(MATCH(B126,Grelha!$V$3:$V$1490,0))+2) -> 0 | F126: =INDIRECT("GRELHA!h"&(MATCH(B126,Grelha!$V$3:$V$1490,0))+2) -> 0 | G126: =INDIRECT("GRELHA!i"&(MATCH(B126,Grelha!$V$3:$V$1490,0))+2) -> 0
B127: 125 | C127: =IF(LEN(D127)<3,"",INDIRECT("GRELHA!A"&(MATCH(B127,Grelha!$V$3:$V$1490,0))+2)) ->  | D127: =INDIRECT("GRELHA!f"&(MATCH(B127,Grelha!$V$3:$V$1490,0))+2) -> 0 | E127: =INDIRECT("GRELHA!g"&(MATCH(B127,Grelha!$V$3:$V$1490,0))+2) -> 0 | F127: =INDIRECT("GRELHA!h"&(MATCH(B127,Grelha!$V$3:$V$1490,0))+2) -> 0 | G127: =INDIRECT("GRELHA!i"&(MATCH(B127,Grelha!$V$3:$V$1490,0))+2) -> 0
B128: 126 | C128: =IF(LEN(D128)<3,"",INDIRECT("GRELHA!A"&(MATCH(B128,Grelha!$V$3:$V$1490,0))+2)) ->  | D128: =INDIRECT("GRELHA!f"&(MATCH(B128,Grelha!$V$3:$V$1490,0))+2) -> 0 | E128: =INDIRECT("GRELHA!g"&(MATCH(B128,Grelha!$V$3:$V$1490,0))+2) -> 0 | F128: =INDIRECT("GRELHA!h"&(MATCH(B128,Grelha!$V$3:$V$1490,0))+2) -> 0 | G128: =INDIRECT("GRELHA!i"&(MATCH(B128,Grelha!$V$3:$V$1490,0))+2) -> 0
B129: 127 | C129: =IF(LEN(D129)<3,"",INDIRECT("GRELHA!A"&(MATCH(B129,Grelha!$V$3:$V$1490,0))+2)) ->  | D129: =INDIRECT("GRELHA!f"&(MATCH(B129,Grelha!$V$3:$V$1490,0))+2) -> 0 | E129: =INDIRECT("GRELHA!g"&(MATCH(B129,Grelha!$V$3:$V$1490,0))+2) -> 0 | F129: =INDIRECT("GRELHA!h"&(MATCH(B129,Grelha!$V$3:$V$1490,0))+2) -> 0 | G129: =INDIRECT("GRELHA!i"&(MATCH(B129,Grelha!$V$3:$V$1490,0))+2) -> 0
B130: 128 | C130: =IF(LEN(D130)<3,"",INDIRECT("GRELHA!A"&(MATCH(B130,Grelha!$V$3:$V$1490,0))+2)) ->  | D130: =INDIRECT("GRELHA!f"&(MATCH(B130,Grelha!$V$3:$V$1490,0))+2) -> 0 | E130: =INDIRECT("GRELHA!g"&(MATCH(B130,Grelha!$V$3:$V$1490,0))+2) -> 0 | F130: =INDIRECT("GRELHA!h"&(MATCH(B130,Grelha!$V$3:$V$1490,0))+2) -> 0 | G130: =INDIRECT("GRELHA!i"&(MATCH(B130,Grelha!$V$3:$V$1490,0))+2) -> 0

Sheet Previsão_Escala_A
A1: =IF(H9="","",H9) -> 2017-08-18 | B1: =INDEX(A:A,INT((ROW()-1)/Home!$L$11)+1) -> 2017-08-18 | C1: =OR(WEEKDAY(H9)=1,WEEKDAY(H9)=7,COUNTIF(Feriados!A2:A20,H9)=1)+N("dia da semana 1 ou 7 verifica se é sábado ou domingo. Contar.se procura na folha feriados de o dia existe lá. Se assim for é escala B") -> 0
A2: =IF(A1="","",IF(AND(VLOOKUP(A1+1,Grelha!$D$3:$E$1490,2)="B",VLOOKUP(A1+1+1,Grelha!$D$3:$E$1490,2)="B",VLOOKUP(A1+1+1+1,Grelha!$D$3:$E$1490,2)="B")=TRUE,A1+4,IF(AND(VLOOKUP(A1+1,Grelha!$D$3:$E$1490,2)="B",VLOOKUP(A1+1+1,Grelha!$D$3:$E$1490,2)="B")=TRUE,A1+3,IF(AND(VLOOKUP(A1+1,Grelha!$D$3:$E$1490,2)="B",VLOOKUP(A1+1+1,Grelha!$D$3:$E$1490,2)="A")=TRUE,A1+2,IF(VLOOKUP(A1+1,Grelha!$D$3:$E$1490,2)="A",A1+1))))) -> 2017-08-21 | B2: =INDEX(A:A,INT((ROW()-1)/Home!$L$11)+1) -> 2017-08-21 | E2: =Home!E2 -> Regimento de Paraquedistas
A3: =IF(A2="","",IF(AND(VLOOKUP(A2+1,Grelha!$D$3:$E$1490,2)="B",VLOOKUP(A2+1+1,Grelha!$D$3:$E$1490,2)="B",VLOOKUP(A2+1+1+1,Grelha!$D$3:$E$1490,2)="B")=TRUE,A2+4,IF(AND(VLOOKUP(A2+1,Grelha!$D$3:$E$1490,2)="B",VLOOKUP(A2+1+1,Grelha!$D$3:$E$1490,2)="B")=TRUE,A2+3,IF(AND(VLOOKUP(A2+1,Grelha!$D$3:$E$1490,2)="B",VLOOKUP(A2+1+1,Grelha!$D$3:$E$1490,2)="A")=TRUE,A2+2,IF(VLOOKUP(A2+1,Grelha!$D$3:$E$1490,2)="A",A2+1))))) -> 2017-08-22 | B3: =INDEX(A:A,INT((ROW()-1)/Home!$L$11)+1) -> 2017-08-22
A4: =IF(A3="","",IF(AND(VLOOKUP(A3+1,Grelha!$D$3:$E$1490,2)="B",VLOOKUP(A3+1+1,Grelha!$D$3:$E$1490,2)="B",VLOOKUP(A3+1+1+1,Grelha!$D$3:$E$1490,2)="B")=TRUE,A3+4,IF(AND(VLOOKUP(A3+1,Grelha!$D$3:$E$1490,2)="B",VLOOKUP(A3+1+1,Grelha!$D$3:$E$1490,2)="B")=TRUE,A3+3,IF(AND(VLOOKUP(A3+1,Grelha!$D$3:$E$1490,2)="B",VLOOKUP(A3+1+1,Grelha!$D$3:$E$1490,2)="A")=TRUE,A3+2,IF(VLOOKUP(A3+1,Grelha!$D$3:$E$1490,2)="A",A3+1))))) -> 2017-08-23 | B4: =INDEX(A:A,INT((ROW()-1)/Home!$L$11)+1) -> 2017-08-23 | E4: =Home!E4 -> Escala de Comandante da Guarda
A5: =IF(A4="","",IF(AND(VLOOKUP(A4+1,Grelha!$D$3:$E$1490,2)="B",VLOOKUP(A4+1+1,Grelha!$D$3:$E$1490,2)="B",VLOOKUP(A4+1+1+1,Grelha!$D$3:$E$1490,2)="B")=TRUE,A4+4,IF(AND(VLOOKUP(A4+1,Grelha!$D$3:$E$1490,2)="B",VLOOKUP(A4+1+1,Grelha!$D$3:$E$1490,2)="B")=TRUE,A4+3,IF(AND(VLOOKUP(A4+1,Grelha!$D$3:$E$1490,2)="B",VLOOKUP(A4+1+1,Grelha!$D$3:$E$1490,2)="A")=TRUE,A4+2,IF(VLOOKUP(A4+1,Grelha!$D$3:$E$1490,2)="A",A4+1))))) -> 2017-08-24 | B5: =INDEX(A:A,INT((ROW()-1)/Home!$L$11)+1) -> 2017-08-24
A6: =IF(A5="","",IF(AND(VLOOKUP(A5+1,Grelha!$D$3:$E$1490,2)="B",VLOOKUP(A5+1+1,Grelha!$D$3:$E$1490,2)="B",VLOOKUP(A5+1+1+1,Grelha!$D$3:$E$1490,2)="B")=TRUE,A5+4,IF(AND(VLOOKUP(A5+1,Grelha!$D$3:$E$1490,2)="B",VLOOKUP(A5+1+1,Grelha!$D$3:$E$1490,2)="B")=TRUE,A5+3,IF(AND(VLOOKUP(A5+1,Grelha!$D$3:$E$1490,2)="B",VLOOKUP(A5+1+1,Grelha!$D$3:$E$1490,2)="A")=TRUE,A5+2,IF(VLOOKUP(A5+1,Grelha!$D$3:$E$1490,2)="A",A5+1))))) -> 2017-08-25 | B6: =INDEX(A:A,INT((ROW()-1)/Home!$L$11)+1) -> 2017-08-25 | E6: Escala de Semana
A7: =IF(A6="","",IF(AND(VLOOKUP(A6+1,Grelha!$D$3:$E$1490,2)="B",VLOOKUP(A6+1+1,Grelha!$D$3:$E$1490,2)="B",VLOOKUP(A6+1+1+1,Grelha!$D$3:$E$1490,2)="B")=TRUE,A6+4,IF(AND(VLOOKUP(A6+1,Grelha!$D$3:$E$1490,2)="B",VLOOKUP(A6+1+1,Grelha!$D$3:$E$1490,2)="B")=TRUE,A6+3,IF(AND(VLOOKUP(A6+1,Grelha!$D$3:$E$1490,2)="B",VLOOKUP(A6+1+1,Grelha!$D$3:$E$1490,2)="A")=TRUE,A6+2,IF(VLOOKUP(A6+1,Grelha!$D$3:$E$1490,2)="A",A6+1))))) -> 2017-08-28 | B7: =INDEX(A:A,INT((ROW()-1)/Home!$L$11)+1) -> 2017-08-28
A8: =IF(A7="","",IF(AND(VLOOKUP(A7+1,Grelha!$D$3:$E$1490,2)="B",VLOOKUP(A7+1+1,Grelha!$D$3:$E$1490,2)="B",VLOOKUP(A7+1+1+1,Grelha!$D$3:$E$1490,2)="B")=TRUE,A7+4,IF(AND(VLOOKUP(A7+1,Grelha!$D$3:$E$1490,2)="B",VLOOKUP(A7+1+1,Grelha!$D$3:$E$1490,2)="B")=TRUE,A7+3,IF(AND(VLOOKUP(A7+1,Grelha!$D$3:$E$1490,2)="B",VLOOKUP(A7+1+1,Grelha!$D$3:$E$1490,2)="A")=TRUE,A7+2,IF(VLOOKUP(A7+1,Grelha!$D$3:$E$1490,2)="A",A7+1))))) -> 2017-08-29 | B8: =INDEX(A:A,INT((ROW()-1)/Home!$L$11)+1) -> 2017-08-29 | E8: Posto | F8: Nim | G8: Apelido | H8: Data | I8: Dia da semana | J8: Obs
A9: =IF(A8="","",IF(AND(VLOOKUP(A8+1,Grelha!$D$3:$E$1490,2)="B",VLOOKUP(A8+1+1,Grelha!$D$3:$E$1490,2)="B",VLOOKUP(A8+1+1+1,Grelha!$D$3:$E$1490,2)="B")=TRUE,A8+4,IF(AND(VLOOKUP(A8+1,Grelha!$D$3:$E$1490,2)="B",VLOOKUP(A8+1+1,Grelha!$D$3:$E$1490,2)="B")=TRUE,A8+3,IF(AND(VLOOKUP(A8+1,Grelha!$D$3:$E$1490,2)="B",VLOOKUP(A8+1+1,Grelha!$D$3:$E$1490,2)="A")=TRUE,A8+2,IF(VLOOKUP(A8+1,Grelha!$D$3:$E$1490,2)="A",A8+1))))) -> 2017-08-30 | B9: =INDEX(A:A,INT((ROW()-1)/Home!$L$11)+1) -> 2017-08-30 | E9: =IF(ISERROR(IF(H9="","",Previsão_Print!B10))=TRUE,"",IF(H9="","",Previsão_Print!B10)) -> 1Sar | F9: =IF(ISERROR(IF(H9="","",Previsão_Print!C10))=TRUE,"",IF(H9="","",Previsão_Print!C10)) -> 5 | G9: =IF(ISERROR(IF(H9="","",Previsão_Print!D10))=TRUE,"",IF(H9="","",Previsão_Print!D10)) -> Donny Belote | H9: 2017-08-18 | I9: =IF(H9="","",H9) -> 2017-08-18
A10: =IF(A9="","",IF(AND(VLOOKUP(A9+1,Grelha!$D$3:$E$1490,2)="B",VLOOKUP(A9+1+1,Grelha!$D$3:$E$1490,2)="B",VLOOKUP(A9+1+1+1,Grelha!$D$3:$E$1490,2)="B")=TRUE,A9+4,IF(AND(VLOOKUP(A9+1,Grelha!$D$3:$E$1490,2)="B",VLOOKUP(A9+1+1,Grelha!$D$3:$E$1490,2)="B")=TRUE,A9+3,IF(AND(VLOOKUP(A9+1,Grelha!$D$3:$E$1490,2)="B",VLOOKUP(A9+1+1,Grelha!$D$3:$E$1490,2)="A")=TRUE,A9+2,IF(VLOOKUP(A9+1,Grelha!$D$3:$E$1490,2)="A",A9+1))))) -> 2017-08-31 | B10: =INDEX(A:A,INT((ROW()-1)/Home!$L$11)+1) -> 2017-08-31 | E10: =IF(ISERROR(IF(H10="","",Previsão_Print!B11))=TRUE,"",IF(H10="","",Previsão_Print!B11)) -> 1Sar | F10: =IF(ISERROR(IF(H10="","",Previsão_Print!C11))=TRUE,"",IF(H10="","",Previsão_Print!C11)) -> 6 | G10: =IF(ISERROR(IF(H10="","",Previsão_Print!D11))=TRUE,"",IF(H10="","",Previsão_Print!D11)) -> Wm Payton | H10: =B2 -> 2017-08-21 | I10: =IF(H10="","",H10) -> 2017-08-21
A11: =IF(A10="","",IF(AND(VLOOKUP(A10+1,Grelha!$D$3:$E$1490,2)="B",VLOOKUP(A10+1+1,Grelha!$D$3:$E$1490,2)="B",VLOOKUP(A10+1+1+1,Grelha!$D$3:$E$1490,2)="B")=TRUE,A10+4,IF(AND(VLOOKUP(A10+1,Grelha!$D$3:$E$1490,2)="B",VLOOKUP(A10+1+1,Grelha!$D$3:$E$1490,2)="B")=TRUE,A10+3,IF(AND(VLOOKUP(A10+1,Grelha!$D$3:$E$1490,2)="B",VLOOKUP(A10+1+1,Grelha!$D$3:$E$1490,2)="A")=TRUE,A10+2,IF(VLOOKUP(A10+1,Grelha!$D$3:$E$1490,2)="A",A10+1))))) -> 2017-09-01 | B11: =INDEX(A:A,INT((ROW()-1)/Home!$L$11)+1) -> 2017-09-01 | E11: =IF(ISERROR(IF(H11="","",Previsão_Print!B12))=TRUE,"",IF(H11="","",Previsão_Print!B12)) -> 1Sar | F11: =IF(ISERROR(IF(H11="","",Previsão_Print!C12))=TRUE,"",IF(H11="","",Previsão_Print!C12)) -> 7 | G11: =IF(ISERROR(IF(H11="","",Previsão_Print!D12))=TRUE,"",IF(H11="","",Previsão_Print!D12)) -> Eugene Molloy | H11: =B3 -> 2017-08-22 | I11: 2017-08-22
A12: =IF(A11="","",IF(AND(VLOOKUP(A11+1,Grelha!$D$3:$E$1490,2)="B",VLOOKUP(A11+1+1,Grelha!$D$3:$E$1490,2)="B",VLOOKUP(A11+1+1+1,Grelha!$D$3:$E$1490,2)="B")=TRUE,A11+4,IF(AND(VLOOKUP(A11+1,Grelha!$D$3:$E$1490,2)="B",VLOOKUP(A11+1+1,Grelha!$D$3:$E$1490,2)="B")=TRUE,A11+3,IF(AND(VLOOKUP(A11+1,Grelha!$D$3:$E$1490,2)="B",VLOOKUP(A11+1+1,Grelha!$D$3:$E$1490,2)="A")=TRUE,A11+2,IF(VLOOKUP(A11+1,Grelha!$D$3:$E$1490,2)="A",A11+1))))) -> 2017-09-04 | B12: =INDEX(A:A,INT((ROW()-1)/Home!$L$11)+1) -> 2017-09-04 | E12: =IF(ISERROR(IF(H12="","",Previsão_Print!B13))=TRUE,"",IF(H12="","",Previsão_Print!B13)) -> 1Sar | F12: =IF(ISERROR(IF(H12="","",Previsão_Print!C13))=TRUE,"",IF(H12="","",Previsão_Print!C13)) -> 8 | G12: =IF(ISERROR(IF(H12="","",Previsão_Print!D13))=TRUE,"",IF(H12="","",Previsão_Print!D13)) -> Phillip Nottage | H12: =B4 -> 2017-08-23 | I12: 2017-08-23
A13: =IF(A12="","",IF(AND(VLOOKUP(A12+1,Grelha!$D$3:$E$1490,2)="B",VLOOKUP(A12+1+1,Grelha!$D$3:$E$1490,2)="B",VLOOKUP(A12+1+1+1,Grelha!$D$3:$E$1490,2)="B")=TRUE,A12+4,IF(AND(VLOOKUP(A12+1,Grelha!$D$3:$E$1490,2)="B",VLOOKUP(A12+1+1,Grelha!$D$3:$E$1490,2)="B")=TRUE,A12+3,IF(AND(VLOOKUP(A12+1,Grelha!$D$3:$E$1490,2)="B",VLOOKUP(A12+1+1,Grelha!$D$3:$E$1490,2)="A")=TRUE,A12+2,IF(VLOOKUP(A12+1,Grelha!$D$3:$E$1490,2)="A",A12+1))))) -> 2017-09-05 | B13: =INDEX(A:A,INT((ROW()-1)/Home!$L$11)+1) -> 2017-09-05 | E13: =IF(ISERROR(IF(H13="","",Previsão_Print!B14))=TRUE,"",IF(H13="","",Previsão_Print!B14)) -> 1Sar | F13: =IF(ISERROR(IF(H13="","",Previsão_Print!C14))=TRUE,"",IF(H13="","",Previsão_Print!C14)) -> 9 | G13: =IF(ISERROR(IF(H13="","",Previsão_Print!D14))=TRUE,"",IF(H13="","",Previsão_Print!D14)) -> Lavern Tank | H13: 2017-08-24 | I13: 2017-08-24
A14: =IF(A13="","",IF(AND(VLOOKUP(A13+1,Grelha!$D$3:$E$1490,2)="B",VLOOKUP(A13+1+1,Grelha!$D$3:$E$1490,2)="B",VLOOKUP(A13+1+1+1,Grelha!$D$3:$E$1490,2)="B")=TRUE,A13+4,IF(AND(VLOOKUP(A13+1,Grelha!$D$3:$E$1490,2)="B",VLOOKUP(A13+1+1,Grelha!$D$3:$E$1490,2)="B")=TRUE,A13+3,IF(AND(VLOOKUP(A13+1,Grelha!$D$3:$E$1490,2)="B",VLOOKUP(A13+1+1,Grelha!$D$3:$E$1490,2)="A")=TRUE,A13+2,IF(VLOOKUP(A13+1,Grelha!$D$3:$E$1490,2)="A",A13+1))))) -> 2017-09-06 | B14: =INDEX(A:A,INT((ROW()-1)/Home!$L$11)+1) -> 2017-09-06 | E14: =IF(ISERROR(IF(H14="","",Previsão_Print!B15))=TRUE,"",IF(H14="","",Previsão_Print!B15)) -> 1Sar | F14: =IF(ISERROR(IF(H14="","",Previsão_Print!C15))=TRUE,"",IF(H14="","",Previsão_Print!C15)) -> 10 | G14: =IF(ISERROR(IF(H14="","",Previsão_Print!D15))=TRUE,"",IF(H14="","",Previsão_Print!D15)) -> Elvis Feeney | H14: 2017-08-25 | I14: 2017-08-25
A15: =IF(A14="","",IF(AND(VLOOKUP(A14+1,Grelha!$D$3:$E$1490,2)="B",VLOOKUP(A14+1+1,Grelha!$D$3:$E$1490,2)="B",VLOOKUP(A14+1+1+1,Grelha!$D$3:$E$1490,2)="B")=TRUE,A14+4,IF(AND(VLOOKUP(A14+1,Grelha!$D$3:$E$1490,2)="B",VLOOKUP(A14+1+1,Grelha!$D$3:$E$1490,2)="B")=TRUE,A14+3,IF(AND(VLOOKUP(A14+1,Grelha!$D$3:$E$1490,2)="B",VLOOKUP(A14+1+1,Grelha!$D$3:$E$1490,2)="A")=TRUE,A14+2,IF(VLOOKUP(A14+1,Grelha!$D$3:$E$1490,2)="A",A14+1))))) -> 2017-09-07 | B15: =INDEX(A:A,INT((ROW()-1)/Home!$L$11)+1) -> 2017-09-07 | E15: =IF(ISERROR(IF(H15="","",Previsão_Print!B16))=TRUE,"",IF(H15="","",Previsão_Print!B16)) -> 1Sar | F15: =IF(ISERROR(IF(H15="","",Previsão_Print!C16))=TRUE,"",IF(H15="","",Previsão_Print!C16)) -> 11 | G15: =IF(ISERROR(IF(H15="","",Previsão_Print!D16))=TRUE,"",IF(H15="","",Previsão_Print!D16)) -> Nigel Knell | H15: 2017-08-28 | I15: 2017-08-28
A16: =IF(A15="","",IF(AND(VLOOKUP(A15+1,Grelha!$D$3:$E$1490,2)="B",VLOOKUP(A15+1+1,Grelha!$D$3:$E$1490,2)="B",VLOOKUP(A15+1+1+1,Grelha!$D$3:$E$1490,2)="B")=TRUE,A15+4,IF(AND(VLOOKUP(A15+1,Grelha!$D$3:$E$1490,2)="B",VLOOKUP(A15+1+1,Grelha!$D$3:$E$1490,2)="B")=TRUE,A15+3,IF(AND(VLOOKUP(A15+1,Grelha!$D$3:$E$1490,2)="B",VLOOKUP(A15+1+1,Grelha!$D$3:$E$1490,2)="A")=TRUE,A15+2,IF(VLOOKUP(A15+1,Grelha!$D$3:$E$1490,2)="A",A15+1))))) -> 2017-09-08 | B16: =INDEX(A:A,INT((ROW()-1)/Home!$L$11)+1) -> 2017-09-08 | E16: =IF(ISERROR(IF(H16="","",Previsão_Print!B17))=TRUE,"",IF(H16="","",Previsão_Print!B17)) -> 1Sar | F16: =IF(ISERROR(IF(H16="","",Previsão_Print!C17))=TRUE,"",IF(H16="","",Previsão_Print!C17)) -> 12 | G16: =IF(ISERROR(IF(H16="","",Previsão_Print!D17))=TRUE,"",IF(H16="","",Previsão_Print!D17)) -> Stanton Mccord | H16: 2017-08-29 | I16: 2017-08-29
